Workbook

Sheet TOTAL FUNCFAC
A1: PacifiCorp
A2: 12 Months Ended December 2019
A3: FUNCTIONAL FACTORS
A6: Function | B6: Description | C6: Generation | D6: Transmission | E6: Distribution | F6: Customer | G6: Common | H6: Total
A7: ACCMDIT | B7: Deferred Income Tax | C7: =ACCUMDIT!D50 -> 0.489577752 | D7: =ACCUMDIT!E50 -> 0.259164263 | E7: =ACCUMDIT!F50 -> 0.2505291301 | F7: =ACCUMDIT!G50 -> 0.0007288548526 | G7: =ACCUMDIT!H50 -> 0 | H7: =ROUND(SUM(C7:G7),4) -> 1
A8: BOOKDEPR | B8: Book Depreciation | C8: =BOOKDPR!C13 -> 0.6023412971 | D8: =BOOKDPR!D13 -> 0.1639896315 | E8: =BOOKDPR!E13 -> 0.2321820476 | F8: =BOOKDPR!F13 -> 0.001487023758 | G8: =BOOKDPR!G13 -> 0 | H8: 1
A9: COM_EQ | B9: Communication Equipment Acct 397 | C9: 0 | D9: 0 | E9: 0 | F9: 0 | G9: 0 | H9: 0
A10: CUST | B10: Distribution Retail | C10: 0 | D10: 0 | E10: 0 | F10: 1 | G10: 0 | H10: 1
A11: DDS2 | B11: Deferred Debits - Situs | C11: ='REGASSETS&DDS'!F35 -> 0.9989281789 | D11: ='REGASSETS&DDS'!G35 -> 0.05781761172 | E11: ='REGASSETS&DDS'!H35 -> 0.3170995027 | F11: ='REGASSETS&DDS'!I35 -> -0.3796868389 | G11: ='REGASSETS&DDS'!J35 -> 0.005841545635 | H11: 1
A12: DDS6 | B12: Deferred Debits - Situs | C12: 0 | D12: 0 | E12: 0 | F12: 0 | G12: 0 | H12: 0
A13: DDSO2 | B13: Deferred Debits - System Overhead | C13: ='REGASSETS&DDS'!F34 -> 0.4028162177 | D13: ='REGASSETS&DDS'!G34 -> 0.07672255416 | E13: ='REGASSETS&DDS'!H34 -> 0.2829090617 | F13: ='REGASSETS&DDS'!I34 -> 0.1204554907 | G13: ='REGASSETS&DDS'!J34 -> 0.1170966757 | H13: 1
A14: DDSO6 | B14: Deferred Debits - System Overhead | C14: =IF('REGASSETS&DDS'!F55=0,0,'REGASSETS&DDS'!F55) -> 0 | D14: ='REGASSETS&DDS'!G55 -> 0 | E14: ='REGASSETS&DDS'!H55 -> 0 | F14: ='REGASSETS&DDS'!I55 -> 0 | G14: ='REGASSETS&DDS'!J55 -> 0 | H14: 0
A15: DEFSG | B15: Deferred Debit - System Generation | C15: ='REGASSETS&DDS'!F54 -> 0.8364010275 | D15: ='REGASSETS&DDS'!G54 -> 0.1635989725 | E15: ='REGASSETS&DDS'!H54 -> 0 | F15: ='REGASSETS&DDS'!I54 -> 0 | G15: ='REGASSETS&DDS'!J54 -> 0 | H15: 1
A16: COMMON | B16: Common | C16: 0 | D16: 0 | E16: 0 | F16: 0 | G16: 1 | H16: 1
A17: DPW | B17: Distribution Poles & Wires | C17: ='FORM 1'!C15 -> 0 | D17: ='FORM 1'!D15 -> 0 | E17: ='FORM 1'!E15 -> 1 | F17: ='FORM 1'!F15 -> 0 | G17: ='FORM 1'!G15 -> 0 | H17: 1
A18: ESD | B18: Environmental Services Department | C18: 0.3 | D18: 0.1 | E18: 0.6 | F18: 0 | G18: 0 | H18: 1
A19: FERC | B19: FERC Fees | C19: ='FORM 1'!C39 -> 0.5039659549 | D19: ='FORM 1'!D39 -> 0.4960340451 | E19: ='FORM 1'!E39 -> 0 | F19: ='FORM 1'!F39 -> 0 | G19: ='FORM 1'!G39 -> 0 | H19: 1
A20: G | B20: General Plant | C20: =GP!E38 -> 0.2124999166 | D20: =GP!F38 -> 0.352856729 | E20: =GP!G38 -> 0.4202361644 | F20: =GP!H38 -> 0.01440719009 | G20: =GP!I38 -> 0 | H20: 1
A21: G-DGP | B21: General Plant - DGP Factor | C21: =+C72 -> 0.6615015881 | D21: =+D72 -> 0.3384984119 | E21: =+E72 -> 0 | F21: =+F72 -> 0 | G21: =+G72 -> 0 | H21: 1
A22: G-DGU | B22: General Plant - DGU Factor | C22: =+C21 -> 0.6615015881 | D22: =+D21 -> 0.3384984119 | E22: =+E21 -> 0 | F22: =+F21 -> 0 | G22: =+G21 -> 0 | H22: 1
A23: GP | B23: Total Plant | C23: ='GROSS PLANT'!E42 -> 0.4725729318 | D23: ='GROSS PLANT'!F42 -> 0.2480047856 | E23: ='GROSS PLANT'!G42 -> 0.2725888816 | F23: ='GROSS PLANT'!H42 -> 0.006833401031 | G23: ='GROSS PLANT'!I42 -> 0 | H23: 1
A24: G-SG | B24: General Plant - SG Factor | C24: =GP!E34 -> 0.4152071742 | D24: =GP!F34 -> 0.5847928258 | E24: =GP!G34 -> 0 | F24: =GP!H34 -> 0 | G24: =GP!I34 -> 0 | H24: 1
A25: G-SITUS | B25: General Plant - SITUS Factor | C25: =GP!E36 -> 0 | D25: =GP!F36 -> 0.3058419303 | E25: =GP!G36 -> 0.6941580697 | F25: =GP!H36 -> 0 | G25: =GP!I36 -> 0 | H25: 1
A26: I | B26: Intangible Plant | C26: =IP!D35 -> 0.3792515332 | D26: =IP!E35 -> 0.1291501193 | E26: =IP!F35 -> 0.09721982588 | F26: =IP!G35 -> 0.1974764268 | G26: =IP!H35 -> 0.1969020948 | H26: 1
A27: I-DGP | B27: Intangible Plant - DGP Factor | C27: 1 | D27: 0 | E27: 0 | F27: 0 | G27: 0 | H27: 1
A28: I-DGU | B28: Intangible Plant - DGU Factor | C28: 1 | D28: 0 | E28: 0 | F28: 0 | G28: 0 | H28: 1
A29: I-SG | B29: Intangible Plant - SG Factor | C29: =IP!D33 -> 0.833425187 | D29: =IP!E33 -> 0.166574813 | E29: =IP!F33 -> 0 | F29: =IP!G33 -> 0 | G29: =IP!H33 -> 0 | H29: 1
A30: I-SITUS | B30: Intangible Plant - SITUS Factor | C30: =IP!D34 -> 3.199667228 | D30: =IP!E34 -> -1.31758851 | E30: =IP!F34 -> -0.8820787181 | F30: =IP!G34 -> 0 | G30: =IP!H34 -> 0 | H30: 1
A31: LABOR | B31: Direct Labor Expense | C31: ='FORM 1'!C25 -> 0.4037406801 | D31: ='FORM 1'!D25 -> 0.07601625701 | E31: ='FORM 1'!E25 -> 0.2668097395 | F31: ='FORM 1'!F25 -> 0.1285083433 | G31: ='FORM 1'!G25 -> 0.1249249802 | H31: 1
A32: MSS | B32: Materials & Supplies | C32: ='FORM 1'!C32 -> 0.8679289787 | D32: ='FORM 1'!D32 -> 0.004474655146 | E32: ='FORM 1'!E32 -> 0.1275963661 | F32: ='FORM 1'!F32 -> 0 | G32: ='FORM 1'!G32 -> 0 | H32: 1
A33: NONE | B33: Not Functionalized | C33: 0 | D33: 0 | E33: 0 | F33: 0 | G33: 0 | H33: =ROUND(SUM(C33:G33),4) -> 0
A34: NUTIL | B34: Non-Utility | C34: 0 | D34: 0 | E34: 0 | F34: 0 | G34: 0 | H34: =ROUND(SUM(C34:G34),4) -> 0
A35: OTHDGP | B35: Other Revenues - DGP Factor | C35: =C39 -> 0.1776761663 | D35: =D39 -> 0.8223238337 | E35: =E39 -> 0 | F35: =F39 -> 0 | G35: =G39 -> 0 | H35: =ROUND(SUM(C35:G35),4) -> 1
A36: OTHDGU | B36: Other Revenues - DGU Factor | C36: =C39 -> 0.1776761663 | D36: =D39 -> 0.8223238337 | E36: =E39 -> 0 | F36: =F39 -> 0 | G36: =G39 -> 0 | H36: 1
A37: OTHSE | B37: Other Revenues - SE Factor | C37: ='ELEC OPS'!E25 -> 0 | D37: ='ELEC OPS'!F25 -> 1 | E37: ='ELEC OPS'!G25 -> 0 | F37: ='ELEC OPS'!H25 -> 0 | G37: ='ELEC OPS'!I25 -> 0 | H37: 1
A38: OTHSG | B38: Other Revenues - SG Factor | C38: ='ELEC OPS'!E26 -> 0.1776761663 | D38: ='ELEC OPS'!F26 -> 0.8223238337 | E38: ='ELEC OPS'!G26 -> 0 | F38: ='ELEC OPS'!H26 -> 0 | G38: ='ELEC OPS'!I26 -> 0 | H38: 1
A39: OTHSGR | B39: Other Revenues - Rolled-In SG Factor | C39: =+C38 -> 0.1776761663 | D39: =+D38 -> 0.8223238337 | E39: =+E38 -> 0 | F39: =+F38 -> 0 | G39: =+G38 -> 0 | H39: 1
A40: OTHSITUS | B40: Other Revenues - SITUS | C40: ='ELEC OPS'!E23 -> -0.04106799069 | D40: ='ELEC OPS'!F23 -> 1.041067991 | E40: ='ELEC OPS'!G23 -> 0 | F40: ='ELEC OPS'!H23 -> 0 | G40: ='ELEC OPS'!I23 -> 0 | H40: 1
A41: OTHSO | B41: Other Revenues - SO Factor | C41: ='ELEC OPS'!E27 -> 0.4816325333 | D41: ='ELEC OPS'!F27 -> 0.2464572279 | E41: ='ELEC OPS'!G27 -> 0.2719102388 | F41: ='ELEC OPS'!H27 -> 0 | G41: ='ELEC OPS'!I27 -> 0 | H41: 1
A42: P | B42: Production | C42: ='FORM 1'!C13 -> 1 | D42: ='FORM 1'!D13 -> 0 | E42: ='FORM 1'!E13 -> 0 | F42: ='FORM 1'!F13 -> 0 | G42: ='FORM 1'!G13 -> 0 | H42: 1
A43: SCHMA | B43: Schedule M Additions | C43: ='SCH M'!F65 -> 0.4429079485 | D43: ='SCH M'!G65 -> 0.217219733 | E43: ='SCH M'!H65 -> 0.328756597 | F43: ='SCH M'!I65 -> 0.00852662998 | G43: ='SCH M'!J65 -> 0.002589091473 | H43: 1
A44: SCHMAF | B44: Schedule M Additions - Flow Through | C44: 1 | D44: 0 | E44: 0 | F44: 0 | G44: 0 | H44: 1
A45: SCHMAP | B45: Schedule M Additions - Permanent | C45: ='SCH M'!F16 -> 0.7704851018 | D45: ='SCH M'!G16 -> 0.02926052962 | E45: ='SCH M'!H16 -> 0.1027016403 | F45: ='SCH M'!I16 -> 0.0494660265 | G45: ='SCH M'!J16 -> 0.04808670179 | H45: 1
A46: SCHMAP-SO | B46: Schedule M Additions - Permanent-SO | C46: ='SCH M'!F15 -> 0.7848556923 | D46: ='SCH M'!G15 -> 0.02742844336 | E46: ='SCH M'!H15 -> 0.09627119404 | F46: ='SCH M'!I15 -> 0.04636881574 | G46: ='SCH M'!J15 -> 0.04507585453 | H46: 1
A47: SCHMAT | B47: Schedule M Additions - Temporary | C47: =+'SCH M'!F$57 -> 0.4422113483 | D47: =+'SCH M'!G$57 -> 0.2176194325 | E47: =+'SCH M'!H$57 -> 0.3292373079 | F47: =+'SCH M'!I$57 -> 0.008439571434 | G47: =+'SCH M'!J$57 -> 0.002492339783 | H47: 1
A48: SCHMAT-GPS | B48: Schedule M Additions - Temporary-GPS | C48: 0 | D48: 0 | E48: 0 | F48: 0 | G48: 0 | H48: 0
A49: SCHMAT-SE | B49: Schedule M Additions - Temporary-SE | C49: ='SCH M'!F53 -> 0.9999871281 | D49: ='SCH M'!G53 -> 1.641014256e-06 | E49: ='SCH M'!H53 -> 5.759801963e-06 | F49: ='SCH M'!I53 -> 2.774196358e-06 | G49: ='SCH M'!J53 -> 2.69683988e-06 | H49: 1
A50: SCHMAT-SITUS | B50: Schedule M Additions - Temporary-SITUS | C50: ='SCH M'!F55 -> 1.912737347 | D50: ='SCH M'!G55 -> -0.312243676 | E50: ='SCH M'!H55 -> -0.5913761231 | F50: ='SCH M'!I55 -> -0.004623231537 | G50: ='SCH M'!J55 -> -0.004494316037 | H50: 1
A51: SCHMAT-SNP | B51: Schedule M Additions - Temporary-SNP | C51: ='SCH M'!F54 -> 0.4815059005 | D51: ='SCH M'!G54 -> 0.2464788592 | E51: ='SCH M'!H54 -> 0.2719197247 | F51: ='SCH M'!I54 -> 9.55155184e-05 | G51: ='SCH M'!J54 -> 0 | H51: 1
A52: SCHMAT-SO | B52: Schedule M Additions - Temporary-SO | C52: ='SCH M'!F56 -> 0.4043473591 | D52: ='SCH M'!G56 -> 0.07734377661 | E52: ='SCH M'!H56 -> 0.266849466 | F52: ='SCH M'!I56 -> 0.1275074258 | G52: ='SCH M'!J56 -> 0.1239519726 | H52: 1
A53: SCHMD | B53: Schedule M Deductions | C53: =+'SCH M'!F$136 -> 0.561684842 | D53: =+'SCH M'!G$136 -> 0.20228026 | E53: =+'SCH M'!H$136 -> 0.2247260518 | F53: =+'SCH M'!I$136 -> 0.008737718596 | G53: =+'SCH M'!J$136 -> 0.002571127543 | H53: 1
A54: SCHMDF | B54: Schedule M Deductions - Flow Through | C54: 1 | D54: 0 | E54: 0 | F54: 0 | G54: 0 | H54: 1
A55: SCHMDP | B55: Schedule M Deductions - Permanent | C55: ='SCH M'!F77 -> 0.4989125939 | D55: ='SCH M'!G77 -> 0.2842690167 | E55: ='SCH M'!H77 -> 0.2730417684 | F55: ='SCH M'!I77 -> -0.02850916834 | G55: ='SCH M'!J77 -> -0.0277142106 | H55: 1
A56: SCHMDP-SO | B56: Schedule M Deductions - Permanent- SO | C56: ='SCH M'!F76 ->  | D56: ='SCH M'!G76 ->  | E56: ='SCH M'!H76 ->  | F56: ='SCH M'!I76 ->  | G56: ='SCH M'!J76 ->  | H56: 0
A57: SCHMDT | B57: Schedule M Deductions - Temporary | C57: ='SCH M'!F129 -> 0.5616904624 | D57: ='SCH M'!G129 -> 0.2022729191 | E57: ='SCH M'!H129 -> 0.2247217258 | F57: ='SCH M'!I129 -> 0.008741053533 | G57: ='SCH M'!J129 -> 0.00257383917 | H57: 1
A58: SCHMDT-GPS | B58: Schedule M Deductions - Temporary-GPS | C58: ='SCH M'!F120 -> 0.4816325333 | D58: ='SCH M'!G120 -> 0.2464572279 | E58: ='SCH M'!H120 -> 0.2719102388 | F58: ='SCH M'!I120 -> 0 | G58: ='SCH M'!J120 -> 0 | H58: 1
A59: SCHMDT-SG | B59: Schedule M Deductions - Temporary-SG | C59: ='SCH M'!F122 -> 1.010453617 | D59: ='SCH M'!G122 -> -0.01045361744 | E59: ='SCH M'!H122 -> 0 | F59: ='SCH M'!I122 -> 0 | G59: ='SCH M'!J122 -> 0 | H59: 1
A60: SCHMDT-SITUS | B60: Schedule M Deductions - Temporary-SITUS | C60: ='SCH M'!F128 -> 1.215049545 | D60: ='SCH M'!G128 -> 0.03146181117 | E60: ='SCH M'!H128 -> 0.05853776497 | F60: ='SCH M'!I128 -> -0.2431489789 | G60: ='SCH M'!J128 -> -0.061900142 | H60: 1
A61: SCHMDT-SNP | B61: Schedule M Deductions - Temporary-SNP | C61: ='SCH M'!F124 -> 0.4816325333 | D61: ='SCH M'!G124 -> 0.2464572279 | E61: ='SCH M'!H124 -> 0.2719102388 | F61: ='SCH M'!I124 -> 0 | G61: ='SCH M'!J124 -> 0 | H61: 1
A62: SCHMDT-SO | B62: Schedule M Deductions - Temporary-SO | C62: ='SCH M'!F125 -> 0.4104805367 | D62: ='SCH M'!G125 -> 0.1167119167 | E62: ='SCH M'!H125 -> 0.2952269493 | F62: ='SCH M'!I125 -> 0.09091863048 | G62: ='SCH M'!J125 -> 0.08666196682 | H62: 1
A63: T | B63: Transmission | C63: ='FORM 1'!C14 -> 0 | D63: ='FORM 1'!D14 -> 1 | E63: ='FORM 1'!E14 -> 0 | F63: ='FORM 1'!F14 -> 0 | G63: ='FORM 1'!G14 -> 0 | H63: =ROUND(SUM(C63:G63),4) -> 1
A64: TAXDEPR | B64: Tax Depreciation | C64: =+'TAX DEPR'!C$24 -> 0.4457088756 | D64: =+'TAX DEPR'!D$24 -> 0.2618862377 | E64: =+'TAX DEPR'!E$24 -> 0.2823416267 | F64: =+'TAX DEPR'!F$24 -> 0.0100632599 | G64: =+'TAX DEPR'!G$24 -> 0 | H64: =ROUND(SUM(C64:G64),4) -> 1
A65: TD | B65: Transmission / Distribution | C65: ='FORM 1'!C18 -> 0 | D65: ='FORM 1'!D18 -> 0.4754488731 | E65: ='FORM 1'!E18 -> 0.5245511269 | F65: ='FORM 1'!F18 -> 0 | G65: ='FORM 1'!G18 -> 0 | H65: =ROUND(SUM(C65:G65),4) -> 1
A66: CWC | B66: Cash Working Capital | C66: 0.7376537203 | D66: 0.1032904296 | E66: 0.1094928613 | F66: 0.05410586514 | G66: -0.004542876276 | H66: =ROUND(SUM(C66:G66),4) -> 1
A67: DITEXP | B67: Deferred Income Tax - Expense | C67: 0 | D67: 0 | E67: 0 | F67: 0 | G67: 0 | H67: 0
A68: FIT | B68: Federal Income Taxes | C68: 0.3971211435 | D68: 0.2367751147 | E68: 0.3576598843 | F68: -0.0009859664881 | G68: 0.009429823974 | H68: 1
A69: IBT | B69: Income Before Taxes | C69: 0.5109217585 | D69: 0.1920809719 | E69: 0.2901472915 | F69: -0.0007998534879 | G69: 0.007649831599 | H69: 1
A70: NONE | B70: Not Functionalized | C70: 0 | D70: 0 | E70: 0 | F70: 0 | G70: 0 | H70: 0
A71: NUTIL | B71: Non-Utility | C71: 0 | D71: 0 | E71: 0 | F71: 0 | G71: 0 | H71: 0
A72: PT | B72: Production / Transmission | C72: 0.6615015881 | D72: 0.3384984119 | E72: 0 | F72: 0 | G72: 0 | H72: 1
A73: PTD | B73: Prod, Trans, Dist Plant | C73: 0.4816325333 | D73: 0.2464572279 | E73: 0.2719102388 | F73: 0 | G73: 0 | H73: 1
A74: REVREQ | B74: Revenue Requirement | C74: 0.6638217397 | D74: 0.1484605967 | E74: 0.1513318845 | F74: 0.03820309753 | G74: -0.001817318416 | H74: 1
A75: SIT | B75: State Income Taxes | C75: 0.5109217585 | D75: 0.1920809719 | E75: 0.2901472915 | F75: -0.000799853488 | G75: 0.007649831599 | H75: 1

Sheet TAX DEPR
A1: =+'TOTAL FUNCFAC'!$A$1 -> PacifiCorp
A2: =+'TOTAL FUNCFAC'!A2 -> 12 Months Ended December 2019
A3: Tax Depreciation
B5: Total | C5: ='TOTAL FUNCFAC'!C6 -> Generation | D5: ='TOTAL FUNCFAC'!D6 -> Transmission | E5: ='TOTAL FUNCFAC'!E6 -> Distribution | F5: General | G5: Mining
A8: Total | B8: =SUM(C8:G8) -> 672674068.5 | C8: 270024360 | D8: 154219983.5 | E8: 166880753.5 | F8: 81548971.5 | G8: 0
A12: Conversion to COS Functions | B12: Total | C12: ='TOTAL FUNCFAC'!C6 -> Generation | D12: ='TOTAL FUNCFAC'!D6 -> Transmission | E12: ='TOTAL FUNCFAC'!E6 -> Distribution | F12: ='TOTAL FUNCFAC'!F6 -> Customer | G12: ='TOTAL FUNCFAC'!G6 -> Common
A14: Percent of GenPlant in Functions | B14: =SUM(C14:F14) -> 1 | C14: 0.3653319251 | D14: 0.2690910397 | E14: 0.2825680916 | F14: 0.08300894364 | G14: 0
A18: Allocation of GenPlant to Functions | B18: =SUM(C18:F18) -> 81548971.5 | C18: =+$F$8*C14 -> 29792442.75 | D18: =+$F$8*D14 -> 21944097.53 | E18: =+$F$8*E14 -> 23043137.25 | F18: =+$F$8*F14 -> 6769293.979 | G18: =+$F$8*G14 -> 0
A19: Assignment of Mining to Prod Function | B19: =SUM(C19:F19) -> 0 | C19: =G8 -> 0
A21: Adjusted Totals | B21: =SUM(C21:F21) -> 672674068.5 | C21: =+C8+C18+C19 -> 299816802.7 | D21: =+D8+D18+D19 -> 176164081 | E21: =+E8+E18+E19 -> 189923890.7 | F21: =+F18+F19 -> 6769293.979 | G21: =+G18+G19 -> 0
A24: TAXDEPR FACTOR | B24: =SUM(C24:F24) -> 1 | C24: =C21/$B$21 -> 0.4457088756 | D24: =D21/$B$21 -> 0.2618862377 | E24: 0.2823416267 | F24: 0.0100632599 | G24: 0
A330: TAXDEPR Factor | C330: =#REF!/#REF! ->  | D330: =#REF!/#REF! ->  | E330: =#REF!/#REF! ->  | F330: =#REF!/#REF! ->  | G330: =#REF!/#REF! -> 

Sheet GROSS PLANT
A2: =+'TOTAL FUNCFAC'!A2 -> 12 Months Ended December 2019
A3: Gross Plant
A4: (In 000's)
B6: Alloc.
A7: Description | B7: Factor | C7: Funct. | D7: Amount | E7: ='TOTAL FUNCFAC'!C6 -> Generation | F7: ='TOTAL FUNCFAC'!D6 -> Transmission | G7: ='TOTAL FUNCFAC'!E6 -> Distribution | H7: ='TOTAL FUNCFAC'!F6 -> Customer | I7: ='TOTAL FUNCFAC'!G6 -> Common
A9: Production Plant | C9: P | D9: 12415781.77 | E9: =$D9*VLOOKUP(+$C9,$C$45:$I$51,3) -> 12415781.77 | F9: =$D9*VLOOKUP(+$C9,$C$45:$I$51,4) -> 0 | G9: =$D9*VLOOKUP(+$C9,$C$45:$I$51,5) -> 0 | H9: =$D9*VLOOKUP(+$C9,$C$45:$I$51,6) -> 0 | I9: =$D9*VLOOKUP(+$C9,$C$45:$I$51,7) -> 0
A10: Transmission Plant | C10: T | D10: 6353306.611 | E10: =$D10*VLOOKUP(+$C10,$C$45:$I$51,3) -> 0 | F10: =$D10*VLOOKUP(+$C10,$C$45:$I$51,4) -> 6353306.611 | G10: =$D10*VLOOKUP(+$C10,$C$45:$I$51,5) -> 0 | H10: =$D10*VLOOKUP(+$C10,$C$45:$I$51,6) -> 0 | I10: =$D10*VLOOKUP(+$C10,$C$45:$I$51,7) -> 0
A11: Distribution Plant | C11: DPW | D11: 7009447.979 | E11: =$D11*VLOOKUP(+$C11,$C$45:$I$51,3) -> 0 | F11: =$D11*VLOOKUP(+$C11,$C$45:$I$51,4) -> 0 | G11: =$D11*VLOOKUP(+$C11,$C$45:$I$51,5) -> 7009447.979 | H11: =$D11*VLOOKUP(+$C11,$C$45:$I$51,6) -> 0 | I11: =$D11*VLOOKUP(+$C11,$C$45:$I$51,7) -> 0
A12: Mining | B12: SE | C12: P | D12: =1854.828+89232.07377+6888.538 -> 97975.43977 | E12: =$D12*VLOOKUP(+$C12,$C$45:$I$51,3) -> 97975.43977 | F12: =$D12*VLOOKUP(+$C12,$C$45:$I$51,4) -> 0 | G12: =$D12*VLOOKUP(+$C12,$C$45:$I$51,5) -> 0 | H12: =$D12*VLOOKUP(+$C12,$C$45:$I$51,6) -> 0 | I12: =$D12*VLOOKUP(+$C12,$C$45:$I$51,7) -> 0
A13: General Plant
A14: Business Centers | B14: =GP!B7 -> CN | C14: =GP!C7 -> CUST | D14: =GP!D7 -> 17840.85644 | E14: =$D14*VLOOKUP(+$C14,$C$45:$I$51,3) -> 0 | F14: =$D14*VLOOKUP(+$C14,$C$45:$I$51,4) -> 0 | G14: =$D14*VLOOKUP(+$C14,$C$45:$I$51,5) -> 0 | H14: =$D14*VLOOKUP(+$C14,$C$45:$I$51,6) -> 17840.85644 | I14: =$D14*VLOOKUP(+$C14,$C$45:$I$51,7) -> 0
A15: Utah Mine | B15: =GP!B8 -> SE | C15: =GP!C8 -> P | D15: =GP!D8 -> 5543.429335 | E15: =$D15*VLOOKUP(+$C15,$C$45:$I$51,3) -> 5543.429335 | F15: 0 | G15: 0 | H15: 0 | I15: 0
B16: =GP!B9 -> SG | C16: =GP!C9 -> P | D16: =GP!D9 -> 122160.1252 | E16: =$D16*VLOOKUP(+$C16,$C$45:$I$51,3) -> 122160.1252 | F16: 0 | G16: 0 | H16: 0 | I16: 0
B17: =GP!B10 -> SG | C17: =GP!C10 -> T | D17: =GP!D10 -> 172054.7458 | E17: =$D17*VLOOKUP(+$C17,$C$45:$I$51,3) -> 0 | F17: 172054.7458 | G17: 0 | H17: 0 | I17: 0
B18: =GP!B12 -> SO | C18: =GP!C12 -> DPW | D18: =GP!D12 -> 0 | E18: 0 | F18: 0 | G18: 0 | H18: 0 | I18: 0
B19: =GP!B17 -> SSGCT | C19: =GP!C17 -> DPW | D19: =GP!D17 -> 0 | E19: 0 | F19: 0 | G19: 0 | H19: 0 | I19: 0
B20: =GP!B18 -> SSGCT | C20: =GP!C18 -> P | D20: =GP!D18 -> 0 | E20: 0 | F20: 0 | G20: 0 | H20: 0 | I20: 0
A21: General Plant | B21: =GP!B19 -> SITUS | C21: =GP!C19 -> DPW | D21: =GP!D19 -> 228135.1977 | E21: 0 | F21: 0 | G21: 228135.1977 | H21: 0 | I21: 0
A22: General Plant | B22: =GP!B20 -> SITUS | C22: =GP!C20 -> P | D22: =GP!D20 -> 0 | E22: 0 | F22: 0 | G22: 0 | H22: 0 | I22: 0
A23: General Plant | B23: =GP!B21 -> SITUS | C23: =GP!C21 -> TD | D23: =GP!D21 -> 411382.3885 | E23: 0 | F23: 195591.293 | G23: 215791.0955 | H23: 0 | I23: 0
A24: Total General Plant | D24: =SUBTOTAL(9,D14:D23) -> 957116.743 | E24: 127703.5545 | F24: 367646.0389 | G24: 443926.2932 | H24: 17840.85644 | I24: 0
A26: Intangible Plant
A27: Customer Service Sys | B27: =IP!A7 -> CN | C27: =IP!B7 -> CUST | D27: =IP!C7 -> 170389.2729 | E27: =$D27*VLOOKUP(+$C27,$C$45:$I$52,3) -> 0 | F27: =$D27*VLOOKUP(+$C27,$C$45:$I$52,4) -> 0 | G27: =$D27*VLOOKUP(+$C27,$C$45:$I$52,5) -> 0 | H27: =$D27*VLOOKUP(+$C27,$C$45:$I$52,6) -> 170389.2729 | I27: =$D27*VLOOKUP(+$C27,$C$45:$I$52,7) -> 0
A28: Customer Service Sys | B28: =IP!A8 -> SE | C28: =IP!B8 -> P | D28: =IP!C8 -> 6.763084615 | E28: 6.763084615 | F28: 0 | G28: 0 | H28: 0 | I28: 0
A29: Washington Hydro | B29: =IP!A9 -> SG | C29: =IP!B9 -> P | D29: =IP!C9 -> 116902.1417 | E29: 116902.1417 | F29: 0 | G29: 0 | H29: 0 | I29: 0
A30: Utah Hydro | B30: =IP!A10 -> SG | C30: =IP!B10 -> T | D30: =IP!C10 -> 60409.79768 | E30: 0 | F30: 60409.79768 | G30: 0 | H30: 0 | I30: 0
A31: Colorado Steam-UPD | B31: =IP!A11 -> SG-P | C31: =IP!B11 -> P | D31: =IP!C11 -> 175395.324 | E31: 175395.324 | F31: 0 | G31: 0 | H31: 0 | I31: 0
B32: =IP!A12 -> SG-U | C32: =IP!B12 -> P | D32: =IP!C12 -> 9951.39186 | E32: 9951.39186 | F32: 0 | G32: 0 | H32: 0 | I32: 0
A33: Oregon Trans | B33: =IP!A15 -> SO | C33: =IP!B15 -> P | D33: =IP!C15 -> 30029.67716 | E33: 30029.67716 | F33: 0 | G33: 0 | H33: 0 | I33: 0
A34: Utah Mine | B34: =IP!A16 -> SO | C34: =IP!B16 -> PTD | D34: =IP!C16 -> 90439.77959 | E34: 43558.74016 | F34: 22289.53737 | G34: 24591.50207 | H34: 0 | I34: 0
A35: Utah | B35: =IP!A18 -> SO | C35: =IP!B18 -> TD | D35: =IP!C18 -> 41887.2559 | E35: 0 | F35: 19915.24861 | G35: 21972.00729 | H35: 0 | I35: 0
A36: Utah G/O | B36: =IP!A19 -> SO | C36: =IP!B19 -> LABOR | D36: =IP!C19 -> 0 | E36: =$D36*VLOOKUP(+$C36,$C$45:$I$52,3) -> 0 | F36: 0 | G36: 0 | H36: 0 | I36: 0
A37: Utah G/O | B37: =IP!A25 -> SITUS | C37: =IP!B25 -> TD | D37: =IP!C25 -> 16559.74353 | E37: 0 | F37: 7873.311399 | G37: 8686.43213 | H37: 0 | I37: 0
A38: Total Intangible Plant | D38: =SUBTOTAL(9,D27:D37) -> 711971.1474 | E38: 375844.0379 | F38: 110487.8951 | G38: 55249.94148 | H38: 170389.2729 | I38: 0
A40: Total Gross Plant | D40: =SUBTOTAL(9,D8:D38) -> 27545599.69 | E40: 13017304.8 | F40: 6831440.545 | G40: 7508624.214 | H40: 188230.1293 | I40: 0
B42: GP Factor | D42: =SUM(E42:I42) -> 1 | E42: =E40/$D40 -> 0.4725729318 | F42: =F40/$D40 -> 0.2480047856 | G42: =G40/$D40 -> 0.2725888816 | H42: =H40/$D40 -> 0.006833401031 | I42: =I40/$D40 -> 0
B45: Functional Allocators: | E45: Prod | F45: Trans | G45: DPW | H45: CUST | I45: DMISC
C46: P | D46: =SUM(E46:F46) -> 1 | E46: ='FORM 1'!$C$13 -> 1 | F46: ='FORM 1'!$D$13 -> 0 | G46: ='FORM 1'!$E$13 -> 0 | H46: ='FORM 1'!$F$13 -> 0 | I46: ='FORM 1'!$G$13 -> 0
C47: T | D47: =SUM(E47:F47) -> 1 | E47: ='FORM 1'!$C$14 -> 0 | F47: ='FORM 1'!$D$14 -> 1 | G47: ='FORM 1'!$E$14 -> 0 | H47: ='FORM 1'!$F$14 -> 0 | I47: ='FORM 1'!$G$14 -> 0
C48: TD | D48: =SUM(E48:I48) -> 1 | E48: ='FORM 1'!$C$18 -> 0 | F48: ='FORM 1'!$D$18 -> 0.4754488731 | G48: ='FORM 1'!$E$18 -> 0.5245511269 | H48: ='FORM 1'!$F$18 -> 0 | I48: ='FORM 1'!$G$18 -> 0
C49: CUST | D49: =SUM(E49:I49) -> 1 | E49: 0 | F49: 0 | G49: 0 | H49: 1 | I49: 0
C50: DPW | D50: =SUM(E50:I50) -> 1 | E50: 0 | F50: 0 | G50: 1 | H50: 0 | I50: 0
C51: PTD | D51: =SUM(E51:I51) -> 1 | E51: ='FORM 1'!$C$16 -> 0.4816325333 | F51: ='FORM 1'!$D$16 -> 0.2464572279 | G51: ='FORM 1'!$E$16 -> 0.2719102388 | H51: ='FORM 1'!$F$16 -> 0 | I51: ='FORM 1'!$G$16 -> 0
C52: LABOR | D52: =SUM(E52:I52) -> 1 | E52: ='SCH M'!F147 -> 0.4037406801 | F52: ='SCH M'!G147 -> 0.07601625701 | G52: ='SCH M'!H147 -> 0.2668097395 | H52: ='SCH M'!I147 -> 0.1285083433 | I52: ='SCH M'!J147 -> 0.1249249802

Sheet FORM 1
A1: =+'TOTAL FUNCFAC'!A1 -> PacifiCorp
A2: 12 Months Ended December 2018
A3: FERC FORM 1 Funtionalization Factors
A6: Factor | B6: Total | C6: ='TOTAL FUNCFAC'!C6 -> Generation | D6: ='TOTAL FUNCFAC'!D6 -> Transmission | E6: ='TOTAL FUNCFAC'!E6 -> Distribution | F6: ='TOTAL FUNCFAC'!F6 -> Customer | G6: ='TOTAL FUNCFAC'!G6 -> Common
A8: PLANT | B8: =SUM(C8:G8) -> 25778536.36 | C8: =+'GROSS PLANT'!D9 -> 12415781.77 | D8: =+'GROSS PLANT'!D10 -> 6353306.611 | E8: =+'GROSS PLANT'!D11 -> 7009447.979 | F8: 0 | G8: 0 | I8: TOTAL COMPANY
A9: UNCLASSIFIED PLANT | B9: =SUM(C9:G9) -> 0 | F9: 0 | G9: 0
A10: TOTAL PLANT | B10: =SUM(C10:G10) -> 25778536.36 | C10: =C8+C9 -> 12415781.77 | D10: =D8+D9 -> 6353306.611 | E10: =E8+E9 -> 7009447.979 | F10: 0 | G10: 0
A12: PLANT %
A13: P | B13: =SUM(C13:G13) -> 1 | C13: =C10/C10 -> 1
A14: T | B14: 1 | D14: =D10/D10 -> 1
A15: DPW | B15: 1 | E15: =E10/E10 -> 1
A16: PTD | B16: 1 | C16: =C10/$B10 -> 0.4816325333 | D16: =D10/$B10 -> 0.2464572279 | E16: =E10/$B10 -> 0.2719102388 | F16: =F10/$B10 -> 0 | G16: =G10/$B10 -> 0
A17: PT | B17: 1 | C17: =C10/(C10+D10) -> 0.6615015881 | D17: =D10/(C10+D10) -> 0.3384984119
A18: TD | B18: 1 | D18: =D10/(D10+E10) -> 0.4754488731 | E18: =E10/(D10+E10) -> 0.5245511269
A23: LABOR | B23: =SUM(C23:G23) -> 351120432 | C23: 141761602 | D23: 26690861 | E23: 93682351 | F23: =38573572+6548333 -> 45121905 | G23: 43863713
A25: LABOR % | B25: =B23/$B23 -> 1 | C25: 0.4037406801 | D25: 0.07601625701 | E25: 0.2668097395 | F25: 0.1285083433 | G25: 0.1249249802
A30: Material & Supplies | B30: =SUM(C30:G30) -> 85232490 | C30: 73975748 | D30: 381386 | E30: 10875356 | F30: 0 | G30: 0
A32: Material & Supplies % | B32: =B30/$B30 -> 1 | C32: 0.8679289787 | D32: 0.004474655146 | E32: 0.1275963661 | F32: 0 | G32: 0
A37: FERC (MWh) | B37: 32352108 | C37: =B37-D37 -> 16304361 | D37: 16047747 | E37: 0 | F37: 0 | G37: 0
A39: FERC % | B39: =B37/$B37 -> 1 | C39: =C37/$B37 -> 0.5039659549 | D39: =D37/$B37 -> 0.4960340451 | E39: 0 | F39: 0 | G39: 0

Sheet BOOKDPR
A1: =+'TOTAL FUNCFAC'!$A$1 -> PacifiCorp
A2: =+'TOTAL FUNCFAC'!A2 -> 12 Months Ended December 2019
A3: Depreciation Expense
A6: Function | B6: Amount | C6: ='TOTAL FUNCFAC'!C6 -> Generation | D6: ='TOTAL FUNCFAC'!D6 -> Transmission | E6: ='TOTAL FUNCFAC'!E6 -> Distribution | F6: ='TOTAL FUNCFAC'!F6 -> Customer | G6: ='TOTAL FUNCFAC'!G6 -> Common
A7: CUST | B7: =SUMIFS(tblDeprExpJune19[Total ($000)],tblDeprExpJune19[FUNC],A7) -> 1040.34544 | C7: =VLOOKUP($A7,$A$16:$G$22,3,FALSE)*$B7 -> 0 | D7: =VLOOKUP($A7,$A$16:$G$22,4,FALSE)*$B7 -> 0 | E7: =VLOOKUP($A7,$A$16:$G$22,5,FALSE)*$B7 -> 0 | F7: =VLOOKUP($A7,$A$16:$G$22,6,FALSE)*$B7 -> 1040.34544 | G7: =VLOOKUP($A7,$A$16:$G$22,7,FALSE)*$B7 -> 0
A8: DPW | B8: =SUMIFS(tblDeprExpJune19[Total ($000)],tblDeprExpJune19[FUNC],A8) -> 158205.3526 | C8: =VLOOKUP($A8,$A$16:$G$22,3,FALSE)*$B8 -> 0 | D8: =VLOOKUP($A8,$A$16:$G$22,4,FALSE)*$B8 -> 0 | E8: =VLOOKUP($A8,$A$16:$G$22,5,FALSE)*$B8 -> 158205.3526 | F8: =VLOOKUP($A8,$A$16:$G$22,6,FALSE)*$B8 -> 0 | G8: =VLOOKUP($A8,$A$16:$G$22,7,FALSE)*$B8 -> 0
A9: P | B9: =SUMIFS(tblDeprExpJune19[Total ($000)],tblDeprExpJune19[FUNC],A9) -> 413909.8428 | C9: =VLOOKUP($A9,$A$16:$G$22,3,FALSE)*$B9 -> 413909.8428 | D9: =VLOOKUP($A9,$A$16:$G$22,4,FALSE)*$B9 -> 0 | E9: =VLOOKUP($A9,$A$16:$G$22,5,FALSE)*$B9 -> 0 | F9: =VLOOKUP($A9,$A$16:$G$22,6,FALSE)*$B9 -> 0 | G9: =VLOOKUP($A9,$A$16:$G$22,7,FALSE)*$B9 -> 0
A10: PTD | B10: =SUMIFS(tblDeprExpJune19[Total ($000)],tblDeprExpJune19[FUNC],A10) -> 15567.2539 | C10: =VLOOKUP($A10,$A$16:$G$22,3,FALSE)*$B10 -> 7497.695932 | D10: =VLOOKUP($A10,$A$16:$G$22,4,FALSE)*$B10 -> 3836.662242 | E10: =VLOOKUP($A10,$A$16:$G$22,5,FALSE)*$B10 -> 4232.895726 | F10: =VLOOKUP($A10,$A$16:$G$22,6,FALSE)*$B10 -> 0 | G10: =VLOOKUP($A10,$A$16:$G$22,7,FALSE)*$B10 -> 0
A11: T | B11: =SUMIFS(tblDeprExpJune19[Total ($000)],tblDeprExpJune19[FUNC],A11) -> 110893.0887 | C11: =VLOOKUP($A11,$A$16:$G$22,3,FALSE)*$B11 -> 0 | D11: =VLOOKUP($A11,$A$16:$G$22,4,FALSE)*$B11 -> 110893.0887 | E11: =VLOOKUP($A11,$A$16:$G$22,5,FALSE)*$B11 -> 0 | F11: =VLOOKUP($A11,$A$16:$G$22,6,FALSE)*$B11 -> 0 | G11: =VLOOKUP($A11,$A$16:$G$22,7,FALSE)*$B11 -> 0
A12: Book Depreciation | B12: =SUM(B7:B11) -> 699615.8834 | C12: 421407.5387 | D12: 114729.7509 | E12: 162438.2483 | F12: 1040.34544 | G12: 0
A13: BookDepr Factor | B13: =B12/$B12 -> 1 | C13: 0.6023412971 | D13: 0.1639896315 | E13: 0.2321820476 | F13: 0.001487023758 | G13: 0
A16: P | B16: ='FORM 1'!$B$13 -> 1 | C16: ='FORM 1'!$C$13 -> 1 | D16: ='FORM 1'!$D$13 -> 0 | E16: ='FORM 1'!$E$13 -> 0 | F16: ='FORM 1'!$F$13 -> 0 | G16: ='FORM 1'!$G$13 -> 0
A17: T | B17: ='FORM 1'!$B$14 -> 1 | C17: ='FORM 1'!$C$14 -> 0 | D17: ='FORM 1'!$D$14 -> 1 | E17: ='FORM 1'!$E$14 -> 0 | F17: ='FORM 1'!$F$14 -> 0 | G17: ='FORM 1'!$G$14 -> 0
A18: DPW | B18: ='FORM 1'!$B$15 -> 1 | C18: ='FORM 1'!$C$15 -> 0 | D18: ='FORM 1'!$D$15 -> 0 | E18: ='FORM 1'!$E$15 -> 1 | F18: ='FORM 1'!$F$15 -> 0 | G18: ='FORM 1'!$G$15 -> 0
A19: CUST | B19: ='FORM 1'!$B$15 -> 1 | C19: 0 | D19: 0 | E19: 0 | F19: 1 | G19: 0
A20: PTD | B20: ='FORM 1'!$B$16 -> 1 | C20: ='FORM 1'!$C$16 -> 0.4816325333 | D20: ='FORM 1'!$D$16 -> 0.2464572279 | E20: ='FORM 1'!$E$16 -> 0.2719102388 | F20: ='FORM 1'!$F$16 -> 0 | G20: ='FORM 1'!$G$16 -> 0
A21: TD | B21: ='FORM 1'!$B$18 -> 1 | C21: ='FORM 1'!$C$18 -> 0 | D21: ='FORM 1'!$D$18 -> 0.4754488731 | E21: ='FORM 1'!$E$18 -> 0.5245511269 | F21: ='FORM 1'!$F$18 -> 0 | G21: ='FORM 1'!$G$18 -> 0
A22: G | B22: =GP!$D$38 -> 1 | C22: =GP!$E$38 -> 0.2124999166 | D22: =GP!$F$38 -> 0.352856729 | E22: =GP!$G$38 -> 0.4202361644 | F22: =GP!$H$38 -> 0.01440719009 | G22: =GP!$I$38 -> 0

Sheet ELEC OPS
A1: =+'TOTAL FUNCFAC'!A1 -> PacifiCorp
A2: =+'TOTAL FUNCFAC'!A2:A2 -> 12 Months Ended December 2019
A3: Account 456
A5: Main
A6: Account | B6: Factor | C6: Function | D6: Amount | E6: ='TOTAL FUNCFAC'!C6 -> Generation | F6: ='TOTAL FUNCFAC'!D6 -> Transmission | G6: ='TOTAL FUNCFAC'!E6 -> Distribution | H6: ='TOTAL FUNCFAC'!F6 -> Customer | I6: ='TOTAL FUNCFAC'!G6 -> Common
A7: 456 | B7: OTHER | C7: P | D7: =SUMIFS(tblELECOPSJune19[Total ($000)],tblELECOPSJune19[Alloc4Func],B7,tblELECOPSJune19[FUNC],C7) -> -10294.09717 | E7: =$D7*VLOOKUP(+$C7,$C$31:$I37,3,FALSE) -> -10294.09717 | F7: =$D7*VLOOKUP(+$C7,$C$31:$I37,4,FALSE) -> 0 | G7: =$D7*VLOOKUP(+$C7,$C$31:$I37,5,FALSE) -> 0 | H7: =$D7*VLOOKUP(+$C7,$C$31:$I37,6,FALSE) -> 0 | I7: =$D7*VLOOKUP(+$C7,$C$31:$I37,7,FALSE) -> 0
A8: 456 | B8: OTHER | C8: T | D8: =SUMIFS(tblELECOPSJune19[Total ($000)],tblELECOPSJune19[Alloc4Func],B8,tblELECOPSJune19[FUNC],C8) -> 0 | E8: =$D8*VLOOKUP(+$C8,$C$31:$I38,3,FALSE) -> 0 | F8: =$D8*VLOOKUP(+$C8,$C$31:$I38,4,FALSE) -> 0 | G8: =$D8*VLOOKUP(+$C8,$C$31:$I38,5,FALSE) -> 0 | H8: =$D8*VLOOKUP(+$C8,$C$31:$I38,6,FALSE) -> 0 | I8: =$D8*VLOOKUP(+$C8,$C$31:$I38,7,FALSE) -> 0
A9: 456 | B9: SE | C9: P | D9: =SUMIFS(tblELECOPSJune19[Total ($000)],tblELECOPSJune19[Alloc4Func],B9,tblELECOPSJune19[FUNC],C9) -> 0 | E9: =$D9*VLOOKUP(+$C9,$C$31:$I38,3,FALSE) -> 0 | F9: =$D9*VLOOKUP(+$C9,$C$31:$I38,4,FALSE) -> 0 | G9: =$D9*VLOOKUP(+$C9,$C$31:$I38,5,FALSE) -> 0 | H9: =$D9*VLOOKUP(+$C9,$C$31:$I38,6,FALSE) -> 0 | I9: =$D9*VLOOKUP(+$C9,$C$31:$I38,7,FALSE) -> 0
A10: 456 | B10: SE | C10: T | D10: =SUMIFS(tblELECOPSJune19[Total ($000)],tblELECOPSJune19[Alloc4Func],B10,tblELECOPSJune19[FUNC],C10) -> -17028.84503 | E10: =$D10*VLOOKUP(+$C10,$C$31:$I39,3,FALSE) -> 0 | F10: =$D10*VLOOKUP(+$C10,$C$31:$I39,4,FALSE) -> -17028.84503 | G10: =$D10*VLOOKUP(+$C10,$C$31:$I39,5,FALSE) -> 0 | H10: =$D10*VLOOKUP(+$C10,$C$31:$I39,6,FALSE) -> 0 | I10: =$D10*VLOOKUP(+$C10,$C$31:$I39,7,FALSE) -> 0
A11: 456 | B11: SG | C11: P | D11: =SUMIFS(tblELECOPSJune19[Total ($000)],tblELECOPSJune19[Alloc4Func],B11,tblELECOPSJune19[FUNC],C11) -> -21316.89084 | E11: =$D11*VLOOKUP(+$C11,$C$31:$I40,3,FALSE) -> -21316.89084 | F11: =$D11*VLOOKUP(+$C11,$C$31:$I40,4,FALSE) -> 0 | G11: =$D11*VLOOKUP(+$C11,$C$31:$I40,5,FALSE) -> 0 | H11: =$D11*VLOOKUP(+$C11,$C$31:$I40,6,FALSE) -> 0 | I11: =$D11*VLOOKUP(+$C11,$C$31:$I40,7,FALSE) -> 0
A12: 456 | B12: SG | C12: T | D12: =SUMIFS(tblELECOPSJune19[Total ($000)],tblELECOPSJune19[Alloc4Func],B12,tblELECOPSJune19[FUNC],C12) -> -98659.19421 | E12: =$D12*VLOOKUP(+$C12,$C$31:$I40,3,FALSE) -> 0 | F12: =$D12*VLOOKUP(+$C12,$C$31:$I40,4,FALSE) -> -98659.19421 | G12: =$D12*VLOOKUP(+$C12,$C$31:$I40,5,FALSE) -> 0 | H12: =$D12*VLOOKUP(+$C12,$C$31:$I40,6,FALSE) -> 0 | I12: =$D12*VLOOKUP(+$C12,$C$31:$I40,7,FALSE) -> 0
A13: 456 | B13: SO | C13: PTD | D13: =SUMIFS(tblELECOPSJune19[Total ($000)],tblELECOPSJune19[Alloc4Func],B13,tblELECOPSJune19[FUNC],C13) -> -4091.87171 | E13: =$D13*VLOOKUP(+$C13,$C$31:$I41,3,FALSE) -> -1970.778538 | F13: =$D13*VLOOKUP(+$C13,$C$31:$I41,4,FALSE) -> -1008.471358 | G13: =$D13*VLOOKUP(+$C13,$C$31:$I41,5,FALSE) -> -1112.621814 | H13: =$D13*VLOOKUP(+$C13,$C$31:$I41,6,FALSE) -> 0 | I13: =$D13*VLOOKUP(+$C13,$C$31:$I41,7,FALSE) -> 0
A14: 456 | B14: SITUS | C14: COMMON | D14: =SUMIFS(tblELECOPSJune19[Total ($000)],tblELECOPSJune19[Alloc4Func],B14,tblELECOPSJune19[FUNC],C14) -> 0 | E14: =$D14*VLOOKUP(+$C14,$C$31:$I42,3,FALSE) -> 0 | F14: =$D14*VLOOKUP(+$C14,$C$31:$I42,4,FALSE) -> 0 | G14: =$D14*VLOOKUP(+$C14,$C$31:$I42,5,FALSE) -> 0 | H14: =$D14*VLOOKUP(+$C14,$C$31:$I42,6,FALSE) -> 0 | I14: =$D14*VLOOKUP(+$C14,$C$31:$I42,7,FALSE) -> 0
A15: 456 | B15: SITUS | C15: P | D15: =SUMIFS(tblELECOPSJune19[Total ($000)],tblELECOPSJune19[Alloc4Func],B15,tblELECOPSJune19[FUNC],C15) -> -158.27517 | E15: =$D15*VLOOKUP(+$C15,$C$31:$I43,3,FALSE) -> -158.27517 | F15: =$D15*VLOOKUP(+$C15,$C$31:$I43,4,FALSE) -> 0 | G15: =$D15*VLOOKUP(+$C15,$C$31:$I43,5,FALSE) -> 0 | H15: =$D15*VLOOKUP(+$C15,$C$31:$I43,6,FALSE) -> 0 | I15: =$D15*VLOOKUP(+$C15,$C$31:$I43,7,FALSE) -> 0
A16: 456 | B16: SITUS | C16: T | D16: =SUMIFS(tblELECOPSJune19[Total ($000)],tblELECOPSJune19[Alloc4Func],B16,tblELECOPSJune19[FUNC],C16) -> 4012.25408 | E16: =$D16*VLOOKUP(+$C16,$C$31:$I44,3,FALSE) -> 0 | F16: =$D16*VLOOKUP(+$C16,$C$31:$I44,4,FALSE) -> 4012.25408 | G16: =$D16*VLOOKUP(+$C16,$C$31:$I44,5,FALSE) -> 0 | H16: =$D16*VLOOKUP(+$C16,$C$31:$I44,6,FALSE) -> 0 | I16: =$D16*VLOOKUP(+$C16,$C$31:$I44,7,FALSE) -> 0
A17: Total Situs Revenues | D17: =SUMIF($B:$B,"SITUS",D:D) -> 3853.97891 | E17: -158.27517 | F17: 4012.25408 | G17: 0 | H17: 0 | I17: 0
A18: Total CN Revenues | D18: =SUMIF($B:$B,"CN",D:D) -> 0 | E18: 0 | F18: 0 | G18: 0 | H18: 0 | I18: =SUMIF($B:$B,"CN",I:I) -> 0
A19: Total SE Revenues | D19: =SUMIF($B:$B,"SE",D:D) -> -17028.84503 | E19: 0 | F19: -17028.84503 | G19: 0 | H19: 0 | I19: 0
A20: Total SG Revenues | D20: =SUMIF($B:$B,"SG",D:D) -> -119976.0851 | E20: -21316.89084 | F20: -98659.19421 | G20: 0 | H20: 0 | I20: 0
A21: Total SO Revenues | D21: =SUMIF($B:$B,"SO",D:D) -> -4091.87171 | E21: -1970.778538 | F21: -1008.471358 | G21: -1112.621814 | H21: 0 | I21: 0
A22: Total Operation | D22: =SUM(D7:D16) -> -147536.9201 | E22: -33740.04172 | F22: -112684.2565 | G22: -1112.621814 | H22: 0 | I22: 0
A23: OTHSITUS | D23: =SUM(E23:I23) -> 1 | E23: =E17/$D$17 -> -0.04106799069 | F23: =F17/$D$17 -> 1.041067991 | G23: =G17/$D$17 -> 0 | H23: =H17/$D$17 -> 0 | I23: =I17/$D$17 -> 0
A24: CN Factor | D24: 0 | E24: =IF(ISERROR(E18/$D$18)," ",(E18/$D$18)) ->  | F24: =IF(ISERROR(F18/$D$18)," ",(F18/$D$18)) ->  | G24: =IF(ISERROR(G18/$D$18)," ",(G18/$D$18)) ->  | H24: =IF(ISERROR(H18/$D$18)," ",(H18/$D$18)) ->  | I24: =IF(ISERROR(I18/$D$18)," ",(I18/$D$18)) -> 
A25: OTHSE | D25: 1 | E25: =E19/$D$19 -> 0 | F25: =F19/$D$19 -> 1 | G25: =G19/$D$19 -> 0 | H25: =H19/$D$19 -> 0 | I25: =I19/$D$19 -> 0
A26: OTHSG | D26: 1 | E26: =E20/$D$20 -> 0.1776761663 | F26: =F20/$D$20 -> 0.8223238337 | G26: =G20/$D$20 -> 0 | H26: =H20/$D$20 -> 0 | I26: =I20/$D$20 -> 0
A27: OTHSO | D27: =SUM(E27:I27) -> 1 | E27: =IFERROR(E21/$D$21,0) -> 0.4816325333 | F27: =IFERROR(F21/$D$21,0) -> 0.2464572279 | G27: 0.2719102388 | H27: 0 | I27: 0
A28: Total Operation Factor | D28: 1 | E28: =E22/$D$22 -> 0.2286888035 | F28: =F22/$D$22 -> 0.7637698854 | G28: =G22/$D$22 -> 0.007541311108 | H28: =H22/$D$22 -> 0 | I28: =I22/$D$22 -> 0
D30: Total | E30: Prod | F30: Trans | G30: DPW | H30: CUST | I30: DMSC
C31: P | D31: =SUM(E31:I31) -> 1 | E31: ='FORM 1'!$C$13 -> 1 | F31: ='FORM 1'!$D$13 -> 0 | G31: ='FORM 1'!$E$13 -> 0 | H31: ='FORM 1'!$F$13 -> 0 | I31: ='FORM 1'!$G$13 -> 0
C32: T | D32: =SUM(E32:I32) -> 1 | E32: ='FORM 1'!$C$14 -> 0 | F32: ='FORM 1'!$D$14 -> 1 | G32: ='FORM 1'!$E$14 -> 0 | H32: ='FORM 1'!$F$14 -> 0 | I32: ='FORM 1'!$G$14 -> 0
C33: TD | D33: 1 | E33: ='FORM 1'!$C$18 -> 0 | F33: ='FORM 1'!$D$18 -> 0.4754488731 | G33: ='FORM 1'!$E$18 -> 0.5245511269 | H33: ='FORM 1'!$F$18 -> 0 | I33: ='FORM 1'!$G$18 -> 0
C34: CUST | D34: 1 | E34: 0 | F34: 0 | G34: 0 | H34: 1 | I34: 0
C35: DPW | D35: 1 | E35: 0 | F35: 0 | G35: 1 | H35: 0 | I35: 0
C36: PTD | D36: 1 | E36: ='FORM 1'!$C$16 -> 0.4816325333 | F36: ='FORM 1'!$D$16 -> 0.2464572279 | G36: ='FORM 1'!$E$16 -> 0.2719102388 | H36: ='FORM 1'!$F$16 -> 0 | I36: ='FORM 1'!$G$16 -> 0
C37: COMMON | D37: 1 | E37: 0 | F37: 0 | G37: 0 | H37: 0 | I37: 1
D41: BASED ON TOTAL COMPANY DATA

Sheet GP
A1: =+'TOTAL FUNCFAC'!$A$1 -> PacifiCorp
A2: =+'TOTAL FUNCFAC'!A2 -> 12 Months Ended December 2019
A3: General Plant
B5: Alloc.
A6: Description | B6: Factor | C6: Funct. | D6: Amount | E6: ='TOTAL FUNCFAC'!C6 -> Generation | F6: ='TOTAL FUNCFAC'!D6 -> Transmission | G6: ='TOTAL FUNCFAC'!E6 -> Distribution | H6: ='TOTAL FUNCFAC'!F6 -> Customer | I6: ='TOTAL FUNCFAC'!G6 -> Common
A7: Business Centers | B7: CN | C7: CUST | D7: =SUMIFS(tblGPJune19[Total ($000)],tblGPJune19[Alloc4FUNC],B7,tblGPJune19[FUNC],C7) -> 17840.85644 | E7: =$D7*VLOOKUP(+$C7,$B$45:$H$51,3) -> 0 | F7: =$D7*VLOOKUP(+$C7,$B$45:$H$51,4) -> 0 | G7: =$D7*VLOOKUP(+$C7,$B$45:$H$51,5) -> 0 | H7: =$D7*VLOOKUP(+$C7,$B$45:$H$51,6) -> 17840.85644 | I7: =$D7*VLOOKUP(+$C7,$B$45:$H$51,7) -> 0
B8: SE | C8: P | D8: =SUMIFS(tblGPJune19[Total ($000)],tblGPJune19[Alloc4FUNC],B8,tblGPJune19[FUNC],C8) -> 5543.429335 | E8: 5543.429335 | F8: 0 | G8: 0 | H8: 0 | I8: 0
B9: SG | C9: P | D9: =SUMIFS(tblGPJune19[Total ($000)],tblGPJune19[Alloc4FUNC],B9,tblGPJune19[FUNC],C9) -> 122160.1252 | E9: 122160.1252 | F9: 0 | G9: 0 | H9: 0 | I9: 0
B10: SG | C10: T | D10: =SUMIFS(tblGPJune19[Total ($000)],tblGPJune19[Alloc4FUNC],B10,tblGPJune19[FUNC],C10) -> 172054.7458 | E10: 0 | F10: 172054.7458 | G10: 0 | H10: 0 | I10: 0
B11: SG | C11: TD | D11: =SUMIFS(tblGPJune19[Total ($000)],tblGPJune19[Alloc4FUNC],B11,tblGPJune19[FUNC],C11) -> 0 | E11: 0 | F11: 0 | G11: 0 | H11: 0 | I11: 0
A12: General Plant | B12: SO | C12: DPW | D12: =SUMIFS(tblGPJune19[Total ($000)],tblGPJune19[Alloc4FUNC],B12,tblGPJune19[FUNC],C12) -> 0 | E12: 0 | F12: 0 | G12: 0 | H12: 0 | I12: 0
B13: SO | C13: PTD | D13: =SUMIFS(tblGPJune19[Total ($000)],tblGPJune19[Alloc4FUNC],B13,tblGPJune19[FUNC],C13) -> 281213.3082 | E13: 135441.478 | F13: 69307.05238 | G13: 76464.77779 | H13: 0 | I13: 0
B14: SO | C14: TD | D14: 0 | E14: 0 | F14: 0 | G14: 0 | H14: 0 | I14: 0
B15: SO | C15: P | D15: 0 | E15: 0 | F15: 0 | G15: 0 | H15: 0 | I15: 0
B16: SSGCH | C16: P | D16: 0 | E16: 0 | F16: 0 | G16: 0 | H16: 0 | I16: 0
B17: SSGCT | C17: DPW | D17: 0 | E17: 0 | F17: 0 | G17: 0 | H17: 0 | I17: 0
B18: SSGCT | C18: P | D18: =SUMIFS(tblGPJune19[Total ($000)],tblGPJune19[Alloc4FUNC],B18,tblGPJune19[FUNC],C18) -> 0 | E18: 0 | F18: 0 | G18: 0 | H18: 0 | I18: 0
B19: SITUS | C19: DPW | D19: =SUMIFS(tblGPJune19[Total ($000)],tblGPJune19[Alloc4FUNC],B19,tblGPJune19[FUNC],C19) -> 228135.1977 | E19: 0 | F19: 0 | G19: 228135.1977 | H19: 0 | I19: 0
B20: SITUS | C20: P | D20: =SUMIFS(tblGPJune19[Total ($000)],tblGPJune19[Alloc4FUNC],B20,tblGPJune19[FUNC],C20) -> 0 | E20: 0 | F20: 0 | G20: 0 | H20: 0 | I20: 0
B21: SITUS | C21: TD | D21: =SUMIFS(tblGPJune19[Total ($000)],tblGPJune19[Alloc4FUNC],B21,tblGPJune19[FUNC],C21) -> 411382.3885 | E21: 0 | F21: 195591.293 | G21: 215791.0955 | H21: 0 | I21: 0
A22: Total-CUST | D22: =SUMIF($C:$C,"CUST",D:D) -> 17840.85644 | E22: 0 | F22: 0 | G22: 0 | H22: 17840.85644 | I22: 0
A23: Total-TD | D23: =SUMIF($C:$C,"TD",D:D) -> 411382.3885 | E23: 0 | F23: 195591.293 | G23: 215791.0955 | H23: 0 | I23: 0
A24: Total-PTD | D24: =SUMIF($C:$C,"PTD",D:D) -> 281213.3082 | E24: 135441.478 | F24: 69307.05238 | G24: 76464.77779 | H24: 0 | I24: 0
A25: Total-DPW | D25: =SUMIF($C:$C,"DPW",D:D) -> 228135.1977 | E25: 0 | F25: 0 | G25: 228135.1977 | H25: 0 | I25: 0
A26: Total-SSGCH | D26: =SUMIF($B:$B,"SSGCH",D:D) -> 0 | E26: 0 | F26: 0 | G26: 0 | H26: 0 | I26: 0
A27: Total-SSGCT | D27: =SUMIF($B:$B,"SSGCT",D:D) -> 0 | E27: 0 | F27: 0 | G27: 0 | H27: 0 | I27: 0
A28: Total-G-SG | D28: =SUMIF($B:$B,"SG",D:D) -> 294214.871 | E28: 122160.1252 | F28: 172054.7458 | G28: 0 | H28: 0 | I28: 0
A29: Total-SE | D29: =SUMIF($B:$B,"SE",D:D) -> 5543.429335 | E29: 5543.429335 | F29: 0 | G29: 0 | H29: 0 | I29: 0
A30: Total-G-Situs | D30: =SUMIF($B:$B,"SITUS",D:D) -> 639517.5862 | E30: 0 | F30: 195591.293 | G30: 443926.2932 | H30: 0 | I30: 0
A31: Total-SO | D31: =SUMIF($B:$B,"SO",D:D) -> 281213.3082 | E31: 135441.478 | F31: 69307.05238 | G31: 76464.77779 | H31: 0 | I31: 0
A32: Total-General Plant | D32: =SUM(D7:D21) -> 1238330.051 | E32: 263145.0326 | F32: 436953.0913 | G32: 520391.071 | H32: 17840.85644 | I32: 0
A34: G-SG Factor | D34: =SUM(E34:I34) -> 1 | E34: =E28/$D$28 -> 0.4152071742 | F34: =F28/$D$28 -> 0.5847928258 | G34: =G28/$D$28 -> 0 | H34: =H28/$D$28 -> 0 | I34: =I28/$D$28 -> 0
A35: . | D35: =SUM(E35:I35) -> 1 | E35: =E29/$D$29 -> 1 | F35: =F29/$D$29 -> 0 | G35: =G29/$D$29 -> 0 | H35: =H29/$D$29 -> 0 | I35: =I29/$D$29 -> 0
A36: G-SITUS Factor | D36: =SUM(E36:I36) -> 1 | E36: =E30/$D$30 -> 0 | F36: =F30/$D$30 -> 0.3058419303 | G36: =G30/$D$30 -> 0.6941580697 | H36: =H30/$D$30 -> 0 | I36: =I30/$D$30 -> 0
A37: SO Factor | D37: =SUM(E37:I37) -> 1 | E37: =E31/$D$31 -> 0.4816325333 | F37: =F31/$D$31 -> 0.2464572279 | G37: =G31/$D$31 -> 0.2719102388 | H37: =H31/$D$31 -> 0 | I37: =I31/$D$31 -> 0
A38: G Allocator | D38: =SUM(E38:I38) -> 1 | E38: =E32/$D$32 -> 0.2124999166 | F38: =F32/$D$32 -> 0.352856729 | G38: =G32/$D$32 -> 0.4202361644 | H38: =H32/$D$32 -> 0.01440719009 | I38: =I32/$D$32 -> 0
A39: Total Gen. Plant | D39: =D32 -> 1238330.051
A40: Mining | C40: acct 399 from JAM | D40: ='GROSS PLANT'!D12 -> 97975.43977 | E40: =D29 -> 5543.429335 | F40: =SUM(D40+E40) -> 103518.8691
A41: Total | C41: P | D41: =SUM(D39:D40) -> 1336305.491
B44: Functional Allocators: | D44: Prod | E44: Trans | F44: DPW | G44: CUST | H44: DMISC
B45: P | C45: =SUM(D45:H45) -> 1 | D45: ='FORM 1'!$C$13 -> 1 | E45: ='FORM 1'!$D$13 -> 0 | F45: ='FORM 1'!$E$13 -> 0 | G45: ='FORM 1'!$F$13 -> 0 | H45: ='FORM 1'!$G$13 -> 0
B46: T | C46: 1 | D46: ='FORM 1'!$C$14 -> 0 | E46: ='FORM 1'!$D$14 -> 1 | F46: ='FORM 1'!$E$14 -> 0 | G46: ='FORM 1'!$F$14 -> 0 | H46: ='FORM 1'!$G$14 -> 0
B47: TD | C47: 1 | D47: ='FORM 1'!$C$18 -> 0 | E47: ='FORM 1'!$D$18 -> 0.4754488731 | F47: ='FORM 1'!$E$18 -> 0.5245511269 | G47: ='FORM 1'!$F$18 -> 0 | H47: ='FORM 1'!$G$18 -> 0
B48: CUST | C48: 1 | D48: 0 | E48: 0 | F48: 0 | G48: 1 | H48: 0
B49: DPW | C49: 1 | D49: 0 | E49: 0 | F49: 1 | G49: 0 | H49: 0
B50: PTD | C50: 1 | D50: ='FORM 1'!$C$16 -> 0.4816325333 | E50: ='FORM 1'!$D$16 -> 0.2464572279 | F50: ='FORM 1'!$E$16 -> 0.2719102388 | G50: ='FORM 1'!$F$16 -> 0 | H50: ='FORM 1'!$G$16 -> 0
B51: GP | C51: =SUM(D51:H51) -> 1 | D51: =+'GROSS PLANT'!E42 -> 0.4725729318 | E51: =+'GROSS PLANT'!F42 -> 0.2480047856 | F51: =+'GROSS PLANT'!G42 -> 0.2725888816 | G51: =+'GROSS PLANT'!H42 -> 0.006833401031 | H51: =+'GROSS PLANT'!I42 -> 0

Sheet IP
A1: =+'TOTAL FUNCFAC'!A1 -> PacifiCorp
A2: =+'TOTAL FUNCFAC'!A2 -> 12 Months Ended December 2019
A3: Intangible Plant
A4: (In 000's)
A5: Alloc.
A6: Factor | B6: Funct. | C6: Amount | D6: ='TOTAL FUNCFAC'!C6 -> Generation | E6: ='TOTAL FUNCFAC'!D6 -> Transmission | F6: ='TOTAL FUNCFAC'!E6 -> Distribution | G6: ='TOTAL FUNCFAC'!F6 -> Customer | H6: ='TOTAL FUNCFAC'!G6 -> Common
A7: CN | B7: CUST | C7: =SUMIFS(tblIPJune19[Total ($000)],tblIPJune19[Alloc4FUNC],A7,tblIPJune19[FUNC],B7) -> 170389.2729 | D7: =$C7*VLOOKUP(+$B7,$B$39:$H$46,3) -> 0 | E7: =$C7*VLOOKUP(+$B7,$B$39:$H$46,4) -> 0 | F7: =$C7*VLOOKUP(+$B7,$B$39:$H$46,5) -> 0 | G7: =$C7*VLOOKUP(+$B7,$B$39:$H$46,6) -> 170389.2729 | H7: =$C7*VLOOKUP(+$B7,$B$39:$H$46,7) -> 0
A8: SE | B8: P | C8: =SUMIFS(tblIPJune19[Total ($000)],tblIPJune19[Alloc4FUNC],A8,tblIPJune19[FUNC],B8) -> 6.763084615 | D8: 6.763084615 | E8: 0 | F8: 0 | G8: 0 | H8: 0
A9: SG | B9: P | C9: =SUMIFS(tblIPJune19[Total ($000)],tblIPJune19[Alloc4FUNC],A9,tblIPJune19[FUNC],B9) -> 116902.1417 | D9: 116902.1417 | E9: 0 | F9: 0 | G9: 0 | H9: 0
A10: SG | B10: T | C10: =SUMIFS(tblIPJune19[Total ($000)],tblIPJune19[Alloc4FUNC],A10,tblIPJune19[FUNC],B10) -> 60409.79768 | D10: 0 | E10: 60409.79768 | F10: 0 | G10: 0 | H10: 0
A11: SG-P | B11: P | C11: =SUMIFS(tblIPJune19[Total ($000)],tblIPJune19[Alloc4FUNC],A11,tblIPJune19[FUNC],B11) -> 175395.324 | D11: 175395.324 | E11: 0 | F11: 0 | G11: 0 | H11: 0
A12: SG-U | B12: P | C12: =SUMIFS(tblIPJune19[Total ($000)],tblIPJune19[Alloc4FUNC],A12,tblIPJune19[FUNC],B12) -> 9951.39186 | D12: 9951.39186 | E12: 0 | F12: 0 | G12: 0 | H12: 0
A13: SO | B13: CUST | C13: =SUMIFS(tblIPJune19[Total ($000)],tblIPJune19[Alloc4FUNC],A13,tblIPJune19[FUNC],B13) -> 8608.168212 | D13: 0 | E13: 0 | F13: 0 | G13: 8608.168212 | H13: 0
A14: SO | B14: DPW | C14: =SUMIFS(tblIPJune19[Total ($000)],tblIPJune19[Alloc4FUNC],A14,tblIPJune19[FUNC],B14) -> 32714.81405 | D14: 0 | E14: 0 | F14: 32714.81405 | G14: 0 | H14: 0
A15: SO | B15: P | C15: =SUMIFS(tblIPJune19[Total ($000)],tblIPJune19[Alloc4FUNC],A15,tblIPJune19[FUNC],B15) -> 30029.67716 | D15: 30029.67716 | E15: 0 | F15: 0 | G15: 0 | H15: 0
A16: SO | B16: PTD | C16: =SUMIFS(tblIPJune19[Total ($000)],tblIPJune19[Alloc4FUNC],A16,tblIPJune19[FUNC],B16) -> 90439.77959 | D16: 43558.74016 | E16: 22289.53737 | F16: 24591.50207 | G16: 0 | H16: 0
A17: SO | B17: T | C17: =SUMIFS(tblIPJune19[Total ($000)],tblIPJune19[Alloc4FUNC],A17,tblIPJune19[FUNC],B17) -> 1239.53003 | D17: 0 | E17: 1239.53003 | F17: 0 | G17: 0 | H17: 0
A18: SO | B18: TD | C18: =SUMIFS(tblIPJune19[Total ($000)],tblIPJune19[Alloc4FUNC],A18,tblIPJune19[FUNC],B18) -> 41887.2559 | D18: 0 | E18: 19915.24861 | F18: 21972.00729 | G18: 0 | H18: 0
A19: SO | B19: LABOR | C19: =SUMIFS(tblIPJune19[Total ($000)],tblIPJune19[Alloc4FUNC],A19,tblIPJune19[FUNC],B19) -> 0 | D19: 0 | E19: 0 | F19: 0 | G19: 0 | H19: 0
A20: SO | B20: COMMON | C20: =SUMIFS(tblIPJune19[Total ($000)],tblIPJune19[Alloc4FUNC],A20,tblIPJune19[FUNC],B20) -> 178476.8526 | D20: 0 | E20: 0 | F20: 0 | G20: 0 | H20: 178476.8526
A21: SITUS | B21: DPW | C21: =SUMIFS(tblIPJune19[Total ($000)],tblIPJune19[Alloc4FUNC],A21,tblIPJune19[FUNC],B21) -> 157.6616 | D21: 0 | E21: 0 | F21: 157.6616 | G21: 0 | H21: 0
A22: SITUS | B22: P | C22: =SUMIFS(tblIPJune19[Total ($000)],tblIPJune19[Alloc4FUNC],A22,tblIPJune19[FUNC],B22) -> -32081.21485 | D22: -32081.21485 | E22: 0 | F22: 0 | G22: 0 | H22: 0
A23: SITUS | B23: PTD | C23: =SUMIFS(tblIPJune19[Total ($000)],tblIPJune19[Alloc4FUNC],A23,tblIPJune19[FUNC],B23) -> 0 | D23: 0 | E23: 0 | F23: 0 | G23: 0 | H23: 0
A24: SITUS | B24: T | C24: =SUMIFS(tblIPJune19[Total ($000)],tblIPJune19[Alloc4FUNC],A24,tblIPJune19[FUNC],B24) -> 5337.387422 | D24: 0 | E24: 5337.387422 | F24: 0 | G24: 0 | H24: 0
A25: SITUS | B25: TD | C25: =SUMIFS(tblIPJune19[Total ($000)],tblIPJune19[Alloc4FUNC],A25,tblIPJune19[FUNC],B25) -> 16559.74353 | D25: 0 | E25: 7873.311399 | F25: 8686.43213 | G25: 0 | H25: 0
A26: Total-DGP
A27: Total-DGU
A28: Total-SG | C28: =SUMIF($A:$A,"SG",C:C)+SUMIF($A:$A,"SG-P",C:C)+SUMIF($A:$A,"SG-U",C:C) -> 362658.6552 | D28: 302248.8575 | E28: 60409.79768 | F28: 0 | G28: 0 | H28: 0
A29: Total-SITUS | C29: =SUMIF($A:$A,"SITUS",C:C) -> -10026.4223 | D29: -32081.21485 | E29: 13210.69882 | F29: 8844.09373 | G29: 0 | H29: 0
A30: Total-Intangible | C30: =SUM(C7:C25) -> 906424.3465 | D30: =SUM(D7:D25) -> 343762.8231 | E30: 117064.8125 | F30: 88122.41713 | G30: 178997.4411 | H30: 178476.8526
A31: I-DGP FACTOR | C31: =SUM(D31:H31) ->  | D31: =D26/$C$26 ->  | E31: =E26/$C$26 ->  | F31: =F26/$C$26 ->  | G31: =G26/$C$26 ->  | H31: =H26/$C$26 -> 
A32: I-DGU FACTOR | C32: =SUM(D32:H32) ->  | D32: =D27/$C$27 ->  | E32: =E27/$C$27 ->  | F32: =F27/$C$27 ->  | G32: =G27/$C$27 ->  | H32: =H27/$C$27 -> 
A33: I-SG FACTOR | C33: =SUM(D33:H33) -> 1 | D33: =D28/$C$28 -> 0.833425187 | E33: =E28/$C$28 -> 0.166574813 | F33: =F28/$C$28 -> 0 | G33: =G28/$C$28 -> 0 | H33: =H28/$C$28 -> 0
A34: I-Situs FACTOR | C34: =SUM(D34:H34) -> 1 | D34: =D29/$C$29 -> 3.199667228 | E34: =E29/$C$29 -> -1.31758851 | F34: =F29/$C$29 -> -0.8820787181 | G34: =G29/$C$29 -> 0 | H34: =H29/$C$29 -> 0
A35: I FACTOR | C35: =SUM(D35:H35) -> 1 | D35: =D30/$C$30 -> 0.3792515332 | E35: =E30/$C$30 -> 0.1291501193 | F35: =F30/$C$30 -> 0.09721982588 | G35: =G30/$C$30 -> 0.1974764268 | H35: =H30/$C$30 -> 0.1969020948
B38: Functional Allocators: | D38: Prod | E38: Trans | F38: DPW | G38: CUST | H38: Common
B39: P | C39: =SUM(D39:H39) -> 1 | D39: ='FORM 1'!$C$13 -> 1 | E39: ='FORM 1'!$D$13 -> 0 | F39: ='FORM 1'!$E$13 -> 0 | G39: ='FORM 1'!$F$13 -> 0 | H39: ='FORM 1'!$G$13 -> 0
B40: T | C40: 1 | D40: ='FORM 1'!$C$14 -> 0 | E40: ='FORM 1'!$D$14 -> 1 | F40: ='FORM 1'!$E$14 -> 0 | G40: ='FORM 1'!$F$14 -> 0 | H40: ='FORM 1'!$G$14 -> 0
B41: TD | C41: 1 | D41: ='FORM 1'!$C$18 -> 0 | E41: ='FORM 1'!$D$18 -> 0.4754488731 | F41: ='FORM 1'!$E$18 -> 0.5245511269 | G41: ='FORM 1'!$F$18 -> 0 | H41: ='FORM 1'!$G$18 -> 0
B42: CUST | C42: 1 | D42: 0 | E42: 0 | F42: 0 | G42: 1 | H42: 0
B43: DPW | C43: 1 | D43: 0 | E43: 0 | F43: 1 | G43: 0 | H43: 0
B44: PTD | C44: 1 | D44: ='FORM 1'!$C$16 -> 0.4816325333 | E44: ='FORM 1'!$D$16 -> 0.2464572279 | F44: ='FORM 1'!$E$16 -> 0.2719102388 | G44: ='FORM 1'!$F$16 -> 0 | H44: ='FORM 1'!$G$16 -> 0
B45: COMMON | C45: 1 | D45: ='TOTAL FUNCFAC'!C16 -> 0 | E45: ='TOTAL FUNCFAC'!D16 -> 0 | F45: ='TOTAL FUNCFAC'!E16 -> 0 | G45: ='TOTAL FUNCFAC'!F16 -> 0 | H45: ='TOTAL FUNCFAC'!G16 -> 1
B46: LABOR | C46: =SUM(D46:H46) -> 1 | D46: ='SCH M'!F147 -> 0.4037406801 | E46: ='SCH M'!G147 -> 0.07601625701 | F46: ='SCH M'!H147 -> 0.2668097395 | G46: ='SCH M'!I147 -> 0.1285083433 | H46: ='SCH M'!J147 -> 0.1249249802

Sheet SCH M
B1: =+'TOTAL FUNCFAC'!A1 -> PacifiCorp
B2: =+'TOTAL FUNCFAC'!A2 -> 12 Months Ended December 2019
B3: Schedule M
B4: Primary | C4: PITA
B5: Account | C5: Factor | D5: Function | E5: Amount | F5: ='TOTAL FUNCFAC'!C6 -> Generation | G5: ='TOTAL FUNCFAC'!D6 -> Transmission | H5: ='TOTAL FUNCFAC'!E6 -> Distribution | I5: ='TOTAL FUNCFAC'!F6 -> Customer | J5: ='TOTAL FUNCFAC'!G6 -> Common
B6: ADDITIONS
A7: =IF(C7="","",B7&"-"&C7) -> SCHMAP-SCHMDEXP | B7: SCHMAP | C7: SCHMDEXP | D7: LABOR | E7: =SUMIFS(tblSchMJune19[Total ($000)],tblSchMJune19[Primary Name],B7,tblSchMJune19[Alloc4FUNC],C7,tblSchMJune19[FUNC],D7) -> 129.28995 | F7: =VLOOKUP($D7,$D$141:$J$153,3,FALSE)*$E7 -> 52.19961234 | G7: =VLOOKUP($D7,$D$141:$J$153,4,FALSE)*$E7 -> 9.828138068 | H7: =VLOOKUP($D7,$D$141:$J$153,5,FALSE)*$E7 -> 34.49581788 | I7: =VLOOKUP($D7,$D$141:$J$153,6,FALSE)*$E7 -> 16.61483727 | J7: =VLOOKUP($D7,$D$141:$J$153,7,FALSE)*$E7 -> 16.15154444
A8: =IF(C8="","",B8&"-"&C8) -> SCHMAP-SE | B8: SCHMAP | C8: SE | D8: P | E8: =SUMIFS(tblSchMJune19[Total ($000)],tblSchMJune19[Primary Name],B8,tblSchMJune19[Alloc4FUNC],C8,tblSchMJune19[FUNC],D8) -> 58.125 | F8: =VLOOKUP($D8,$D$141:$J$153,3,FALSE)*$E8 -> 58.125 | G8: =VLOOKUP($D8,$D$141:$J$153,4,FALSE)*$E8 -> 0 | H8: =VLOOKUP($D8,$D$141:$J$153,5,FALSE)*$E8 -> 0 | I8: =VLOOKUP($D8,$D$141:$J$153,6,FALSE)*$E8 -> 0 | J8: =VLOOKUP($D8,$D$141:$J$153,7,FALSE)*$E8 -> 0
A9: =IF(C9="","",B9&"-"&C9) -> SCHMAP-SO | B9: SCHMAP | C9: SO | D9: P | E9: =SUMIFS(tblSchMJune19[Total ($000)],tblSchMJune19[Primary Name],B9,tblSchMJune19[Alloc4FUNC],C9,tblSchMJune19[FUNC],D9) -> 1515.6276 | F9: =VLOOKUP($D9,$D$141:$J$153,3,FALSE)*$E9 -> 1515.6276 | G9: =VLOOKUP($D9,$D$141:$J$153,4,FALSE)*$E9 -> 0 | H9: =VLOOKUP($D9,$D$141:$J$153,5,FALSE)*$E9 -> 0 | I9: =VLOOKUP($D9,$D$141:$J$153,6,FALSE)*$E9 -> 0 | J9: =VLOOKUP($D9,$D$141:$J$153,7,FALSE)*$E9 -> 0
A10: =IF(C10="","",B10&"-"&C10) -> SCHMAP-SO | B10: SCHMAP | C10: SO | D10: LABOR | E10: =SUMIFS(tblSchMJune19[Total ($000)],tblSchMJune19[Primary Name],B10,tblSchMJune19[Alloc4FUNC],C10,tblSchMJune19[FUNC],D10) -> 855.5912 | F10: =VLOOKUP($D10,$D$141:$J$153,3,FALSE)*$E10 -> 345.4369729 | G10: =VLOOKUP($D10,$D$141:$J$153,4,FALSE)*$E10 -> 65.03884055 | H10: =VLOOKUP($D10,$D$141:$J$153,5,FALSE)*$E10 -> 228.2800652 | I10: =VLOOKUP($D10,$D$141:$J$153,6,FALSE)*$E10 -> 109.9506076 | J10: =VLOOKUP($D10,$D$141:$J$153,7,FALSE)*$E10 -> 106.8847137
A11: =IF(C11="","",B11&"-"&C11) -> SCHMAP-SO | B11: SCHMAP | C11: SO | D11: PTD | E11: =SUMIFS(tblSchMJune19[Total ($000)],tblSchMJune19[Primary Name],B11,tblSchMJune19[Alloc4FUNC],C11,tblSchMJune19[FUNC],D11) -> 0 | F11: =VLOOKUP($D11,$D$141:$J$153,3,FALSE)*$E11 -> 0 | G11: =VLOOKUP($D11,$D$141:$J$153,4,FALSE)*$E11 -> 0 | H11: =VLOOKUP($D11,$D$141:$J$153,5,FALSE)*$E11 -> 0 | I11: =VLOOKUP($D11,$D$141:$J$153,6,FALSE)*$E11 -> 0 | J11: =VLOOKUP($D11,$D$141:$J$153,7,FALSE)*$E11 -> 0
A13: =IF(C13="","",B13&"-"&C13) ->  | B13: Total-SO | E13: =SUMIF($A:$A,"SCHMAP-SO",E:E) -> 2371.2188 | F13: 1861.064573 | G13: 65.03884055 | H13: 228.2800652 | I13: 109.9506076 | J13: 106.8847137
A14: =IF(C14="","",B14&"-"&C14) ->  | B14: Total SCHMAP | E14: =SUMIF($B:$B,"SCHMAP",E:E) -> 2558.63375 | F14: 1971.389185 | G14: 74.86697862 | H14: 262.7758831 | I14: 126.5654449 | J14: 123.0362581
A15: =IF(C15="","",B15&"-"&C15) ->  | B15: SCHMAP-SO | E15: =SUM(F15:J15) -> 1 | F15: =IF(ISERROR(F13/$E13)," ",(F13/$E13)) -> 0.7848556923 | G15: 0.02742844336 | H15: 0.09627119404 | I15: 0.04636881574 | J15: 0.04507585453
A16: =IF(C16="","",B16&"-"&C16) ->  | B16: SCHMAP FACTOR | E16: =SUM(F16:J16) -> 1 | F16: 0.7704851018 | G16: 0.02926052962 | H16: 0.1027016403 | I16: 0.0494660265 | J16: 0.04808670179
A18: =IF(C18="","",B18&"-"&C18) -> SCHMAT-CIAC | B18: SCHMAT | C18: CIAC | D18: DPW | E18: =SUMIFS(tblSchMJune19[Total ($000)],tblSchMJune19[Primary Name],B18,tblSchMJune19[Alloc4FUNC],C18,tblSchMJune19[FUNC],D18) -> 103001.2315 | F18: =VLOOKUP($D18,$D$141:$J$153,3,FALSE)*$E18 -> 0 | G18: =VLOOKUP($D18,$D$141:$J$153,4,FALSE)*$E18 -> 0 | H18: =VLOOKUP($D18,$D$141:$J$153,5,FALSE)*$E18 -> 103001.2315 | I18: =VLOOKUP($D18,$D$141:$J$153,6,FALSE)*$E18 -> 0 | J18: =VLOOKUP($D18,$D$141:$J$153,7,FALSE)*$E18 -> 0
A19: SCHMAT-BADDEBT | B19: SCHMAT | C19: BADDEBT | D19: CUST | E19: =SUMIFS(tblSchMJune19[Total ($000)],tblSchMJune19[Primary Name],B19,tblSchMJune19[Alloc4FUNC],C19,tblSchMJune19[FUNC],D19) -> 397.3279504 | F19: 0 | G19: 0 | H19: 0 | I19: 397.3279504 | J19: 0
A20: SCHMAT-SCHMDEXP | B20: SCHMAT | C20: SCHMDEXP | D20: GP | E20: =SUMIFS(tblSchMJune19[Total ($000)],tblSchMJune19[Primary Name],B20,tblSchMJune19[Alloc4FUNC],C20,tblSchMJune19[FUNC],D20) -> 984007.9824 | F20: 465015.5372 | G20: 244038.6887 | H20: 268229.6354 | I20: 6724.121161 | J20: 0
A21: =IF(C21="","",B21&"-"&C21) -> SCHMAT-GPS | B21: SCHMAT | C21: GPS | D21: GP | E21: =SUMIFS(tblSchMJune19[Total ($000)],tblSchMJune19[Primary Name],B21,tblSchMJune19[Alloc4FUNC],C21,tblSchMJune19[FUNC],D21) -> -591.04175 | F21: -279.3103326 | G21: -146.5811825 | H21: -161.1114096 | I21: -4.038825304 | J21: 0
A22: =IF(C22="","",B22&"-"&C22) -> SCHMAT-SE | B22: SCHMAT | C22: SE | D22: LABOR | E22: =SUMIFS(tblSchMJune19[Total ($000)],tblSchMJune19[Primary Name],B22,tblSchMJune19[Alloc4FUNC],C22,tblSchMJune19[FUNC],D22) -> 0.761 | F22: 0.3072466575 | G22: 0.05784837158 | H22: 0.2030422118 | I22: 0.09779484922 | J22: 0.0950679099
A23: SCHMAT-SE | B23: SCHMAT | C23: SE | D23: P | E23: =SUMIFS(tblSchMJune19[Total ($000)],tblSchMJune19[Primary Name],B23,tblSchMJune19[Alloc4FUNC],C23,tblSchMJune19[FUNC],D23) -> 35250.83499 | F23: 35250.83499 | G23: 0 | H23: 0 | I23: 0 | J23: 0
A24: SCHMAT-SG | B24: SCHMAT | C24: SG | D24: DPW | E24: =SUMIFS(tblSchMJune19[Total ($000)],tblSchMJune19[Primary Name],B24,tblSchMJune19[Alloc4FUNC],C24,tblSchMJune19[FUNC],D24) -> 0 | F24: 0 | G24: 0 | H24: 0 | I24: 0 | J24: 0
A25: =IF(C25="","",B25&"-"&C25) -> SCHMAT-SG | B25: SCHMAT | C25: SG | D25: P | E25: =SUMIFS(tblSchMJune19[Total ($000)],tblSchMJune19[Primary Name],B25,tblSchMJune19[Alloc4FUNC],C25,tblSchMJune19[FUNC],D25) -> -403.6663 | F25: -403.6663 | G25: 0 | H25: 0 | I25: 0 | J25: 0
A26: SCHMAT-SG | B26: SCHMAT | C26: SG | D26: T | E26: =SUMIFS(tblSchMJune19[Total ($000)],tblSchMJune19[Primary Name],B26,tblSchMJune19[Alloc4FUNC],C26,tblSchMJune19[FUNC],D26) -> 0 | F26: 0 | G26: 0 | H26: 0 | I26: 0 | J26: 0
A27: SCHMAT-SGCT | B27: SCHMAT | C27: SGCT | D27: P | E27: =SUMIFS(tblSchMJune19[Total ($000)],tblSchMJune19[Primary Name],B27,tblSchMJune19[Alloc4FUNC],C27,tblSchMJune19[FUNC],D27) -> 0 | F27: 0 | G27: 0 | H27: 0 | I27: 0 | J27: 0
A28: SCHMAT-SNP | B28: SCHMAT | C28: SNP | D28: GP | E28: =SUMIFS(tblSchMJune19[Total ($000)],tblSchMJune19[Primary Name],B28,tblSchMJune19[Alloc4FUNC],C28,tblSchMJune19[FUNC],D28) -> 584.92201 | F28: 276.4183091 | G28: 145.0634577 | H28: 159.4432365 | I28: 3.997006666 | J28: 0
A29: SCHMAT-SNP | B29: SCHMAT | C29: SNP | D29: PTD | E29: =SUMIFS(tblSchMJune19[Total ($000)],tblSchMJune19[Primary Name],B29,tblSchMJune19[Alloc4FUNC],C29,tblSchMJune19[FUNC],D29) -> 41261.751 | F29: 19873.00166 | G29: 10169.25677 | H29: 11219.49257 | I29: 0 | J29: 0
A30: SCHMAT-SNPD | B30: SCHMAT | C30: SNPD | D30: DPW | E30: =SUMIFS(tblSchMJune19[Total ($000)],tblSchMJune19[Primary Name],B30,tblSchMJune19[Alloc4FUNC],C30,tblSchMJune19[FUNC],D30) -> 2098.862 | F30: 0 | G30: 0 | H30: 2098.862 | I30: 0 | J30: 0
A31: =IF(C31="","",B31&"-"&C31) -> SCHMAT-SO | B31: SCHMAT | C31: SO | D31: COMMON | E31: =SUMIFS(tblSchMJune19[Total ($000)],tblSchMJune19[Primary Name],B31,tblSchMJune19[Alloc4FUNC],C31,tblSchMJune19[FUNC],D31) -> 0 | F31: 0 | G31: 0 | H31: 0 | I31: 0 | J31: 0
A32: =IF(C32="","",B32&"-"&C32) -> SCHMAT-SO | B32: SCHMAT | C32: SO | D32: LABOR | E32: =SUMIFS(tblSchMJune19[Total ($000)],tblSchMJune19[Primary Name],B32,tblSchMJune19[Alloc4FUNC],C32,tblSchMJune19[FUNC],D32) -> 24189.22706 | F32: 9766.174983 | G32: 1838.774501 | H32: 6453.921371 | I32: 3108.517494 | J32: 3021.83871
A33: SCHMAT-SO | B33: SCHMAT | C33: SO | D33: PTD | E33: =SUMIFS(tblSchMJune19[Total ($000)],tblSchMJune19[Primary Name],B33,tblSchMJune19[Alloc4FUNC],C33,tblSchMJune19[FUNC],D33) -> 189.88243 | F33: 91.45355579 | G33: 46.79789732 | H33: 51.63097689 | I33: 0 | J33: 0
A34: =IF(C34="","",B34&"-"&C34) -> SCHMAT-OTHER | B34: SCHMAT | C34: OTHER | D34: COMMON | E34: =SUMIFS(tblSchMJune19[Total ($000)],tblSchMJune19[Primary Name],B34,tblSchMJune19[Alloc4FUNC],C34,tblSchMJune19[FUNC],D34) -> 0 | F34: 0 | G34: 0 | H34: 0 | I34: 0 | J34: 0
A35: =IF(C35="","",B35&"-"&C35) -> SCHMAT-OTHER | B35: SCHMAT | C35: OTHER | D35: GP | E35: =SUMIFS(tblSchMJune19[Total ($000)],tblSchMJune19[Primary Name],B35,tblSchMJune19[Alloc4FUNC],C35,tblSchMJune19[FUNC],D35) -> -15034.47261 | F35: -7104.884799 | G35: -3728.621156 | H35: -4098.230075 | I35: -102.7365806 | J35: 0
A36: =IF(C36="","",B36&"-"&C36) -> SCHMAT-OTHER | B36: SCHMAT | C36: OTHER | D36: P | E36: =SUMIFS(tblSchMJune19[Total ($000)],tblSchMJune19[Primary Name],B36,tblSchMJune19[Alloc4FUNC],C36,tblSchMJune19[FUNC],D36) -> -21879.45099 | F36: -21879.45099 | G36: 0 | H36: 0 | I36: 0 | J36: 0
A37: =IF(C37="","",B37&"-"&C37) -> SCHMAT-OTHER | B37: SCHMAT | C37: OTHER | D37: PTD | E37: =SUMIFS(tblSchMJune19[Total ($000)],tblSchMJune19[Primary Name],B37,tblSchMJune19[Alloc4FUNC],C37,tblSchMJune19[FUNC],D37) -> 44976.14097 | F37: 21661.97271 | G37: 11084.69502 | H37: 12229.47323 | I37: 0 | J37: 0
A38: =IF(C38="","",B38&"-"&C38) -> SCHMAT-OTHER | B38: SCHMAT | C38: OTHER | D38: CUST | E38: =SUMIFS(tblSchMJune19[Total ($000)],tblSchMJune19[Primary Name],B38,tblSchMJune19[Alloc4FUNC],C38,tblSchMJune19[FUNC],D38) -> 51.02631 | F38: 0 | G38: 0 | H38: 0 | I38: 51.02631 | J38: 0
A39: SCHMAT-TROJD | B39: SCHMAT | C39: TROJD | D39: P | E39: =SUMIFS(tblSchMJune19[Total ($000)],tblSchMJune19[Primary Name],B39,tblSchMJune19[Alloc4FUNC],C39,tblSchMJune19[FUNC],D39) -> -50.97388 | F39: -50.97388 | G39: 0 | H39: 0 | I39: 0 | J39: 0
A40: SCHMAT-SITUS | B40: SCHMAT | C40: SITUS | D40: COMMON | E40: =SUMIFS(tblSchMJune19[Total ($000)],tblSchMJune19[Primary Name],B40,tblSchMJune19[Alloc4FUNC],C40,tblSchMJune19[FUNC],D40) -> 0 | F40: 0 | G40: 0 | H40: 0 | I40: 0 | J40: 0
A41: SCHMAT-SITUS | B41: SCHMAT | C41: SITUS | D41: DPW | E41: =SUMIFS(tblSchMJune19[Total ($000)],tblSchMJune19[Primary Name],B41,tblSchMJune19[Alloc4FUNC],C41,tblSchMJune19[FUNC],D41) -> -1288.51127 | F41: 0 | G41: 0 | H41: -1288.51127 | I41: 0 | J41: 0
A42: SCHMAT-SITUS | B42: SCHMAT | C42: SITUS | D42: ESD | E42: =SUMIFS(tblSchMJune19[Total ($000)],tblSchMJune19[Primary Name],B42,tblSchMJune19[Alloc4FUNC],C42,tblSchMJune19[FUNC],D42) -> 103.76456 | F42: 31.129368 | G42: 10.376456 | H42: 62.258736 | I42: 0 | J42: 0
A43: SCHMAT-SITUS | B43: SCHMAT | C43: SITUS | D43: GP | E43: =SUMIFS(tblSchMJune19[Total ($000)],tblSchMJune19[Primary Name],B43,tblSchMJune19[Alloc4FUNC],C43,tblSchMJune19[FUNC],D43) -> 0 | F43: 0 | G43: 0 | H43: 0 | I43: 0 | J43: 0
A44: SCHMAT-SITUS | B44: SCHMAT | C44: SITUS | D44: LABOR | E44: =SUMIFS(tblSchMJune19[Total ($000)],tblSchMJune19[Primary Name],B44,tblSchMJune19[Alloc4FUNC],C44,tblSchMJune19[FUNC],D44) -> -185.29744 | F44: -74.81211444 | G44: -14.08561782 | H44: -49.4391617 | I44: -23.81226702 | J44: -23.14827901
A45: SCHMAT-SITUS | B45: SCHMAT | C45: SITUS | D45: P | E45: =SUMIFS(tblSchMJune19[Total ($000)],tblSchMJune19[Primary Name],B45,tblSchMJune19[Alloc4FUNC],C45,tblSchMJune19[FUNC],D45) -> 13030.96273 | F45: 13030.96273 | G45: 0 | H45: 0 | I45: 0 | J45: 0
A46: SCHMAT-SITUS | B46: SCHMAT | C46: SITUS | D46: PTD | E46: =SUMIFS(tblSchMJune19[Total ($000)],tblSchMJune19[Primary Name],B46,tblSchMJune19[Alloc4FUNC],C46,tblSchMJune19[FUNC],D46) -> -6510.35088 | F46: -3135.596787 | G46: -1604.52303 | H46: -1770.231063 | I46: 0 | J46: 0
A47: SCHMAT-SITUS | B47: SCHMAT | C47: SITUS | D47: T | E47: =SUMIFS(tblSchMJune19[Total ($000)],tblSchMJune19[Primary Name],B47,tblSchMJune19[Alloc4FUNC],C47,tblSchMJune19[FUNC],D47) -> 0 | F47: 0 | G47: 0 | H47: 0 | I47: 0 | J47: 0
B48: Total-SE | E48: =SUMIF($A:$A,"SCHMAT-SE",E:E) -> 35251.59599 | F48: 35251.14224 | G48: 0.05784837158 | H48: 0.2030422118 | I48: 0.09779484922 | J48: 0.0950679099
A49: =IF(C49="","",B49&"-"&C49) ->  | B49: Total-SNP | E49: =SUMIF($A:$A,"SCHMAT-SNP",E:E) -> 41846.67301 | F49: 20149.41997 | G49: 10314.32023 | H49: 11378.93581 | I49: 3.997006666 | J49: 0
B50: Total-SITUS | E50: =SUMIF($A:$A,"SCHMAT-SITUS",E:E) -> 5150.5677 | F50: 9851.683197 | G50: -1608.232192 | H50: -3045.922758 | I50: -23.81226702 | J50: -23.14827901
B51: Total-SO | E51: =SUMIF($A:$A,"SCHMAT-SO",E:E) -> 24379.10949 | F51: 9857.628539 | G51: 1885.572398 | H51: 6505.552348 | I51: 3108.517494 | J51: 3021.83871
B52: Total-SCHMAT | E52: =SUMIF($B:$B,"SCHMAT",E:E) -> 1203200.912 | F52: 532069.0975 | G52: 261839.8996 | H52: 396138.6291 | I52: 10154.50004 | J52: 2998.785499
B53: SCHMAT-SE | E53: =SUM(F53:J53) -> 1 | F53: =IF(ISERROR(F48/$E48)," ",(F48/$E48)) -> 0.9999871281 | G53: 1.641014256e-06 | H53: 5.759801963e-06 | I53: 2.774196358e-06 | J53: 2.69683988e-06
B54: SCHMAT-SNP | E54: =SUM(F54:J54) -> 1 | F54: 0.4815059005 | G54: 0.2464788592 | H54: 0.2719197247 | I54: 9.55155184e-05 | J54: 0
B55: SCHMAT-SITUS | E55: =SUM(F55:J55) -> 1 | F55: 1.912737347 | G55: -0.312243676 | H55: -0.5913761231 | I55: -0.004623231537 | J55: -0.004494316037
B56: SCHMAT-SO | E56: =SUM(F56:J56) -> 1 | F56: 0.4043473591 | G56: 0.07734377661 | H56: 0.266849466 | I56: 0.1275074258 | J56: 0.1239519726
B57: SCHMAT FACTOR | E57: =SUM(F57:J57) -> 1 | F57: 0.4422113483 | G57: 0.2176194325 | H57: 0.3292373079 | I57: 0.008439571434 | J57: 0.002492339783
A59: =IF(C59="","",B59&"-"&C59) -> SCHMAF-DGP | B59: SCHMAF | C59: DGP | D59: P | E59: 0 | F59: =VLOOKUP($D59,$D$141:$J$153,3,FALSE)*$E59 -> 0 | G59: =VLOOKUP($D59,$D$141:$J$153,4,FALSE)*$E59 -> 0 | H59: =VLOOKUP($D59,$D$141:$J$153,5,FALSE)*$E59 -> 0 | I59: =VLOOKUP($D59,$D$141:$J$153,6,FALSE)*$E59 -> 0 | J59: =VLOOKUP($D59,$D$141:$J$153,7,FALSE)*$E59 -> 0
A60: =IF(C60="","",B60&"-"&C60) -> SCHMAF-TROJP | B60: SCHMAF | C60: TROJP | D60: P | E60: 0 | F60: =VLOOKUP($D60,$D$141:$J$153,3,FALSE)*$E60 -> 0 | G60: =VLOOKUP($D60,$D$141:$J$153,4,FALSE)*$E60 -> 0 | H60: =VLOOKUP($D60,$D$141:$J$153,5,FALSE)*$E60 -> 0 | I60: =VLOOKUP($D60,$D$141:$J$153,6,FALSE)*$E60 -> 0 | J60: =VLOOKUP($D60,$D$141:$J$153,7,FALSE)*$E60 -> 0
A61: =IF(C61="","",B61&"-"&C61) ->  | B61: Total-SCHMAF | E61: =SUMIF($A:$A,"SCHMAF",E:E) -> 0 | F61: 0 | G61: 0 | H61: 0 | I61: 0 | J61: 0
B62: SCHMAF FACTOR | E62: =SUM(F62:J62) -> 0 | F62: =IF(ISERROR(F61/$E61)," ",(F61/$E61)) ->  | G62: =IF(ISERROR(G61/$E61)," ",(G61/$E61)) ->  | H62: =IF(ISERROR(H61/$E61)," ",(H61/$E61)) ->  | I62: =IF(ISERROR(I61/$E61)," ",(I61/$E61)) ->  | J62: =IF(ISERROR(J61/$E61)," ",(J61/$E61)) -> 
B64: Total-SCHMA | E64: =SUM(E61,E52,E14) -> 1205759.546 | F64: 534040.4867 | G64: 261914.7666 | H64: 396401.405 | I64: 10281.06549 | J64: 3121.821757
B65: SCHMA FACTOR | E65: =SUM(F65:J65) -> 1 | F65: =IF(ISERROR(F64/$E64)," ",(F64/$E64)) -> 0.4429079485 | G65: =IF(ISERROR(G64/$E64)," ",(G64/$E64)) -> 0.217219733 | H65: =IF(ISERROR(H64/$E64)," ",(H64/$E64)) -> 0.328756597 | I65: =IF(ISERROR(I64/$E64)," ",(I64/$E64)) -> 0.00852662998 | J65: =IF(ISERROR(J64/$E64)," ",(J64/$E64)) -> 0.002589091473
B67: DEDUCTIONS
A68: SCHMDP-SCHMDEXP | B68: SCHMDP | C68: SCHMDEXP | D68: LABOR | E68: =SUMIFS(tblSchMJune19[Total ($000)],tblSchMJune19[Primary Name],B68,tblSchMJune19[Alloc4FUNC],C68,tblSchMJune19[FUNC],D68) -> -19.35691 | F68: =VLOOKUP($D68,$D$141:$J$153,3,FALSE)*$E68 -> -7.815172007 | G68: =VLOOKUP($D68,$D$141:$J$153,4,FALSE)*$E68 -> -1.471439845 | H68: =VLOOKUP($D68,$D$141:$J$153,5,FALSE)*$E68 -> -5.164612115 | I68: =VLOOKUP($D68,$D$141:$J$153,6,FALSE)*$E68 -> -2.487524435 | J68: =VLOOKUP($D68,$D$141:$J$153,7,FALSE)*$E68 -> -2.418161598
A69: SCHMDP-SE | B69: SCHMDP | C69: SE | D69: P | E69: =SUMIFS(tblSchMJune19[Total ($000)],tblSchMJune19[Primary Name],B69,tblSchMJune19[Alloc4FUNC],C69,tblSchMJune19[FUNC],D69) -> 0 | F69: 0 | G69: 0 | H69: 0 | I69: 0 | J69: 0
A70: SCHMDP-SG | B70: SCHMDP | C70: SG | D70: P | E70: =SUMIFS(tblSchMJune19[Total ($000)],tblSchMJune19[Primary Name],B70,tblSchMJune19[Alloc4FUNC],C70,tblSchMJune19[FUNC],D70) -> 0 | F70: 0 | G70: 0 | H70: 0 | I70: 0 | J70: 0
A71: SCHMDP-SNP | B71: SCHMDP | C71: SNP | D71: PTD | E71: =SUMIFS(tblSchMJune19[Total ($000)],tblSchMJune19[Primary Name],B71,tblSchMJune19[Alloc4FUNC],C71,tblSchMJune19[FUNC],D71) -> 106.6104 | F71: 51.34703703 | G71: 26.27490365 | H71: 28.98845933 | I71: 0 | J71: 0
A72: SCHMDP-SO | B72: SCHMDP | C72: SO | D72: LABOR | E72: =SUMIFS(tblSchMJune19[Total ($000)],tblSchMJune19[Primary Name],B72,tblSchMJune19[Alloc4FUNC],C72,tblSchMJune19[FUNC],D72) -> 0 | F72: 0 | G72: 0 | H72: 0 | I72: 0 | J72: 0
A73: SCHMDP-SITUS | B73: SCHMDP | C73: SITUS | D73: PTD | E73: =SUMIFS(tblSchMJune19[Total ($000)],tblSchMJune19[Primary Name],B73,tblSchMJune19[Alloc4FUNC],C73,tblSchMJune19[FUNC],D73) -> 0 | F73: 0 | G73: 0 | H73: 0 | I73: 0 | J73: 0
B74: Total-SO | E74: =SUMIF($A:$A,"SCHMDP-SO",E:E) -> 0 | F74: 0 | G74: 0 | H74: 0 | I74: 0 | J74: 0
B75: Total-SCHMDP | E75: =SUMIF($B:$B,"SCHMDP",E:E) -> 87.25349 | F75: 43.53186502 | G75: 24.8034638 | H75: 23.82384721 | I75: -2.487524435 | J75: -2.418161598
B76: SCHMDP-SO | E76: =SUM(F76:J76) -> 0 | F76: =IF(ISERROR(F74/$E74)," ",(F74/$E74)) -> 
B77: SCHMDP FACTOR | E77: =SUM(F77:J77) -> 1 | F77: 0.4989125939 | G77: 0.2842690167 | H77: 0.2730417684 | I77: -0.02850916834 | J77: -0.0277142106
A79: SCHMDT-BADDEBT | B79: SCHMDT | C79: BADDEBT | D79: CUST | E79: =SUMIFS(tblSchMJune19[Total ($000)],tblSchMJune19[Primary Name],B79,tblSchMJune19[Alloc4FUNC],C79,tblSchMJune19[FUNC],D79) -> 0 | F79: =VLOOKUP($D79,$D$141:$J$153,3,FALSE)*$E79 -> 0 | G79: =VLOOKUP($D79,$D$141:$J$153,4,FALSE)*$E79 -> 0 | H79: =VLOOKUP($D79,$D$141:$J$153,5,FALSE)*$E79 -> 0 | I79: =VLOOKUP($D79,$D$141:$J$153,6,FALSE)*$E79 -> 0 | J79: =VLOOKUP($D79,$D$141:$J$153,7,FALSE)*$E79 -> 0
A80: SCHMDT-CN | B80: SCHMDT | C80: CN | D80: CUST | E80: =SUMIFS(tblSchMJune19[Total ($000)],tblSchMJune19[Primary Name],B80,tblSchMJune19[Alloc4FUNC],C80,tblSchMJune19[FUNC],D80) -> 0 | F80: 0 | G80: 0 | H80: 0 | I80: 0 | J80: 0
A81: SCHMDT-GPS | B81: SCHMDT | C81: GPS | D81: GP | E81: =SUMIFS(tblSchMJune19[Total ($000)],tblSchMJune19[Primary Name],B81,tblSchMJune19[Alloc4FUNC],C81,tblSchMJune19[FUNC],D81) -> 0 | F81: 0 | G81: 0 | H81: 0 | I81: 0 | J81: 0
A82: SCHMDT-GPS | B82: SCHMDT | C82: GPS | D82: P | E82: =SUMIFS(tblSchMJune19[Total ($000)],tblSchMJune19[Primary Name],B82,tblSchMJune19[Alloc4FUNC],C82,tblSchMJune19[FUNC],D82) -> 0 | F82: 0 | G82: 0 | H82: 0 | I82: 0 | J82: 0
A83: SCHMDT-GPS | B83: SCHMDT | C83: GPS | D83: PTD | E83: =SUMIFS(tblSchMJune19[Total ($000)],tblSchMJune19[Primary Name],B83,tblSchMJune19[Alloc4FUNC],C83,tblSchMJune19[FUNC],D83) -> 68082.7205 | F83: 32790.85315 | G83: 16779.47856 | H83: 18512.38879 | I83: 0 | J83: 0
A84: SCHMDT-SG | B84: SCHMDT | C84: SG | D84: P | E84: =SUMIFS(tblSchMJune19[Total ($000)],tblSchMJune19[Primary Name],B84,tblSchMJune19[Alloc4FUNC],C84,tblSchMJune19[FUNC],D84) -> 146912.3454 | F84: 146912.3454 | G84: 0 | H84: 0 | I84: 0 | J84: 0
A85: =IF(C85="","",B85&"-"&C85) -> SCHMDT-SG | B85: SCHMDT | C85: SG | D85: T | E85: =SUMIFS(tblSchMJune19[Total ($000)],tblSchMJune19[Primary Name],B85,tblSchMJune19[Alloc4FUNC],C85,tblSchMJune19[FUNC],D85) -> -1519.87724 | F85: 0 | G85: -1519.87724 | H85: 0 | I85: 0 | J85: 0
A86: SCHMDT-SE | B86: SCHMDT | C86: SE | D86: P | E86: =SUMIFS(tblSchMJune19[Total ($000)],tblSchMJune19[Primary Name],B86,tblSchMJune19[Alloc4FUNC],C86,tblSchMJune19[FUNC],D86) -> -1171.5892 | F86: -1171.5892 | G86: 0 | H86: 0 | I86: 0 | J86: 0
A87: =IF(C87="","",B87&"-"&C87) -> SCHMDT-SNPD | B87: SCHMDT | C87: SNPD | D87: DPW | E87: =SUMIFS(tblSchMJune19[Total ($000)],tblSchMJune19[Primary Name],B87,tblSchMJune19[Alloc4FUNC],C87,tblSchMJune19[FUNC],D87) -> -22.0041 | F87: 0 | G87: 0 | H87: -22.0041 | I87: 0 | J87: 0
A88: =IF(C88="","",B88&"-"&C88) -> SCHMDT-SNPD | B88: SCHMDT | C88: SNPD | D88: P | E88: =SUMIFS(tblSchMJune19[Total ($000)],tblSchMJune19[Primary Name],B88,tblSchMJune19[Alloc4FUNC],C88,tblSchMJune19[FUNC],D88) -> 1548.07373 | F88: 1548.07373 | G88: 0 | H88: 0 | I88: 0 | J88: 0
A89: SCHMDT-SNP | B89: SCHMDT | C89: SNP | D89: PTD | E89: =SUMIFS(tblSchMJune19[Total ($000)],tblSchMJune19[Primary Name],B89,tblSchMJune19[Alloc4FUNC],C89,tblSchMJune19[FUNC],D89) -> 74705.32202 | F89: 35980.51349 | G89: 18411.66657 | H89: 20313.14195 | I89: 0 | J89: 0
A90: SCHMDT-SO | B90: SCHMDT | C90: SO | D90: ESD | E90: =SUMIFS(tblSchMJune19[Total ($000)],tblSchMJune19[Primary Name],B90,tblSchMJune19[Alloc4FUNC],C90,tblSchMJune19[FUNC],D90) -> 1875.55908 | F90: 562.667724 | G90: 187.555908 | H90: 1125.335448 | I90: 0 | J90: 0
A91: SCHMDT-SO | B91: SCHMDT | C91: SO | D91: GP | E91: =SUMIFS(tblSchMJune19[Total ($000)],tblSchMJune19[Primary Name],B91,tblSchMJune19[Alloc4FUNC],C91,tblSchMJune19[FUNC],D91) -> 5977.157 | F91: 2824.642607 | G91: 1482.36354 | H91: 1629.306542 | I91: 40.8443108 | J91: 0
A92: SCHMDT-SO | B92: SCHMDT | C92: SO | D92: LABOR | E92: =SUMIFS(tblSchMJune19[Total ($000)],tblSchMJune19[Primary Name],B92,tblSchMJune19[Alloc4FUNC],C92,tblSchMJune19[FUNC],D92) -> 16000.41152 | F92: 6460.017028 | G92: 1216.291394 | H92: 4269.06563 | I92: 2056.186376 | J92: 1998.851092
A93: SCHMDT-SO | B93: SCHMDT | C93: SO | D93: PTD | E93: =SUMIFS(tblSchMJune19[Total ($000)],tblSchMJune19[Primary Name],B93,tblSchMJune19[Alloc4FUNC],C93,tblSchMJune19[FUNC],D93) -> -788.21037 | F93: -379.6277573 | G93: -194.2601428 | H93: -214.32247 | I93: 0 | J93: 0
A94: =IF(C94="","",B94&"-"&C94) -> SCHMDT-OTHER | B94: SCHMDT | C94: OTHER | D94: CUST | E94: =SUMIFS(tblSchMJune19[Total ($000)],tblSchMJune19[Primary Name],B94,tblSchMJune19[Alloc4FUNC],C94,tblSchMJune19[FUNC],D94) -> 6.59795 | F94: 0 | G94: 0 | H94: 0 | I94: 6.59795 | J94: 0
A95: SCHMDT-OTHER | B95: SCHMDT | C95: OTHER | D95: DDS2 | E95: =SUMIFS(tblSchMJune19[Total ($000)],tblSchMJune19[Primary Name],B95,tblSchMJune19[Alloc4FUNC],C95,tblSchMJune19[FUNC],D95) -> -124.291 | F95: -124.1577823 | G95: -7.186208779 | H95: -39.41261429 | I95: 47.1916569 | J95: -0.7260515485
A96: =IF(C96="","",B96&"-"&C96) -> SCHMDT-OTHER | B96: SCHMDT | C96: OTHER | D96: COMMON | E96: =SUMIFS(tblSchMJune19[Total ($000)],tblSchMJune19[Primary Name],B96,tblSchMJune19[Alloc4FUNC],C96,tblSchMJune19[FUNC],D96) -> 444.44798 | F96: 0 | G96: 0 | H96: 0 | I96: 0 | J96: 444.44798
A97: SCHMDT-OTHER | B97: SCHMDT | C97: OTHER | D97: DPW | E97: =SUMIFS(tblSchMJune19[Total ($000)],tblSchMJune19[Primary Name],B97,tblSchMJune19[Alloc4FUNC],C97,tblSchMJune19[FUNC],D97) -> 0 | F97: 0 | G97: 0 | H97: 0 | I97: 0 | J97: 0
A98: SCHMDT-OTHER | B98: SCHMDT | C98: OTHER | D98: LABOR | E98: =SUMIFS(tblSchMJune19[Total ($000)],tblSchMJune19[Primary Name],B98,tblSchMJune19[Alloc4FUNC],C98,tblSchMJune19[FUNC],D98) -> 0 | F98: 0 | G98: 0 | H98: 0 | I98: 0 | J98: 0
A99: SCHMDT-OTHER | B99: SCHMDT | C99: OTHER | D99: P | E99: =SUMIFS(tblSchMJune19[Total ($000)],tblSchMJune19[Primary Name],B99,tblSchMJune19[Alloc4FUNC],C99,tblSchMJune19[FUNC],D99) -> 48353.10052 | F99: 48353.10052 | G99: 0 | H99: 0 | I99: 0 | J99: 0
A100: SCHMDT-OTHER | B100: SCHMDT | C100: OTHER | D100: PT | E100: =SUMIFS(tblSchMJune19[Total ($000)],tblSchMJune19[Primary Name],B100,tblSchMJune19[Alloc4FUNC],C100,tblSchMJune19[FUNC],D100) -> 0 | F100: 0 | G100: 0 | H100: 0 | I100: 0 | J100: 0
A101: SCHMDT-OTHER | B101: SCHMDT | C101: OTHER | D101: GP | E101: =SUMIFS(tblSchMJune19[Total ($000)],tblSchMJune19[Primary Name],B101,tblSchMJune19[Alloc4FUNC],C101,tblSchMJune19[FUNC],D101) -> 24141.41298 | F101: 11408.57831 | G101: 5987.185949 | H101: 6580.680765 | I101: 164.9679563 | J101: 0
A102: SCHMDT-OTHER | B102: SCHMDT | C102: OTHER | D102: PTD | E102: =SUMIFS(tblSchMJune19[Total ($000)],tblSchMJune19[Primary Name],B102,tblSchMJune19[Alloc4FUNC],C102,tblSchMJune19[FUNC],D102) -> 429.34306 | F102: 206.7855856 | G102: 105.8147004 | H102: 116.742774 | I102: 0 | J102: 0
A103: SCHMDT-TAXDEPR | B103: SCHMDT | C103: TAXDEPR | D103: TAXDEPR | E103: =SUMIFS(tblSchMJune19[Total ($000)],tblSchMJune19[Primary Name],B103,tblSchMJune19[Alloc4FUNC],C103,tblSchMJune19[FUNC],D103) -> 590717.641 | F103: 263288.0956 | G103: 154700.8206 | H103: 166784.1797 | I103: 5944.545149 | J103: 0
A104: SCHMDT-SITUS | B104: SCHMDT | C104: SITUS | D104: COMMON | E104: =SUMIFS(tblSchMJune19[Total ($000)],tblSchMJune19[Primary Name],B104,tblSchMJune19[Alloc4FUNC],C104,tblSchMJune19[FUNC],D104) -> 0 | F104: 0 | G104: 0 | H104: 0 | I104: 0 | J104: 0
A105: =IF(C105="","",B105&"-"&C105) -> SCHMDT-SITUS | B105: SCHMDT | C105: SITUS | D105: DDS2 | E105: =SUMIFS(tblSchMJune19[Total ($000)],tblSchMJune19[Primary Name],B105,tblSchMJune19[Alloc4FUNC],C105,tblSchMJune19[FUNC],D105) -> -496.84907 | F105: -496.3165367 | G105: -28.72662661 | H105: -157.550593 | I105: 188.6470528 | J105: -2.902366516
A106: SCHMDT-SITUS | B106: SCHMDT | C106: SITUS | D106: GP | E106: =SUMIFS(tblSchMJune19[Total ($000)],tblSchMJune19[Primary Name],B106,tblSchMJune19[Alloc4FUNC],C106,tblSchMJune19[FUNC],D106) -> -187.2199 | F106: -88.47505703 | G106: -46.43143115 | H106: -51.03406316 | I106: -1.279348658 | J106: 0
A107: SCHMDT-SITUS | B107: SCHMDT | C107: SITUS | D107: LABOR | E107: =SUMIFS(tblSchMJune19[Total ($000)],tblSchMJune19[Primary Name],B107,tblSchMJune19[Alloc4FUNC],C107,tblSchMJune19[FUNC],D107) -> 548.76952 | F107: 221.5605792 | G107: 41.71540487 | H107: 146.4170527 | I107: 70.52146185 | J107: 68.5550214
A108: SCHMDT-SITUS | B108: SCHMDT | C108: SITUS | D108: P | E108: =SUMIFS(tblSchMJune19[Total ($000)],tblSchMJune19[Primary Name],B108,tblSchMJune19[Alloc4FUNC],C108,tblSchMJune19[FUNC],D108) -> -925.62107 | F108: -925.62107 | G108: 0 | H108: 0 | I108: 0 | J108: 0
A109: SCHMDT-SITUS | B109: SCHMDT | C109: SITUS | D109: PTD | E109: =SUMIFS(tblSchMJune19[Total ($000)],tblSchMJune19[Primary Name],B109,tblSchMJune19[Alloc4FUNC],C109,tblSchMJune19[FUNC],D109) -> 0.29848 | F109: 0.1437576785 | G109: 0.07356255338 | H109: 0.08115976809 | I109: 0 | J109: 0
B110: Total-GPS | E110: =SUMIF($A:$A,"SCHMDT-GPS",E:E) -> 68082.7205 | F110: 32790.85315 | G110: 16779.47856 | H110: 18512.38879 | I110: 0 | J110: 0
A111: =IF(C111="","",B111&"-"&C111) ->  | B111: Total-CN | E111: =SUMIF($A:$A,"SCHMDT-CN",E:E) -> 0 | F111: 0 | G111: 0 | H111: 0 | I111: 0 | J111: 0
B112: Total-SG | E112: =SUMIF($A:$A,"SCHMDT-SG",E:E) -> 145392.4682 | F112: 146912.3454 | G112: -1519.87724 | H112: 0 | I112: 0 | J112: 0
A113: =IF(C113="","",B113&"-"&C113) ->  | B113: Total-SE | E113: =SUMIF($A:$A,"SCHMDT-SE",E:E) -> -1171.5892 | F113: -1171.5892 | G113: 0 | H113: 0 | I113: 0 | J113: 0
B114: Total-SNP | E114: =SUMIF($A:$A,"SCHMDT-SNP",E:E) -> 74705.32202 | F114: 35980.51349 | G114: 18411.66657 | H114: 20313.14195 | I114: 0 | J114: 0
B115: Total SO | E115: =SUMIF($A:$A,"SCHMDT-SO",E:E) -> 23064.91723 | F115: 9467.699602 | G115: 2691.9507 | H115: 6809.38515 | I115: 2097.030687 | J115: 1998.851092
A116: =IF(C116="","",B116&"-"&C116) ->  | B116: Total OTHER | E116: =SUMIF($A:$A,"SCHMDT-OTHER",E:E) -> 73250.61149 | F116: 59844.30663 | G116: 6085.814441 | H116: 6658.010925 | I116: 218.7575632 | J116: 443.7219285
A117: =IF(C117="","",B117&"-"&C117) ->  | B117: Total TAXDEPR | E117: =SUMIF($A:$A,"SCHMDT-TAXDEPR",E:E) -> 590717.641 | F117: 263288.0956 | G117: 154700.8206 | H117: 166784.1797 | I117: 5944.545149 | J117: 0
B118: Total-SITUS | E118: =SUMIF($A:$A,"SCHMDT-SITUS",E:E)+SUMIF($A:$A,"SCHMDT-CN",E:E) -> -1060.62204 | F118: -1288.708327 | G118: -33.36909034 | H118: -62.0864437 | I118: 257.889166 | J118: 65.65265488
B119: Total SCHMDT | E119: =SUMIF($B:$B,"SCHMDT",E:E) -> 974507.5388 | F119: 547371.5901 | G119: 197116.4845 | H119: 218993.016 | I119: 8518.222565 | J119: 2508.225675
B120: SCHMDT-GPS | E120: =SUM(F120:J120) -> 1 | F120: =IF(ISERROR(F110/$E110)," ",(F110/$E110)) -> 0.4816325333 | G120: 0.2464572279 | H120: 0.2719102388 | I120: 0 | J120: 0
A121: =IF(C121="","",B121&"-"&C121) ->  | B121: SCHMDT-CN | E121: =SUM(F121:J121) -> 0
B122: SCHMDT-SG | E122: =SUM(F122:J122) -> 1 | F122: 1.010453617 | G122: -0.01045361744 | H122: 0 | I122: 0 | J122: 0
A123: =IF(C123="","",B123&"-"&C123) ->  | B123: SCHMDT-SE | E123: =SUM(F123:J123) -> 1 | F123: 1 | G123: 0 | H123: 0 | I123: 0 | J123: 0
B124: SCHMDT-SNP | E124: 1 | F124: 0.4816325333 | G124: 0.2464572279 | H124: 0.2719102388 | I124: 0 | J124: 0
B125: SCHMDT-SO | E125: 1 | F125: 0.4104805367 | G125: 0.1167119167 | H125: 0.2952269493 | I125: 0.09091863048 | J125: 0.08666196682
A126: =IF(C126="","",B126&"-"&C126) ->  | B126: SCHMDT-OTHER | E126: =SUM(F126:J126) -> 1 | F126: 0.8169803011 | G126: 0.08308209743 | H126: 0.09089358832 | I126: 0.002986426445 | J126: 0.00605758668
A127: =IF(C127="","",B127&"-"&C127) ->  | B127: SCHMDT-TAXDEPR | E127: =SUM(F127:J127) -> 1 | F127: 0.4457088756 | G127: 0.2618862377 | H127: 0.2823416267 | I127: 0.0100632599 | J127: 0
A128: =IF(C128="","",B128&"-"&C128) ->  | B128: SCHMDT-SITUS | E128: 1 | F128: =IF(ISERROR(F118/$E118)," ",(F118/$E118)) -> 1.215049545 | G128: 0.03146181117 | H128: 0.05853776497 | I128: -0.2431489789 | J128: -0.061900142
B129: SCHMDT FACTOR | E129: 1 | F129: 0.5616904624 | G129: 0.2022729191 | H129: 0.2247217258 | I129: 0.008741053533 | J129: 0.00257383917
A131: SCHMDF-DGP | B131: SCHMDF | C131: DGP | D131: P | E131: 0 | F131: =VLOOKUP($D131,$D$141:$J$153,3,FALSE)*$E131 -> 0 | G131: =VLOOKUP($D131,$D$141:$J$153,4,FALSE)*$E131 -> 0 | H131: =VLOOKUP($D131,$D$141:$J$153,5,FALSE)*$E131 -> 0 | I131: =VLOOKUP($D131,$D$141:$J$153,6,FALSE)*$E131 -> 0 | J131: =VLOOKUP($D131,$D$141:$J$153,7,FALSE)*$E131 -> 0
B132: Total-SCHMDF | E132: =SUMIF($A:$A,"SCHMDF",E:E) -> 0 | F132: 0 | G132: 0 | H132: 0 | I132: 0 | J132: 0
B133: SCHMDF FACTOR | E133: =SUM(F133:J133) -> 0 | F133: =IF(ISERROR(F132/$E132)," ",(F132/$E132)) ->  | G133: =IF(ISERROR(G132/$E132)," ",(G132/$E132)) ->  | H133: =IF(ISERROR(H132/$E132)," ",(H132/$E132)) ->  | I133: =IF(ISERROR(I132/$E132)," ",(I132/$E132)) ->  | J133: =IF(ISERROR(J132/$E132)," ",(J132/$E132)) -> 
B135: Total-SCHMD | E135: =SUM(E132,E119,E75) -> 974594.7923 | F135: 547415.1219 | G135: 197141.288 | H135: 219016.8398 | I135: 8515.73504 | J135: 2505.807513
B136: SCHMD FACTOR | E136: =SUM(F136:J136) -> 1 | F136: =IF(ISERROR(F135/$E135)," ",(F135/$E135)) -> 0.561684842 | G136: =IF(ISERROR(G135/$E135)," ",(G135/$E135)) -> 0.20228026 | H136: =IF(ISERROR(H135/$E135)," ",(H135/$E135)) -> 0.2247260518 | I136: =IF(ISERROR(I135/$E135)," ",(I135/$E135)) -> 0.008737718596 | J136: =IF(ISERROR(J135/$E135)," ",(J135/$E135)) -> 0.002571127543
B138: Net SCHM
E140: Total | F140: Generation | G140: Transmission | H140: Poles & Wires | I140: Customers | J140: Common
D141: COMMON | E141: =SUM(F141:J141) -> 1 | F141: 0 | G141: 0 | H141: 0 | I141: 0 | J141: 1
D142: DPW | E142: =SUM(F142:J142) -> 1 | F142: 0 | G142: 0 | H142: 1 | I142: 0 | J142: 0
D143: DDS2 | E143: 1 | F143: ='REGASSETS&DDS'!F35 -> 0.9989281789 | G143: ='REGASSETS&DDS'!G35 -> 0.05781761172 | H143: ='REGASSETS&DDS'!H35 -> 0.3170995027 | I143: ='REGASSETS&DDS'!I35 -> -0.3796868389 | J143: ='REGASSETS&DDS'!J35 -> 0.005841545635
D144: CUST | E144: 1 | F144: 0 | G144: 0 | H144: 0 | I144: 1 | J144: 0
D145: ESD | E145: 1 | F145: 0.3 | G145: 0.1 | H145: 0.6 | I145: 0 | J145: 0
D146: GP | E146: 1 | F146: ='GROSS PLANT'!E42 -> 0.4725729318 | G146: ='GROSS PLANT'!F42 -> 0.2480047856 | H146: ='GROSS PLANT'!G42 -> 0.2725888816 | I146: ='GROSS PLANT'!H42 -> 0.006833401031 | J146: ='GROSS PLANT'!I42 -> 0
D147: LABOR | E147: 1 | F147: ='FORM 1'!C25 -> 0.4037406801 | G147: ='FORM 1'!D25 -> 0.07601625701 | H147: ='FORM 1'!E25 -> 0.2668097395 | I147: ='FORM 1'!F25 -> 0.1285083433 | J147: ='FORM 1'!G25 -> 0.1249249802
D148: P | E148: 1 | F148: ='FORM 1'!C13 -> 1 | G148: ='FORM 1'!D13 -> 0 | H148: ='FORM 1'!E13 -> 0 | I148: ='FORM 1'!F13 -> 0 | J148: ='FORM 1'!G13 -> 0
D149: PT | E149: =SUM(F149:J149) -> 1 | F149: =+'FORM 1'!C17 -> 0.6615015881 | G149: =+'FORM 1'!D17 -> 0.3384984119 | H149: 0 | I149: 0 | J149: 0
D150: PTD | E150: 1 | F150: ='FORM 1'!C16 -> 0.4816325333 | G150: ='FORM 1'!D16 -> 0.2464572279 | H150: ='FORM 1'!E16 -> 0.2719102388 | I150: ='FORM 1'!F16 -> 0 | J150: ='FORM 1'!G16 -> 0
D151: T | E151: 1 | F151: ='FORM 1'!C14 -> 0 | G151: ='FORM 1'!D14 -> 1 | H151: ='FORM 1'!E14 -> 0 | I151: ='FORM 1'!F14 -> 0 | J151: ='FORM 1'!G14 -> 0
D152: TAXDEPR | E152: 1 | F152: ='TAX DEPR'!C24 -> 0.4457088756 | G152: ='TAX DEPR'!D24 -> 0.2618862377 | H152: ='TAX DEPR'!E24 -> 0.2823416267 | I152: ='TAX DEPR'!F24 -> 0.0100632599 | J152: ='TAX DEPR'!G24 -> 0
D153: TD | E153: 1 | F153: ='FORM 1'!C18 -> 0 | G153: ='FORM 1'!D18 -> 0.4754488731 | H153: ='FORM 1'!E18 -> 0.5245511269 | I153: ='FORM 1'!F18 -> 0 | J153: ='FORM 1'!G18 -> 0

Sheet REGASSETS&DDS
B1: =+'TOTAL FUNCFAC'!A1 -> PacifiCorp
B2: =+'TOTAL FUNCFAC'!A2 -> 12 Months Ended December 2019
B3: Reg Assets / Deferred Debits
B5: Pri-Acct | C5: Factor | D5: Function | E5: Total | F5: ='TOTAL FUNCFAC'!C6 -> Generation | G5: ='TOTAL FUNCFAC'!D6 -> Transmission | H5: ='TOTAL FUNCFAC'!E6 -> Distribution | I5: ='TOTAL FUNCFAC'!F6 -> Customer | J5: ='TOTAL FUNCFAC'!G6 -> Common
A6: ="RA"&"-"&C6 -> RA-SE | B6: 182M | C6: SE | D6: P | E6: =SUMIFS(tblREGASSJune19[Total ($000)],tblREGASSJune19[Alloc4FUNC],C6,tblREGASSJune19[FUNC],D6) -> 188480.9989 | F6: =VLOOKUP($D6,$D$72:$J$84,3,FALSE)*$E6 -> 188480.9989 | G6: =VLOOKUP($D6,$D$72:$J$84,4,FALSE)*$E6 -> 0 | H6: =VLOOKUP($D6,$D$72:$J$84,5,FALSE)*$E6 -> 0 | I6: =VLOOKUP($D6,$D$72:$J$84,6,FALSE)*$E6 -> 0 | J6: =VLOOKUP($D6,$D$72:$J$84,7,FALSE)*$E6 -> 0
A7: RA-SG | B7: 182M | C7: SG | D7: P | E7: =SUMIFS(tblREGASSJune19[Total ($000)],tblREGASSJune19[Alloc4FUNC],C7,tblREGASSJune19[FUNC],D7) -> 3448.66939 | F7: 3448.66939 | G7: 0 | H7: 0 | I7: 0 | J7: 0
A8: RA-SGCT | B8: 182M | C8: SGCT | D8: P | E8: =SUMIFS(tblREGASSJune19[Total ($000)],tblREGASSJune19[Alloc4FUNC],C8,tblREGASSJune19[FUNC],D8) -> 0 | F8: 0 | G8: 0 | H8: 0 | I8: 0 | J8: 0
A9: RA-SG-P | B9: 182M | C9: SG-P | D9: P | E9: =SUMIFS(tblREGASSJune19[Total ($000)],tblREGASSJune19[Alloc4FUNC],C9,tblREGASSJune19[FUNC],D9) -> 0 | F9: 0 | G9: 0 | H9: 0 | I9: 0 | J9: 0
A10: RA-SO | B10: 182M | C10: SO | D10: COMMON | E10: =SUMIFS(tblREGASSJune19[Total ($000)],tblREGASSJune19[Alloc4FUNC],C10,tblREGASSJune19[FUNC],D10) -> 0 | F10: 0 | G10: 0 | H10: 0 | I10: 0 | J10: =VLOOKUP($D10,$D$72:$J$84,7,FALSE)*$E10 -> 0
A11: RA-SO | B11: 182M | C11: SO | D11: LABOR | E11: =SUMIFS(tblREGASSJune19[Total ($000)],tblREGASSJune19[Alloc4FUNC],C11,tblREGASSJune19[FUNC],D11) -> 429168.0478 | F11: 173272.5995 | G11: 32623.74862 | H11: 114506.215 | I11: 55151.6748 | J11: 53613.80986
A12: RA-SO | B12: 182M | C12: SO | D12: ESD | E12: =SUMIFS(tblREGASSJune19[Total ($000)],tblREGASSJune19[Alloc4FUNC],C12,tblREGASSJune19[FUNC],D12) -> 25043.91501 | F12: 7513.174504 | G12: 2504.391501 | H12: 15026.34901 | I12: 0 | J12: 0
A13: RA-SO | B13: 182M | C13: SO | D13: P | E13: =SUMIFS(tblREGASSJune19[Total ($000)],tblREGASSJune19[Alloc4FUNC],C13,tblREGASSJune19[FUNC],D13) -> 3647.40469 | F13: 3647.40469 | G13: 0 | H13: 0 | I13: 0 | J13: 0
A14: RA-SO | B14: 182M | C14: SO | D14: TD | E14: =SUMIFS(tblREGASSJune19[Total ($000)],tblREGASSJune19[Alloc4FUNC],C14,tblREGASSJune19[FUNC],D14) -> 0 | F14: 0 | G14: 0 | H14: 0 | I14: 0 | J14: 0
A15: ="RA"&"-"&C15 -> RA-OTHER | B15: 182M | C15: OTHER | D15: CUST | E15: =SUMIFS(tblREGASSJune19[Total ($000)],tblREGASSJune19[Alloc4FUNC],C15,tblREGASSJune19[FUNC],D15) -> 109206.0878 | F15: 0 | G15: 0 | H15: 0 | I15: 109206.0878 | J15: 0
A16: ="RA"&"-"&C16 -> RA-OTHER | B16: 182M | C16: OTHER | D16: COMMON | E16: =SUMIFS(tblREGASSJune19[Total ($000)],tblREGASSJune19[Alloc4FUNC],C16,tblREGASSJune19[FUNC],D16) -> 151.6012715 | F16: 0 | G16: 0 | H16: 0 | I16: 0 | J16: 151.6012715
A17: RA-OTHER | B17: 182M | C17: OTHER | D17: LABOR | E17: =SUMIFS(tblREGASSJune19[Total ($000)],tblREGASSJune19[Alloc4FUNC],C17,tblREGASSJune19[FUNC],D17) -> 6416.61095 | F17: 2590.646869 | G17: 487.7667471 | H17: 1712.014296 | I17: 824.5880425 | J17: 801.5949956
A18: RA-OTHER | B18: 182M | C18: OTHER | D18: P | E18: =SUMIFS(tblREGASSJune19[Total ($000)],tblREGASSJune19[Alloc4FUNC],C18,tblREGASSJune19[FUNC],D18) -> -14296.31626 | F18: -14296.31626 | G18: 0 | H18: 0 | I18: 0 | J18: 0
A19: RA-OTHER | B19: 182M | C19: OTHER | D19: DPW | E19: =SUMIFS(tblREGASSJune19[Total ($000)],tblREGASSJune19[Alloc4FUNC],C19,tblREGASSJune19[FUNC],D19) -> 0 | F19: 0 | G19: 0 | H19: 0 | I19: 0 | J19: 0
A20: RA-OTHER | B20: 182M | C20: OTHER | D20: PTD | E20: =SUMIFS(tblREGASSJune19[Total ($000)],tblREGASSJune19[Alloc4FUNC],C20,tblREGASSJune19[FUNC],D20) -> 2333.844462 | F20: 1124.05542 | G20: 575.1928363 | H20: 634.5962049 | I20: 0 | J20: 0
A21: RA-OTHER | B21: 182M | C21: OTHER | D21: ESD | E21: =SUMIFS(tblREGASSJune19[Total ($000)],tblREGASSJune19[Alloc4FUNC],C21,tblREGASSJune19[FUNC],D21) -> 0 | F21: 0 | G21: 0 | H21: 0 | I21: 0 | J21: 0
A22: RA-TROJD | B22: 182M | C22: TROJD | D22: P | E22: =SUMIFS(tblREGASSJune19[Total ($000)],tblREGASSJune19[Alloc4FUNC],C22,tblREGASSJune19[FUNC],D22) -> 0 | F22: 0 | G22: 0 | H22: 0 | I22: 0 | J22: 0
A23: RA-TROJP | B23: 182M | C23: TROJP | D23: P | E23: =SUMIFS(tblREGASSJune19[Total ($000)],tblREGASSJune19[Alloc4FUNC],C23,tblREGASSJune19[FUNC],D23) -> 0 | F23: 0 | G23: 0 | H23: 0 | I23: 0 | J23: 0
A24: RA-SITUS | B24: 182M | C24: SITUS | D24: COMMON | E24: =SUMIFS(tblREGASSJune19[Total ($000)],tblREGASSJune19[Alloc4FUNC],C24,tblREGASSJune19[FUNC],D24) -> 60.71262385 | F24: 0 | G24: 0 | H24: 0 | I24: 0 | J24: 60.71262385
A25: RA-SITUS | B25: 182M | C25: SITUS | D25: LABOR | E25: =SUMIFS(tblREGASSJune19[Total ($000)],tblREGASSJune19[Alloc4FUNC],C25,tblREGASSJune19[FUNC],D25) -> -691.2711292 | F25: -279.0942758 | G25: -52.54784382 | H25: -184.4378699 | I25: -88.83410756 | J25: -86.3570321
A26: RA-SITUS | B26: 182M | C26: SITUS | D26: P | E26: =SUMIFS(tblREGASSJune19[Total ($000)],tblREGASSJune19[Alloc4FUNC],C26,tblREGASSJune19[FUNC],D26) -> -3502.389253 | F26: -3502.389253 | G26: 0 | H26: 0 | I26: 0 | J26: 0
A27: RA-SITUS | B27: 182M | C27: SITUS | D27: PTD | E27: =SUMIFS(tblREGASSJune19[Total ($000)],tblREGASSJune19[Alloc4FUNC],C27,tblREGASSJune19[FUNC],D27) -> 0 | F27: 0 | G27: 0 | H27: 0 | I27: 0 | J27: 0
A28: ="RA"&"-"&C28 -> RA-SITUS | B28: 182M | C28: SITUS | D28: ESD | E28: =SUMIFS(tblREGASSJune19[Total ($000)],tblREGASSJune19[Alloc4FUNC],C28,tblREGASSJune19[FUNC],D28) -> -2012.716985 | F28: -603.8150954 | G28: -201.2716985 | H28: -1207.630191 | I28: 0 | J28: 0
A29: RA-SITUS | B29: 182M | C29: SITUS | D29: CUST | E29: =SUMIFS(tblREGASSJune19[Total ($000)],tblREGASSJune19[Alloc4FUNC],C29,tblREGASSJune19[FUNC],D29) -> 1755.66082 | F29: 0 | G29: 0 | H29: 0 | I29: 1755.66082 | J29: 0
B30: Total-SO | E30: =SUMIF($A:$A,"RA-SO",E:E) -> 457859.3675 | F30: 184433.1787 | G30: 35128.14012 | H30: 129532.5641 | I30: 55151.6748 | J30: =SUMIF($A:$A,"RA-SO",J:J) -> 53613.80986
B31: Total-OTHER | E31: =SUMIF($A:$A,"RA-OTHER",E:E) -> 103811.8282 | F31: -10581.61397 | G31: 1062.959583 | H31: 2346.610501 | I31: 110030.6758 | J31: 953.1962671
B32: Total SITUS | E32: =SUMIF($A:$A,"RA-SITUS",E:E) -> -4390.003923 | F32: -4385.298624 | G32: -253.8195423 | H32: -1392.068061 | I32: 1666.826712 | J32: -25.64440826
B33: Total RA | E33: =SUMIF($B:$B,"182M",E:E) -> 749210.8601 | F33: 361395.9344 | G33: 35937.28017 | H33: 130487.1065 | I33: 166849.1773 | J33: 54541.36172
B34: DDSO2 FACTOR | E34: =SUM(F34:J34) -> 1 | F34: =F30/$E30 -> 0.4028162177 | G34: =G30/$E30 -> 0.07672255416 | H34: =H30/$E30 -> 0.2829090617 | I34: =I30/$E30 -> 0.1204554907 | J34: =J30/$E30 -> 0.1170966757
B35: DDS2 FACTOR | E35: =SUM(F35:J35) -> 1 | F35: =F32/$E32 -> 0.9989281789 | G35: =G32/$E32 -> 0.05781761172 | H35: =H32/$E32 -> 0.3170995027 | I35: =I32/$E32 -> -0.3796868389 | J35: =J32/$E32 -> 0.005841545635
A37: ="DD"&"-"&C37 -> DD-SE | B37: 186M | C37: SE | D37: P | E37: =SUMIFS(tblDDSJune19[Total ($000)],tblDDSJune19[Alloc4FUNC],C37,tblDDSJune19[FUNC],D37) -> 1648.186265 | F37: =VLOOKUP($D37,$D$72:$J$84,3,FALSE)*$E37 -> 1648.186265 | G37: =VLOOKUP($D37,$D$72:$J$84,4,FALSE)*$E37 -> 0 | H37: =VLOOKUP($D37,$D$72:$J$84,5,FALSE)*$E37 -> 0 | I37: =VLOOKUP($D37,$D$72:$J$84,6,FALSE)*$E37 -> 0 | J37: =VLOOKUP($D37,$D$72:$J$84,7,FALSE)*$E37 -> 0
A38: DD-SG | B38: 186M | C38: SG | D38: P | E38: =SUMIFS(tblDDSJune19[Total ($000)],tblDDSJune19[Alloc4FUNC],C38,tblDDSJune19[FUNC],D38) -> 58241.61226 | F38: =VLOOKUP($D38,$D$72:$J$84,3,FALSE)*$E38 -> 58241.61226 | G38: =VLOOKUP($D38,$D$72:$J$84,4,FALSE)*$E38 -> 0 | H38: =VLOOKUP($D38,$D$72:$J$84,5,FALSE)*$E38 -> 0 | I38: =VLOOKUP($D38,$D$72:$J$84,6,FALSE)*$E38 -> 0 | J38: =VLOOKUP($D38,$D$72:$J$84,7,FALSE)*$E38 -> 0
A39: DD-SG | B39: 186M | C39: SG | D39: T | E39: =SUMIFS(tblDDSJune19[Total ($000)],tblDDSJune19[Alloc4FUNC],C39,tblDDSJune19[FUNC],D39) -> 11391.98496 | F39: =VLOOKUP($D39,$D$72:$J$84,3,FALSE)*$E39 -> 0 | G39: =VLOOKUP($D39,$D$72:$J$84,4,FALSE)*$E39 -> 11391.98496 | H39: =VLOOKUP($D39,$D$72:$J$84,5,FALSE)*$E39 -> 0 | I39: =VLOOKUP($D39,$D$72:$J$84,6,FALSE)*$E39 -> 0 | J39: =VLOOKUP($D39,$D$72:$J$84,7,FALSE)*$E39 -> 0
A40: DD-SO | B40: 186M | C40: SO | D40: COMMON | E40: =SUMIFS(tblDDSJune19[Total ($000)],tblDDSJune19[Alloc4FUNC],C40,tblDDSJune19[FUNC],D40) -> 0 | F40: =VLOOKUP($D40,$D$72:$J$84,3,FALSE)*$E40 -> 0 | G40: =VLOOKUP($D40,$D$72:$J$84,4,FALSE)*$E40 -> 0 | H40: =VLOOKUP($D40,$D$72:$J$84,5,FALSE)*$E40 -> 0 | I40: =VLOOKUP($D40,$D$72:$J$84,6,FALSE)*$E40 -> 0 | J40: =VLOOKUP($D40,$D$72:$J$84,7,FALSE)*$E40 -> 0
A42: DD-OTHER | B42: 186M | C42: OTHER | D42: COMMON | E42: =SUMIFS(tblDDSJune19[Total ($000)],tblDDSJune19[Alloc4FUNC],C42,tblDDSJune19[FUNC],D42) -> 0 | F42: =VLOOKUP($D42,$D$72:$J$84,3,FALSE)*$E42 -> 0 | G42: =VLOOKUP($D42,$D$72:$J$84,4,FALSE)*$E42 -> 0 | H42: =VLOOKUP($D42,$D$72:$J$84,5,FALSE)*$E42 -> 0 | I42: =VLOOKUP($D42,$D$72:$J$84,6,FALSE)*$E42 -> 0 | J42: =VLOOKUP($D42,$D$72:$J$84,7,FALSE)*$E42 -> 0
A43: DD-OTHER | B43: 186M | C43: OTHER | D43: LABOR | E43: =SUMIFS(tblDDSJune19[Total ($000)],tblDDSJune19[Alloc4FUNC],C43,tblDDSJune19[FUNC],D43) -> 0 | F43: 0 | G43: 0 | H43: 0 | I43: 0 | J43: 0
A44: DD-OTHER | B44: 186M | C44: OTHER | D44: P | E44: =SUMIFS(tblDDSJune19[Total ($000)],tblDDSJune19[Alloc4FUNC],C44,tblDDSJune19[FUNC],D44) -> 0 | F44: 0 | G44: 0 | H44: 0 | I44: 0 | J44: 0
A45: DD-OTHER | B45: 186M | C45: OTHER | D45: PTD | E45: =SUMIFS(tblDDSJune19[Total ($000)],tblDDSJune19[Alloc4FUNC],C45,tblDDSJune19[FUNC],D45) -> 2722.943465 | F45: 1311.458159 | G45: 671.089098 | H45: 740.3962078 | I45: 0 | J45: 0
A46: DD-OTHER | B46: 186M | C46: OTHER | D46: T | E46: =SUMIFS(tblDDSJune19[Total ($000)],tblDDSJune19[Alloc4FUNC],C46,tblDDSJune19[FUNC],D46) -> 1370.021693 | F46: 0 | G46: 1370.021693 | H46: 0 | I46: 0 | J46: 0
A47: DD-SITUS | B47: 186M | C47: SITUS | D47: T | E47: 0 | F47: 0 | G47: 0 | H47: 0 | I47: 0 | J47: 0
A48: DD-SITUS | B48: 186M | C48: SITUS | D48: LABOR | E48: 0 | F48: 0 | G48: 0 | H48: 0 | I48: 0 | J48: 0
B49: Total SITUS | E49: =SUMIF($A:$A,"DD-SITUS",E:E) -> 0 | F49: 0 | G49: 0 | H49: 0 | I49: 0 | J49: 0
B50: Total SG | E50: =SUMIF($A:$A,"DD-SG",E:E) -> 69633.59722 | F50: 58241.61226 | G50: 11391.98496 | H50: 0 | I50: 0 | J50: 0
B51: Total-SO | E51: =SUMIF($A:$A,"DD-SO",E:E) -> 0 | F51: 0 | G51: 0 | H51: 0 | I51: 0 | J51: 0
B52: Total-DD | E52: =SUMIF($B:$B,"186M",E:E) -> 75374.74864 | F52: 61201.25668 | G52: 13433.09575 | H52: 740.3962078 | I52: 0 | J52: 0
B53: DDS6 FACTOR | E53: =SUM(F53:J53) -> 0 | F53: =IFERROR(F49/$E49,0) -> 0 | G53: =IFERROR(G49/$E49,0) -> 0 | H53: =IFERROR(H49/$E49,0) -> 0 | I53: =IFERROR(I49/$E49,0) -> 0 | J53: =IFERROR(J49/$E49,0) -> 0
B54: DEFSG FACTOR | E54: =SUM(F54:J54) -> 1 | F54: =F50/$E50 -> 0.8364010275 | G54: =G50/$E50 -> 0.1635989725 | H54: =H50/$E50 -> 0 | I54: =I50/$E50 -> 0 | J54: =J50/$E50 -> 0
B55: DDSO6 FACTOR | E55: =SUM(F55:J55) -> 0 | F55: =IFERROR(F51/$E51,0) -> 0 | G55: =IFERROR(G51/$E51,0) -> 0 | H55: =IFERROR(H51/$E51,0) -> 0 | I55: =IFERROR(I51/$E51,0) -> 0 | J55: =IFERROR(J51/$E51,0) -> 0
B57: Major Adjustment
B58: 1998 Early Retirement | D58: LABOR | E58: 0 | F58: =VLOOKUP($D58,$D$72:$J$84,3,FALSE)*$E58 -> 0 | G58: =VLOOKUP($D58,$D$72:$J$84,4,FALSE)*$E58 -> 0 | H58: =VLOOKUP($D58,$D$72:$J$84,5,FALSE)*$E58 -> 0 | I58: =VLOOKUP($D58,$D$72:$J$84,6,FALSE)*$E58 -> 0 | J58: =VLOOKUP($D58,$D$72:$J$84,7,FALSE)*$E58 -> 0
B59: 1999 Early Retirement | D59: LABOR | E59: 0 | F59: =VLOOKUP($D59,$D$72:$J$84,3,FALSE)*$E59 -> 0 | G59: =VLOOKUP($D59,$D$72:$J$84,4,FALSE)*$E59 -> 0 | H59: =VLOOKUP($D59,$D$72:$J$84,5,FALSE)*$E59 -> 0 | I59: =VLOOKUP($D59,$D$72:$J$84,6,FALSE)*$E59 -> 0 | J59: =VLOOKUP($D59,$D$72:$J$84,7,FALSE)*$E59 -> 0
B60: Transition Planning | D60: PTD | E60: 0 | F60: =VLOOKUP($D60,$D$72:$J$84,3,FALSE)*$E60 -> 0 | G60: =VLOOKUP($D60,$D$72:$J$84,4,FALSE)*$E60 -> 0 | H60: =VLOOKUP($D60,$D$72:$J$84,5,FALSE)*$E60 -> 0 | I60: =VLOOKUP($D60,$D$72:$J$84,6,FALSE)*$E60 -> 0 | J60: =VLOOKUP($D60,$D$72:$J$84,7,FALSE)*$E60 -> 0
B61: Environmental Clean-up | D61: ESD | E61: 0 | F61: =VLOOKUP($D61,$D$72:$J$84,3,FALSE)*$E61 -> 0 | G61: =VLOOKUP($D61,$D$72:$J$84,4,FALSE)*$E61 -> 0 | H61: =VLOOKUP($D61,$D$72:$J$84,5,FALSE)*$E61 -> 0 | I61: =VLOOKUP($D61,$D$72:$J$84,6,FALSE)*$E61 -> 0 | J61: =VLOOKUP($D61,$D$72:$J$84,7,FALSE)*$E61 -> 0
B62: Y2K | D62: PTD | E62: 0 | F62: =VLOOKUP($D62,$D$72:$J$84,3,FALSE)*$E62 -> 0 | G62: =VLOOKUP($D62,$D$72:$J$84,4,FALSE)*$E62 -> 0 | H62: =VLOOKUP($D62,$D$72:$J$84,5,FALSE)*$E62 -> 0 | I62: =VLOOKUP($D62,$D$72:$J$84,6,FALSE)*$E62 -> 0 | J62: =VLOOKUP($D62,$D$72:$J$84,7,FALSE)*$E62 -> 0
B63: Subtotal Major Adjustments | E63: =SUM(E58:E62) -> 0 | F63: 0 | G63: 0 | H63: 0 | I63: 0 | J63: 0
B65: Total 186M SO | E65: =+E51+E63 -> 0 | F65: 0 | G65: 0 | H65: 0 | I65: 0 | J65: 0
B67: Total 182 &186 | E67: =SUM(E52,E33) -> 824585.6087 | F67: =SUM(F33,F52) -> 422597.1911 | G67: =SUM(G33,G52) -> 49370.37592 | H67: =SUM(H33,H52) -> 131227.5027 | I67: =SUM(I33,I52) -> 166849.1773 | J67: =SUM(J33,J52) -> 54541.36172
E71: Total | F71: Production | G71: Transmission | H71: Poles & Wires | I71: Customers | J71: Common
D72: COMMON | E72: =SUM(F72:J72) -> 1 | F72: 0 | G72: 0 | H72: 0 | I72: 0 | J72: 1
D73: DPW | E73: =SUM(F73:J73) -> 1 | F73: 0 | G73: 0 | H73: 1 | I73: 0 | J73: 0
D74: CUST | E74: 1 | F74: 0 | G74: 0 | H74: 0 | I74: 1 | J74: 0
D75: ESD | E75: 1 | F75: 0.3 | G75: 0.1 | H75: 0.6 | I75: 0 | J75: 0
D76: GP | E76: 1 | F76: ='GROSS PLANT'!$E$42 -> 0.4725729318 | G76: ='GROSS PLANT'!$F$42 -> 0.2480047856 | H76: ='GROSS PLANT'!$G$42 -> 0.2725888816 | I76: ='GROSS PLANT'!$H$42 -> 0.006833401031 | J76: ='GROSS PLANT'!$I$42 -> 0
D77: RETAIL | E77: 1 | F77: 0 | G77: 0 | H77: 0 | I77: 1 | J77: 0
D78: LABOR | E78: 1 | F78: ='FORM 1'!$C$25 -> 0.4037406801 | G78: ='FORM 1'!$D$25 -> 0.07601625701 | H78: ='FORM 1'!$E$25 -> 0.2668097395 | I78: ='FORM 1'!$F$25 -> 0.1285083433 | J78: ='FORM 1'!$G$25 -> 0.1249249802
D79: P | E79: 1 | F79: ='FORM 1'!$C$13 -> 1 | G79: ='FORM 1'!$D$13 -> 0 | H79: ='FORM 1'!$E$13 -> 0 | I79: ='FORM 1'!$F$13 -> 0 | J79: ='FORM 1'!$G$13 -> 0
D80: PT | E80: =SUM(F80:J80) -> 1 | F80: ='FORM 1'!$C$17 -> 0.6615015881 | G80: ='FORM 1'!$D$17 -> 0.3384984119 | H80: ='FORM 1'!$E$17 -> 0 | I80: ='FORM 1'!$F$17 -> 0 | J80: ='FORM 1'!$G$17 -> 0
D81: PTD | E81: 1 | F81: ='FORM 1'!$C$16 -> 0.4816325333 | G81: ='FORM 1'!$D$16 -> 0.2464572279 | H81: ='FORM 1'!$E$16 -> 0.2719102388 | I81: ='FORM 1'!$F$16 -> 0 | J81: ='FORM 1'!$G$16 -> 0
D82: T | E82: 1 | F82: ='FORM 1'!$C$14 -> 0 | G82: ='FORM 1'!$D$14 -> 1 | H82: ='FORM 1'!$E$14 -> 0 | I82: ='FORM 1'!$F$14 -> 0 | J82: ='FORM 1'!$G$14 -> 0
D83: TAXDEPR | E83: 1 | F83: ='TAX DEPR'!C24 -> 0.4457088756 | G83: ='TAX DEPR'!D24 -> 0.2618862377 | H83: ='TAX DEPR'!E24 -> 0.2823416267 | I83: ='TAX DEPR'!F24 -> 0.0100632599 | J83: ='TAX DEPR'!G24 -> 0
D84: TD | E84: 1 | F84: ='FORM 1'!$C$18 -> 0 | G84: ='FORM 1'!$D$18 -> 0.4754488731 | H84: ='FORM 1'!$E$18 -> 0.5245511269 | I84: ='FORM 1'!$F$18 -> 0 | J84: ='FORM 1'!$G$18 -> 0

Sheet ACCUMDIT
A1: =+'TOTAL FUNCFAC'!A1 -> PacifiCorp
A2: =+'TOTAL FUNCFAC'!A2 -> 12 Months Ended December 2019
A3: Deferred Income Tax - Balance
A7: DITBALRL
A8: Pacific Division | C8: Total | D8: ='TOTAL FUNCFAC'!C6 -> Generation | E8: ='TOTAL FUNCFAC'!D6 -> Transmission | F8: ='TOTAL FUNCFAC'!E6 -> Distribution | G8: ='TOTAL FUNCFAC'!F6 -> Customer | H8: ='TOTAL FUNCFAC'!G6 -> Common
A9: Pacific Division
A10: Production | B10: P | C10: 27220098.15 | D10: =VLOOKUP($B10,$B$59:$H$72,3,FALSE)*$C10 -> 27220098.15 | E10: =VLOOKUP($B10,$B$59:$H$72,4,FALSE)*$C10 -> 0 | F10: =VLOOKUP($B10,$B$59:$H$72,5,FALSE)*$C10 -> 0 | G10: =VLOOKUP($B10,$B$59:$H$72,6,FALSE)*$C10 -> 0 | H10: =VLOOKUP($B10,$B$59:$H$72,7,FALSE)*$C10 -> 0
A11: Transmission | B11: T | C11: 15178602.69 | D11: =VLOOKUP($B11,$B$59:$H$72,3,FALSE)*$C11 -> 0 | E11: =VLOOKUP($B11,$B$59:$H$72,4,FALSE)*$C11 -> 15178602.69 | F11: =VLOOKUP($B11,$B$59:$H$72,5,FALSE)*$C11 -> 0 | G11: =VLOOKUP($B11,$B$59:$H$72,6,FALSE)*$C11 -> 0 | H11: =VLOOKUP($B11,$B$59:$H$72,7,FALSE)*$C11 -> 0
A12: Distribution | B12: DPW | C12: 9472460.227 | D12: =VLOOKUP($B12,$B$59:$H$72,3,FALSE)*$C12 -> 0 | E12: =VLOOKUP($B12,$B$59:$H$72,4,FALSE)*$C12 -> 0 | F12: =VLOOKUP($B12,$B$59:$H$72,5,FALSE)*$C12 -> 9472460.227 | G12: =VLOOKUP($B12,$B$59:$H$72,6,FALSE)*$C12 -> 0 | H12: =VLOOKUP($B12,$B$59:$H$72,7,FALSE)*$C12 -> 0
A13: General | B13: G | C13: -728332.047 | D13: =VLOOKUP($B13,$B$59:$H$72,3,FALSE)*$C13 -> -154770.4992 | E13: =VLOOKUP($B13,$B$59:$H$72,4,FALSE)*$C13 -> -256996.8637 | F13: =VLOOKUP($B13,$B$59:$H$72,5,FALSE)*$C13 -> -306071.4659 | G13: =VLOOKUP($B13,$B$59:$H$72,6,FALSE)*$C13 -> -10493.21825 | H13: =VLOOKUP($B13,$B$59:$H$72,7,FALSE)*$C13 -> 0
A14: Mining Plant | B14: P | C14: 5011.596106 | D14: =VLOOKUP($B14,$B$59:$H$72,3,FALSE)*$C14 -> 5011.596106 | E14: =VLOOKUP($B14,$B$59:$H$72,4,FALSE)*$C14 -> 0 | F14: =VLOOKUP($B14,$B$59:$H$72,5,FALSE)*$C14 -> 0 | G14: =VLOOKUP($B14,$B$59:$H$72,6,FALSE)*$C14 -> 0 | H14: =VLOOKUP($B14,$B$59:$H$72,7,FALSE)*$C14 -> 0
A16: Total Pacific Division | C16: =SUM(C10:C14) -> 51147840.62 | D16: =SUM(D10:D14) -> 27070339.25 | E16: 14921605.83 | F16: 9166388.761 | G16: -10493.21825 | H16: 0
A18: Utah Division
A19: Production | B19: P | C19: 47828603.43 | D19: =VLOOKUP($B19,$B$59:$H$72,3,FALSE)*$C19 -> 47828603.43 | E19: =VLOOKUP($B19,$B$59:$H$72,4,FALSE)*$C19 -> 0 | F19: =VLOOKUP($B19,$B$59:$H$72,5,FALSE)*$C19 -> 0 | G19: =VLOOKUP($B19,$B$59:$H$72,6,FALSE)*$C19 -> 0 | H19: =VLOOKUP($B19,$B$59:$H$72,7,FALSE)*$C19 -> 0
A20: Transmission | B20: T | C20: 35428532.15 | D20: =VLOOKUP($B20,$B$59:$H$72,3,FALSE)*$C20 -> 0 | E20: =VLOOKUP($B20,$B$59:$H$72,4,FALSE)*$C20 -> 35428532.15 | F20: =VLOOKUP($B20,$B$59:$H$72,5,FALSE)*$C20 -> 0 | G20: =VLOOKUP($B20,$B$59:$H$72,6,FALSE)*$C20 -> 0 | H20: =VLOOKUP($B20,$B$59:$H$72,7,FALSE)*$C20 -> 0
A21: Distribution | B21: DPW | C21: 26651813.84 | D21: =VLOOKUP($B21,$B$59:$H$72,3,FALSE)*$C21 -> 0 | E21: =VLOOKUP($B21,$B$59:$H$72,4,FALSE)*$C21 -> 0 | F21: =VLOOKUP($B21,$B$59:$H$72,5,FALSE)*$C21 -> 26651813.84 | G21: =VLOOKUP($B21,$B$59:$H$72,6,FALSE)*$C21 -> 0 | H21: =VLOOKUP($B21,$B$59:$H$72,7,FALSE)*$C21 -> 0
A22: General | B22: G | C22: -1028839.269 | D22: =VLOOKUP($B22,$B$59:$H$72,3,FALSE)*$C22 -> -218628.2588 | E22: =VLOOKUP($B22,$B$59:$H$72,4,FALSE)*$C22 -> -363032.8591 | F22: =VLOOKUP($B22,$B$59:$H$72,5,FALSE)*$C22 -> -432355.4682 | G22: =VLOOKUP($B22,$B$59:$H$72,6,FALSE)*$C22 -> -14822.68292 | H22: =VLOOKUP($B22,$B$59:$H$72,7,FALSE)*$C22 -> 0
A23: Mining Plant | B23: P | C23: 12879.03607 | D23: =VLOOKUP($B23,$B$59:$H$72,3,FALSE)*$C23 -> 12879.03607 | E23: =VLOOKUP($B23,$B$59:$H$72,4,FALSE)*$C23 -> 0 | F23: =VLOOKUP($B23,$B$59:$H$72,5,FALSE)*$C23 -> 0 | G23: =VLOOKUP($B23,$B$59:$H$72,6,FALSE)*$C23 -> 0 | H23: =VLOOKUP($B23,$B$59:$H$72,7,FALSE)*$C23 -> 0
A25: Total Utah Division | C25: =SUM(C19:C23) -> 108892989.2 | D25: 47622854.21 | E25: 35065499.29 | F25: 26219458.37 | G25: -14822.68292 | H25: 0
A27: PACIFICORP
A28: Prod / Other Prod | B28: P | C28: 419767578.7 | D28: =VLOOKUP($B28,$B$59:$H$72,3,FALSE)*$C28 -> 419767578.7 | E28: =VLOOKUP($B28,$B$59:$H$72,4,FALSE)*$C28 -> 0 | F28: =VLOOKUP($B28,$B$59:$H$72,5,FALSE)*$C28 -> 0 | G28: =VLOOKUP($B28,$B$59:$H$72,6,FALSE)*$C28 -> 0 | H28: =VLOOKUP($B28,$B$59:$H$72,7,FALSE)*$C28 -> 0
A29: Cholla Unit 4 | B29: P | C29: 38176672.88 | D29: 38176672.88 | E29: 0 | F29: 0 | G29: 0 | H29: 0
A30: Gadsby Unit 4, 5 & 6 | B30: P | C30: 6256580.982 | D30: 6256580.982 | E30: 0 | F30: 0 | G30: 0 | H30: 0
A31: Hydro-PPL | B31: P | C31: 35385873.71 | D31: 35385873.71 | E31: 0 | F31: 0 | G31: 0 | H31: 0
A32: Hydro-UPL | B32: P | C32: 10830685.42 | D32: 10830685.42 | E32: 0 | F32: 0 | G32: 0 | H32: 0
A33: Transmission | B33: T | C33: 273721104.9 | D33: 0 | E33: 273721104.9 | F33: 0 | G33: 0 | H33: 0
A34: Distribution | B34: DPW | C34: 997655109.4 | D34: 0 | E34: 0 | F34: 997655109.4 | G34: 0 | H34: 0
A35: General/ Intangibles | B35: G | C35: 41663080.44 | D35: 8853401.118 | E35: 14701098.28 | F35: 17508333.12 | G35: 600247.9195 | H35: 0
A36: Mining | B36: P | C36: 3030.485277 | D36: 3030.485277 | E36: 0 | F36: 0 | G36: 0 | H36: 0
A37: WCA - CAEE 2007+ | B37: P | C37: -3609.880639 | D37: -3609.880639 | E37: 0 | F37: 0 | G37: 0 | H37: 0
A38: WCA - CAGE 2007+ | B38: PT | C38: 1820648666 | D38: 1204361984 | E38: 616286681.9 | F38: 0 | G38: 0 | H38: 0
A39: WCA - CAGW 2007+ | B39: PT | C39: 435660180.4 | D39: 288189901.2 | E39: 147470279.2 | F39: 0 | G39: 0 | H39: 0
A40: WCA_CAGW 2007+ -Marengo | B40: P | C40: 0 | D40: 0 | E40: 0 | F40: 0 | G40: 0 | H40: 0
A41: WCA CAGW 2007+ -Goodnoe | B41: P | C41: 0 | D41: 0 | E41: 0 | F41: 0 | G41: 0 | H41: 0
A42: WCA - General 2007+ | B42: G | C42: 188203551.9 | D42: 39993239.07 | E42: 66408889.7 | F42: 79089938.77 | G42: 2711484.347 | H42: 0
A43: WCA - JBG 2007+ | B43: P | C43: 158314761 | D43: 158314761 | E43: 0 | F43: 0 | G43: 0 | H43: 0
A44: OREGON EXTRA BOOK DEPR | B44: P | C44: -77310602 | D44: -77310602 | E44: 0 | F44: 0 | G44: 0 | H44: 0
A46: Total PC (Post Merger) | C46: =SUM(C28:C44) -> 4348972664 | D46: =SUM(D28:D44) -> 2132819496 | E46: 1118588054 | F46: 1094253381 | G46: 3311732.266 | H46: 0
A48: Total Deferred Taxes | C48: =C16+C25+C46 -> 4509013494 | D48: 2207512690 | E48: 1168575159 | F48: 1129639228 | G48: 3286416.365 | H48: 0
A50: ACCMDITRL FACTOR | C50: 1 | D50: =D48/$C$48 -> 0.489577752 | E50: =E48/$C$48 -> 0.259164263 | F50: =F48/$C$48 -> 0.2505291301 | G50: =G48/$C$48 -> 0.0007288548526 | H50: =H48/$C$48 -> 0
B54: ACCUMDIT | C54: =SUM(D54:F54) -> 0.4091663971 | D54: 0.09962591977 | E54: 0.3095404773 | F54: 0
C58: Total | D58: Production | E58: Transmission | F58: Poles & Wires | G58: Customers | H58: Miscellaneous
B59: DMSC | C59: =SUM(D59:H59) -> 1 | D59: 0 | E59: 0 | F59: 0 | G59: 0 | H59: 1
B60: DPW | C60: =SUM(D60:H60) -> 1 | D60: 0 | E60: 0 | F60: 1 | G60: 0 | H60: 0
B61: DDS2 | C61: 1 | D61: ='REGASSETS&DDS'!F35 -> 0.9989281789 | E61: ='REGASSETS&DDS'!G35 -> 0.05781761172 | F61: ='REGASSETS&DDS'!H35 -> 0.3170995027 | G61: ='REGASSETS&DDS'!I35 -> -0.3796868389 | H61: ='REGASSETS&DDS'!J35 -> 0.005841545635
B62: CUST | C62: 1 | D62: 0 | E62: 0 | F62: 0 | G62: 1 | H62: 0
B63: ESD | C63: 1 | D63: 0.3 | E63: 0.1 | F63: 0.6 | G63: 0 | H63: 0
B64: G | C64: =SUM(D64:H64) -> 1 | D64: =GP!E38 -> 0.2124999166 | E64: =GP!F38 -> 0.352856729 | F64: =GP!G38 -> 0.4202361644 | G64: =GP!H38 -> 0.01440719009 | H64: =GP!I38 -> 0
B65: GP | C65: 1 | D65: ='GROSS PLANT'!E42 -> 0.4725729318 | E65: ='GROSS PLANT'!F42 -> 0.2480047856 | F65: ='GROSS PLANT'!G42 -> 0.2725888816 | G65: ='GROSS PLANT'!H42 -> 0.006833401031 | H65: ='GROSS PLANT'!I42 -> 0
B66: LABOR | C66: 1 | D66: ='FORM 1'!C25 -> 0.4037406801 | E66: ='FORM 1'!D25 -> 0.07601625701 | F66: ='FORM 1'!E25 -> 0.2668097395 | G66: ='FORM 1'!F25 -> 0.1285083433 | H66: ='FORM 1'!G25 -> 0.1249249802
B67: P | C67: 1 | D67: 1 | E67: 0 | F67: 0 | G67: 0 | H67: 0
B68: PT | C68: =SUM(D68:H68) -> 1 | D68: =+'FORM 1'!C17 -> 0.6615015881 | E68: =+'FORM 1'!D17 -> 0.3384984119 | F68: =+'FORM 1'!E17 -> 0 | G68: =+'FORM 1'!F17 -> 0 | H68: =+'FORM 1'!G17 -> 0
B69: PTD | C69: 1 | D69: ='FORM 1'!C16 -> 0.4816325333 | E69: ='FORM 1'!D16 -> 0.2464572279 | F69: ='FORM 1'!E16 -> 0.2719102388 | G69: ='FORM 1'!F16 -> 0 | H69: ='FORM 1'!G16 -> 0
B70: T | C70: 1 | D70: 0 | E70: 1 | F70: 0 | G70: 0 | H70: 0
B71: TAXDEPR | C71: 1 | D71: ='TAX DEPR'!C24 -> 0.4457088756 | E71: ='TAX DEPR'!D24 -> 0.2618862377 | F71: ='TAX DEPR'!E24 -> 0.2823416267 | G71: ='TAX DEPR'!F24 -> 0.0100632599 | H71: ='TAX DEPR'!G24 -> 0
B72: TD | C72: 1 | D72: ='FORM 1'!C18 -> 0 | E72: ='FORM 1'!D18 -> 0.4754488731 | F72: ='FORM 1'!E18 -> 0.5245511269 | G72: ='FORM 1'!F18 -> 0 | H72: ='FORM 1'!G18 -> 0

Sheet data>

Sheet BOOKDEPR June19data
A1: Concat | B1: Primary Account | C1: Primary Name | D1: Secondary Acct | E1: Secondary Name | F1: Alloc | G1: Total ($000) | H1: Alloc4Func | I1: FUNC | J1: Investigate?
A2: =CONCATENATE(tblDeprExpJune19[[#This Row],[Primary Account]],tblDeprExpJune19[[#This Row],[Primary Name]],tblDeprExpJune19[[#This Row],[Secondary Acct]],tblDeprExpJune19[[#This Row],[Secondary Name]],tblDeprExpJune19[[#This Row],[Alloc4Func]]) -> 4030000DEPN EXPENSE-ELECT3102000LAND RIGHTSSG | B2: 4030000 | C2: DEPN EXPENSE-ELECT | D2: 3102000 | E2: LAND RIGHTS | F2: SG | G2: 909.22958 | H2: =IF(OR(tblDeprExpJune19[[#This Row],[Alloc]]="IDU",tblDeprExpJune19[[#This Row],[Alloc]]="OR",tblDeprExpJune19[[#This Row],[Alloc]]="UT",tblDeprExpJune19[[#This Row],[Alloc]]="WYU",tblDeprExpJune19[[#This Row],[Alloc]]="WYP",tblDeprExpJune19[[#This Row],[Alloc]]="CA",tblDeprExpJune19[[#This Row],[Alloc]]="WA"),"SITUS",tblDeprExpJune19[[#This Row],[Alloc]]) -> SG | I2: =INDEX(tblDeprExpLookup[FUNC],MATCH(tblDeprExpJune19[[#This Row],[Concat]],tblDeprExpLookup[Concat],0)) -> P | J2: =IF(tblDeprExpJune19[[#This Row],[Total ($000)]]=0,"NO",IF(ISNA(tblDeprExpJune19[[#This Row],[FUNC]]),"YES",IF(_xlfn.ISFORMULA(tblDeprExpJune19[[#This Row],[FUNC]]),"NO","YES"))) -> NO
A3: =CONCATENATE(tblDeprExpJune19[[#This Row],[Primary Account]],tblDeprExpJune19[[#This Row],[Primary Name]],tblDeprExpJune19[[#This Row],[Secondary Acct]],tblDeprExpJune19[[#This Row],[Secondary Name]],tblDeprExpJune19[[#This Row],[Alloc4Func]]) -> 4030000DEPN EXPENSE-ELECT3110000STRUCTURES AND IMPROVEMENTSSG | B3: 4030000 | C3: DEPN EXPENSE-ELECT | D3: 3110000 | E3: STRUCTURES AND IMPROVEMENTS | F3: SG | G3: 30218.72911 | H3: =IF(OR(tblDeprExpJune19[[#This Row],[Alloc]]="IDU",tblDeprExpJune19[[#This Row],[Alloc]]="OR",tblDeprExpJune19[[#This Row],[Alloc]]="UT",tblDeprExpJune19[[#This Row],[Alloc]]="WYU",tblDeprExpJune19[[#This Row],[Alloc]]="WYP",tblDeprExpJune19[[#This Row],[Alloc]]="CA",tblDeprExpJune19[[#This Row],[Alloc]]="WA"),"SITUS",tblDeprExpJune19[[#This Row],[Alloc]]) -> SG | I3: =INDEX(tblDeprExpLookup[FUNC],MATCH(tblDeprExpJune19[[#This Row],[Concat]],tblDeprExpLookup[Concat],0)) -> P | J3: =IF(tblDeprExpJune19[[#This Row],[Total ($000)]]=0,"NO",IF(ISNA(tblDeprExpJune19[[#This Row],[FUNC]]),"YES",IF(_xlfn.ISFORMULA(tblDeprExpJune19[[#This Row],[FUNC]]),"NO","YES"))) -> NO
A4: =CONCATENATE(tblDeprExpJune19[[#This Row],[Primary Account]],tblDeprExpJune19[[#This Row],[Primary Name]],tblDeprExpJune19[[#This Row],[Secondary Acct]],tblDeprExpJune19[[#This Row],[Secondary Name]],tblDeprExpJune19[[#This Row],[Alloc4Func]]) -> 4030000DEPN EXPENSE-ELECT3120000BOILER PLANT EQUIPMENTSG | B4: 4030000 | C4: DEPN EXPENSE-ELECT | D4: 3120000 | E4: BOILER PLANT EQUIPMENT | F4: SG | G4: 165812.292 | H4: =IF(OR(tblDeprExpJune19[[#This Row],[Alloc]]="IDU",tblDeprExpJune19[[#This Row],[Alloc]]="OR",tblDeprExpJune19[[#This Row],[Alloc]]="UT",tblDeprExpJune19[[#This Row],[Alloc]]="WYU",tblDeprExpJune19[[#This Row],[Alloc]]="WYP",tblDeprExpJune19[[#This Row],[Alloc]]="CA",tblDeprExpJune19[[#This Row],[Alloc]]="WA"),"SITUS",tblDeprExpJune19[[#This Row],[Alloc]]) -> SG | I4: =INDEX(tblDeprExpLookup[FUNC],MATCH(tblDeprExpJune19[[#This Row],[Concat]],tblDeprExpLookup[Concat],0)) -> P | J4: =IF(tblDeprExpJune19[[#This Row],[Total ($000)]]=0,"NO",IF(ISNA(tblDeprExpJune19[[#This Row],[FUNC]]),"YES",IF(_xlfn.ISFORMULA(tblDeprExpJune19[[#This Row],[FUNC]]),"NO","YES"))) -> NO
A5: =CONCATENATE(tblDeprExpJune19[[#This Row],[Primary Account]],tblDeprExpJune19[[#This Row],[Primary Name]],tblDeprExpJune19[[#This Row],[Secondary Acct]],tblDeprExpJune19[[#This Row],[Secondary Name]],tblDeprExpJune19[[#This Row],[Alloc4Func]]) -> 4030000DEPN EXPENSE-ELECT3140000TURBOGENERATOR UNITSSG | B5: 4030000 | C5: DEPN EXPENSE-ELECT | D5: 3140000 | E5: TURBOGENERATOR UNITS | F5: SG | G5: 34575.18922 | H5: =IF(OR(tblDeprExpJune19[[#This Row],[Alloc]]="IDU",tblDeprExpJune19[[#This Row],[Alloc]]="OR",tblDeprExpJune19[[#This Row],[Alloc]]="UT",tblDeprExpJune19[[#This Row],[Alloc]]="WYU",tblDeprExpJune19[[#This Row],[Alloc]]="WYP",tblDeprExpJune19[[#This Row],[Alloc]]="CA",tblDeprExpJune19[[#This Row],[Alloc]]="WA"),"SITUS",tblDeprExpJune19[[#This Row],[Alloc]]) -> SG | I5: =INDEX(tblDeprExpLookup[FUNC],MATCH(tblDeprExpJune19[[#This Row],[Concat]],tblDeprExpLookup[Concat],0)) -> P | J5: =IF(tblDeprExpJune19[[#This Row],[Total ($000)]]=0,"NO",IF(ISNA(tblDeprExpJune19[[#This Row],[FUNC]]),"YES",IF(_xlfn.ISFORMULA(tblDeprExpJune19[[#This Row],[FUNC]]),"NO","YES"))) -> NO
A6: =CONCATENATE(tblDeprExpJune19[[#This Row],[Primary Account]],tblDeprExpJune19[[#This Row],[Primary Name]],tblDeprExpJune19[[#This Row],[Secondary Acct]],tblDeprExpJune19[[#This Row],[Secondary Name]],tblDeprExpJune19[[#This Row],[Alloc4Func]]) -> 4030000DEPN EXPENSE-ELECT3150000ACCESSORY ELECTRIC EQUIPMENTSG | B6: 4030000 | C6: DEPN EXPENSE-ELECT | D6: 3150000 | E6: ACCESSORY ELECTRIC EQUIPMENT | F6: SG | G6: 14892.25612 | H6: =IF(OR(tblDeprExpJune19[[#This Row],[Alloc]]="IDU",tblDeprExpJune19[[#This Row],[Alloc]]="OR",tblDeprExpJune19[[#This Row],[Alloc]]="UT",tblDeprExpJune19[[#This Row],[Alloc]]="WYU",tblDeprExpJune19[[#This Row],[Alloc]]="WYP",tblDeprExpJune19[[#This Row],[Alloc]]="CA",tblDeprExpJune19[[#This Row],[Alloc]]="WA"),"SITUS",tblDeprExpJune19[[#This Row],[Alloc]]) -> SG | I6: =INDEX(tblDeprExpLookup[FUNC],MATCH(tblDeprExpJune19[[#This Row],[Concat]],tblDeprExpLookup[Concat],0)) -> P | J6: =IF(tblDeprExpJune19[[#This Row],[Total ($000)]]=0,"NO",IF(ISNA(tblDeprExpJune19[[#This Row],[FUNC]]),"YES",IF(_xlfn.ISFORMULA(tblDeprExpJune19[[#This Row],[FUNC]]),"NO","YES"))) -> NO
A7: =CONCATENATE(tblDeprExpJune19[[#This Row],[Primary Account]],tblDeprExpJune19[[#This Row],[Primary Name]],tblDeprExpJune19[[#This Row],[Secondary Acct]],tblDeprExpJune19[[#This Row],[Secondary Name]],tblDeprExpJune19[[#This Row],[Alloc4Func]]) -> 4030000DEPN EXPENSE-ELECT3157000ACCESSORY ELECTRIC EQUIP-SUPV & ALARMSG | B7: 4030000 | C7: DEPN EXPENSE-ELECT | D7: 3157000 | E7: ACCESSORY ELECTRIC EQUIP-SUPV & ALARM | F7: SG | G7: 1.24961 | H7: =IF(OR(tblDeprExpJune19[[#This Row],[Alloc]]="IDU",tblDeprExpJune19[[#This Row],[Alloc]]="OR",tblDeprExpJune19[[#This Row],[Alloc]]="UT",tblDeprExpJune19[[#This Row],[Alloc]]="WYU",tblDeprExpJune19[[#This Row],[Alloc]]="WYP",tblDeprExpJune19[[#This Row],[Alloc]]="CA",tblDeprExpJune19[[#This Row],[Alloc]]="WA"),"SITUS",tblDeprExpJune19[[#This Row],[Alloc]]) -> SG | I7: =INDEX(tblDeprExpLookup[FUNC],MATCH(tblDeprExpJune19[[#This Row],[Concat]],tblDeprExpLookup[Concat],0)) -> P | J7: =IF(tblDeprExpJune19[[#This Row],[Total ($000)]]=0,"NO",IF(ISNA(tblDeprExpJune19[[#This Row],[FUNC]]),"YES",IF(_xlfn.ISFORMULA(tblDeprExpJune19[[#This Row],[FUNC]]),"NO","YES"))) -> NO
A8: =CONCATENATE(tblDeprExpJune19[[#This Row],[Primary Account]],tblDeprExpJune19[[#This Row],[Primary Name]],tblDeprExpJune19[[#This Row],[Secondary Acct]],tblDeprExpJune19[[#This Row],[Secondary Name]],tblDeprExpJune19[[#This Row],[Alloc4Func]]) -> 4030000DEPN EXPENSE-ELECT3160000MISCELLANEOUS POWER PLANT EQUIPMENTSG | B8: 4030000 | C8: DEPN EXPENSE-ELECT | D8: 3160000 | E8: MISCELLANEOUS POWER PLANT EQUIPMENT | F8: SG | G8: 1386.09052 | H8: =IF(OR(tblDeprExpJune19[[#This Row],[Alloc]]="IDU",tblDeprExpJune19[[#This Row],[Alloc]]="OR",tblDeprExpJune19[[#This Row],[Alloc]]="UT",tblDeprExpJune19[[#This Row],[Alloc]]="WYU",tblDeprExpJune19[[#This Row],[Alloc]]="WYP",tblDeprExpJune19[[#This Row],[Alloc]]="CA",tblDeprExpJune19[[#This Row],[Alloc]]="WA"),"SITUS",tblDeprExpJune19[[#This Row],[Alloc]]) -> SG | I8: =INDEX(tblDeprExpLookup[FUNC],MATCH(tblDeprExpJune19[[#This Row],[Concat]],tblDeprExpLookup[Concat],0)) -> P | J8: =IF(tblDeprExpJune19[[#This Row],[Total ($000)]]=0,"NO",IF(ISNA(tblDeprExpJune19[[#This Row],[FUNC]]),"YES",IF(_xlfn.ISFORMULA(tblDeprExpJune19[[#This Row],[FUNC]]),"NO","YES"))) -> NO
A9: =CONCATENATE(tblDeprExpJune19[[#This Row],[Primary Account]],tblDeprExpJune19[[#This Row],[Primary Name]],tblDeprExpJune19[[#This Row],[Secondary Acct]],tblDeprExpJune19[[#This Row],[Secondary Name]],tblDeprExpJune19[[#This Row],[Alloc4Func]]) -> 4030000DEPN EXPENSE-ELECT3302000LAND RIGHTSSG-P | B9: 4030000 | C9: DEPN EXPENSE-ELECT | D9: 3302000 | E9: LAND RIGHTS | F9: SG-P | G9: 101.52704 | H9: =IF(OR(tblDeprExpJune19[[#This Row],[Alloc]]="IDU",tblDeprExpJune19[[#This Row],[Alloc]]="OR",tblDeprExpJune19[[#This Row],[Alloc]]="UT",tblDeprExpJune19[[#This Row],[Alloc]]="WYU",tblDeprExpJune19[[#This Row],[Alloc]]="WYP",tblDeprExpJune19[[#This Row],[Alloc]]="CA",tblDeprExpJune19[[#This Row],[Alloc]]="WA"),"SITUS",tblDeprExpJune19[[#This Row],[Alloc]]) -> SG-P | I9: =INDEX(tblDeprExpLookup[FUNC],MATCH(tblDeprExpJune19[[#This Row],[Concat]],tblDeprExpLookup[Concat],0)) -> P | J9: =IF(tblDeprExpJune19[[#This Row],[Total ($000)]]=0,"NO",IF(ISNA(tblDeprExpJune19[[#This Row],[FUNC]]),"YES",IF(_xlfn.ISFORMULA(tblDeprExpJune19[[#This Row],[FUNC]]),"NO","YES"))) -> NO
A10: =CONCATENATE(tblDeprExpJune19[[#This Row],[Primary Account]],tblDeprExpJune19[[#This Row],[Primary Name]],tblDeprExpJune19[[#This Row],[Secondary Acct]],tblDeprExpJune19[[#This Row],[Secondary Name]],tblDeprExpJune19[[#This Row],[Alloc4Func]]) -> 4030000DEPN EXPENSE-ELECT3302000LAND RIGHTSSG-U | B10: 4030000 | C10: DEPN EXPENSE-ELECT | D10: 3302000 | E10: LAND RIGHTS | F10: SG-U | G10: 9.77889 | H10: =IF(OR(tblDeprExpJune19[[#This Row],[Alloc]]="IDU",tblDeprExpJune19[[#This Row],[Alloc]]="OR",tblDeprExpJune19[[#This Row],[Alloc]]="UT",tblDeprExpJune19[[#This Row],[Alloc]]="WYU",tblDeprExpJune19[[#This Row],[Alloc]]="WYP",tblDeprExpJune19[[#This Row],[Alloc]]="CA",tblDeprExpJune19[[#This Row],[Alloc]]="WA"),"SITUS",tblDeprExpJune19[[#This Row],[Alloc]]) -> SG-U | I10: =INDEX(tblDeprExpLookup[FUNC],MATCH(tblDeprExpJune19[[#This Row],[Concat]],tblDeprExpLookup[Concat],0)) -> P | J10: =IF(tblDeprExpJune19[[#This Row],[Total ($000)]]=0,"NO",IF(ISNA(tblDeprExpJune19[[#This Row],[FUNC]]),"YES",IF(_xlfn.ISFORMULA(tblDeprExpJune19[[#This Row],[FUNC]]),"NO","YES"))) -> NO
A11: =CONCATENATE(tblDeprExpJune19[[#This Row],[Primary Account]],tblDeprExpJune19[[#This Row],[Primary Name]],tblDeprExpJune19[[#This Row],[Secondary Acct]],tblDeprExpJune19[[#This Row],[Secondary Name]],tblDeprExpJune19[[#This Row],[Alloc4Func]]) -> 4030000DEPN EXPENSE-ELECT3303000WATER RIGHTSSG-P | B11: 4030000 | C11: DEPN EXPENSE-ELECT | D11: 3303000 | E11: WATER RIGHTS | F11: SG-P | G11: 0.33546 | H11: =IF(OR(tblDeprExpJune19[[#This Row],[Alloc]]="IDU",tblDeprExpJune19[[#This Row],[Alloc]]="OR",tblDeprExpJune19[[#This Row],[Alloc]]="UT",tblDeprExpJune19[[#This Row],[Alloc]]="WYU",tblDeprExpJune19[[#This Row],[Alloc]]="WYP",tblDeprExpJune19[[#This Row],[Alloc]]="CA",tblDeprExpJune19[[#This Row],[Alloc]]="WA"),"SITUS",tblDeprExpJune19[[#This Row],[Alloc]]) -> SG-P | I11: =INDEX(tblDeprExpLookup[FUNC],MATCH(tblDeprExpJune19[[#This Row],[Concat]],tblDeprExpLookup[Concat],0)) -> P | J11: =IF(tblDeprExpJune19[[#This Row],[Total ($000)]]=0,"NO",IF(ISNA(tblDeprExpJune19[[#This Row],[FUNC]]),"YES",IF(_xlfn.ISFORMULA(tblDeprExpJune19[[#This Row],[FUNC]]),"NO","YES"))) -> NO
A12: =CONCATENATE(tblDeprExpJune19[[#This Row],[Primary Account]],tblDeprExpJune19[[#This Row],[Primary Name]],tblDeprExpJune19[[#This Row],[Secondary Acct]],tblDeprExpJune19[[#This Row],[Secondary Name]],tblDeprExpJune19[[#This Row],[Alloc4Func]]) -> 4030000DEPN EXPENSE-ELECT3303000WATER RIGHTSSG-U | B12: 4030000 | C12: DEPN EXPENSE-ELECT | D12: 3303000 | E12: WATER RIGHTS | F12: SG-U | G12: 1.8232 | H12: =IF(OR(tblDeprExpJune19[[#This Row],[Alloc]]="IDU",tblDeprExpJune19[[#This Row],[Alloc]]="OR",tblDeprExpJune19[[#This Row],[Alloc]]="UT",tblDeprExpJune19[[#This Row],[Alloc]]="WYU",tblDeprExpJune19[[#This Row],[Alloc]]="WYP",tblDeprExpJune19[[#This Row],[Alloc]]="CA",tblDeprExpJune19[[#This Row],[Alloc]]="WA"),"SITUS",tblDeprExpJune19[[#This Row],[Alloc]]) -> SG-U | I12: =INDEX(tblDeprExpLookup[FUNC],MATCH(tblDeprExpJune19[[#This Row],[Concat]],tblDeprExpLookup[Concat],0)) -> P | J12: =IF(tblDeprExpJune19[[#This Row],[Total ($000)]]=0,"NO",IF(ISNA(tblDeprExpJune19[[#This Row],[FUNC]]),"YES",IF(_xlfn.ISFORMULA(tblDeprExpJune19[[#This Row],[FUNC]]),"NO","YES"))) -> NO
A13: =CONCATENATE(tblDeprExpJune19[[#This Row],[Primary Account]],tblDeprExpJune19[[#This Row],[Primary Name]],tblDeprExpJune19[[#This Row],[Secondary Acct]],tblDeprExpJune19[[#This Row],[Secondary Name]],tblDeprExpJune19[[#This Row],[Alloc4Func]]) -> 4030000DEPN EXPENSE-ELECT3304000FLOOD RIGHTSSG-P | B13: 4030000 | C13: DEPN EXPENSE-ELECT | D13: 3304000 | E13: FLOOD RIGHTS | F13: SG-P | G13: 13.16475 | H13: =IF(OR(tblDeprExpJune19[[#This Row],[Alloc]]="IDU",tblDeprExpJune19[[#This Row],[Alloc]]="OR",tblDeprExpJune19[[#This Row],[Alloc]]="UT",tblDeprExpJune19[[#This Row],[Alloc]]="WYU",tblDeprExpJune19[[#This Row],[Alloc]]="WYP",tblDeprExpJune19[[#This Row],[Alloc]]="CA",tblDeprExpJune19[[#This Row],[Alloc]]="WA"),"SITUS",tblDeprExpJune19[[#This Row],[Alloc]]) -> SG-P | I13: =INDEX(tblDeprExpLookup[FUNC],MATCH(tblDeprExpJune19[[#This Row],[Concat]],tblDeprExpLookup[Concat],0)) -> P | J13: =IF(tblDeprExpJune19[[#This Row],[Total ($000)]]=0,"NO",IF(ISNA(tblDeprExpJune19[[#This Row],[FUNC]]),"YES",IF(_xlfn.ISFORMULA(tblDeprExpJune19[[#This Row],[FUNC]]),"NO","YES"))) -> NO
A14: =CONCATENATE(tblDeprExpJune19[[#This Row],[Primary Account]],tblDeprExpJune19[[#This Row],[Primary Name]],tblDeprExpJune19[[#This Row],[Secondary Acct]],tblDeprExpJune19[[#This Row],[Secondary Name]],tblDeprExpJune19[[#This Row],[Alloc4Func]]) -> 4030000DEPN EXPENSE-ELECT3304000FLOOD RIGHTSSG-U | B14: 4030000 | C14: DEPN EXPENSE-ELECT | D14: 3304000 | E14: FLOOD RIGHTS | F14: SG-U | G14: 3.03075 | H14: =IF(OR(tblDeprExpJune19[[#This Row],[Alloc]]="IDU",tblDeprExpJune19[[#This Row],[Alloc]]="OR",tblDeprExpJune19[[#This Row],[Alloc]]="UT",tblDeprExpJune19[[#This Row],[Alloc]]="WYU",tblDeprExpJune19[[#This Row],[Alloc]]="WYP",tblDeprExpJune19[[#This Row],[Alloc]]="CA",tblDeprExpJune19[[#This Row],[Alloc]]="WA"),"SITUS",tblDeprExpJune19[[#This Row],[Alloc]]) -> SG-U | I14: =INDEX(tblDeprExpLookup[FUNC],MATCH(tblDeprExpJune19[[#This Row],[Concat]],tblDeprExpLookup[Concat],0)) -> P | J14: =IF(tblDeprExpJune19[[#This Row],[Total ($000)]]=0,"NO",IF(ISNA(tblDeprExpJune19[[#This Row],[FUNC]]),"YES",IF(_xlfn.ISFORMULA(tblDeprExpJune19[[#This Row],[FUNC]]),"NO","YES"))) -> NO
A15: =CONCATENATE(tblDeprExpJune19[[#This Row],[Primary Account]],tblDeprExpJune19[[#This Row],[Primary Name]],tblDeprExpJune19[[#This Row],[Secondary Acct]],tblDeprExpJune19[[#This Row],[Secondary Name]],tblDeprExpJune19[[#This Row],[Alloc4Func]]) -> 4030000DEPN EXPENSE-ELECT3305000LAND RIGHTS - FISH/WILDLIFESG-P | B15: 4030000 | C15: DEPN EXPENSE-ELECT | D15: 3305000 | E15: LAND RIGHTS - FISH/WILDLIFE | F15: SG-P | G15: 1.87443 | H15: =IF(OR(tblDeprExpJune19[[#This Row],[Alloc]]="IDU",tblDeprExpJune19[[#This Row],[Alloc]]="OR",tblDeprExpJune19[[#This Row],[Alloc]]="UT",tblDeprExpJune19[[#This Row],[Alloc]]="WYU",tblDeprExpJune19[[#This Row],[Alloc]]="WYP",tblDeprExpJune19[[#This Row],[Alloc]]="CA",tblDeprExpJune19[[#This Row],[Alloc]]="WA"),"SITUS",tblDeprExpJune19[[#This Row],[Alloc]]) -> SG-P | I15: =INDEX(tblDeprExpLookup[FUNC],MATCH(tblDeprExpJune19[[#This Row],[Concat]],tblDeprExpLookup[Concat],0)) -> P | J15: =IF(tblDeprExpJune19[[#This Row],[Total ($000)]]=0,"NO",IF(ISNA(tblDeprExpJune19[[#This Row],[FUNC]]),"YES",IF(_xlfn.ISFORMULA(tblDeprExpJune19[[#This Row],[FUNC]]),"NO","YES"))) -> NO
A16: =CONCATENATE(tblDeprExpJune19[[#This Row],[Primary Account]],tblDeprExpJune19[[#This Row],[Primary Name]],tblDeprExpJune19[[#This Row],[Secondary Acct]],tblDeprExpJune19[[#This Row],[Secondary Name]],tblDeprExpJune19[[#This Row],[Alloc4Func]]) -> 4030000DEPN EXPENSE-ELECT3310000STRUCTURES AND IMPROVESG-P | B16: 4030000 | C16: DEPN EXPENSE-ELECT | D16: 3310000 | E16: STRUCTURES AND IMPROVE | F16: SG-P | G16: 0.73598 | H16: =IF(OR(tblDeprExpJune19[[#This Row],[Alloc]]="IDU",tblDeprExpJune19[[#This Row],[Alloc]]="OR",tblDeprExpJune19[[#This Row],[Alloc]]="UT",tblDeprExpJune19[[#This Row],[Alloc]]="WYU",tblDeprExpJune19[[#This Row],[Alloc]]="WYP",tblDeprExpJune19[[#This Row],[Alloc]]="CA",tblDeprExpJune19[[#This Row],[Alloc]]="WA"),"SITUS",tblDeprExpJune19[[#This Row],[Alloc]]) -> SG-P | I16: =INDEX(tblDeprExpLookup[FUNC],MATCH(tblDeprExpJune19[[#This Row],[Concat]],tblDeprExpLookup[Concat],0)) -> P | J16: =IF(tblDeprExpJune19[[#This Row],[Total ($000)]]=0,"NO",IF(ISNA(tblDeprExpJune19[[#This Row],[FUNC]]),"YES",IF(_xlfn.ISFORMULA(tblDeprExpJune19[[#This Row],[FUNC]]),"NO","YES"))) -> NO
A17: =CONCATENATE(tblDeprExpJune19[[#This Row],[Primary Account]],tblDeprExpJune19[[#This Row],[Primary Name]],tblDeprExpJune19[[#This Row],[Secondary Acct]],tblDeprExpJune19[[#This Row],[Secondary Name]],tblDeprExpJune19[[#This Row],[Alloc4Func]]) -> 4030000DEPN EXPENSE-ELECT3310000STRUCTURES AND IMPROVESG-U | B17: 4030000 | C17: DEPN EXPENSE-ELECT | D17: 3310000 | E17: STRUCTURES AND IMPROVE | F17: SG-U | G17: 258.9857 | H17: =IF(OR(tblDeprExpJune19[[#This Row],[Alloc]]="IDU",tblDeprExpJune19[[#This Row],[Alloc]]="OR",tblDeprExpJune19[[#This Row],[Alloc]]="UT",tblDeprExpJune19[[#This Row],[Alloc]]="WYU",tblDeprExpJune19[[#This Row],[Alloc]]="WYP",tblDeprExpJune19[[#This Row],[Alloc]]="CA",tblDeprExpJune19[[#This Row],[Alloc]]="WA"),"SITUS",tblDeprExpJune19[[#This Row],[Alloc]]) -> SG-U | I17: =INDEX(tblDeprExpLookup[FUNC],MATCH(tblDeprExpJune19[[#This Row],[Concat]],tblDeprExpLookup[Concat],0)) -> P | J17: =IF(tblDeprExpJune19[[#This Row],[Total ($000)]]=0,"NO",IF(ISNA(tblDeprExpJune19[[#This Row],[FUNC]]),"YES",IF(_xlfn.ISFORMULA(tblDeprExpJune19[[#This Row],[FUNC]]),"NO","YES"))) -> NO
A18: =CONCATENATE(tblDeprExpJune19[[#This Row],[Primary Account]],tblDeprExpJune19[[#This Row],[Primary Name]],tblDeprExpJune19[[#This Row],[Secondary Acct]],tblDeprExpJune19[[#This Row],[Secondary Name]],tblDeprExpJune19[[#This Row],[Alloc4Func]]) -> 4030000DEPN EXPENSE-ELECT3311000STRUCTURES AND IMPROVE-PRODUCTIONSG-P | B18: 4030000 | C18: DEPN EXPENSE-ELECT | D18: 3311000 | E18: STRUCTURES AND IMPROVE-PRODUCTION | F18: SG-P | G18: 2077.22302 | H18: =IF(OR(tblDeprExpJune19[[#This Row],[Alloc]]="IDU",tblDeprExpJune19[[#This Row],[Alloc]]="OR",tblDeprExpJune19[[#This Row],[Alloc]]="UT",tblDeprExpJune19[[#This Row],[Alloc]]="WYU",tblDeprExpJune19[[#This Row],[Alloc]]="WYP",tblDeprExpJune19[[#This Row],[Alloc]]="CA",tblDeprExpJune19[[#This Row],[Alloc]]="WA"),"SITUS",tblDeprExpJune19[[#This Row],[Alloc]]) -> SG-P | I18: =INDEX(tblDeprExpLookup[FUNC],MATCH(tblDeprExpJune19[[#This Row],[Concat]],tblDeprExpLookup[Concat],0)) -> P | J18: =IF(tblDeprExpJune19[[#This Row],[Total ($000)]]=0,"NO",IF(ISNA(tblDeprExpJune19[[#This Row],[FUNC]]),"YES",IF(_xlfn.ISFORMULA(tblDeprExpJune19[[#This Row],[FUNC]]),"NO","YES"))) -> NO
A19: =CONCATENATE(tblDeprExpJune19[[#This Row],[Primary Account]],tblDeprExpJune19[[#This Row],[Primary Name]],tblDeprExpJune19[[#This Row],[Secondary Acct]],tblDeprExpJune19[[#This Row],[Secondary Name]],tblDeprExpJune19[[#This Row],[Alloc4Func]]) -> 4030000DEPN EXPENSE-ELECT3311000STRUCTURES AND IMPROVE-PRODUCTIONSG-U | B19: 4030000 | C19: DEPN EXPENSE-ELECT | D19: 3311000 | E19: STRUCTURES AND IMPROVE-PRODUCTION | F19: SG-U | G19: 240.90838 | H19: =IF(OR(tblDeprExpJune19[[#This Row],[Alloc]]="IDU",tblDeprExpJune19[[#This Row],[Alloc]]="OR",tblDeprExpJune19[[#This Row],[Alloc]]="UT",tblDeprExpJune19[[#This Row],[Alloc]]="WYU",tblDeprExpJune19[[#This Row],[Alloc]]="WYP",tblDeprExpJune19[[#This Row],[Alloc]]="CA",tblDeprExpJune19[[#This Row],[Alloc]]="WA"),"SITUS",tblDeprExpJune19[[#This Row],[Alloc]]) -> SG-U | I19: =INDEX(tblDeprExpLookup[FUNC],MATCH(tblDeprExpJune19[[#This Row],[Concat]],tblDeprExpLookup[Concat],0)) -> P | J19: =IF(tblDeprExpJune19[[#This Row],[Total ($000)]]=0,"NO",IF(ISNA(tblDeprExpJune19[[#This Row],[FUNC]]),"YES",IF(_xlfn.ISFORMULA(tblDeprExpJune19[[#This Row],[FUNC]]),"NO","YES"))) -> NO
A20: =CONCATENATE(tblDeprExpJune19[[#This Row],[Primary Account]],tblDeprExpJune19[[#This Row],[Primary Name]],tblDeprExpJune19[[#This Row],[Secondary Acct]],tblDeprExpJune19[[#This Row],[Secondary Name]],tblDeprExpJune19[[#This Row],[Alloc4Func]]) -> 4030000DEPN EXPENSE-ELECT3312000STRUCTURES AND IMPROVE-FISH/WILDLIFESG-P | B20: 4030000 | C20: DEPN EXPENSE-ELECT | D20: 3312000 | E20: STRUCTURES AND IMPROVE-FISH/WILDLIFE | F20: SG-P | G20: 5806.30154 | H20: =IF(OR(tblDeprExpJune19[[#This Row],[Alloc]]="IDU",tblDeprExpJune19[[#This Row],[Alloc]]="OR",tblDeprExpJune19[[#This Row],[Alloc]]="UT",tblDeprExpJune19[[#This Row],[Alloc]]="WYU",tblDeprExpJune19[[#This Row],[Alloc]]="WYP",tblDeprExpJune19[[#This Row],[Alloc]]="CA",tblDeprExpJune19[[#This Row],[Alloc]]="WA"),"SITUS",tblDeprExpJune19[[#This Row],[Alloc]]) -> SG-P | I20: =INDEX(tblDeprExpLookup[FUNC],MATCH(tblDeprExpJune19[[#This Row],[Concat]],tblDeprExpLookup[Concat],0)) -> P | J20: =IF(tblDeprExpJune19[[#This Row],[Total ($000)]]=0,"NO",IF(ISNA(tblDeprExpJune19[[#This Row],[FUNC]]),"YES",IF(_xlfn.ISFORMULA(tblDeprExpJune19[[#This Row],[FUNC]]),"NO","YES"))) -> NO
A21: =CONCATENATE(tblDeprExpJune19[[#This Row],[Primary Account]],tblDeprExpJune19[[#This Row],[Primary Name]],tblDeprExpJune19[[#This Row],[Secondary Acct]],tblDeprExpJune19[[#This Row],[Secondary Name]],tblDeprExpJune19[[#This Row],[Alloc4Func]]) -> 4030000DEPN EXPENSE-ELECT3312000STRUCTURES AND IMPROVE-FISH/WILDLIFESG-U | B21: 4030000 | C21: DEPN EXPENSE-ELECT | D21: 3312000 | E21: STRUCTURES AND IMPROVE-FISH/WILDLIFE | F21: SG-U | G21: 12.13646 | H21: =IF(OR(tblDeprExpJune19[[#This Row],[Alloc]]="IDU",tblDeprExpJune19[[#This Row],[Alloc]]="OR",tblDeprExpJune19[[#This Row],[Alloc]]="UT",tblDeprExpJune19[[#This Row],[Alloc]]="WYU",tblDeprExpJune19[[#This Row],[Alloc]]="WYP",tblDeprExpJune19[[#This Row],[Alloc]]="CA",tblDeprExpJune19[[#This Row],[Alloc]]="WA"),"SITUS",tblDeprExpJune19[[#This Row],[Alloc]]) -> SG-U | I21: =INDEX(tblDeprExpLookup[FUNC],MATCH(tblDeprExpJune19[[#This Row],[Concat]],tblDeprExpLookup[Concat],0)) -> P | J21: =IF(tblDeprExpJune19[[#This Row],[Total ($000)]]=0,"NO",IF(ISNA(tblDeprExpJune19[[#This Row],[FUNC]]),"YES",IF(_xlfn.ISFORMULA(tblDeprExpJune19[[#This Row],[FUNC]]),"NO","YES"))) -> NO
A22: =CONCATENATE(tblDeprExpJune19[[#This Row],[Primary Account]],tblDeprExpJune19[[#This Row],[Primary Name]],tblDeprExpJune19[[#This Row],[Secondary Acct]],tblDeprExpJune19[[#This Row],[Secondary Name]],tblDeprExpJune19[[#This Row],[Alloc4Func]]) -> 4030000DEPN EXPENSE-ELECT3313000STRUCTURES AND IMPROVE-RECREATIONSG-P | B22: 4030000 | C22: DEPN EXPENSE-ELECT | D22: 3313000 | E22: STRUCTURES AND IMPROVE-RECREATION | F22: SG-P | G22: 555.52065 | H22: =IF(OR(tblDeprExpJune19[[#This Row],[Alloc]]="IDU",tblDeprExpJune19[[#This Row],[Alloc]]="OR",tblDeprExpJune19[[#This Row],[Alloc]]="UT",tblDeprExpJune19[[#This Row],[Alloc]]="WYU",tblDeprExpJune19[[#This Row],[Alloc]]="WYP",tblDeprExpJune19[[#This Row],[Alloc]]="CA",tblDeprExpJune19[[#This Row],[Alloc]]="WA"),"SITUS",tblDeprExpJune19[[#This Row],[Alloc]]) -> SG-P | I22: =INDEX(tblDeprExpLookup[FUNC],MATCH(tblDeprExpJune19[[#This Row],[Concat]],tblDeprExpLookup[Concat],0)) -> P | J22: =IF(tblDeprExpJune19[[#This Row],[Total ($000)]]=0,"NO",IF(ISNA(tblDeprExpJune19[[#This Row],[FUNC]]),"YES",IF(_xlfn.ISFORMULA(tblDeprExpJune19[[#This Row],[FUNC]]),"NO","YES"))) -> NO
A23: =CONCATENATE(tblDeprExpJune19[[#This Row],[Primary Account]],tblDeprExpJune19[[#This Row],[Primary Name]],tblDeprExpJune19[[#This Row],[Secondary Acct]],tblDeprExpJune19[[#This Row],[Secondary Name]],tblDeprExpJune19[[#This Row],[Alloc4Func]]) -> 4030000DEPN EXPENSE-ELECT3313000STRUCTURES AND IMPROVE-RECREATIONSG-U | B23: 4030000 | C23: DEPN EXPENSE-ELECT | D23: 3313000 | E23: STRUCTURES AND IMPROVE-RECREATION | F23: SG-U | G23: 98.00044 | H23: =IF(OR(tblDeprExpJune19[[#This Row],[Alloc]]="IDU",tblDeprExpJune19[[#This Row],[Alloc]]="OR",tblDeprExpJune19[[#This Row],[Alloc]]="UT",tblDeprExpJune19[[#This Row],[Alloc]]="WYU",tblDeprExpJune19[[#This Row],[Alloc]]="WYP",tblDeprExpJune19[[#This Row],[Alloc]]="CA",tblDeprExpJune19[[#This Row],[Alloc]]="WA"),"SITUS",tblDeprExpJune19[[#This Row],[Alloc]]) -> SG-U | I23: =INDEX(tblDeprExpLookup[FUNC],MATCH(tblDeprExpJune19[[#This Row],[Concat]],tblDeprExpLookup[Concat],0)) -> P | J23: =IF(tblDeprExpJune19[[#This Row],[Total ($000)]]=0,"NO",IF(ISNA(tblDeprExpJune19[[#This Row],[FUNC]]),"YES",IF(_xlfn.ISFORMULA(tblDeprExpJune19[[#This Row],[FUNC]]),"NO","YES"))) -> NO
A24: =CONCATENATE(tblDeprExpJune19[[#This Row],[Primary Account]],tblDeprExpJune19[[#This Row],[Primary Name]],tblDeprExpJune19[[#This Row],[Secondary Acct]],tblDeprExpJune19[[#This Row],[Secondary Name]],tblDeprExpJune19[[#This Row],[Alloc4Func]]) -> 4030000DEPN EXPENSE-ELECT3320000"RESERVOIRS, DAMS & WATERWAYS"SG-P | B24: 4030000 | C24: DEPN EXPENSE-ELECT | D24: 3320000 | E24: "RESERVOIRS, DAMS & WATERWAYS" | F24: SG-P | G24: 86.80133 | H24: =IF(OR(tblDeprExpJune19[[#This Row],[Alloc]]="IDU",tblDeprExpJune19[[#This Row],[Alloc]]="OR",tblDeprExpJune19[[#This Row],[Alloc]]="UT",tblDeprExpJune19[[#This Row],[Alloc]]="WYU",tblDeprExpJune19[[#This Row],[Alloc]]="WYP",tblDeprExpJune19[[#This Row],[Alloc]]="CA",tblDeprExpJune19[[#This Row],[Alloc]]="WA"),"SITUS",tblDeprExpJune19[[#This Row],[Alloc]]) -> SG-P | I24: =INDEX(tblDeprExpLookup[FUNC],MATCH(tblDeprExpJune19[[#This Row],[Concat]],tblDeprExpLookup[Concat],0)) -> P | J24: =IF(tblDeprExpJune19[[#This Row],[Total ($000)]]=0,"NO",IF(ISNA(tblDeprExpJune19[[#This Row],[FUNC]]),"YES",IF(_xlfn.ISFORMULA(tblDeprExpJune19[[#This Row],[FUNC]]),"NO","YES"))) -> NO
A25: =CONCATENATE(tblDeprExpJune19[[#This Row],[Primary Account]],tblDeprExpJune19[[#This Row],[Primary Name]],tblDeprExpJune19[[#This Row],[Secondary Acct]],tblDeprExpJune19[[#This Row],[Secondary Name]],tblDeprExpJune19[[#This Row],[Alloc4Func]]) -> 4030000DEPN EXPENSE-ELECT3320000"RESERVOIRS, DAMS & WATERWAYS"SG-U | B25: 4030000 | C25: DEPN EXPENSE-ELECT | D25: 3320000 | E25: "RESERVOIRS, DAMS & WATERWAYS" | F25: SG-U | G25: 889.80485 | H25: =IF(OR(tblDeprExpJune19[[#This Row],[Alloc]]="IDU",tblDeprExpJune19[[#This Row],[Alloc]]="OR",tblDeprExpJune19[[#This Row],[Alloc]]="UT",tblDeprExpJune19[[#This Row],[Alloc]]="WYU",tblDeprExpJune19[[#This Row],[Alloc]]="WYP",tblDeprExpJune19[[#This Row],[Alloc]]="CA",tblDeprExpJune19[[#This Row],[Alloc]]="WA"),"SITUS",tblDeprExpJune19[[#This Row],[Alloc]]) -> SG-U | I25: =INDEX(tblDeprExpLookup[FUNC],MATCH(tblDeprExpJune19[[#This Row],[Concat]],tblDeprExpLookup[Concat],0)) -> P | J25: =IF(tblDeprExpJune19[[#This Row],[Total ($000)]]=0,"NO",IF(ISNA(tblDeprExpJune19[[#This Row],[FUNC]]),"YES",IF(_xlfn.ISFORMULA(tblDeprExpJune19[[#This Row],[FUNC]]),"NO","YES"))) -> NO
A26: =CONCATENATE(tblDeprExpJune19[[#This Row],[Primary Account]],tblDeprExpJune19[[#This Row],[Primary Name]],tblDeprExpJune19[[#This Row],[Secondary Acct]],tblDeprExpJune19[[#This Row],[Secondary Name]],tblDeprExpJune19[[#This Row],[Alloc4Func]]) -> 4030000DEPN EXPENSE-ELECT3321000"RESERVOIRS, DAMS, & WTRWYS-PRODUCTION"SG-P | B26: 4030000 | C26: DEPN EXPENSE-ELECT | D26: 3321000 | E26: "RESERVOIRS, DAMS, & WTRWYS-PRODUCTION" | F26: SG-P | G26: 13145.50692 | H26: =IF(OR(tblDeprExpJune19[[#This Row],[Alloc]]="IDU",tblDeprExpJune19[[#This Row],[Alloc]]="OR",tblDeprExpJune19[[#This Row],[Alloc]]="UT",tblDeprExpJune19[[#This Row],[Alloc]]="WYU",tblDeprExpJune19[[#This Row],[Alloc]]="WYP",tblDeprExpJune19[[#This Row],[Alloc]]="CA",tblDeprExpJune19[[#This Row],[Alloc]]="WA"),"SITUS",tblDeprExpJune19[[#This Row],[Alloc]]) -> SG-P | I26: =INDEX(tblDeprExpLookup[FUNC],MATCH(tblDeprExpJune19[[#This Row],[Concat]],tblDeprExpLookup[Concat],0)) -> P | J26: =IF(tblDeprExpJune19[[#This Row],[Total ($000)]]=0,"NO",IF(ISNA(tblDeprExpJune19[[#This Row],[FUNC]]),"YES",IF(_xlfn.ISFORMULA(tblDeprExpJune19[[#This Row],[FUNC]]),"NO","YES"))) -> NO
A27: =CONCATENATE(tblDeprExpJune19[[#This Row],[Primary Account]],tblDeprExpJune19[[#This Row],[Primary Name]],tblDeprExpJune19[[#This Row],[Secondary Acct]],tblDeprExpJune19[[#This Row],[Secondary Name]],tblDeprExpJune19[[#This Row],[Alloc4Func]]) -> 4030000DEPN EXPENSE-ELECT3321000"RESERVOIRS, DAMS, & WTRWYS-PRODUCTION"SG-U | B27: 4030000 | C27: DEPN EXPENSE-ELECT | D27: 3321000 | E27: "RESERVOIRS, DAMS, & WTRWYS-PRODUCTION" | F27: SG-U | G27: 3230.08426 | H27: =IF(OR(tblDeprExpJune19[[#This Row],[Alloc]]="IDU",tblDeprExpJune19[[#This Row],[Alloc]]="OR",tblDeprExpJune19[[#This Row],[Alloc]]="UT",tblDeprExpJune19[[#This Row],[Alloc]]="WYU",tblDeprExpJune19[[#This Row],[Alloc]]="WYP",tblDeprExpJune19[[#This Row],[Alloc]]="CA",tblDeprExpJune19[[#This Row],[Alloc]]="WA"),"SITUS",tblDeprExpJune19[[#This Row],[Alloc]]) -> SG-U | I27: =INDEX(tblDeprExpLookup[FUNC],MATCH(tblDeprExpJune19[[#This Row],[Concat]],tblDeprExpLookup[Concat],0)) -> P | J27: =IF(tblDeprExpJune19[[#This Row],[Total ($000)]]=0,"NO",IF(ISNA(tblDeprExpJune19[[#This Row],[FUNC]]),"YES",IF(_xlfn.ISFORMULA(tblDeprExpJune19[[#This Row],[FUNC]]),"NO","YES"))) -> NO
A28: =CONCATENATE(tblDeprExpJune19[[#This Row],[Primary Account]],tblDeprExpJune19[[#This Row],[Primary Name]],tblDeprExpJune19[[#This Row],[Secondary Acct]],tblDeprExpJune19[[#This Row],[Secondary Name]],tblDeprExpJune19[[#This Row],[Alloc4Func]]) -> 4030000DEPN EXPENSE-ELECT3322000"RESERVOIRS, DAMS, & WTRWYS-FISH/WILDLIFSG-P | B28: 4030000 | C28: DEPN EXPENSE-ELECT | D28: 3322000 | E28: "RESERVOIRS, DAMS, & WTRWYS-FISH/WILDLIF | F28: SG-P | G28: 2727.72393 | H28: =IF(OR(tblDeprExpJune19[[#This Row],[Alloc]]="IDU",tblDeprExpJune19[[#This Row],[Alloc]]="OR",tblDeprExpJune19[[#This Row],[Alloc]]="UT",tblDeprExpJune19[[#This Row],[Alloc]]="WYU",tblDeprExpJune19[[#This Row],[Alloc]]="WYP",tblDeprExpJune19[[#This Row],[Alloc]]="CA",tblDeprExpJune19[[#This Row],[Alloc]]="WA"),"SITUS",tblDeprExpJune19[[#This Row],[Alloc]]) -> SG-P | I28: =INDEX(tblDeprExpLookup[FUNC],MATCH(tblDeprExpJune19[[#This Row],[Concat]],tblDeprExpLookup[Concat],0)) -> P | J28: =IF(tblDeprExpJune19[[#This Row],[Total ($000)]]=0,"NO",IF(ISNA(tblDeprExpJune19[[#This Row],[FUNC]]),"YES",IF(_xlfn.ISFORMULA(tblDeprExpJune19[[#This Row],[FUNC]]),"NO","YES"))) -> NO
A29: =CONCATENATE(tblDeprExpJune19[[#This Row],[Primary Account]],tblDeprExpJune19[[#This Row],[Primary Name]],tblDeprExpJune19[[#This Row],[Secondary Acct]],tblDeprExpJune19[[#This Row],[Secondary Name]],tblDeprExpJune19[[#This Row],[Alloc4Func]]) -> 4030000DEPN EXPENSE-ELECT3322000"RESERVOIRS, DAMS, & WTRWYS-FISH/WILDLIFSG-U | B29: 4030000 | C29: DEPN EXPENSE-ELECT | D29: 3322000 | E29: "RESERVOIRS, DAMS, & WTRWYS-FISH/WILDLIF | F29: SG-U | G29: 13.01334 | H29: =IF(OR(tblDeprExpJune19[[#This Row],[Alloc]]="IDU",tblDeprExpJune19[[#This Row],[Alloc]]="OR",tblDeprExpJune19[[#This Row],[Alloc]]="UT",tblDeprExpJune19[[#This Row],[Alloc]]="WYU",tblDeprExpJune19[[#This Row],[Alloc]]="WYP",tblDeprExpJune19[[#This Row],[Alloc]]="CA",tblDeprExpJune19[[#This Row],[Alloc]]="WA"),"SITUS",tblDeprExpJune19[[#This Row],[Alloc]]) -> SG-U | I29: =INDEX(tblDeprExpLookup[FUNC],MATCH(tblDeprExpJune19[[#This Row],[Concat]],tblDeprExpLookup[Concat],0)) -> P | J29: =IF(tblDeprExpJune19[[#This Row],[Total ($000)]]=0,"NO",IF(ISNA(tblDeprExpJune19[[#This Row],[FUNC]]),"YES",IF(_xlfn.ISFORMULA(tblDeprExpJune19[[#This Row],[FUNC]]),"NO","YES"))) -> NO
A30: =CONCATENATE(tblDeprExpJune19[[#This Row],[Primary Account]],tblDeprExpJune19[[#This Row],[Primary Name]],tblDeprExpJune19[[#This Row],[Secondary Acct]],tblDeprExpJune19[[#This Row],[Secondary Name]],tblDeprExpJune19[[#This Row],[Alloc4Func]]) -> 4030000DEPN EXPENSE-ELECT3323000"RESERVOIRS, DAMS, & WTRWYS-RECREATION"SG-P | B30: 4030000 | C30: DEPN EXPENSE-ELECT | D30: 3323000 | E30: "RESERVOIRS, DAMS, & WTRWYS-RECREATION" | F30: SG-P | G30: 3.63333 | H30: =IF(OR(tblDeprExpJune19[[#This Row],[Alloc]]="IDU",tblDeprExpJune19[[#This Row],[Alloc]]="OR",tblDeprExpJune19[[#This Row],[Alloc]]="UT",tblDeprExpJune19[[#This Row],[Alloc]]="WYU",tblDeprExpJune19[[#This Row],[Alloc]]="WYP",tblDeprExpJune19[[#This Row],[Alloc]]="CA",tblDeprExpJune19[[#This Row],[Alloc]]="WA"),"SITUS",tblDeprExpJune19[[#This Row],[Alloc]]) -> SG-P | I30: =INDEX(tblDeprExpLookup[FUNC],MATCH(tblDeprExpJune19[[#This Row],[Concat]],tblDeprExpLookup[Concat],0)) -> P | J30: =IF(tblDeprExpJune19[[#This Row],[Total ($000)]]=0,"NO",IF(ISNA(tblDeprExpJune19[[#This Row],[FUNC]]),"YES",IF(_xlfn.ISFORMULA(tblDeprExpJune19[[#This Row],[FUNC]]),"NO","YES"))) -> NO
A31: =CONCATENATE(tblDeprExpJune19[[#This Row],[Primary Account]],tblDeprExpJune19[[#This Row],[Primary Name]],tblDeprExpJune19[[#This Row],[Secondary Acct]],tblDeprExpJune19[[#This Row],[Secondary Name]],tblDeprExpJune19[[#This Row],[Alloc4Func]]) -> 4030000DEPN EXPENSE-ELECT3323000"RESERVOIRS, DAMS, & WTRWYS-RECREATION"SG-U | B31: 4030000 | C31: DEPN EXPENSE-ELECT | D31: 3323000 | E31: "RESERVOIRS, DAMS, & WTRWYS-RECREATION" | F31: SG-U | G31: 3.17639 | H31: =IF(OR(tblDeprExpJune19[[#This Row],[Alloc]]="IDU",tblDeprExpJune19[[#This Row],[Alloc]]="OR",tblDeprExpJune19[[#This Row],[Alloc]]="UT",tblDeprExpJune19[[#This Row],[Alloc]]="WYU",tblDeprExpJune19[[#This Row],[Alloc]]="WYP",tblDeprExpJune19[[#This Row],[Alloc]]="CA",tblDeprExpJune19[[#This Row],[Alloc]]="WA"),"SITUS",tblDeprExpJune19[[#This Row],[Alloc]]) -> SG-U | I31: =INDEX(tblDeprExpLookup[FUNC],MATCH(tblDeprExpJune19[[#This Row],[Concat]],tblDeprExpLookup[Concat],0)) -> P | J31: =IF(tblDeprExpJune19[[#This Row],[Total ($000)]]=0,"NO",IF(ISNA(tblDeprExpJune19[[#This Row],[FUNC]]),"YES",IF(_xlfn.ISFORMULA(tblDeprExpJune19[[#This Row],[FUNC]]),"NO","YES"))) -> NO
A32: =CONCATENATE(tblDeprExpJune19[[#This Row],[Primary Account]],tblDeprExpJune19[[#This Row],[Primary Name]],tblDeprExpJune19[[#This Row],[Secondary Acct]],tblDeprExpJune19[[#This Row],[Secondary Name]],tblDeprExpJune19[[#This Row],[Alloc4Func]]) -> 4030000DEPN EXPENSE-ELECT3330000"WATER WHEELS, TURB & GENERATORS"SG-P | B32: 4030000 | C32: DEPN EXPENSE-ELECT | D32: 3330000 | E32: "WATER WHEELS, TURB & GENERATORS" | F32: SG-P | G32: 2535.47672 | H32: =IF(OR(tblDeprExpJune19[[#This Row],[Alloc]]="IDU",tblDeprExpJune19[[#This Row],[Alloc]]="OR",tblDeprExpJune19[[#This Row],[Alloc]]="UT",tblDeprExpJune19[[#This Row],[Alloc]]="WYU",tblDeprExpJune19[[#This Row],[Alloc]]="WYP",tblDeprExpJune19[[#This Row],[Alloc]]="CA",tblDeprExpJune19[[#This Row],[Alloc]]="WA"),"SITUS",tblDeprExpJune19[[#This Row],[Alloc]]) -> SG-P | I32: =INDEX(tblDeprExpLookup[FUNC],MATCH(tblDeprExpJune19[[#This Row],[Concat]],tblDeprExpLookup[Concat],0)) -> P | J32: =IF(tblDeprExpJune19[[#This Row],[Total ($000)]]=0,"NO",IF(ISNA(tblDeprExpJune19[[#This Row],[FUNC]]),"YES",IF(_xlfn.ISFORMULA(tblDeprExpJune19[[#This Row],[FUNC]]),"NO","YES"))) -> NO
A33: =CONCATENATE(tblDeprExpJune19[[#This Row],[Primary Account]],tblDeprExpJune19[[#This Row],[Primary Name]],tblDeprExpJune19[[#This Row],[Secondary Acct]],tblDeprExpJune19[[#This Row],[Secondary Name]],tblDeprExpJune19[[#This Row],[Alloc4Func]]) -> 4030000DEPN EXPENSE-ELECT3330000"WATER WHEELS, TURB & GENERATORS"SG-U | B33: 4030000 | C33: DEPN EXPENSE-ELECT | D33: 3330000 | E33: "WATER WHEELS, TURB & GENERATORS" | F33: SG-U | G33: 2055.06593 | H33: =IF(OR(tblDeprExpJune19[[#This Row],[Alloc]]="IDU",tblDeprExpJune19[[#This Row],[Alloc]]="OR",tblDeprExpJune19[[#This Row],[Alloc]]="UT",tblDeprExpJune19[[#This Row],[Alloc]]="WYU",tblDeprExpJune19[[#This Row],[Alloc]]="WYP",tblDeprExpJune19[[#This Row],[Alloc]]="CA",tblDeprExpJune19[[#This Row],[Alloc]]="WA"),"SITUS",tblDeprExpJune19[[#This Row],[Alloc]]) -> SG-U | I33: =INDEX(tblDeprExpLookup[FUNC],MATCH(tblDeprExpJune19[[#This Row],[Concat]],tblDeprExpLookup[Concat],0)) -> P | J33: =IF(tblDeprExpJune19[[#This Row],[Total ($000)]]=0,"NO",IF(ISNA(tblDeprExpJune19[[#This Row],[FUNC]]),"YES",IF(_xlfn.ISFORMULA(tblDeprExpJune19[[#This Row],[FUNC]]),"NO","YES"))) -> NO
A34: =CONCATENATE(tblDeprExpJune19[[#This Row],[Primary Account]],tblDeprExpJune19[[#This Row],[Primary Name]],tblDeprExpJune19[[#This Row],[Secondary Acct]],tblDeprExpJune19[[#This Row],[Secondary Name]],tblDeprExpJune19[[#This Row],[Alloc4Func]]) -> 4030000DEPN EXPENSE-ELECT3340000ACCESSORY ELECTRIC EQUIPMENTSG-P | B34: 4030000 | C34: DEPN EXPENSE-ELECT | D34: 3340000 | E34: ACCESSORY ELECTRIC EQUIPMENT | F34: SG-P | G34: 2669.91011 | H34: =IF(OR(tblDeprExpJune19[[#This Row],[Alloc]]="IDU",tblDeprExpJune19[[#This Row],[Alloc]]="OR",tblDeprExpJune19[[#This Row],[Alloc]]="UT",tblDeprExpJune19[[#This Row],[Alloc]]="WYU",tblDeprExpJune19[[#This Row],[Alloc]]="WYP",tblDeprExpJune19[[#This Row],[Alloc]]="CA",tblDeprExpJune19[[#This Row],[Alloc]]="WA"),"SITUS",tblDeprExpJune19[[#This Row],[Alloc]]) -> SG-P | I34: =INDEX(tblDeprExpLookup[FUNC],MATCH(tblDeprExpJune19[[#This Row],[Concat]],tblDeprExpLookup[Concat],0)) -> P | J34: =IF(tblDeprExpJune19[[#This Row],[Total ($000)]]=0,"NO",IF(ISNA(tblDeprExpJune19[[#This Row],[FUNC]]),"YES",IF(_xlfn.ISFORMULA(tblDeprExpJune19[[#This Row],[FUNC]]),"NO","YES"))) -> NO
A35: =CONCATENATE(tblDeprExpJune19[[#This Row],[Primary Account]],tblDeprExpJune19[[#This Row],[Primary Name]],tblDeprExpJune19[[#This Row],[Secondary Acct]],tblDeprExpJune19[[#This Row],[Secondary Name]],tblDeprExpJune19[[#This Row],[Alloc4Func]]) -> 4030000DEPN EXPENSE-ELECT3340000ACCESSORY ELECTRIC EQUIPMENTSG-U | B35: 4030000 | C35: DEPN EXPENSE-ELECT | D35: 3340000 | E35: ACCESSORY ELECTRIC EQUIPMENT | F35: SG-U | G35: 652.20981 | H35: =IF(OR(tblDeprExpJune19[[#This Row],[Alloc]]="IDU",tblDeprExpJune19[[#This Row],[Alloc]]="OR",tblDeprExpJune19[[#This Row],[Alloc]]="UT",tblDeprExpJune19[[#This Row],[Alloc]]="WYU",tblDeprExpJune19[[#This Row],[Alloc]]="WYP",tblDeprExpJune19[[#This Row],[Alloc]]="CA",tblDeprExpJune19[[#This Row],[Alloc]]="WA"),"SITUS",tblDeprExpJune19[[#This Row],[Alloc]]) -> SG-U | I35: =INDEX(tblDeprExpLookup[FUNC],MATCH(tblDeprExpJune19[[#This Row],[Concat]],tblDeprExpLookup[Concat],0)) -> P | J35: =IF(tblDeprExpJune19[[#This Row],[Total ($000)]]=0,"NO",IF(ISNA(tblDeprExpJune19[[#This Row],[FUNC]]),"YES",IF(_xlfn.ISFORMULA(tblDeprExpJune19[[#This Row],[FUNC]]),"NO","YES"))) -> NO
A36: =CONCATENATE(tblDeprExpJune19[[#This Row],[Primary Account]],tblDeprExpJune19[[#This Row],[Primary Name]],tblDeprExpJune19[[#This Row],[Secondary Acct]],tblDeprExpJune19[[#This Row],[Secondary Name]],tblDeprExpJune19[[#This Row],[Alloc4Func]]) -> 4030000DEPN EXPENSE-ELECT3347000ACCESSORY ELECT EQUIP - SUPV & ALARMSG-P | B36: 4030000 | C36: DEPN EXPENSE-ELECT | D36: 3347000 | E36: ACCESSORY ELECT EQUIP - SUPV & ALARM | F36: SG-P | G36: -106.63538 | H36: =IF(OR(tblDeprExpJune19[[#This Row],[Alloc]]="IDU",tblDeprExpJune19[[#This Row],[Alloc]]="OR",tblDeprExpJune19[[#This Row],[Alloc]]="UT",tblDeprExpJune19[[#This Row],[Alloc]]="WYU",tblDeprExpJune19[[#This Row],[Alloc]]="WYP",tblDeprExpJune19[[#This Row],[Alloc]]="CA",tblDeprExpJune19[[#This Row],[Alloc]]="WA"),"SITUS",tblDeprExpJune19[[#This Row],[Alloc]]) -> SG-P | I36: =INDEX(tblDeprExpLookup[FUNC],MATCH(tblDeprExpJune19[[#This Row],[Concat]],tblDeprExpLookup[Concat],0)) -> P | J36: =IF(tblDeprExpJune19[[#This Row],[Total ($000)]]=0,"NO",IF(ISNA(tblDeprExpJune19[[#This Row],[FUNC]]),"YES",IF(_xlfn.ISFORMULA(tblDeprExpJune19[[#This Row],[FUNC]]),"NO","YES"))) -> NO
A37: =CONCATENATE(tblDeprExpJune19[[#This Row],[Primary Account]],tblDeprExpJune19[[#This Row],[Primary Name]],tblDeprExpJune19[[#This Row],[Secondary Acct]],tblDeprExpJune19[[#This Row],[Secondary Name]],tblDeprExpJune19[[#This Row],[Alloc4Func]]) -> 4030000DEPN EXPENSE-ELECT3347000ACCESSORY ELECT EQUIP - SUPV & ALARMSG-U | B37: 4030000 | C37: DEPN EXPENSE-ELECT | D37: 3347000 | E37: ACCESSORY ELECT EQUIP - SUPV & ALARM | F37: SG-U | G37: 2.3989 | H37: =IF(OR(tblDeprExpJune19[[#This Row],[Alloc]]="IDU",tblDeprExpJune19[[#This Row],[Alloc]]="OR",tblDeprExpJune19[[#This Row],[Alloc]]="UT",tblDeprExpJune19[[#This Row],[Alloc]]="WYU",tblDeprExpJune19[[#This Row],[Alloc]]="WYP",tblDeprExpJune19[[#This Row],[Alloc]]="CA",tblDeprExpJune19[[#This Row],[Alloc]]="WA"),"SITUS",tblDeprExpJune19[[#This Row],[Alloc]]) -> SG-U | I37: =INDEX(tblDeprExpLookup[FUNC],MATCH(tblDeprExpJune19[[#This Row],[Concat]],tblDeprExpLookup[Concat],0)) -> P | J37: =IF(tblDeprExpJune19[[#This Row],[Total ($000)]]=0,"NO",IF(ISNA(tblDeprExpJune19[[#This Row],[FUNC]]),"YES",IF(_xlfn.ISFORMULA(tblDeprExpJune19[[#This Row],[FUNC]]),"NO","YES"))) -> NO
A38: =CONCATENATE(tblDeprExpJune19[[#This Row],[Primary Account]],tblDeprExpJune19[[#This Row],[Primary Name]],tblDeprExpJune19[[#This Row],[Secondary Acct]],tblDeprExpJune19[[#This Row],[Secondary Name]],tblDeprExpJune19[[#This Row],[Alloc4Func]]) -> 4030000DEPN EXPENSE-ELECT3350000MISC POWER PLANT EQUIPSG-U | B38: 4030000 | C38: DEPN EXPENSE-ELECT | D38: 3350000 | E38: MISC POWER PLANT EQUIP | F38: SG-U | G38: 5.27051 | H38: =IF(OR(tblDeprExpJune19[[#This Row],[Alloc]]="IDU",tblDeprExpJune19[[#This Row],[Alloc]]="OR",tblDeprExpJune19[[#This Row],[Alloc]]="UT",tblDeprExpJune19[[#This Row],[Alloc]]="WYU",tblDeprExpJune19[[#This Row],[Alloc]]="WYP",tblDeprExpJune19[[#This Row],[Alloc]]="CA",tblDeprExpJune19[[#This Row],[Alloc]]="WA"),"SITUS",tblDeprExpJune19[[#This Row],[Alloc]]) -> SG-U | I38: =INDEX(tblDeprExpLookup[FUNC],MATCH(tblDeprExpJune19[[#This Row],[Concat]],tblDeprExpLookup[Concat],0)) -> P | J38: =IF(tblDeprExpJune19[[#This Row],[Total ($000)]]=0,"NO",IF(ISNA(tblDeprExpJune19[[#This Row],[FUNC]]),"YES",IF(_xlfn.ISFORMULA(tblDeprExpJune19[[#This Row],[FUNC]]),"NO","YES"))) -> NO
A39: =CONCATENATE(tblDeprExpJune19[[#This Row],[Primary Account]],tblDeprExpJune19[[#This Row],[Primary Name]],tblDeprExpJune19[[#This Row],[Secondary Acct]],tblDeprExpJune19[[#This Row],[Secondary Name]],tblDeprExpJune19[[#This Row],[Alloc4Func]]) -> 4030000DEPN EXPENSE-ELECT3351000MISC POWER PLANT EQUIP - PRODUCTIONSG-P | B39: 4030000 | C39: DEPN EXPENSE-ELECT | D39: 3351000 | E39: MISC POWER PLANT EQUIP - PRODUCTION | F39: SG-P | G39: 49.94959 | H39: =IF(OR(tblDeprExpJune19[[#This Row],[Alloc]]="IDU",tblDeprExpJune19[[#This Row],[Alloc]]="OR",tblDeprExpJune19[[#This Row],[Alloc]]="UT",tblDeprExpJune19[[#This Row],[Alloc]]="WYU",tblDeprExpJune19[[#This Row],[Alloc]]="WYP",tblDeprExpJune19[[#This Row],[Alloc]]="CA",tblDeprExpJune19[[#This Row],[Alloc]]="WA"),"SITUS",tblDeprExpJune19[[#This Row],[Alloc]]) -> SG-P | I39: =INDEX(tblDeprExpLookup[FUNC],MATCH(tblDeprExpJune19[[#This Row],[Concat]],tblDeprExpLookup[Concat],0)) -> P | J39: =IF(tblDeprExpJune19[[#This Row],[Total ($000)]]=0,"NO",IF(ISNA(tblDeprExpJune19[[#This Row],[FUNC]]),"YES",IF(_xlfn.ISFORMULA(tblDeprExpJune19[[#This Row],[FUNC]]),"NO","YES"))) -> NO
A40: =CONCATENATE(tblDeprExpJune19[[#This Row],[Primary Account]],tblDeprExpJune19[[#This Row],[Primary Name]],tblDeprExpJune19[[#This Row],[Secondary Acct]],tblDeprExpJune19[[#This Row],[Secondary Name]],tblDeprExpJune19[[#This Row],[Alloc4Func]]) -> 4030000DEPN EXPENSE-ELECT3360000"ROADS, RAILROADS & BRIDGES"SG-P | B40: 4030000 | C40: DEPN EXPENSE-ELECT | D40: 3360000 | E40: "ROADS, RAILROADS & BRIDGES" | F40: SG-P | G40: 764.57245 | H40: =IF(OR(tblDeprExpJune19[[#This Row],[Alloc]]="IDU",tblDeprExpJune19[[#This Row],[Alloc]]="OR",tblDeprExpJune19[[#This Row],[Alloc]]="UT",tblDeprExpJune19[[#This Row],[Alloc]]="WYU",tblDeprExpJune19[[#This Row],[Alloc]]="WYP",tblDeprExpJune19[[#This Row],[Alloc]]="CA",tblDeprExpJune19[[#This Row],[Alloc]]="WA"),"SITUS",tblDeprExpJune19[[#This Row],[Alloc]]) -> SG-P | I40: =INDEX(tblDeprExpLookup[FUNC],MATCH(tblDeprExpJune19[[#This Row],[Concat]],tblDeprExpLookup[Concat],0)) -> P | J40: =IF(tblDeprExpJune19[[#This Row],[Total ($000)]]=0,"NO",IF(ISNA(tblDeprExpJune19[[#This Row],[FUNC]]),"YES",IF(_xlfn.ISFORMULA(tblDeprExpJune19[[#This Row],[FUNC]]),"NO","YES"))) -> NO
A41: =CONCATENATE(tblDeprExpJune19[[#This Row],[Primary Account]],tblDeprExpJune19[[#This Row],[Primary Name]],tblDeprExpJune19[[#This Row],[Secondary Acct]],tblDeprExpJune19[[#This Row],[Secondary Name]],tblDeprExpJune19[[#This Row],[Alloc4Func]]) -> 4030000DEPN EXPENSE-ELECT3360000"ROADS, RAILROADS & BRIDGES"SG-U | B41: 4030000 | C41: DEPN EXPENSE-ELECT | D41: 3360000 | E41: "ROADS, RAILROADS & BRIDGES" | F41: SG-U | G41: 75.90139 | H41: =IF(OR(tblDeprExpJune19[[#This Row],[Alloc]]="IDU",tblDeprExpJune19[[#This Row],[Alloc]]="OR",tblDeprExpJune19[[#This Row],[Alloc]]="UT",tblDeprExpJune19[[#This Row],[Alloc]]="WYU",tblDeprExpJune19[[#This Row],[Alloc]]="WYP",tblDeprExpJune19[[#This Row],[Alloc]]="CA",tblDeprExpJune19[[#This Row],[Alloc]]="WA"),"SITUS",tblDeprExpJune19[[#This Row],[Alloc]]) -> SG-U | I41: =INDEX(tblDeprExpLookup[FUNC],MATCH(tblDeprExpJune19[[#This Row],[Concat]],tblDeprExpLookup[Concat],0)) -> P | J41: =IF(tblDeprExpJune19[[#This Row],[Total ($000)]]=0,"NO",IF(ISNA(tblDeprExpJune19[[#This Row],[FUNC]]),"YES",IF(_xlfn.ISFORMULA(tblDeprExpJune19[[#This Row],[FUNC]]),"NO","YES"))) -> NO
A42: =CONCATENATE(tblDeprExpJune19[[#This Row],[Primary Account]],tblDeprExpJune19[[#This Row],[Primary Name]],tblDeprExpJune19[[#This Row],[Secondary Acct]],tblDeprExpJune19[[#This Row],[Secondary Name]],tblDeprExpJune19[[#This Row],[Alloc4Func]]) -> 4030000DEPN EXPENSE-ELECT3410000STRUCTURES & IMPROVEMENTSSG | B42: 4030000 | C42: DEPN EXPENSE-ELECT | D42: 3410000 | E42: STRUCTURES & IMPROVEMENTS | F42: SG | G42: 6634.41624 | H42: =IF(OR(tblDeprExpJune19[[#This Row],[Alloc]]="IDU",tblDeprExpJune19[[#This Row],[Alloc]]="OR",tblDeprExpJune19[[#This Row],[Alloc]]="UT",tblDeprExpJune19[[#This Row],[Alloc]]="WYU",tblDeprExpJune19[[#This Row],[Alloc]]="WYP",tblDeprExpJune19[[#This Row],[Alloc]]="CA",tblDeprExpJune19[[#This Row],[Alloc]]="WA"),"SITUS",tblDeprExpJune19[[#This Row],[Alloc]]) -> SG | I42: =INDEX(tblDeprExpLookup[FUNC],MATCH(tblDeprExpJune19[[#This Row],[Concat]],tblDeprExpLookup[Concat],0)) -> P | J42: =IF(tblDeprExpJune19[[#This Row],[Total ($000)]]=0,"NO",IF(ISNA(tblDeprExpJune19[[#This Row],[FUNC]]),"YES",IF(_xlfn.ISFORMULA(tblDeprExpJune19[[#This Row],[FUNC]]),"NO","YES"))) -> NO
A43: =CONCATENATE(tblDeprExpJune19[[#This Row],[Primary Account]],tblDeprExpJune19[[#This Row],[Primary Name]],tblDeprExpJune19[[#This Row],[Secondary Acct]],tblDeprExpJune19[[#This Row],[Secondary Name]],tblDeprExpJune19[[#This Row],[Alloc4Func]]) -> 4030000DEPN EXPENSE-ELECT3420000"FUEL HOLDERS,PRODUCERS, ACCES"SG | B43: 4030000 | C43: DEPN EXPENSE-ELECT | D43: 3420000 | E43: "FUEL HOLDERS,PRODUCERS, ACCES" | F43: SG | G43: 494.58949 | H43: =IF(OR(tblDeprExpJune19[[#This Row],[Alloc]]="IDU",tblDeprExpJune19[[#This Row],[Alloc]]="OR",tblDeprExpJune19[[#This Row],[Alloc]]="UT",tblDeprExpJune19[[#This Row],[Alloc]]="WYU",tblDeprExpJune19[[#This Row],[Alloc]]="WYP",tblDeprExpJune19[[#This Row],[Alloc]]="CA",tblDeprExpJune19[[#This Row],[Alloc]]="WA"),"SITUS",tblDeprExpJune19[[#This Row],[Alloc]]) -> SG | I43: =INDEX(tblDeprExpLookup[FUNC],MATCH(tblDeprExpJune19[[#This Row],[Concat]],tblDeprExpLookup[Concat],0)) -> P | J43: =IF(tblDeprExpJune19[[#This Row],[Total ($000)]]=0,"NO",IF(ISNA(tblDeprExpJune19[[#This Row],[FUNC]]),"YES",IF(_xlfn.ISFORMULA(tblDeprExpJune19[[#This Row],[FUNC]]),"NO","YES"))) -> NO
A44: =CONCATENATE(tblDeprExpJune19[[#This Row],[Primary Account]],tblDeprExpJune19[[#This Row],[Primary Name]],tblDeprExpJune19[[#This Row],[Secondary Acct]],tblDeprExpJune19[[#This Row],[Secondary Name]],tblDeprExpJune19[[#This Row],[Alloc4Func]]) -> 4030000DEPN EXPENSE-ELECT3430000PRIME MOVERSSG | B44: 4030000 | C44: DEPN EXPENSE-ELECT | D44: 3430000 | E44: PRIME MOVERS | F44: SG | G44: 95082.53768 | H44: =IF(OR(tblDeprExpJune19[[#This Row],[Alloc]]="IDU",tblDeprExpJune19[[#This Row],[Alloc]]="OR",tblDeprExpJune19[[#This Row],[Alloc]]="UT",tblDeprExpJune19[[#This Row],[Alloc]]="WYU",tblDeprExpJune19[[#This Row],[Alloc]]="WYP",tblDeprExpJune19[[#This Row],[Alloc]]="CA",tblDeprExpJune19[[#This Row],[Alloc]]="WA"),"SITUS",tblDeprExpJune19[[#This Row],[Alloc]]) -> SG | I44: =INDEX(tblDeprExpLookup[FUNC],MATCH(tblDeprExpJune19[[#This Row],[Concat]],tblDeprExpLookup[Concat],0)) -> P | J44: =IF(tblDeprExpJune19[[#This Row],[Total ($000)]]=0,"NO",IF(ISNA(tblDeprExpJune19[[#This Row],[FUNC]]),"YES",IF(_xlfn.ISFORMULA(tblDeprExpJune19[[#This Row],[FUNC]]),"NO","YES"))) -> NO
A45: =CONCATENATE(tblDeprExpJune19[[#This Row],[Primary Account]],tblDeprExpJune19[[#This Row],[Primary Name]],tblDeprExpJune19[[#This Row],[Secondary Acct]],tblDeprExpJune19[[#This Row],[Secondary Name]],tblDeprExpJune19[[#This Row],[Alloc4Func]]) -> 4030000DEPN EXPENSE-ELECT3440000GENERATORSSG | B45: 4030000 | C45: DEPN EXPENSE-ELECT | D45: 3440000 | E45: GENERATORS | F45: SG | G45: 14613.07504 | H45: =IF(OR(tblDeprExpJune19[[#This Row],[Alloc]]="IDU",tblDeprExpJune19[[#This Row],[Alloc]]="OR",tblDeprExpJune19[[#This Row],[Alloc]]="UT",tblDeprExpJune19[[#This Row],[Alloc]]="WYU",tblDeprExpJune19[[#This Row],[Alloc]]="WYP",tblDeprExpJune19[[#This Row],[Alloc]]="CA",tblDeprExpJune19[[#This Row],[Alloc]]="WA"),"SITUS",tblDeprExpJune19[[#This Row],[Alloc]]) -> SG | I45: =INDEX(tblDeprExpLookup[FUNC],MATCH(tblDeprExpJune19[[#This Row],[Concat]],tblDeprExpLookup[Concat],0)) -> P | J45: =IF(tblDeprExpJune19[[#This Row],[Total ($000)]]=0,"NO",IF(ISNA(tblDeprExpJune19[[#This Row],[FUNC]]),"YES",IF(_xlfn.ISFORMULA(tblDeprExpJune19[[#This Row],[FUNC]]),"NO","YES"))) -> NO
A46: =CONCATENATE(tblDeprExpJune19[[#This Row],[Primary Account]],tblDeprExpJune19[[#This Row],[Primary Name]],tblDeprExpJune19[[#This Row],[Secondary Acct]],tblDeprExpJune19[[#This Row],[Secondary Name]],tblDeprExpJune19[[#This Row],[Alloc4Func]]) -> 4030000DEPN EXPENSE-ELECT3450000ACCESSORY ELECTRIC EQUIPMENTSG | B46: 4030000 | C46: DEPN EXPENSE-ELECT | D46: 3450000 | E46: ACCESSORY ELECTRIC EQUIPMENT | F46: SG | G46: 9557.25957 | H46: =IF(OR(tblDeprExpJune19[[#This Row],[Alloc]]="IDU",tblDeprExpJune19[[#This Row],[Alloc]]="OR",tblDeprExpJune19[[#This Row],[Alloc]]="UT",tblDeprExpJune19[[#This Row],[Alloc]]="WYU",tblDeprExpJune19[[#This Row],[Alloc]]="WYP",tblDeprExpJune19[[#This Row],[Alloc]]="CA",tblDeprExpJune19[[#This Row],[Alloc]]="WA"),"SITUS",tblDeprExpJune19[[#This Row],[Alloc]]) -> SG | I46: =INDEX(tblDeprExpLookup[FUNC],MATCH(tblDeprExpJune19[[#This Row],[Concat]],tblDeprExpLookup[Concat],0)) -> P | J46: =IF(tblDeprExpJune19[[#This Row],[Total ($000)]]=0,"NO",IF(ISNA(tblDeprExpJune19[[#This Row],[FUNC]]),"YES",IF(_xlfn.ISFORMULA(tblDeprExpJune19[[#This Row],[FUNC]]),"NO","YES"))) -> NO
A47: =CONCATENATE(tblDeprExpJune19[[#This Row],[Primary Account]],tblDeprExpJune19[[#This Row],[Primary Name]],tblDeprExpJune19[[#This Row],[Secondary Acct]],tblDeprExpJune19[[#This Row],[Secondary Name]],tblDeprExpJune19[[#This Row],[Alloc4Func]]) -> 4030000DEPN EXPENSE-ELECT3460000MISCELLANEOUS PWR PLANT EQUIPSG | B47: 4030000 | C47: DEPN EXPENSE-ELECT | D47: 3460000 | E47: MISCELLANEOUS PWR PLANT EQUIP | F47: SG | G47: 447.14704 | H47: =IF(OR(tblDeprExpJune19[[#This Row],[Alloc]]="IDU",tblDeprExpJune19[[#This Row],[Alloc]]="OR",tblDeprExpJune19[[#This Row],[Alloc]]="UT",tblDeprExpJune19[[#This Row],[Alloc]]="WYU",tblDeprExpJune19[[#This Row],[Alloc]]="WYP",tblDeprExpJune19[[#This Row],[Alloc]]="CA",tblDeprExpJune19[[#This Row],[Alloc]]="WA"),"SITUS",tblDeprExpJune19[[#This Row],[Alloc]]) -> SG | I47: =INDEX(tblDeprExpLookup[FUNC],MATCH(tblDeprExpJune19[[#This Row],[Concat]],tblDeprExpLookup[Concat],0)) -> P | J47: =IF(tblDeprExpJune19[[#This Row],[Total ($000)]]=0,"NO",IF(ISNA(tblDeprExpJune19[[#This Row],[FUNC]]),"YES",IF(_xlfn.ISFORMULA(tblDeprExpJune19[[#This Row],[FUNC]]),"NO","YES"))) -> NO
A48: =CONCATENATE(tblDeprExpJune19[[#This Row],[Primary Account]],tblDeprExpJune19[[#This Row],[Primary Name]],tblDeprExpJune19[[#This Row],[Secondary Acct]],tblDeprExpJune19[[#This Row],[Secondary Name]],tblDeprExpJune19[[#This Row],[Alloc4Func]]) -> 4030000DEPN EXPENSE-ELECT3502000LAND RIGHTSSG | B48: 4030000 | C48: DEPN EXPENSE-ELECT | D48: 3502000 | E48: LAND RIGHTS | F48: SG | G48: 2674.79866 | H48: =IF(OR(tblDeprExpJune19[[#This Row],[Alloc]]="IDU",tblDeprExpJune19[[#This Row],[Alloc]]="OR",tblDeprExpJune19[[#This Row],[Alloc]]="UT",tblDeprExpJune19[[#This Row],[Alloc]]="WYU",tblDeprExpJune19[[#This Row],[Alloc]]="WYP",tblDeprExpJune19[[#This Row],[Alloc]]="CA",tblDeprExpJune19[[#This Row],[Alloc]]="WA"),"SITUS",tblDeprExpJune19[[#This Row],[Alloc]]) -> SG | I48: =INDEX(tblDeprExpLookup[FUNC],MATCH(tblDeprExpJune19[[#This Row],[Concat]],tblDeprExpLookup[Concat],0)) -> T | J48: =IF(tblDeprExpJune19[[#This Row],[Total ($000)]]=0,"NO",IF(ISNA(tblDeprExpJune19[[#This Row],[FUNC]]),"YES",IF(_xlfn.ISFORMULA(tblDeprExpJune19[[#This Row],[FUNC]]),"NO","YES"))) -> NO
A49: =CONCATENATE(tblDeprExpJune19[[#This Row],[Primary Account]],tblDeprExpJune19[[#This Row],[Primary Name]],tblDeprExpJune19[[#This Row],[Secondary Acct]],tblDeprExpJune19[[#This Row],[Secondary Name]],tblDeprExpJune19[[#This Row],[Alloc4Func]]) -> 4030000DEPN EXPENSE-ELECT3520000STRUCTURES & IMPROVEMENTSSG | B49: 4030000 | C49: DEPN EXPENSE-ELECT | D49: 3520000 | E49: STRUCTURES & IMPROVEMENTS | F49: SG | G49: 3871.80782 | H49: =IF(OR(tblDeprExpJune19[[#This Row],[Alloc]]="IDU",tblDeprExpJune19[[#This Row],[Alloc]]="OR",tblDeprExpJune19[[#This Row],[Alloc]]="UT",tblDeprExpJune19[[#This Row],[Alloc]]="WYU",tblDeprExpJune19[[#This Row],[Alloc]]="WYP",tblDeprExpJune19[[#This Row],[Alloc]]="CA",tblDeprExpJune19[[#This Row],[Alloc]]="WA"),"SITUS",tblDeprExpJune19[[#This Row],[Alloc]]) -> SG | I49: =INDEX(tblDeprExpLookup[FUNC],MATCH(tblDeprExpJune19[[#This Row],[Concat]],tblDeprExpLookup[Concat],0)) -> T | J49: =IF(tblDeprExpJune19[[#This Row],[Total ($000)]]=0,"NO",IF(ISNA(tblDeprExpJune19[[#This Row],[FUNC]]),"YES",IF(_xlfn.ISFORMULA(tblDeprExpJune19[[#This Row],[FUNC]]),"NO","YES"))) -> NO
A50: =CONCATENATE(tblDeprExpJune19[[#This Row],[Primary Account]],tblDeprExpJune19[[#This Row],[Primary Name]],tblDeprExpJune19[[#This Row],[Secondary Acct]],tblDeprExpJune19[[#This Row],[Secondary Name]],tblDeprExpJune19[[#This Row],[Alloc4Func]]) -> 4030000DEPN EXPENSE-ELECT3530000STATION EQUIPMENTSG | B50: 4030000 | C50: DEPN EXPENSE-ELECT | D50: 3530000 | E50: STATION EQUIPMENT | F50: SG | G50: 34643.79703 | H50: =IF(OR(tblDeprExpJune19[[#This Row],[Alloc]]="IDU",tblDeprExpJune19[[#This Row],[Alloc]]="OR",tblDeprExpJune19[[#This Row],[Alloc]]="UT",tblDeprExpJune19[[#This Row],[Alloc]]="WYU",tblDeprExpJune19[[#This Row],[Alloc]]="WYP",tblDeprExpJune19[[#This Row],[Alloc]]="CA",tblDeprExpJune19[[#This Row],[Alloc]]="WA"),"SITUS",tblDeprExpJune19[[#This Row],[Alloc]]) -> SG | I50: =INDEX(tblDeprExpLookup[FUNC],MATCH(tblDeprExpJune19[[#This Row],[Concat]],tblDeprExpLookup[Concat],0)) -> T | J50: =IF(tblDeprExpJune19[[#This Row],[Total ($000)]]=0,"NO",IF(ISNA(tblDeprExpJune19[[#This Row],[FUNC]]),"YES",IF(_xlfn.ISFORMULA(tblDeprExpJune19[[#This Row],[FUNC]]),"NO","YES"))) -> NO
A51: =CONCATENATE(tblDeprExpJune19[[#This Row],[Primary Account]],tblDeprExpJune19[[#This Row],[Primary Name]],tblDeprExpJune19[[#This Row],[Secondary Acct]],tblDeprExpJune19[[#This Row],[Secondary Name]],tblDeprExpJune19[[#This Row],[Alloc4Func]]) -> 4030000DEPN EXPENSE-ELECT3534000STATION EQUIPMENT, STEP-UP TRANSFORMERSSG | B51: 4030000 | C51: DEPN EXPENSE-ELECT | D51: 3534000 | E51: STATION EQUIPMENT, STEP-UP TRANSFORMERS | F51: SG | G51: 2833.46633 | H51: =IF(OR(tblDeprExpJune19[[#This Row],[Alloc]]="IDU",tblDeprExpJune19[[#This Row],[Alloc]]="OR",tblDeprExpJune19[[#This Row],[Alloc]]="UT",tblDeprExpJune19[[#This Row],[Alloc]]="WYU",tblDeprExpJune19[[#This Row],[Alloc]]="WYP",tblDeprExpJune19[[#This Row],[Alloc]]="CA",tblDeprExpJune19[[#This Row],[Alloc]]="WA"),"SITUS",tblDeprExpJune19[[#This Row],[Alloc]]) -> SG | I51: =INDEX(tblDeprExpLookup[FUNC],MATCH(tblDeprExpJune19[[#This Row],[Concat]],tblDeprExpLookup[Concat],0)) -> T | J51: =IF(tblDeprExpJune19[[#This Row],[Total ($000)]]=0,"NO",IF(ISNA(tblDeprExpJune19[[#This Row],[FUNC]]),"YES",IF(_xlfn.ISFORMULA(tblDeprExpJune19[[#This Row],[FUNC]]),"NO","YES"))) -> NO
A52: =CONCATENATE(tblDeprExpJune19[[#This Row],[Primary Account]],tblDeprExpJune19[[#This Row],[Primary Name]],tblDeprExpJune19[[#This Row],[Secondary Acct]],tblDeprExpJune19[[#This Row],[Secondary Name]],tblDeprExpJune19[[#This Row],[Alloc4Func]]) -> 4030000DEPN EXPENSE-ELECT3537000STATION EQUIPMENT-SUPERVISORY & ALARMSG | B52: 4030000 | C52: DEPN EXPENSE-ELECT | D52: 3537000 | E52: STATION EQUIPMENT-SUPERVISORY & ALARM | F52: SG | G52: 392.12709 | H52: =IF(OR(tblDeprExpJune19[[#This Row],[Alloc]]="IDU",tblDeprExpJune19[[#This Row],[Alloc]]="OR",tblDeprExpJune19[[#This Row],[Alloc]]="UT",tblDeprExpJune19[[#This Row],[Alloc]]="WYU",tblDeprExpJune19[[#This Row],[Alloc]]="WYP",tblDeprExpJune19[[#This Row],[Alloc]]="CA",tblDeprExpJune19[[#This Row],[Alloc]]="WA"),"SITUS",tblDeprExpJune19[[#This Row],[Alloc]]) -> SG | I52: =INDEX(tblDeprExpLookup[FUNC],MATCH(tblDeprExpJune19[[#This Row],[Concat]],tblDeprExpLookup[Concat],0)) -> T | J52: =IF(tblDeprExpJune19[[#This Row],[Total ($000)]]=0,"NO",IF(ISNA(tblDeprExpJune19[[#This Row],[FUNC]]),"YES",IF(_xlfn.ISFORMULA(tblDeprExpJune19[[#This Row],[FUNC]]),"NO","YES"))) -> NO
A53: =CONCATENATE(tblDeprExpJune19[[#This Row],[Primary Account]],tblDeprExpJune19[[#This Row],[Primary Name]],tblDeprExpJune19[[#This Row],[Secondary Acct]],tblDeprExpJune19[[#This Row],[Secondary Name]],tblDeprExpJune19[[#This Row],[Alloc4Func]]) -> 4030000DEPN EXPENSE-ELECT3540000TOWERS AND FIXTURESSG | B53: 4030000 | C53: DEPN EXPENSE-ELECT | D53: 3540000 | E53: TOWERS AND FIXTURES | F53: SG | G53: 19921.49885 | H53: =IF(OR(tblDeprExpJune19[[#This Row],[Alloc]]="IDU",tblDeprExpJune19[[#This Row],[Alloc]]="OR",tblDeprExpJune19[[#This Row],[Alloc]]="UT",tblDeprExpJune19[[#This Row],[Alloc]]="WYU",tblDeprExpJune19[[#This Row],[Alloc]]="WYP",tblDeprExpJune19[[#This Row],[Alloc]]="CA",tblDeprExpJune19[[#This Row],[Alloc]]="WA"),"SITUS",tblDeprExpJune19[[#This Row],[Alloc]]) -> SG | I53: =INDEX(tblDeprExpLookup[FUNC],MATCH(tblDeprExpJune19[[#This Row],[Concat]],tblDeprExpLookup[Concat],0)) -> T | J53: =IF(tblDeprExpJune19[[#This Row],[Total ($000)]]=0,"NO",IF(ISNA(tblDeprExpJune19[[#This Row],[FUNC]]),"YES",IF(_xlfn.ISFORMULA(tblDeprExpJune19[[#This Row],[FUNC]]),"NO","YES"))) -> NO
A54: =CONCATENATE(tblDeprExpJune19[[#This Row],[Primary Account]],tblDeprExpJune19[[#This Row],[Primary Name]],tblDeprExpJune19[[#This Row],[Secondary Acct]],tblDeprExpJune19[[#This Row],[Secondary Name]],tblDeprExpJune19[[#This Row],[Alloc4Func]]) -> 4030000DEPN EXPENSE-ELECT3550000POLES AND FIXTURESSG | B54: 4030000 | C54: DEPN EXPENSE-ELECT | D54: 3550000 | E54: POLES AND FIXTURES | F54: SG | G54: 20881.82144 | H54: =IF(OR(tblDeprExpJune19[[#This Row],[Alloc]]="IDU",tblDeprExpJune19[[#This Row],[Alloc]]="OR",tblDeprExpJune19[[#This Row],[Alloc]]="UT",tblDeprExpJune19[[#This Row],[Alloc]]="WYU",tblDeprExpJune19[[#This Row],[Alloc]]="WYP",tblDeprExpJune19[[#This Row],[Alloc]]="CA",tblDeprExpJune19[[#This Row],[Alloc]]="WA"),"SITUS",tblDeprExpJune19[[#This Row],[Alloc]]) -> SG | I54: =INDEX(tblDeprExpLookup[FUNC],MATCH(tblDeprExpJune19[[#This Row],[Concat]],tblDeprExpLookup[Concat],0)) -> T | J54: =IF(tblDeprExpJune19[[#This Row],[Total ($000)]]=0,"NO",IF(ISNA(tblDeprExpJune19[[#This Row],[FUNC]]),"YES",IF(_xlfn.ISFORMULA(tblDeprExpJune19[[#This Row],[FUNC]]),"NO","YES"))) -> NO
A55: =CONCATENATE(tblDeprExpJune19[[#This Row],[Primary Account]],tblDeprExpJune19[[#This Row],[Primary Name]],tblDeprExpJune19[[#This Row],[Secondary Acct]],tblDeprExpJune19[[#This Row],[Secondary Name]],tblDeprExpJune19[[#This Row],[Alloc4Func]]) -> 4030000DEPN EXPENSE-ELECT3560000OVERHEAD CONDUCTORS & DEVICESSG | B55: 4030000 | C55: DEPN EXPENSE-ELECT | D55: 3560000 | E55: OVERHEAD CONDUCTORS & DEVICES | F55: SG | G55: 23526.11822 | H55: =IF(OR(tblDeprExpJune19[[#This Row],[Alloc]]="IDU",tblDeprExpJune19[[#This Row],[Alloc]]="OR",tblDeprExpJune19[[#This Row],[Alloc]]="UT",tblDeprExpJune19[[#This Row],[Alloc]]="WYU",tblDeprExpJune19[[#This Row],[Alloc]]="WYP",tblDeprExpJune19[[#This Row],[Alloc]]="CA",tblDeprExpJune19[[#This Row],[Alloc]]="WA"),"SITUS",tblDeprExpJune19[[#This Row],[Alloc]]) -> SG | I55: =INDEX(tblDeprExpLookup[FUNC],MATCH(tblDeprExpJune19[[#This Row],[Concat]],tblDeprExpLookup[Concat],0)) -> T | J55: =IF(tblDeprExpJune19[[#This Row],[Total ($000)]]=0,"NO",IF(ISNA(tblDeprExpJune19[[#This Row],[FUNC]]),"YES",IF(_xlfn.ISFORMULA(tblDeprExpJune19[[#This Row],[FUNC]]),"NO","YES"))) -> NO
A56: =CONCATENATE(tblDeprExpJune19[[#This Row],[Primary Account]],tblDeprExpJune19[[#This Row],[Primary Name]],tblDeprExpJune19[[#This Row],[Secondary Acct]],tblDeprExpJune19[[#This Row],[Secondary Name]],tblDeprExpJune19[[#This Row],[Alloc4Func]]) -> 4030000DEPN EXPENSE-ELECT3570000UNDERGROUND CONDUITSG | B56: 4030000 | C56: DEPN EXPENSE-ELECT | D56: 3570000 | E56: UNDERGROUND CONDUIT | F56: SG | G56: 56.84564 | H56: =IF(OR(tblDeprExpJune19[[#This Row],[Alloc]]="IDU",tblDeprExpJune19[[#This Row],[Alloc]]="OR",tblDeprExpJune19[[#This Row],[Alloc]]="UT",tblDeprExpJune19[[#This Row],[Alloc]]="WYU",tblDeprExpJune19[[#This Row],[Alloc]]="WYP",tblDeprExpJune19[[#This Row],[Alloc]]="CA",tblDeprExpJune19[[#This Row],[Alloc]]="WA"),"SITUS",tblDeprExpJune19[[#This Row],[Alloc]]) -> SG | I56: =INDEX(tblDeprExpLookup[FUNC],MATCH(tblDeprExpJune19[[#This Row],[Concat]],tblDeprExpLookup[Concat],0)) -> T | J56: =IF(tblDeprExpJune19[[#This Row],[Total ($000)]]=0,"NO",IF(ISNA(tblDeprExpJune19[[#This Row],[FUNC]]),"YES",IF(_xlfn.ISFORMULA(tblDeprExpJune19[[#This Row],[FUNC]]),"NO","YES"))) -> NO
A57: =CONCATENATE(tblDeprExpJune19[[#This Row],[Primary Account]],tblDeprExpJune19[[#This Row],[Primary Name]],tblDeprExpJune19[[#This Row],[Secondary Acct]],tblDeprExpJune19[[#This Row],[Secondary Name]],tblDeprExpJune19[[#This Row],[Alloc4Func]]) -> 4030000DEPN EXPENSE-ELECT3580000UNDERGROUND CONDUCTORS & DEVICESSG | B57: 4030000 | C57: DEPN EXPENSE-ELECT | D57: 3580000 | E57: UNDERGROUND CONDUCTORS & DEVICES | F57: SG | G57: 133.37686 | H57: =IF(OR(tblDeprExpJune19[[#This Row],[Alloc]]="IDU",tblDeprExpJune19[[#This Row],[Alloc]]="OR",tblDeprExpJune19[[#This Row],[Alloc]]="UT",tblDeprExpJune19[[#This Row],[Alloc]]="WYU",tblDeprExpJune19[[#This Row],[Alloc]]="WYP",tblDeprExpJune19[[#This Row],[Alloc]]="CA",tblDeprExpJune19[[#This Row],[Alloc]]="WA"),"SITUS",tblDeprExpJune19[[#This Row],[Alloc]]) -> SG | I57: =INDEX(tblDeprExpLookup[FUNC],MATCH(tblDeprExpJune19[[#This Row],[Concat]],tblDeprExpLookup[Concat],0)) -> T | J57: =IF(tblDeprExpJune19[[#This Row],[Total ($000)]]=0,"NO",IF(ISNA(tblDeprExpJune19[[#This Row],[FUNC]]),"YES",IF(_xlfn.ISFORMULA(tblDeprExpJune19[[#This Row],[FUNC]]),"NO","YES"))) -> NO
A58: =CONCATENATE(tblDeprExpJune19[[#This Row],[Primary Account]],tblDeprExpJune19[[#This Row],[Primary Name]],tblDeprExpJune19[[#This Row],[Secondary Acct]],tblDeprExpJune19[[#This Row],[Secondary Name]],tblDeprExpJune19[[#This Row],[Alloc4Func]]) -> 4030000DEPN EXPENSE-ELECT3590000ROADS AND TRAILSSG | B58: 4030000 | C58: DEPN EXPENSE-ELECT | D58: 3590000 | E58: ROADS AND TRAILS | F58: SG | G58: 157.57888 | H58: =IF(OR(tblDeprExpJune19[[#This Row],[Alloc]]="IDU",tblDeprExpJune19[[#This Row],[Alloc]]="OR",tblDeprExpJune19[[#This Row],[Alloc]]="UT",tblDeprExpJune19[[#This Row],[Alloc]]="WYU",tblDeprExpJune19[[#This Row],[Alloc]]="WYP",tblDeprExpJune19[[#This Row],[Alloc]]="CA",tblDeprExpJune19[[#This Row],[Alloc]]="WA"),"SITUS",tblDeprExpJune19[[#This Row],[Alloc]]) -> SG | I58: =INDEX(tblDeprExpLookup[FUNC],MATCH(tblDeprExpJune19[[#This Row],[Concat]],tblDeprExpLookup[Concat],0)) -> T | J58: =IF(tblDeprExpJune19[[#This Row],[Total ($000)]]=0,"NO",IF(ISNA(tblDeprExpJune19[[#This Row],[FUNC]]),"YES",IF(_xlfn.ISFORMULA(tblDeprExpJune19[[#This Row],[FUNC]]),"NO","YES"))) -> NO
A59: =CONCATENATE(tblDeprExpJune19[[#This Row],[Primary Account]],tblDeprExpJune19[[#This Row],[Primary Name]],tblDeprExpJune19[[#This Row],[Secondary Acct]],tblDeprExpJune19[[#This Row],[Secondary Name]],tblDeprExpJune19[[#This Row],[Alloc4Func]]) -> 4030000DEPN EXPENSE-ELECT3602000LAND RIGHTSSITUS | B59: 4030000 | C59: DEPN EXPENSE-ELECT | D59: 3602000 | E59: LAND RIGHTS | F59: CA | G59: 25.18427 | H59: =IF(OR(tblDeprExpJune19[[#This Row],[Alloc]]="IDU",tblDeprExpJune19[[#This Row],[Alloc]]="OR",tblDeprExpJune19[[#This Row],[Alloc]]="UT",tblDeprExpJune19[[#This Row],[Alloc]]="WYU",tblDeprExpJune19[[#This Row],[Alloc]]="WYP",tblDeprExpJune19[[#This Row],[Alloc]]="CA",tblDeprExpJune19[[#This Row],[Alloc]]="WA"),"SITUS",tblDeprExpJune19[[#This Row],[Alloc]]) -> SITUS | I59: =INDEX(tblDeprExpLookup[FUNC],MATCH(tblDeprExpJune19[[#This Row],[Concat]],tblDeprExpLookup[Concat],0)) -> DPW | J59: =IF(tblDeprExpJune19[[#This Row],[Total ($000)]]=0,"NO",IF(ISNA(tblDeprExpJune19[[#This Row],[FUNC]]),"YES",IF(_xlfn.ISFORMULA(tblDeprExpJune19[[#This Row],[FUNC]]),"NO","YES"))) -> NO
A60: =CONCATENATE(tblDeprExpJune19[[#This Row],[Primary Account]],tblDeprExpJune19[[#This Row],[Primary Name]],tblDeprExpJune19[[#This Row],[Secondary Acct]],tblDeprExpJune19[[#This Row],[Secondary Name]],tblDeprExpJune19[[#This Row],[Alloc4Func]]) -> 4030000DEPN EXPENSE-ELECT3602000LAND RIGHTSSITUS | B60: 4030000 | C60: DEPN EXPENSE-ELECT | D60: 3602000 | E60: LAND RIGHTS | F60: IDU | G60: 26.51013 | H60: =IF(OR(tblDeprExpJune19[[#This Row],[Alloc]]="IDU",tblDeprExpJune19[[#This Row],[Alloc]]="OR",tblDeprExpJune19[[#This Row],[Alloc]]="UT",tblDeprExpJune19[[#This Row],[Alloc]]="WYU",tblDeprExpJune19[[#This Row],[Alloc]]="WYP",tblDeprExpJune19[[#This Row],[Alloc]]="CA",tblDeprExpJune19[[#This Row],[Alloc]]="WA"),"SITUS",tblDeprExpJune19[[#This Row],[Alloc]]) -> SITUS | I60: =INDEX(tblDeprExpLookup[FUNC],MATCH(tblDeprExpJune19[[#This Row],[Concat]],tblDeprExpLookup[Concat],0)) -> DPW | J60: =IF(tblDeprExpJune19[[#This Row],[Total ($000)]]=0,"NO",IF(ISNA(tblDeprExpJune19[[#This Row],[FUNC]]),"YES",IF(_xlfn.ISFORMULA(tblDeprExpJune19[[#This Row],[FUNC]]),"NO","YES"))) -> NO
A61: =CONCATENATE(tblDeprExpJune19[[#This Row],[Primary Account]],tblDeprExpJune19[[#This Row],[Primary Name]],tblDeprExpJune19[[#This Row],[Secondary Acct]],tblDeprExpJune19[[#This Row],[Secondary Name]],tblDeprExpJune19[[#This Row],[Alloc4Func]]) -> 4030000DEPN EXPENSE-ELECT3602000LAND RIGHTSSITUS | B61: 4030000 | C61: DEPN EXPENSE-ELECT | D61: 3602000 | E61: LAND RIGHTS | F61: OR | G61: 61.99204 | H61: =IF(OR(tblDeprExpJune19[[#This Row],[Alloc]]="IDU",tblDeprExpJune19[[#This Row],[Alloc]]="OR",tblDeprExpJune19[[#This Row],[Alloc]]="UT",tblDeprExpJune19[[#This Row],[Alloc]]="WYU",tblDeprExpJune19[[#This Row],[Alloc]]="WYP",tblDeprExpJune19[[#This Row],[Alloc]]="CA",tblDeprExpJune19[[#This Row],[Alloc]]="WA"),"SITUS",tblDeprExpJune19[[#This Row],[Alloc]]) -> SITUS | I61: =INDEX(tblDeprExpLookup[FUNC],MATCH(tblDeprExpJune19[[#This Row],[Concat]],tblDeprExpLookup[Concat],0)) -> DPW | J61: =IF(tblDeprExpJune19[[#This Row],[Total ($000)]]=0,"NO",IF(ISNA(tblDeprExpJune19[[#This Row],[FUNC]]),"YES",IF(_xlfn.ISFORMULA(tblDeprExpJune19[[#This Row],[FUNC]]),"NO","YES"))) -> NO
A62: =CONCATENATE(tblDeprExpJune19[[#This Row],[Primary Account]],tblDeprExpJune19[[#This Row],[Primary Name]],tblDeprExpJune19[[#This Row],[Secondary Acct]],tblDeprExpJune19[[#This Row],[Secondary Name]],tblDeprExpJune19[[#This Row],[Alloc4Func]]) -> 4030000DEPN EXPENSE-ELECT3602000LAND RIGHTSSITUS | B62: 4030000 | C62: DEPN EXPENSE-ELECT | D62: 3602000 | E62: LAND RIGHTS | F62: UT | G62: 184.67504 | H62: =IF(OR(tblDeprExpJune19[[#This Row],[Alloc]]="IDU",tblDeprExpJune19[[#This Row],[Alloc]]="OR",tblDeprExpJune19[[#This Row],[Alloc]]="UT",tblDeprExpJune19[[#This Row],[Alloc]]="WYU",tblDeprExpJune19[[#This Row],[Alloc]]="WYP",tblDeprExpJune19[[#This Row],[Alloc]]="CA",tblDeprExpJune19[[#This Row],[Alloc]]="WA"),"SITUS",tblDeprExpJune19[[#This Row],[Alloc]]) -> SITUS | I62: =INDEX(tblDeprExpLookup[FUNC],MATCH(tblDeprExpJune19[[#This Row],[Concat]],tblDeprExpLookup[Concat],0)) -> DPW | J62: =IF(tblDeprExpJune19[[#This Row],[Total ($000)]]=0,"NO",IF(ISNA(tblDeprExpJune19[[#This Row],[FUNC]]),"YES",IF(_xlfn.ISFORMULA(tblDeprExpJune19[[#This Row],[FUNC]]),"NO","YES"))) -> NO
A63: =CONCATENATE(tblDeprExpJune19[[#This Row],[Primary Account]],tblDeprExpJune19[[#This Row],[Primary Name]],tblDeprExpJune19[[#This Row],[Secondary Acct]],tblDeprExpJune19[[#This Row],[Secondary Name]],tblDeprExpJune19[[#This Row],[Alloc4Func]]) -> 4030000DEPN EXPENSE-ELECT3602000LAND RIGHTSSITUS | B63: 4030000 | C63: DEPN EXPENSE-ELECT | D63: 3602000 | E63: LAND RIGHTS | F63: WA | G63: 7.60999 | H63: =IF(OR(tblDeprExpJune19[[#This Row],[Alloc]]="IDU",tblDeprExpJune19[[#This Row],[Alloc]]="OR",tblDeprExpJune19[[#This Row],[Alloc]]="UT",tblDeprExpJune19[[#This Row],[Alloc]]="WYU",tblDeprExpJune19[[#This Row],[Alloc]]="WYP",tblDeprExpJune19[[#This Row],[Alloc]]="CA",tblDeprExpJune19[[#This Row],[Alloc]]="WA"),"SITUS",tblDeprExpJune19[[#This Row],[Alloc]]) -> SITUS | I63: =INDEX(tblDeprExpLookup[FUNC],MATCH(tblDeprExpJune19[[#This Row],[Concat]],tblDeprExpLookup[Concat],0)) -> DPW | J63: =IF(tblDeprExpJune19[[#This Row],[Total ($000)]]=0,"NO",IF(ISNA(tblDeprExpJune19[[#This Row],[FUNC]]),"YES",IF(_xlfn.ISFORMULA(tblDeprExpJune19[[#This Row],[FUNC]]),"NO","YES"))) -> NO
A64: =CONCATENATE(tblDeprExpJune19[[#This Row],[Primary Account]],tblDeprExpJune19[[#This Row],[Primary Name]],tblDeprExpJune19[[#This Row],[Secondary Acct]],tblDeprExpJune19[[#This Row],[Secondary Name]],tblDeprExpJune19[[#This Row],[Alloc4Func]]) -> 4030000DEPN EXPENSE-ELECT3602000LAND RIGHTSSITUS | B64: 4030000 | C64: DEPN EXPENSE-ELECT | D64: 3602000 | E64: LAND RIGHTS | F64: WYP | G64: 43.04273 | H64: =IF(OR(tblDeprExpJune19[[#This Row],[Alloc]]="IDU",tblDeprExpJune19[[#This Row],[Alloc]]="OR",tblDeprExpJune19[[#This Row],[Alloc]]="UT",tblDeprExpJune19[[#This Row],[Alloc]]="WYU",tblDeprExpJune19[[#This Row],[Alloc]]="WYP",tblDeprExpJune19[[#This Row],[Alloc]]="CA",tblDeprExpJune19[[#This Row],[Alloc]]="WA"),"SITUS",tblDeprExpJune19[[#This Row],[Alloc]]) -> SITUS | I64: =INDEX(tblDeprExpLookup[FUNC],MATCH(tblDeprExpJune19[[#This Row],[Concat]],tblDeprExpLookup[Concat],0)) -> DPW | J64: =IF(tblDeprExpJune19[[#This Row],[Total ($000)]]=0,"NO",IF(ISNA(tblDeprExpJune19[[#This Row],[FUNC]]),"YES",IF(_xlfn.ISFORMULA(tblDeprExpJune19[[#This Row],[FUNC]]),"NO","YES"))) -> NO
A65: =CONCATENATE(tblDeprExpJune19[[#This Row],[Primary Account]],tblDeprExpJune19[[#This Row],[Primary Name]],tblDeprExpJune19[[#This Row],[Secondary Acct]],tblDeprExpJune19[[#This Row],[Secondary Name]],tblDeprExpJune19[[#This Row],[Alloc4Func]]) -> 4030000DEPN EXPENSE-ELECT3602000LAND RIGHTSSITUS | B65: 4030000 | C65: DEPN EXPENSE-ELECT | D65: 3602000 | E65: LAND RIGHTS | F65: WYU | G65: 79.91018 | H65: =IF(OR(tblDeprExpJune19[[#This Row],[Alloc]]="IDU",tblDeprExpJune19[[#This Row],[Alloc]]="OR",tblDeprExpJune19[[#This Row],[Alloc]]="UT",tblDeprExpJune19[[#This Row],[Alloc]]="WYU",tblDeprExpJune19[[#This Row],[Alloc]]="WYP",tblDeprExpJune19[[#This Row],[Alloc]]="CA",tblDeprExpJune19[[#This Row],[Alloc]]="WA"),"SITUS",tblDeprExpJune19[[#This Row],[Alloc]]) -> SITUS | I65: =INDEX(tblDeprExpLookup[FUNC],MATCH(tblDeprExpJune19[[#This Row],[Concat]],tblDeprExpLookup[Concat],0)) -> DPW | J65: =IF(tblDeprExpJune19[[#This Row],[Total ($000)]]=0,"NO",IF(ISNA(tblDeprExpJune19[[#This Row],[FUNC]]),"YES",IF(_xlfn.ISFORMULA(tblDeprExpJune19[[#This Row],[FUNC]]),"NO","YES"))) -> NO
A66: =CONCATENATE(tblDeprExpJune19[[#This Row],[Primary Account]],tblDeprExpJune19[[#This Row],[Primary Name]],tblDeprExpJune19[[#This Row],[Secondary Acct]],tblDeprExpJune19[[#This Row],[Secondary Name]],tblDeprExpJune19[[#This Row],[Alloc4Func]]) -> 4030000DEPN EXPENSE-ELECT3610000STRUCTURES & IMPROVEMENTSSITUS | B66: 4030000 | C66: DEPN EXPENSE-ELECT | D66: 3610000 | E66: STRUCTURES & IMPROVEMENTS | F66: CA | G66: 106.20262 | H66: =IF(OR(tblDeprExpJune19[[#This Row],[Alloc]]="IDU",tblDeprExpJune19[[#This Row],[Alloc]]="OR",tblDeprExpJune19[[#This Row],[Alloc]]="UT",tblDeprExpJune19[[#This Row],[Alloc]]="WYU",tblDeprExpJune19[[#This Row],[Alloc]]="WYP",tblDeprExpJune19[[#This Row],[Alloc]]="CA",tblDeprExpJune19[[#This Row],[Alloc]]="WA"),"SITUS",tblDeprExpJune19[[#This Row],[Alloc]]) -> SITUS | I66: =INDEX(tblDeprExpLookup[FUNC],MATCH(tblDeprExpJune19[[#This Row],[Concat]],tblDeprExpLookup[Concat],0)) -> DPW | J66: =IF(tblDeprExpJune19[[#This Row],[Total ($000)]]=0,"NO",IF(ISNA(tblDeprExpJune19[[#This Row],[FUNC]]),"YES",IF(_xlfn.ISFORMULA(tblDeprExpJune19[[#This Row],[FUNC]]),"NO","YES"))) -> NO
A67: =CONCATENATE(tblDeprExpJune19[[#This Row],[Primary Account]],tblDeprExpJune19[[#This Row],[Primary Name]],tblDeprExpJune19[[#This Row],[Secondary Acct]],tblDeprExpJune19[[#This Row],[Secondary Name]],tblDeprExpJune19[[#This Row],[Alloc4Func]]) -> 4030000DEPN EXPENSE-ELECT3610000STRUCTURES & IMPROVEMENTSSITUS | B67: 4030000 | C67: DEPN EXPENSE-ELECT | D67: 3610000 | E67: STRUCTURES & IMPROVEMENTS | F67: IDU | G67: 49.67583 | H67: =IF(OR(tblDeprExpJune19[[#This Row],[Alloc]]="IDU",tblDeprExpJune19[[#This Row],[Alloc]]="OR",tblDeprExpJune19[[#This Row],[Alloc]]="UT",tblDeprExpJune19[[#This Row],[Alloc]]="WYU",tblDeprExpJune19[[#This Row],[Alloc]]="WYP",tblDeprExpJune19[[#This Row],[Alloc]]="CA",tblDeprExpJune19[[#This Row],[Alloc]]="WA"),"SITUS",tblDeprExpJune19[[#This Row],[Alloc]]) -> SITUS | I67: =INDEX(tblDeprExpLookup[FUNC],MATCH(tblDeprExpJune19[[#This Row],[Concat]],tblDeprExpLookup[Concat],0)) -> DPW | J67: =IF(tblDeprExpJune19[[#This Row],[Total ($000)]]=0,"NO",IF(ISNA(tblDeprExpJune19[[#This Row],[FUNC]]),"YES",IF(_xlfn.ISFORMULA(tblDeprExpJune19[[#This Row],[FUNC]]),"NO","YES"))) -> NO
A68: =CONCATENATE(tblDeprExpJune19[[#This Row],[Primary Account]],tblDeprExpJune19[[#This Row],[Primary Name]],tblDeprExpJune19[[#This Row],[Secondary Acct]],tblDeprExpJune19[[#This Row],[Secondary Name]],tblDeprExpJune19[[#This Row],[Alloc4Func]]) -> 4030000DEPN EXPENSE-ELECT3610000STRUCTURES & IMPROVEMENTSSITUS | B68: 4030000 | C68: DEPN EXPENSE-ELECT | D68: 3610000 | E68: STRUCTURES & IMPROVEMENTS | F68: OR | G68: 572.19455 | H68: =IF(OR(tblDeprExpJune19[[#This Row],[Alloc]]="IDU",tblDeprExpJune19[[#This Row],[Alloc]]="OR",tblDeprExpJune19[[#This Row],[Alloc]]="UT",tblDeprExpJune19[[#This Row],[Alloc]]="WYU",tblDeprExpJune19[[#This Row],[Alloc]]="WYP",tblDeprExpJune19[[#This Row],[Alloc]]="CA",tblDeprExpJune19[[#This Row],[Alloc]]="WA"),"SITUS",tblDeprExpJune19[[#This Row],[Alloc]]) -> SITUS | I68: =INDEX(tblDeprExpLookup[FUNC],MATCH(tblDeprExpJune19[[#This Row],[Concat]],tblDeprExpLookup[Concat],0)) -> DPW | J68: =IF(tblDeprExpJune19[[#This Row],[Total ($000)]]=0,"NO",IF(ISNA(tblDeprExpJune19[[#This Row],[FUNC]]),"YES",IF(_xlfn.ISFORMULA(tblDeprExpJune19[[#This Row],[FUNC]]),"NO","YES"))) -> NO
A69: =CONCATENATE(tblDeprExpJune19[[#This Row],[Primary Account]],tblDeprExpJune19[[#This Row],[Primary Name]],tblDeprExpJune19[[#This Row],[Secondary Acct]],tblDeprExpJune19[[#This Row],[Secondary Name]],tblDeprExpJune19[[#This Row],[Alloc4Func]]) -> 4030000DEPN EXPENSE-ELECT3610000STRUCTURES & IMPROVEMENTSSITUS | B69: 4030000 | C69: DEPN EXPENSE-ELECT | D69: 3610000 | E69: STRUCTURES & IMPROVEMENTS | F69: UT | G69: 956.27451 | H69: =IF(OR(tblDeprExpJune19[[#This Row],[Alloc]]="IDU",tblDeprExpJune19[[#This Row],[Alloc]]="OR",tblDeprExpJune19[[#This Row],[Alloc]]="UT",tblDeprExpJune19[[#This Row],[Alloc]]="WYU",tblDeprExpJune19[[#This Row],[Alloc]]="WYP",tblDeprExpJune19[[#This Row],[Alloc]]="CA",tblDeprExpJune19[[#This Row],[Alloc]]="WA"),"SITUS",tblDeprExpJune19[[#This Row],[Alloc]]) -> SITUS | I69: =INDEX(tblDeprExpLookup[FUNC],MATCH(tblDeprExpJune19[[#This Row],[Concat]],tblDeprExpLookup[Concat],0)) -> DPW | J69: =IF(tblDeprExpJune19[[#This Row],[Total ($000)]]=0,"NO",IF(ISNA(tblDeprExpJune19[[#This Row],[FUNC]]),"YES",IF(_xlfn.ISFORMULA(tblDeprExpJune19[[#This Row],[FUNC]]),"NO","YES"))) -> NO
A70: =CONCATENATE(tblDeprExpJune19[[#This Row],[Primary Account]],tblDeprExpJune19[[#This Row],[Primary Name]],tblDeprExpJune19[[#This Row],[Secondary Acct]],tblDeprExpJune19[[#This Row],[Secondary Name]],tblDeprExpJune19[[#This Row],[Alloc4Func]]) -> 4030000DEPN EXPENSE-ELECT3610000STRUCTURES & IMPROVEMENTSSITUS | B70: 4030000 | C70: DEPN EXPENSE-ELECT | D70: 3610000 | E70: STRUCTURES & IMPROVEMENTS | F70: WA | G70: 88.42767 | H70: =IF(OR(tblDeprExpJune19[[#This Row],[Alloc]]="IDU",tblDeprExpJune19[[#This Row],[Alloc]]="OR",tblDeprExpJune19[[#This Row],[Alloc]]="UT",tblDeprExpJune19[[#This Row],[Alloc]]="WYU",tblDeprExpJune19[[#This Row],[Alloc]]="WYP",tblDeprExpJune19[[#This Row],[Alloc]]="CA",tblDeprExpJune19[[#This Row],[Alloc]]="WA"),"SITUS",tblDeprExpJune19[[#This Row],[Alloc]]) -> SITUS | I70: =INDEX(tblDeprExpLookup[FUNC],MATCH(tblDeprExpJune19[[#This Row],[Concat]],tblDeprExpLookup[Concat],0)) -> DPW | J70: =IF(tblDeprExpJune19[[#This Row],[Total ($000)]]=0,"NO",IF(ISNA(tblDeprExpJune19[[#This Row],[FUNC]]),"YES",IF(_xlfn.ISFORMULA(tblDeprExpJune19[[#This Row],[FUNC]]),"NO","YES"))) -> NO
A71: =CONCATENATE(tblDeprExpJune19[[#This Row],[Primary Account]],tblDeprExpJune19[[#This Row],[Primary Name]],tblDeprExpJune19[[#This Row],[Secondary Acct]],tblDeprExpJune19[[#This Row],[Secondary Name]],tblDeprExpJune19[[#This Row],[Alloc4Func]]) -> 4030000DEPN EXPENSE-ELECT3610000STRUCTURES & IMPROVEMENTSSITUS | B71: 4030000 | C71: DEPN EXPENSE-ELECT | D71: 3610000 | E71: STRUCTURES & IMPROVEMENTS | F71: WYP | G71: 223.71132 | H71: =IF(OR(tblDeprExpJune19[[#This Row],[Alloc]]="IDU",tblDeprExpJune19[[#This Row],[Alloc]]="OR",tblDeprExpJune19[[#This Row],[Alloc]]="UT",tblDeprExpJune19[[#This Row],[Alloc]]="WYU",tblDeprExpJune19[[#This Row],[Alloc]]="WYP",tblDeprExpJune19[[#This Row],[Alloc]]="CA",tblDeprExpJune19[[#This Row],[Alloc]]="WA"),"SITUS",tblDeprExpJune19[[#This Row],[Alloc]]) -> SITUS | I71: =INDEX(tblDeprExpLookup[FUNC],MATCH(tblDeprExpJune19[[#This Row],[Concat]],tblDeprExpLookup[Concat],0)) -> DPW | J71: =IF(tblDeprExpJune19[[#This Row],[Total ($000)]]=0,"NO",IF(ISNA(tblDeprExpJune19[[#This Row],[FUNC]]),"YES",IF(_xlfn.ISFORMULA(tblDeprExpJune19[[#This Row],[FUNC]]),"NO","YES"))) -> NO
A72: =CONCATENATE(tblDeprExpJune19[[#This Row],[Primary Account]],tblDeprExpJune19[[#This Row],[Primary Name]],tblDeprExpJune19[[#This Row],[Secondary Acct]],tblDeprExpJune19[[#This Row],[Secondary Name]],tblDeprExpJune19[[#This Row],[Alloc4Func]]) -> 4030000DEPN EXPENSE-ELECT3610000STRUCTURES & IMPROVEMENTSSITUS | B72: 4030000 | C72: DEPN EXPENSE-ELECT | D72: 3610000 | E72: STRUCTURES & IMPROVEMENTS | F72: WYU | G72: 88.66464 | H72: =IF(OR(tblDeprExpJune19[[#This Row],[Alloc]]="IDU",tblDeprExpJune19[[#This Row],[Alloc]]="OR",tblDeprExpJune19[[#This Row],[Alloc]]="UT",tblDeprExpJune19[[#This Row],[Alloc]]="WYU",tblDeprExpJune19[[#This Row],[Alloc]]="WYP",tblDeprExpJune19[[#This Row],[Alloc]]="CA",tblDeprExpJune19[[#This Row],[Alloc]]="WA"),"SITUS",tblDeprExpJune19[[#This Row],[Alloc]]) -> SITUS | I72: =INDEX(tblDeprExpLookup[FUNC],MATCH(tblDeprExpJune19[[#This Row],[Concat]],tblDeprExpLookup[Concat],0)) -> DPW | J72: =IF(tblDeprExpJune19[[#This Row],[Total ($000)]]=0,"NO",IF(ISNA(tblDeprExpJune19[[#This Row],[FUNC]]),"YES",IF(_xlfn.ISFORMULA(tblDeprExpJune19[[#This Row],[FUNC]]),"NO","YES"))) -> NO
A73: =CONCATENATE(tblDeprExpJune19[[#This Row],[Primary Account]],tblDeprExpJune19[[#This Row],[Primary Name]],tblDeprExpJune19[[#This Row],[Secondary Acct]],tblDeprExpJune19[[#This Row],[Secondary Name]],tblDeprExpJune19[[#This Row],[Alloc4Func]]) -> 4030000DEPN EXPENSE-ELECT3620000STATION EQUIPMENTSITUS | B73: 4030000 | C73: DEPN EXPENSE-ELECT | D73: 3620000 | E73: STATION EQUIPMENT | F73: CA | G73: 701.35087 | H73: =IF(OR(tblDeprExpJune19[[#This Row],[Alloc]]="IDU",tblDeprExpJune19[[#This Row],[Alloc]]="OR",tblDeprExpJune19[[#This Row],[Alloc]]="UT",tblDeprExpJune19[[#This Row],[Alloc]]="WYU",tblDeprExpJune19[[#This Row],[Alloc]]="WYP",tblDeprExpJune19[[#This Row],[Alloc]]="CA",tblDeprExpJune19[[#This Row],[Alloc]]="WA"),"SITUS",tblDeprExpJune19[[#This Row],[Alloc]]) -> SITUS | I73: =INDEX(tblDeprExpLookup[FUNC],MATCH(tblDeprExpJune19[[#This Row],[Concat]],tblDeprExpLookup[Concat],0)) -> DPW | J73: =IF(tblDeprExpJune19[[#This Row],[Total ($000)]]=0,"NO",IF(ISNA(tblDeprExpJune19[[#This Row],[FUNC]]),"YES",IF(_xlfn.ISFORMULA(tblDeprExpJune19[[#This Row],[FUNC]]),"NO","YES"))) -> NO
A74: =CONCATENATE(tblDeprExpJune19[[#This Row],[Primary Account]],tblDeprExpJune19[[#This Row],[Primary Name]],tblDeprExpJune19[[#This Row],[Secondary Acct]],tblDeprExpJune19[[#This Row],[Secondary Name]],tblDeprExpJune19[[#This Row],[Alloc4Func]]) -> 4030000DEPN EXPENSE-ELECT3620000STATION EQUIPMENTSITUS | B74: 4030000 | C74: DEPN EXPENSE-ELECT | D74: 3620000 | E74: STATION EQUIPMENT | F74: IDU | G74: 690.87374 | H74: =IF(OR(tblDeprExpJune19[[#This Row],[Alloc]]="IDU",tblDeprExpJune19[[#This Row],[Alloc]]="OR",tblDeprExpJune19[[#This Row],[Alloc]]="UT",tblDeprExpJune19[[#This Row],[Alloc]]="WYU",tblDeprExpJune19[[#This Row],[Alloc]]="WYP",tblDeprExpJune19[[#This Row],[Alloc]]="CA",tblDeprExpJune19[[#This Row],[Alloc]]="WA"),"SITUS",tblDeprExpJune19[[#This Row],[Alloc]]) -> SITUS | I74: =INDEX(tblDeprExpLookup[FUNC],MATCH(tblDeprExpJune19[[#This Row],[Concat]],tblDeprExpLookup[Concat],0)) -> DPW | J74: =IF(tblDeprExpJune19[[#This Row],[Total ($000)]]=0,"NO",IF(ISNA(tblDeprExpJune19[[#This Row],[FUNC]]),"YES",IF(_xlfn.ISFORMULA(tblDeprExpJune19[[#This Row],[FUNC]]),"NO","YES"))) -> NO
A75: =CONCATENATE(tblDeprExpJune19[[#This Row],[Primary Account]],tblDeprExpJune19[[#This Row],[Primary Name]],tblDeprExpJune19[[#This Row],[Secondary Acct]],tblDeprExpJune19[[#This Row],[Secondary Name]],tblDeprExpJune19[[#This Row],[Alloc4Func]]) -> 4030000DEPN EXPENSE-ELECT3620000STATION EQUIPMENTSITUS | B75: 4030000 | C75: DEPN EXPENSE-ELECT | D75: 3620000 | E75: STATION EQUIPMENT | F75: OR | G75: 4891.58617 | H75: =IF(OR(tblDeprExpJune19[[#This Row],[Alloc]]="IDU",tblDeprExpJune19[[#This Row],[Alloc]]="OR",tblDeprExpJune19[[#This Row],[Alloc]]="UT",tblDeprExpJune19[[#This Row],[Alloc]]="WYU",tblDeprExpJune19[[#This Row],[Alloc]]="WYP",tblDeprExpJune19[[#This Row],[Alloc]]="CA",tblDeprExpJune19[[#This Row],[Alloc]]="WA"),"SITUS",tblDeprExpJune19[[#This Row],[Alloc]]) -> SITUS | I75: =INDEX(tblDeprExpLookup[FUNC],MATCH(tblDeprExpJune19[[#This Row],[Concat]],tblDeprExpLookup[Concat],0)) -> DPW | J75: =IF(tblDeprExpJune19[[#This Row],[Total ($000)]]=0,"NO",IF(ISNA(tblDeprExpJune19[[#This Row],[FUNC]]),"YES",IF(_xlfn.ISFORMULA(tblDeprExpJune19[[#This Row],[FUNC]]),"NO","YES"))) -> NO
A76: =CONCATENATE(tblDeprExpJune19[[#This Row],[Primary Account]],tblDeprExpJune19[[#This Row],[Primary Name]],tblDeprExpJune19[[#This Row],[Secondary Acct]],tblDeprExpJune19[[#This Row],[Secondary Name]],tblDeprExpJune19[[#This Row],[Alloc4Func]]) -> 4030000DEPN EXPENSE-ELECT3620000STATION EQUIPMENTSITUS | B76: 4030000 | C76: DEPN EXPENSE-ELECT | D76: 3620000 | E76: STATION EQUIPMENT | F76: UT | G76: 11102.39457 | H76: =IF(OR(tblDeprExpJune19[[#This Row],[Alloc]]="IDU",tblDeprExpJune19[[#This Row],[Alloc]]="OR",tblDeprExpJune19[[#This Row],[Alloc]]="UT",tblDeprExpJune19[[#This Row],[Alloc]]="WYU",tblDeprExpJune19[[#This Row],[Alloc]]="WYP",tblDeprExpJune19[[#This Row],[Alloc]]="CA",tblDeprExpJune19[[#This Row],[Alloc]]="WA"),"SITUS",tblDeprExpJune19[[#This Row],[Alloc]]) -> SITUS | I76: =INDEX(tblDeprExpLookup[FUNC],MATCH(tblDeprExpJune19[[#This Row],[Concat]],tblDeprExpLookup[Concat],0)) -> DPW | J76: =IF(tblDeprExpJune19[[#This Row],[Total ($000)]]=0,"NO",IF(ISNA(tblDeprExpJune19[[#This Row],[FUNC]]),"YES",IF(_xlfn.ISFORMULA(tblDeprExpJune19[[#This Row],[FUNC]]),"NO","YES"))) -> NO
A77: =CONCATENATE(tblDeprExpJune19[[#This Row],[Primary Account]],tblDeprExpJune19[[#This Row],[Primary Name]],tblDeprExpJune19[[#This Row],[Secondary Acct]],tblDeprExpJune19[[#This Row],[Secondary Name]],tblDeprExpJune19[[#This Row],[Alloc4Func]]) -> 4030000DEPN EXPENSE-ELECT3620000STATION EQUIPMENTSITUS | B77: 4030000 | C77: DEPN EXPENSE-ELECT | D77: 3620000 | E77: STATION EQUIPMENT | F77: WA | G77: 1545.82132 | H77: =IF(OR(tblDeprExpJune19[[#This Row],[Alloc]]="IDU",tblDeprExpJune19[[#This Row],[Alloc]]="OR",tblDeprExpJune19[[#This Row],[Alloc]]="UT",tblDeprExpJune19[[#This Row],[Alloc]]="WYU",tblDeprExpJune19[[#This Row],[Alloc]]="WYP",tblDeprExpJune19[[#This Row],[Alloc]]="CA",tblDeprExpJune19[[#This Row],[Alloc]]="WA"),"SITUS",tblDeprExpJune19[[#This Row],[Alloc]]) -> SITUS | I77: =INDEX(tblDeprExpLookup[FUNC],MATCH(tblDeprExpJune19[[#This Row],[Concat]],tblDeprExpLookup[Concat],0)) -> DPW | J77: =IF(tblDeprExpJune19[[#This Row],[Total ($000)]]=0,"NO",IF(ISNA(tblDeprExpJune19[[#This Row],[FUNC]]),"YES",IF(_xlfn.ISFORMULA(tblDeprExpJune19[[#This Row],[FUNC]]),"NO","YES"))) -> NO
A78: =CONCATENATE(tblDeprExpJune19[[#This Row],[Primary Account]],tblDeprExpJune19[[#This Row],[Primary Name]],tblDeprExpJune19[[#This Row],[Secondary Acct]],tblDeprExpJune19[[#This Row],[Secondary Name]],tblDeprExpJune19[[#This Row],[Alloc4Func]]) -> 4030000DEPN EXPENSE-ELECT3620000STATION EQUIPMENTSITUS | B78: 4030000 | C78: DEPN EXPENSE-ELECT | D78: 3620000 | E78: STATION EQUIPMENT | F78: WYP | G78: 2327.26498 | H78: =IF(OR(tblDeprExpJune19[[#This Row],[Alloc]]="IDU",tblDeprExpJune19[[#This Row],[Alloc]]="OR",tblDeprExpJune19[[#This Row],[Alloc]]="UT",tblDeprExpJune19[[#This Row],[Alloc]]="WYU",tblDeprExpJune19[[#This Row],[Alloc]]="WYP",tblDeprExpJune19[[#This Row],[Alloc]]="CA",tblDeprExpJune19[[#This Row],[Alloc]]="WA"),"SITUS",tblDeprExpJune19[[#This Row],[Alloc]]) -> SITUS | I78: =INDEX(tblDeprExpLookup[FUNC],MATCH(tblDeprExpJune19[[#This Row],[Concat]],tblDeprExpLookup[Concat],0)) -> DPW | J78: =IF(tblDeprExpJune19[[#This Row],[Total ($000)]]=0,"NO",IF(ISNA(tblDeprExpJune19[[#This Row],[FUNC]]),"YES",IF(_xlfn.ISFORMULA(tblDeprExpJune19[[#This Row],[FUNC]]),"NO","YES"))) -> NO
A79: =CONCATENATE(tblDeprExpJune19[[#This Row],[Primary Account]],tblDeprExpJune19[[#This Row],[Primary Name]],tblDeprExpJune19[[#This Row],[Secondary Acct]],tblDeprExpJune19[[#This Row],[Secondary Name]],tblDeprExpJune19[[#This Row],[Alloc4Func]]) -> 4030000DEPN EXPENSE-ELECT3620000STATION EQUIPMENTSITUS | B79: 4030000 | C79: DEPN EXPENSE-ELECT | D79: 3620000 | E79: STATION EQUIPMENT | F79: WYU | G79: 363.98189 | H79: =IF(OR(tblDeprExpJune19[[#This Row],[Alloc]]="IDU",tblDeprExpJune19[[#This Row],[Alloc]]="OR",tblDeprExpJune19[[#This Row],[Alloc]]="UT",tblDeprExpJune19[[#This Row],[Alloc]]="WYU",tblDeprExpJune19[[#This Row],[Alloc]]="WYP",tblDeprExpJune19[[#This Row],[Alloc]]="CA",tblDeprExpJune19[[#This Row],[Alloc]]="WA"),"SITUS",tblDeprExpJune19[[#This Row],[Alloc]]) -> SITUS | I79: =INDEX(tblDeprExpLookup[FUNC],MATCH(tblDeprExpJune19[[#This Row],[Concat]],tblDeprExpLookup[Concat],0)) -> DPW | J79: =IF(tblDeprExpJune19[[#This Row],[Total ($000)]]=0,"NO",IF(ISNA(tblDeprExpJune19[[#This Row],[FUNC]]),"YES",IF(_xlfn.ISFORMULA(tblDeprExpJune19[[#This Row],[FUNC]]),"NO","YES"))) -> NO
A80: =CONCATENATE(tblDeprExpJune19[[#This Row],[Primary Account]],tblDeprExpJune19[[#This Row],[Primary Name]],tblDeprExpJune19[[#This Row],[Secondary Acct]],tblDeprExpJune19[[#This Row],[Secondary Name]],tblDeprExpJune19[[#This Row],[Alloc4Func]]) -> 4030000DEPN EXPENSE-ELECT3627000STATION EQUIPMENT-SUPERVISORY & ALARMSITUS | B80: 4030000 | C80: DEPN EXPENSE-ELECT | D80: 3627000 | E80: STATION EQUIPMENT-SUPERVISORY & ALARM | F80: CA | G80: 28.50228 | H80: =IF(OR(tblDeprExpJune19[[#This Row],[Alloc]]="IDU",tblDeprExpJune19[[#This Row],[Alloc]]="OR",tblDeprExpJune19[[#This Row],[Alloc]]="UT",tblDeprExpJune19[[#This Row],[Alloc]]="WYU",tblDeprExpJune19[[#This Row],[Alloc]]="WYP",tblDeprExpJune19[[#This Row],[Alloc]]="CA",tblDeprExpJune19[[#This Row],[Alloc]]="WA"),"SITUS",tblDeprExpJune19[[#This Row],[Alloc]]) -> SITUS | I80: =INDEX(tblDeprExpLookup[FUNC],MATCH(tblDeprExpJune19[[#This Row],[Concat]],tblDeprExpLookup[Concat],0)) -> DPW | J80: =IF(tblDeprExpJune19[[#This Row],[Total ($000)]]=0,"NO",IF(ISNA(tblDeprExpJune19[[#This Row],[FUNC]]),"YES",IF(_xlfn.ISFORMULA(tblDeprExpJune19[[#This Row],[FUNC]]),"NO","YES"))) -> NO
A81: =CONCATENATE(tblDeprExpJune19[[#This Row],[Primary Account]],tblDeprExpJune19[[#This Row],[Primary Name]],tblDeprExpJune19[[#This Row],[Secondary Acct]],tblDeprExpJune19[[#This Row],[Secondary Name]],tblDeprExpJune19[[#This Row],[Alloc4Func]]) -> 4030000DEPN EXPENSE-ELECT3627000STATION EQUIPMENT-SUPERVISORY & ALARMSITUS | B81: 4030000 | C81: DEPN EXPENSE-ELECT | D81: 3627000 | E81: STATION EQUIPMENT-SUPERVISORY & ALARM | F81: IDU | G81: 10.74281 | H81: =IF(OR(tblDeprExpJune19[[#This Row],[Alloc]]="IDU",tblDeprExpJune19[[#This Row],[Alloc]]="OR",tblDeprExpJune19[[#This Row],[Alloc]]="UT",tblDeprExpJune19[[#This Row],[Alloc]]="WYU",tblDeprExpJune19[[#This Row],[Alloc]]="WYP",tblDeprExpJune19[[#This Row],[Alloc]]="CA",tblDeprExpJune19[[#This Row],[Alloc]]="WA"),"SITUS",tblDeprExpJune19[[#This Row],[Alloc]]) -> SITUS | I81: =INDEX(tblDeprExpLookup[FUNC],MATCH(tblDeprExpJune19[[#This Row],[Concat]],tblDeprExpLookup[Concat],0)) -> DPW | J81: =IF(tblDeprExpJune19[[#This Row],[Total ($000)]]=0,"NO",IF(ISNA(tblDeprExpJune19[[#This Row],[FUNC]]),"YES",IF(_xlfn.ISFORMULA(tblDeprExpJune19[[#This Row],[FUNC]]),"NO","YES"))) -> NO
A82: =CONCATENATE(tblDeprExpJune19[[#This Row],[Primary Account]],tblDeprExpJune19[[#This Row],[Primary Name]],tblDeprExpJune19[[#This Row],[Secondary Acct]],tblDeprExpJune19[[#This Row],[Secondary Name]],tblDeprExpJune19[[#This Row],[Alloc4Func]]) -> 4030000DEPN EXPENSE-ELECT3627000STATION EQUIPMENT-SUPERVISORY & ALARMSITUS | B82: 4030000 | C82: DEPN EXPENSE-ELECT | D82: 3627000 | E82: STATION EQUIPMENT-SUPERVISORY & ALARM | F82: OR | G82: 77.96764 | H82: =IF(OR(tblDeprExpJune19[[#This Row],[Alloc]]="IDU",tblDeprExpJune19[[#This Row],[Alloc]]="OR",tblDeprExpJune19[[#This Row],[Alloc]]="UT",tblDeprExpJune19[[#This Row],[Alloc]]="WYU",tblDeprExpJune19[[#This Row],[Alloc]]="WYP",tblDeprExpJune19[[#This Row],[Alloc]]="CA",tblDeprExpJune19[[#This Row],[Alloc]]="WA"),"SITUS",tblDeprExpJune19[[#This Row],[Alloc]]) -> SITUS | I82: =INDEX(tblDeprExpLookup[FUNC],MATCH(tblDeprExpJune19[[#This Row],[Concat]],tblDeprExpLookup[Concat],0)) -> DPW | J82: =IF(tblDeprExpJune19[[#This Row],[Total ($000)]]=0,"NO",IF(ISNA(tblDeprExpJune19[[#This Row],[FUNC]]),"YES",IF(_xlfn.ISFORMULA(tblDeprExpJune19[[#This Row],[FUNC]]),"NO","YES"))) -> NO
A83: =CONCATENATE(tblDeprExpJune19[[#This Row],[Primary Account]],tblDeprExpJune19[[#This Row],[Primary Name]],tblDeprExpJune19[[#This Row],[Secondary Acct]],tblDeprExpJune19[[#This Row],[Secondary Name]],tblDeprExpJune19[[#This Row],[Alloc4Func]]) -> 4030000DEPN EXPENSE-ELECT3627000STATION EQUIPMENT-SUPERVISORY & ALARMSITUS | B83: 4030000 | C83: DEPN EXPENSE-ELECT | D83: 3627000 | E83: STATION EQUIPMENT-SUPERVISORY & ALARM | F83: UT | G83: 164.72662 | H83: =IF(OR(tblDeprExpJune19[[#This Row],[Alloc]]="IDU",tblDeprExpJune19[[#This Row],[Alloc]]="OR",tblDeprExpJune19[[#This Row],[Alloc]]="UT",tblDeprExpJune19[[#This Row],[Alloc]]="WYU",tblDeprExpJune19[[#This Row],[Alloc]]="WYP",tblDeprExpJune19[[#This Row],[Alloc]]="CA",tblDeprExpJune19[[#This Row],[Alloc]]="WA"),"SITUS",tblDeprExpJune19[[#This Row],[Alloc]]) -> SITUS | I83: =INDEX(tblDeprExpLookup[FUNC],MATCH(tblDeprExpJune19[[#This Row],[Concat]],tblDeprExpLookup[Concat],0)) -> DPW | J83: =IF(tblDeprExpJune19[[#This Row],[Total ($000)]]=0,"NO",IF(ISNA(tblDeprExpJune19[[#This Row],[FUNC]]),"YES",IF(_xlfn.ISFORMULA(tblDeprExpJune19[[#This Row],[FUNC]]),"NO","YES"))) -> NO
A84: =CONCATENATE(tblDeprExpJune19[[#This Row],[Primary Account]],tblDeprExpJune19[[#This Row],[Primary Name]],tblDeprExpJune19[[#This Row],[Secondary Acct]],tblDeprExpJune19[[#This Row],[Secondary Name]],tblDeprExpJune19[[#This Row],[Alloc4Func]]) -> 4030000DEPN EXPENSE-ELECT3627000STATION EQUIPMENT-SUPERVISORY & ALARMSITUS | B84: 4030000 | C84: DEPN EXPENSE-ELECT | D84: 3627000 | E84: STATION EQUIPMENT-SUPERVISORY & ALARM | F84: WA | G84: 27.07657 | H84: =IF(OR(tblDeprExpJune19[[#This Row],[Alloc]]="IDU",tblDeprExpJune19[[#This Row],[Alloc]]="OR",tblDeprExpJune19[[#This Row],[Alloc]]="UT",tblDeprExpJune19[[#This Row],[Alloc]]="WYU",tblDeprExpJune19[[#This Row],[Alloc]]="WYP",tblDeprExpJune19[[#This Row],[Alloc]]="CA",tblDeprExpJune19[[#This Row],[Alloc]]="WA"),"SITUS",tblDeprExpJune19[[#This Row],[Alloc]]) -> SITUS | I84: =INDEX(tblDeprExpLookup[FUNC],MATCH(tblDeprExpJune19[[#This Row],[Concat]],tblDeprExpLookup[Concat],0)) -> DPW | J84: =IF(tblDeprExpJune19[[#This Row],[Total ($000)]]=0,"NO",IF(ISNA(tblDeprExpJune19[[#This Row],[FUNC]]),"YES",IF(_xlfn.ISFORMULA(tblDeprExpJune19[[#This Row],[FUNC]]),"NO","YES"))) -> NO
A85: =CONCATENATE(tblDeprExpJune19[[#This Row],[Primary Account]],tblDeprExpJune19[[#This Row],[Primary Name]],tblDeprExpJune19[[#This Row],[Secondary Acct]],tblDeprExpJune19[[#This Row],[Secondary Name]],tblDeprExpJune19[[#This Row],[Alloc4Func]]) -> 4030000DEPN EXPENSE-ELECT3627000STATION EQUIPMENT-SUPERVISORY & ALARMSITUS | B85: 4030000 | C85: DEPN EXPENSE-ELECT | D85: 3627000 | E85: STATION EQUIPMENT-SUPERVISORY & ALARM | F85: WYP | G85: 39.51737 | H85: =IF(OR(tblDeprExpJune19[[#This Row],[Alloc]]="IDU",tblDeprExpJune19[[#This Row],[Alloc]]="OR",tblDeprExpJune19[[#This Row],[Alloc]]="UT",tblDeprExpJune19[[#This Row],[Alloc]]="WYU",tblDeprExpJune19[[#This Row],[Alloc]]="WYP",tblDeprExpJune19[[#This Row],[Alloc]]="CA",tblDeprExpJune19[[#This Row],[Alloc]]="WA"),"SITUS",tblDeprExpJune19[[#This Row],[Alloc]]) -> SITUS | I85: =INDEX(tblDeprExpLookup[FUNC],MATCH(tblDeprExpJune19[[#This Row],[Concat]],tblDeprExpLookup[Concat],0)) -> DPW | J85: =IF(tblDeprExpJune19[[#This Row],[Total ($000)]]=0,"NO",IF(ISNA(tblDeprExpJune19[[#This Row],[FUNC]]),"YES",IF(_xlfn.ISFORMULA(tblDeprExpJune19[[#This Row],[FUNC]]),"NO","YES"))) -> NO
A86: =CONCATENATE(tblDeprExpJune19[[#This Row],[Primary Account]],tblDeprExpJune19[[#This Row],[Primary Name]],tblDeprExpJune19[[#This Row],[Secondary Acct]],tblDeprExpJune19[[#This Row],[Secondary Name]],tblDeprExpJune19[[#This Row],[Alloc4Func]]) -> 4030000DEPN EXPENSE-ELECT3627000STATION EQUIPMENT-SUPERVISORY & ALARMSITUS | B86: 4030000 | C86: DEPN EXPENSE-ELECT | D86: 3627000 | E86: STATION EQUIPMENT-SUPERVISORY & ALARM | F86: WYU | G86: 4.67809 | H86: =IF(OR(tblDeprExpJune19[[#This Row],[Alloc]]="IDU",tblDeprExpJune19[[#This Row],[Alloc]]="OR",tblDeprExpJune19[[#This Row],[Alloc]]="UT",tblDeprExpJune19[[#This Row],[Alloc]]="WYU",tblDeprExpJune19[[#This Row],[Alloc]]="WYP",tblDeprExpJune19[[#This Row],[Alloc]]="CA",tblDeprExpJune19[[#This Row],[Alloc]]="WA"),"SITUS",tblDeprExpJune19[[#This Row],[Alloc]]) -> SITUS | I86: =INDEX(tblDeprExpLookup[FUNC],MATCH(tblDeprExpJune19[[#This Row],[Concat]],tblDeprExpLookup[Concat],0)) -> DPW | J86: =IF(tblDeprExpJune19[[#This Row],[Total ($000)]]=0,"NO",IF(ISNA(tblDeprExpJune19[[#This Row],[FUNC]]),"YES",IF(_xlfn.ISFORMULA(tblDeprExpJune19[[#This Row],[FUNC]]),"NO","YES"))) -> NO
A87: =CONCATENATE(tblDeprExpJune19[[#This Row],[Primary Account]],tblDeprExpJune19[[#This Row],[Primary Name]],tblDeprExpJune19[[#This Row],[Secondary Acct]],tblDeprExpJune19[[#This Row],[Secondary Name]],tblDeprExpJune19[[#This Row],[Alloc4Func]]) -> 4030000DEPN EXPENSE-ELECT3640000"POLES, TOWERS AND FIXTURES"SITUS | B87: 4030000 | C87: DEPN EXPENSE-ELECT | D87: 3640000 | E87: "POLES, TOWERS AND FIXTURES" | F87: CA | G87: 2617.30495 | H87: =IF(OR(tblDeprExpJune19[[#This Row],[Alloc]]="IDU",tblDeprExpJune19[[#This Row],[Alloc]]="OR",tblDeprExpJune19[[#This Row],[Alloc]]="UT",tblDeprExpJune19[[#This Row],[Alloc]]="WYU",tblDeprExpJune19[[#This Row],[Alloc]]="WYP",tblDeprExpJune19[[#This Row],[Alloc]]="CA",tblDeprExpJune19[[#This Row],[Alloc]]="WA"),"SITUS",tblDeprExpJune19[[#This Row],[Alloc]]) -> SITUS | I87: =INDEX(tblDeprExpLookup[FUNC],MATCH(tblDeprExpJune19[[#This Row],[Concat]],tblDeprExpLookup[Concat],0)) -> DPW | J87: =IF(tblDeprExpJune19[[#This Row],[Total ($000)]]=0,"NO",IF(ISNA(tblDeprExpJune19[[#This Row],[FUNC]]),"YES",IF(_xlfn.ISFORMULA(tblDeprExpJune19[[#This Row],[FUNC]]),"NO","YES"))) -> NO
A88: =CONCATENATE(tblDeprExpJune19[[#This Row],[Primary Account]],tblDeprExpJune19[[#This Row],[Primary Name]],tblDeprExpJune19[[#This Row],[Secondary Acct]],tblDeprExpJune19[[#This Row],[Secondary Name]],tblDeprExpJune19[[#This Row],[Alloc4Func]]) -> 4030000DEPN EXPENSE-ELECT3640000"POLES, TOWERS AND FIXTURES"SITUS | B88: 4030000 | C88: DEPN EXPENSE-ELECT | D88: 3640000 | E88: "POLES, TOWERS AND FIXTURES" | F88: IDU | G88: 3272.43888 | H88: =IF(OR(tblDeprExpJune19[[#This Row],[Alloc]]="IDU",tblDeprExpJune19[[#This Row],[Alloc]]="OR",tblDeprExpJune19[[#This Row],[Alloc]]="UT",tblDeprExpJune19[[#This Row],[Alloc]]="WYU",tblDeprExpJune19[[#This Row],[Alloc]]="WYP",tblDeprExpJune19[[#This Row],[Alloc]]="CA",tblDeprExpJune19[[#This Row],[Alloc]]="WA"),"SITUS",tblDeprExpJune19[[#This Row],[Alloc]]) -> SITUS | I88: =INDEX(tblDeprExpLookup[FUNC],MATCH(tblDeprExpJune19[[#This Row],[Concat]],tblDeprExpLookup[Concat],0)) -> DPW | J88: =IF(tblDeprExpJune19[[#This Row],[Total ($000)]]=0,"NO",IF(ISNA(tblDeprExpJune19[[#This Row],[FUNC]]),"YES",IF(_xlfn.ISFORMULA(tblDeprExpJune19[[#This Row],[FUNC]]),"NO","YES"))) -> NO
A89: =CONCATENATE(tblDeprExpJune19[[#This Row],[Primary Account]],tblDeprExpJune19[[#This Row],[Primary Name]],tblDeprExpJune19[[#This Row],[Secondary Acct]],tblDeprExpJune19[[#This Row],[Secondary Name]],tblDeprExpJune19[[#This Row],[Alloc4Func]]) -> 4030000DEPN EXPENSE-ELECT3640000"POLES, TOWERS AND FIXTURES"SITUS | B89: 4030000 | C89: DEPN EXPENSE-ELECT | D89: 3640000 | E89: "POLES, TOWERS AND FIXTURES" | F89: OR | G89: 12836.20946 | H89: =IF(OR(tblDeprExpJune19[[#This Row],[Alloc]]="IDU",tblDeprExpJune19[[#This Row],[Alloc]]="OR",tblDeprExpJune19[[#This Row],[Alloc]]="UT",tblDeprExpJune19[[#This Row],[Alloc]]="WYU",tblDeprExpJune19[[#This Row],[Alloc]]="WYP",tblDeprExpJune19[[#This Row],[Alloc]]="CA",tblDeprExpJune19[[#This Row],[Alloc]]="WA"),"SITUS",tblDeprExpJune19[[#This Row],[Alloc]]) -> SITUS | I89: =INDEX(tblDeprExpLookup[FUNC],MATCH(tblDeprExpJune19[[#This Row],[Concat]],tblDeprExpLookup[Concat],0)) -> DPW | J89: =IF(tblDeprExpJune19[[#This Row],[Total ($000)]]=0,"NO",IF(ISNA(tblDeprExpJune19[[#This Row],[FUNC]]),"YES",IF(_xlfn.ISFORMULA(tblDeprExpJune19[[#This Row],[FUNC]]),"NO","YES"))) -> NO
A90: =CONCATENATE(tblDeprExpJune19[[#This Row],[Primary Account]],tblDeprExpJune19[[#This Row],[Primary Name]],tblDeprExpJune19[[#This Row],[Secondary Acct]],tblDeprExpJune19[[#This Row],[Secondary Name]],tblDeprExpJune19[[#This Row],[Alloc4Func]]) -> 4030000DEPN EXPENSE-ELECT3640000"POLES, TOWERS AND FIXTURES"SITUS | B90: 4030000 | C90: DEPN EXPENSE-ELECT | D90: 3640000 | E90: "POLES, TOWERS AND FIXTURES" | F90: UT | G90: 14114.03808 | H90: =IF(OR(tblDeprExpJune19[[#This Row],[Alloc]]="IDU",tblDeprExpJune19[[#This Row],[Alloc]]="OR",tblDeprExpJune19[[#This Row],[Alloc]]="UT",tblDeprExpJune19[[#This Row],[Alloc]]="WYU",tblDeprExpJune19[[#This Row],[Alloc]]="WYP",tblDeprExpJune19[[#This Row],[Alloc]]="CA",tblDeprExpJune19[[#This Row],[Alloc]]="WA"),"SITUS",tblDeprExpJune19[[#This Row],[Alloc]]) -> SITUS | I90: =INDEX(tblDeprExpLookup[FUNC],MATCH(tblDeprExpJune19[[#This Row],[Concat]],tblDeprExpLookup[Concat],0)) -> DPW | J90: =IF(tblDeprExpJune19[[#This Row],[Total ($000)]]=0,"NO",IF(ISNA(tblDeprExpJune19[[#This Row],[FUNC]]),"YES",IF(_xlfn.ISFORMULA(tblDeprExpJune19[[#This Row],[FUNC]]),"NO","YES"))) -> NO
A91: =CONCATENATE(tblDeprExpJune19[[#This Row],[Primary Account]],tblDeprExpJune19[[#This Row],[Primary Name]],tblDeprExpJune19[[#This Row],[Secondary Acct]],tblDeprExpJune19[[#This Row],[Secondary Name]],tblDeprExpJune19[[#This Row],[Alloc4Func]]) -> 4030000DEPN EXPENSE-ELECT3640000"POLES, TOWERS AND FIXTURES"SITUS | B91: 4030000 | C91: DEPN EXPENSE-ELECT | D91: 3640000 | E91: "POLES, TOWERS AND FIXTURES" | F91: WA | G91: 3978.56706 | H91: =IF(OR(tblDeprExpJune19[[#This Row],[Alloc]]="IDU",tblDeprExpJune19[[#This Row],[Alloc]]="OR",tblDeprExpJune19[[#This Row],[Alloc]]="UT",tblDeprExpJune19[[#This Row],[Alloc]]="WYU",tblDeprExpJune19[[#This Row],[Alloc]]="WYP",tblDeprExpJune19[[#This Row],[Alloc]]="CA",tblDeprExpJune19[[#This Row],[Alloc]]="WA"),"SITUS",tblDeprExpJune19[[#This Row],[Alloc]]) -> SITUS | I91: =INDEX(tblDeprExpLookup[FUNC],MATCH(tblDeprExpJune19[[#This Row],[Concat]],tblDeprExpLookup[Concat],0)) -> DPW | J91: =IF(tblDeprExpJune19[[#This Row],[Total ($000)]]=0,"NO",IF(ISNA(tblDeprExpJune19[[#This Row],[FUNC]]),"YES",IF(_xlfn.ISFORMULA(tblDeprExpJune19[[#This Row],[FUNC]]),"NO","YES"))) -> NO
A92: =CONCATENATE(tblDeprExpJune19[[#This Row],[Primary Account]],tblDeprExpJune19[[#This Row],[Primary Name]],tblDeprExpJune19[[#This Row],[Secondary Acct]],tblDeprExpJune19[[#This Row],[Secondary Name]],tblDeprExpJune19[[#This Row],[Alloc4Func]]) -> 4030000DEPN EXPENSE-ELECT3640000"POLES, TOWERS AND FIXTURES"SITUS | B92: 4030000 | C92: DEPN EXPENSE-ELECT | D92: 3640000 | E92: "POLES, TOWERS AND FIXTURES" | F92: WYP | G92: 5325.62144 | H92: =IF(OR(tblDeprExpJune19[[#This Row],[Alloc]]="IDU",tblDeprExpJune19[[#This Row],[Alloc]]="OR",tblDeprExpJune19[[#This Row],[Alloc]]="UT",tblDeprExpJune19[[#This Row],[Alloc]]="WYU",tblDeprExpJune19[[#This Row],[Alloc]]="WYP",tblDeprExpJune19[[#This Row],[Alloc]]="CA",tblDeprExpJune19[[#This Row],[Alloc]]="WA"),"SITUS",tblDeprExpJune19[[#This Row],[Alloc]]) -> SITUS | I92: =INDEX(tblDeprExpLookup[FUNC],MATCH(tblDeprExpJune19[[#This Row],[Concat]],tblDeprExpLookup[Concat],0)) -> DPW | J92: =IF(tblDeprExpJune19[[#This Row],[Total ($000)]]=0,"NO",IF(ISNA(tblDeprExpJune19[[#This Row],[FUNC]]),"YES",IF(_xlfn.ISFORMULA(tblDeprExpJune19[[#This Row],[FUNC]]),"NO","YES"))) -> NO
A93: =CONCATENATE(tblDeprExpJune19[[#This Row],[Primary Account]],tblDeprExpJune19[[#This Row],[Primary Name]],tblDeprExpJune19[[#This Row],[Secondary Acct]],tblDeprExpJune19[[#This Row],[Secondary Name]],tblDeprExpJune19[[#This Row],[Alloc4Func]]) -> 4030000DEPN EXPENSE-ELECT3640000"POLES, TOWERS AND FIXTURES"SITUS | B93: 4030000 | C93: DEPN EXPENSE-ELECT | D93: 3640000 | E93: "POLES, TOWERS AND FIXTURES" | F93: WYU | G93: 1121.5203 | H93: =IF(OR(tblDeprExpJune19[[#This Row],[Alloc]]="IDU",tblDeprExpJune19[[#This Row],[Alloc]]="OR",tblDeprExpJune19[[#This Row],[Alloc]]="UT",tblDeprExpJune19[[#This Row],[Alloc]]="WYU",tblDeprExpJune19[[#This Row],[Alloc]]="WYP",tblDeprExpJune19[[#This Row],[Alloc]]="CA",tblDeprExpJune19[[#This Row],[Alloc]]="WA"),"SITUS",tblDeprExpJune19[[#This Row],[Alloc]]) -> SITUS | I93: =INDEX(tblDeprExpLookup[FUNC],MATCH(tblDeprExpJune19[[#This Row],[Concat]],tblDeprExpLookup[Concat],0)) -> DPW | J93: =IF(tblDeprExpJune19[[#This Row],[Total ($000)]]=0,"NO",IF(ISNA(tblDeprExpJune19[[#This Row],[FUNC]]),"YES",IF(_xlfn.ISFORMULA(tblDeprExpJune19[[#This Row],[FUNC]]),"NO","YES"))) -> NO
A94: =CONCATENATE(tblDeprExpJune19[[#This Row],[Primary Account]],tblDeprExpJune19[[#This Row],[Primary Name]],tblDeprExpJune19[[#This Row],[Secondary Acct]],tblDeprExpJune19[[#This Row],[Secondary Name]],tblDeprExpJune19[[#This Row],[Alloc4Func]]) -> 4030000DEPN EXPENSE-ELECT3650000OVERHEAD CONDUCTORS & DEVICESSITUS | B94: 4030000 | C94: DEPN EXPENSE-ELECT | D94: 3650000 | E94: OVERHEAD CONDUCTORS & DEVICES | F94: CA | G94: 1118.05445 | H94: =IF(OR(tblDeprExpJune19[[#This Row],[Alloc]]="IDU",tblDeprExpJune19[[#This Row],[Alloc]]="OR",tblDeprExpJune19[[#This Row],[Alloc]]="UT",tblDeprExpJune19[[#This Row],[Alloc]]="WYU",tblDeprExpJune19[[#This Row],[Alloc]]="WYP",tblDeprExpJune19[[#This Row],[Alloc]]="CA",tblDeprExpJune19[[#This Row],[Alloc]]="WA"),"SITUS",tblDeprExpJune19[[#This Row],[Alloc]]) -> SITUS | I94: =INDEX(tblDeprExpLookup[FUNC],MATCH(tblDeprExpJune19[[#This Row],[Concat]],tblDeprExpLookup[Concat],0)) -> DPW | J94: =IF(tblDeprExpJune19[[#This Row],[Total ($000)]]=0,"NO",IF(ISNA(tblDeprExpJune19[[#This Row],[FUNC]]),"YES",IF(_xlfn.ISFORMULA(tblDeprExpJune19[[#This Row],[FUNC]]),"NO","YES"))) -> NO
A95: =CONCATENATE(tblDeprExpJune19[[#This Row],[Primary Account]],tblDeprExpJune19[[#This Row],[Primary Name]],tblDeprExpJune19[[#This Row],[Secondary Acct]],tblDeprExpJune19[[#This Row],[Secondary Name]],tblDeprExpJune19[[#This Row],[Alloc4Func]]) -> 4030000DEPN EXPENSE-ELECT3650000OVERHEAD CONDUCTORS & DEVICESSITUS | B95: 4030000 | C95: DEPN EXPENSE-ELECT | D95: 3650000 | E95: OVERHEAD CONDUCTORS & DEVICES | F95: IDU | G95: 974.59765 | H95: =IF(OR(tblDeprExpJune19[[#This Row],[Alloc]]="IDU",tblDeprExpJune19[[#This Row],[Alloc]]="OR",tblDeprExpJune19[[#This Row],[Alloc]]="UT",tblDeprExpJune19[[#This Row],[Alloc]]="WYU",tblDeprExpJune19[[#This Row],[Alloc]]="WYP",tblDeprExpJune19[[#This Row],[Alloc]]="CA",tblDeprExpJune19[[#This Row],[Alloc]]="WA"),"SITUS",tblDeprExpJune19[[#This Row],[Alloc]]) -> SITUS | I95: =INDEX(tblDeprExpLookup[FUNC],MATCH(tblDeprExpJune19[[#This Row],[Concat]],tblDeprExpLookup[Concat],0)) -> DPW | J95: =IF(tblDeprExpJune19[[#This Row],[Total ($000)]]=0,"NO",IF(ISNA(tblDeprExpJune19[[#This Row],[FUNC]]),"YES",IF(_xlfn.ISFORMULA(tblDeprExpJune19[[#This Row],[FUNC]]),"NO","YES"))) -> NO
A96: =CONCATENATE(tblDeprExpJune19[[#This Row],[Primary Account]],tblDeprExpJune19[[#This Row],[Primary Name]],tblDeprExpJune19[[#This Row],[Secondary Acct]],tblDeprExpJune19[[#This Row],[Secondary Name]],tblDeprExpJune19[[#This Row],[Alloc4Func]]) -> 4030000DEPN EXPENSE-ELECT3650000OVERHEAD CONDUCTORS & DEVICESSITUS | B96: 4030000 | C96: DEPN EXPENSE-ELECT | D96: 3650000 | E96: OVERHEAD CONDUCTORS & DEVICES | F96: OR | G96: 7071.8677 | H96: =IF(OR(tblDeprExpJune19[[#This Row],[Alloc]]="IDU",tblDeprExpJune19[[#This Row],[Alloc]]="OR",tblDeprExpJune19[[#This Row],[Alloc]]="UT",tblDeprExpJune19[[#This Row],[Alloc]]="WYU",tblDeprExpJune19[[#This Row],[Alloc]]="WYP",tblDeprExpJune19[[#This Row],[Alloc]]="CA",tblDeprExpJune19[[#This Row],[Alloc]]="WA"),"SITUS",tblDeprExpJune19[[#This Row],[Alloc]]) -> SITUS | I96: =INDEX(tblDeprExpLookup[FUNC],MATCH(tblDeprExpJune19[[#This Row],[Concat]],tblDeprExpLookup[Concat],0)) -> DPW | J96: =IF(tblDeprExpJune19[[#This Row],[Total ($000)]]=0,"NO",IF(ISNA(tblDeprExpJune19[[#This Row],[FUNC]]),"YES",IF(_xlfn.ISFORMULA(tblDeprExpJune19[[#This Row],[FUNC]]),"NO","YES"))) -> NO
A97: =CONCATENATE(tblDeprExpJune19[[#This Row],[Primary Account]],tblDeprExpJune19[[#This Row],[Primary Name]],tblDeprExpJune19[[#This Row],[Secondary Acct]],tblDeprExpJune19[[#This Row],[Secondary Name]],tblDeprExpJune19[[#This Row],[Alloc4Func]]) -> 4030000DEPN EXPENSE-ELECT3650000OVERHEAD CONDUCTORS & DEVICESSITUS | B97: 4030000 | C97: DEPN EXPENSE-ELECT | D97: 3650000 | E97: OVERHEAD CONDUCTORS & DEVICES | F97: UT | G97: 6703.03415 | H97: =IF(OR(tblDeprExpJune19[[#This Row],[Alloc]]="IDU",tblDeprExpJune19[[#This Row],[Alloc]]="OR",tblDeprExpJune19[[#This Row],[Alloc]]="UT",tblDeprExpJune19[[#This Row],[Alloc]]="WYU",tblDeprExpJune19[[#This Row],[Alloc]]="WYP",tblDeprExpJune19[[#This Row],[Alloc]]="CA",tblDeprExpJune19[[#This Row],[Alloc]]="WA"),"SITUS",tblDeprExpJune19[[#This Row],[Alloc]]) -> SITUS | I97: =INDEX(tblDeprExpLookup[FUNC],MATCH(tblDeprExpJune19[[#This Row],[Concat]],tblDeprExpLookup[Concat],0)) -> DPW | J97: =IF(tblDeprExpJune19[[#This Row],[Total ($000)]]=0,"NO",IF(ISNA(tblDeprExpJune19[[#This Row],[FUNC]]),"YES",IF(_xlfn.ISFORMULA(tblDeprExpJune19[[#This Row],[FUNC]]),"NO","YES"))) -> NO
A98: =CONCATENATE(tblDeprExpJune19[[#This Row],[Primary Account]],tblDeprExpJune19[[#This Row],[Primary Name]],tblDeprExpJune19[[#This Row],[Secondary Acct]],tblDeprExpJune19[[#This Row],[Secondary Name]],tblDeprExpJune19[[#This Row],[Alloc4Func]]) -> 4030000DEPN EXPENSE-ELECT3650000OVERHEAD CONDUCTORS & DEVICESSITUS | B98: 4030000 | C98: DEPN EXPENSE-ELECT | D98: 3650000 | E98: OVERHEAD CONDUCTORS & DEVICES | F98: WA | G98: 1850.29556 | H98: =IF(OR(tblDeprExpJune19[[#This Row],[Alloc]]="IDU",tblDeprExpJune19[[#This Row],[Alloc]]="OR",tblDeprExpJune19[[#This Row],[Alloc]]="UT",tblDeprExpJune19[[#This Row],[Alloc]]="WYU",tblDeprExpJune19[[#This Row],[Alloc]]="WYP",tblDeprExpJune19[[#This Row],[Alloc]]="CA",tblDeprExpJune19[[#This Row],[Alloc]]="WA"),"SITUS",tblDeprExpJune19[[#This Row],[Alloc]]) -> SITUS | I98: =INDEX(tblDeprExpLookup[FUNC],MATCH(tblDeprExpJune19[[#This Row],[Concat]],tblDeprExpLookup[Concat],0)) -> DPW | J98: =IF(tblDeprExpJune19[[#This Row],[Total ($000)]]=0,"NO",IF(ISNA(tblDeprExpJune19[[#This Row],[FUNC]]),"YES",IF(_xlfn.ISFORMULA(tblDeprExpJune19[[#This Row],[FUNC]]),"NO","YES"))) -> NO
A99: =CONCATENATE(tblDeprExpJune19[[#This Row],[Primary Account]],tblDeprExpJune19[[#This Row],[Primary Name]],tblDeprExpJune19[[#This Row],[Secondary Acct]],tblDeprExpJune19[[#This Row],[Secondary Name]],tblDeprExpJune19[[#This Row],[Alloc4Func]]) -> 4030000DEPN EXPENSE-ELECT3650000OVERHEAD CONDUCTORS & DEVICESSITUS | B99: 4030000 | C99: DEPN EXPENSE-ELECT | D99: 3650000 | E99: OVERHEAD CONDUCTORS & DEVICES | F99: WYP | G99: 2441.46282 | H99: =IF(OR(tblDeprExpJune19[[#This Row],[Alloc]]="IDU",tblDeprExpJune19[[#This Row],[Alloc]]="OR",tblDeprExpJune19[[#This Row],[Alloc]]="UT",tblDeprExpJune19[[#This Row],[Alloc]]="WYU",tblDeprExpJune19[[#This Row],[Alloc]]="WYP",tblDeprExpJune19[[#This Row],[Alloc]]="CA",tblDeprExpJune19[[#This Row],[Alloc]]="WA"),"SITUS",tblDeprExpJune19[[#This Row],[Alloc]]) -> SITUS | I99: =INDEX(tblDeprExpLookup[FUNC],MATCH(tblDeprExpJune19[[#This Row],[Concat]],tblDeprExpLookup[Concat],0)) -> DPW | J99: =IF(tblDeprExpJune19[[#This Row],[Total ($000)]]=0,"NO",IF(ISNA(tblDeprExpJune19[[#This Row],[FUNC]]),"YES",IF(_xlfn.ISFORMULA(tblDeprExpJune19[[#This Row],[FUNC]]),"NO","YES"))) -> NO
A100: =CONCATENATE(tblDeprExpJune19[[#This Row],[Primary Account]],tblDeprExpJune19[[#This Row],[Primary Name]],tblDeprExpJune19[[#This Row],[Secondary Acct]],tblDeprExpJune19[[#This Row],[Secondary Name]],tblDeprExpJune19[[#This Row],[Alloc4Func]]) -> 4030000DEPN EXPENSE-ELECT3650000OVERHEAD CONDUCTORS & DEVICESSITUS | B100: 4030000 | C100: DEPN EXPENSE-ELECT | D100: 3650000 | E100: OVERHEAD CONDUCTORS & DEVICES | F100: WYU | G100: 341.47188 | H100: =IF(OR(tblDeprExpJune19[[#This Row],[Alloc]]="IDU",tblDeprExpJune19[[#This Row],[Alloc]]="OR",tblDeprExpJune19[[#This Row],[Alloc]]="UT",tblDeprExpJune19[[#This Row],[Alloc]]="WYU",tblDeprExpJune19[[#This Row],[Alloc]]="WYP",tblDeprExpJune19[[#This Row],[Alloc]]="CA",tblDeprExpJune19[[#This Row],[Alloc]]="WA"),"SITUS",tblDeprExpJune19[[#This Row],[Alloc]]) -> SITUS | I100: =INDEX(tblDeprExpLookup[FUNC],MATCH(tblDeprExpJune19[[#This Row],[Concat]],tblDeprExpLookup[Concat],0)) -> DPW | J100: =IF(tblDeprExpJune19[[#This Row],[Total ($000)]]=0,"NO",IF(ISNA(tblDeprExpJune19[[#This Row],[FUNC]]),"YES",IF(_xlfn.ISFORMULA(tblDeprExpJune19[[#This Row],[FUNC]]),"NO","YES"))) -> NO
A101: =CONCATENATE(tblDeprExpJune19[[#This Row],[Primary Account]],tblDeprExpJune19[[#This Row],[Primary Name]],tblDeprExpJune19[[#This Row],[Secondary Acct]],tblDeprExpJune19[[#This Row],[Secondary Name]],tblDeprExpJune19[[#This Row],[Alloc4Func]]) -> 4030000DEPN EXPENSE-ELECT3660000UNDERGROUND CONDUITSITUS | B101: 4030000 | C101: DEPN EXPENSE-ELECT | D101: 3660000 | E101: UNDERGROUND CONDUIT | F101: CA | G101: 540.20899 | H101: =IF(OR(tblDeprExpJune19[[#This Row],[Alloc]]="IDU",tblDeprExpJune19[[#This Row],[Alloc]]="OR",tblDeprExpJune19[[#This Row],[Alloc]]="UT",tblDeprExpJune19[[#This Row],[Alloc]]="WYU",tblDeprExpJune19[[#This Row],[Alloc]]="WYP",tblDeprExpJune19[[#This Row],[Alloc]]="CA",tblDeprExpJune19[[#This Row],[Alloc]]="WA"),"SITUS",tblDeprExpJune19[[#This Row],[Alloc]]) -> SITUS | I101: =INDEX(tblDeprExpLookup[FUNC],MATCH(tblDeprExpJune19[[#This Row],[Concat]],tblDeprExpLookup[Concat],0)) -> DPW | J101: =IF(tblDeprExpJune19[[#This Row],[Total ($000)]]=0,"NO",IF(ISNA(tblDeprExpJune19[[#This Row],[FUNC]]),"YES",IF(_xlfn.ISFORMULA(tblDeprExpJune19[[#This Row],[FUNC]]),"NO","YES"))) -> NO
A102: =CONCATENATE(tblDeprExpJune19[[#This Row],[Primary Account]],tblDeprExpJune19[[#This Row],[Primary Name]],tblDeprExpJune19[[#This Row],[Secondary Acct]],tblDeprExpJune19[[#This Row],[Secondary Name]],tblDeprExpJune19[[#This Row],[Alloc4Func]]) -> 4030000DEPN EXPENSE-ELECT3660000UNDERGROUND CONDUITSITUS | B102: 4030000 | C102: DEPN EXPENSE-ELECT | D102: 3660000 | E102: UNDERGROUND CONDUIT | F102: IDU | G102: 240.49545 | H102: =IF(OR(tblDeprExpJune19[[#This Row],[Alloc]]="IDU",tblDeprExpJune19[[#This Row],[Alloc]]="OR",tblDeprExpJune19[[#This Row],[Alloc]]="UT",tblDeprExpJune19[[#This Row],[Alloc]]="WYU",tblDeprExpJune19[[#This Row],[Alloc]]="WYP",tblDeprExpJune19[[#This Row],[Alloc]]="CA",tblDeprExpJune19[[#This Row],[Alloc]]="WA"),"SITUS",tblDeprExpJune19[[#This Row],[Alloc]]) -> SITUS | I102: =INDEX(tblDeprExpLookup[FUNC],MATCH(tblDeprExpJune19[[#This Row],[Concat]],tblDeprExpLookup[Concat],0)) -> DPW | J102: =IF(tblDeprExpJune19[[#This Row],[Total ($000)]]=0,"NO",IF(ISNA(tblDeprExpJune19[[#This Row],[FUNC]]),"YES",IF(_xlfn.ISFORMULA(tblDeprExpJune19[[#This Row],[FUNC]]),"NO","YES"))) -> NO
A103: =CONCATENATE(tblDeprExpJune19[[#This Row],[Primary Account]],tblDeprExpJune19[[#This Row],[Primary Name]],tblDeprExpJune19[[#This Row],[Secondary Acct]],tblDeprExpJune19[[#This Row],[Secondary Name]],tblDeprExpJune19[[#This Row],[Alloc4Func]]) -> 4030000DEPN EXPENSE-ELECT3660000UNDERGROUND CONDUITSITUS | B103: 4030000 | C103: DEPN EXPENSE-ELECT | D103: 3660000 | E103: UNDERGROUND CONDUIT | F103: OR | G103: 1906.3262 | H103: =IF(OR(tblDeprExpJune19[[#This Row],[Alloc]]="IDU",tblDeprExpJune19[[#This Row],[Alloc]]="OR",tblDeprExpJune19[[#This Row],[Alloc]]="UT",tblDeprExpJune19[[#This Row],[Alloc]]="WYU",tblDeprExpJune19[[#This Row],[Alloc]]="WYP",tblDeprExpJune19[[#This Row],[Alloc]]="CA",tblDeprExpJune19[[#This Row],[Alloc]]="WA"),"SITUS",tblDeprExpJune19[[#This Row],[Alloc]]) -> SITUS | I103: =INDEX(tblDeprExpLookup[FUNC],MATCH(tblDeprExpJune19[[#This Row],[Concat]],tblDeprExpLookup[Concat],0)) -> DPW | J103: =IF(tblDeprExpJune19[[#This Row],[Total ($000)]]=0,"NO",IF(ISNA(tblDeprExpJune19[[#This Row],[FUNC]]),"YES",IF(_xlfn.ISFORMULA(tblDeprExpJune19[[#This Row],[FUNC]]),"NO","YES"))) -> NO
A104: =CONCATENATE(tblDeprExpJune19[[#This Row],[Primary Account]],tblDeprExpJune19[[#This Row],[Primary Name]],tblDeprExpJune19[[#This Row],[Secondary Acct]],tblDeprExpJune19[[#This Row],[Secondary Name]],tblDeprExpJune19[[#This Row],[Alloc4Func]]) -> 4030000DEPN EXPENSE-ELECT3660000UNDERGROUND CONDUITSITUS | B104: 4030000 | C104: DEPN EXPENSE-ELECT | D104: 3660000 | E104: UNDERGROUND CONDUIT | F104: UT | G104: 5213.97438 | H104: =IF(OR(tblDeprExpJune19[[#This Row],[Alloc]]="IDU",tblDeprExpJune19[[#This Row],[Alloc]]="OR",tblDeprExpJune19[[#This Row],[Alloc]]="UT",tblDeprExpJune19[[#This Row],[Alloc]]="WYU",tblDeprExpJune19[[#This Row],[Alloc]]="WYP",tblDeprExpJune19[[#This Row],[Alloc]]="CA",tblDeprExpJune19[[#This Row],[Alloc]]="WA"),"SITUS",tblDeprExpJune19[[#This Row],[Alloc]]) -> SITUS | I104: =INDEX(tblDeprExpLookup[FUNC],MATCH(tblDeprExpJune19[[#This Row],[Concat]],tblDeprExpLookup[Concat],0)) -> DPW | J104: =IF(tblDeprExpJune19[[#This Row],[Total ($000)]]=0,"NO",IF(ISNA(tblDeprExpJune19[[#This Row],[FUNC]]),"YES",IF(_xlfn.ISFORMULA(tblDeprExpJune19[[#This Row],[FUNC]]),"NO","YES"))) -> NO
A105: =CONCATENATE(tblDeprExpJune19[[#This Row],[Primary Account]],tblDeprExpJune19[[#This Row],[Primary Name]],tblDeprExpJune19[[#This Row],[Secondary Acct]],tblDeprExpJune19[[#This Row],[Secondary Name]],tblDeprExpJune19[[#This Row],[Alloc4Func]]) -> 4030000DEPN EXPENSE-ELECT3660000UNDERGROUND CONDUITSITUS | B105: 4030000 | C105: DEPN EXPENSE-ELECT | D105: 3660000 | E105: UNDERGROUND CONDUIT | F105: WA | G105: 531.9674 | H105: =IF(OR(tblDeprExpJune19[[#This Row],[Alloc]]="IDU",tblDeprExpJune19[[#This Row],[Alloc]]="OR",tblDeprExpJune19[[#This Row],[Alloc]]="UT",tblDeprExpJune19[[#This Row],[Alloc]]="WYU",tblDeprExpJune19[[#This Row],[Alloc]]="WYP",tblDeprExpJune19[[#This Row],[Alloc]]="CA",tblDeprExpJune19[[#This Row],[Alloc]]="WA"),"SITUS",tblDeprExpJune19[[#This Row],[Alloc]]) -> SITUS | I105: =INDEX(tblDeprExpLookup[FUNC],MATCH(tblDeprExpJune19[[#This Row],[Concat]],tblDeprExpLookup[Concat],0)) -> DPW | J105: =IF(tblDeprExpJune19[[#This Row],[Total ($000)]]=0,"NO",IF(ISNA(tblDeprExpJune19[[#This Row],[FUNC]]),"YES",IF(_xlfn.ISFORMULA(tblDeprExpJune19[[#This Row],[FUNC]]),"NO","YES"))) -> NO
A106: =CONCATENATE(tblDeprExpJune19[[#This Row],[Primary Account]],tblDeprExpJune19[[#This Row],[Primary Name]],tblDeprExpJune19[[#This Row],[Secondary Acct]],tblDeprExpJune19[[#This Row],[Secondary Name]],tblDeprExpJune19[[#This Row],[Alloc4Func]]) -> 4030000DEPN EXPENSE-ELECT3660000UNDERGROUND CONDUITSITUS | B106: 4030000 | C106: DEPN EXPENSE-ELECT | D106: 3660000 | E106: UNDERGROUND CONDUIT | F106: WYP | G106: 809.52657 | H106: =IF(OR(tblDeprExpJune19[[#This Row],[Alloc]]="IDU",tblDeprExpJune19[[#This Row],[Alloc]]="OR",tblDeprExpJune19[[#This Row],[Alloc]]="UT",tblDeprExpJune19[[#This Row],[Alloc]]="WYU",tblDeprExpJune19[[#This Row],[Alloc]]="WYP",tblDeprExpJune19[[#This Row],[Alloc]]="CA",tblDeprExpJune19[[#This Row],[Alloc]]="WA"),"SITUS",tblDeprExpJune19[[#This Row],[Alloc]]) -> SITUS | I106: =INDEX(tblDeprExpLookup[FUNC],MATCH(tblDeprExpJune19[[#This Row],[Concat]],tblDeprExpLookup[Concat],0)) -> DPW | J106: =IF(tblDeprExpJune19[[#This Row],[Total ($000)]]=0,"NO",IF(ISNA(tblDeprExpJune19[[#This Row],[FUNC]]),"YES",IF(_xlfn.ISFORMULA(tblDeprExpJune19[[#This Row],[FUNC]]),"NO","YES"))) -> NO
A107: =CONCATENATE(tblDeprExpJune19[[#This Row],[Primary Account]],tblDeprExpJune19[[#This Row],[Primary Name]],tblDeprExpJune19[[#This Row],[Secondary Acct]],tblDeprExpJune19[[#This Row],[Secondary Name]],tblDeprExpJune19[[#This Row],[Alloc4Func]]) -> 4030000DEPN EXPENSE-ELECT3660000UNDERGROUND CONDUITSITUS | B107: 4030000 | C107: DEPN EXPENSE-ELECT | D107: 3660000 | E107: UNDERGROUND CONDUIT | F107: WYU | G107: 166.99006 | H107: =IF(OR(tblDeprExpJune19[[#This Row],[Alloc]]="IDU",tblDeprExpJune19[[#This Row],[Alloc]]="OR",tblDeprExpJune19[[#This Row],[Alloc]]="UT",tblDeprExpJune19[[#This Row],[Alloc]]="WYU",tblDeprExpJune19[[#This Row],[Alloc]]="WYP",tblDeprExpJune19[[#This Row],[Alloc]]="CA",tblDeprExpJune19[[#This Row],[Alloc]]="WA"),"SITUS",tblDeprExpJune19[[#This Row],[Alloc]]) -> SITUS | I107: =INDEX(tblDeprExpLookup[FUNC],MATCH(tblDeprExpJune19[[#This Row],[Concat]],tblDeprExpLookup[Concat],0)) -> DPW | J107: =IF(tblDeprExpJune19[[#This Row],[Total ($000)]]=0,"NO",IF(ISNA(tblDeprExpJune19[[#This Row],[FUNC]]),"YES",IF(_xlfn.ISFORMULA(tblDeprExpJune19[[#This Row],[FUNC]]),"NO","YES"))) -> NO
A108: =CONCATENATE(tblDeprExpJune19[[#This Row],[Primary Account]],tblDeprExpJune19[[#This Row],[Primary Name]],tblDeprExpJune19[[#This Row],[Secondary Acct]],tblDeprExpJune19[[#This Row],[Secondary Name]],tblDeprExpJune19[[#This Row],[Alloc4Func]]) -> 4030000DEPN EXPENSE-ELECT3670000UNDERGROUND CONDUCTORS & DEVICESSITUS | B108: 4030000 | C108: DEPN EXPENSE-ELECT | D108: 3670000 | E108: UNDERGROUND CONDUCTORS & DEVICES | F108: CA | G108: 493.49173 | H108: =IF(OR(tblDeprExpJune19[[#This Row],[Alloc]]="IDU",tblDeprExpJune19[[#This Row],[Alloc]]="OR",tblDeprExpJune19[[#This Row],[Alloc]]="UT",tblDeprExpJune19[[#This Row],[Alloc]]="WYU",tblDeprExpJune19[[#This Row],[Alloc]]="WYP",tblDeprExpJune19[[#This Row],[Alloc]]="CA",tblDeprExpJune19[[#This Row],[Alloc]]="WA"),"SITUS",tblDeprExpJune19[[#This Row],[Alloc]]) -> SITUS | I108: =INDEX(tblDeprExpLookup[FUNC],MATCH(tblDeprExpJune19[[#This Row],[Concat]],tblDeprExpLookup[Concat],0)) -> DPW | J108: =IF(tblDeprExpJune19[[#This Row],[Total ($000)]]=0,"NO",IF(ISNA(tblDeprExpJune19[[#This Row],[FUNC]]),"YES",IF(_xlfn.ISFORMULA(tblDeprExpJune19[[#This Row],[FUNC]]),"NO","YES"))) -> NO
A109: =CONCATENATE(tblDeprExpJune19[[#This Row],[Primary Account]],tblDeprExpJune19[[#This Row],[Primary Name]],tblDeprExpJune19[[#This Row],[Secondary Acct]],tblDeprExpJune19[[#This Row],[Secondary Name]],tblDeprExpJune19[[#This Row],[Alloc4Func]]) -> 4030000DEPN EXPENSE-ELECT3670000UNDERGROUND CONDUCTORS & DEVICESSITUS | B109: 4030000 | C109: DEPN EXPENSE-ELECT | D109: 3670000 | E109: UNDERGROUND CONDUCTORS & DEVICES | F109: IDU | G109: 656.47145 | H109: =IF(OR(tblDeprExpJune19[[#This Row],[Alloc]]="IDU",tblDeprExpJune19[[#This Row],[Alloc]]="OR",tblDeprExpJune19[[#This Row],[Alloc]]="UT",tblDeprExpJune19[[#This Row],[Alloc]]="WYU",tblDeprExpJune19[[#This Row],[Alloc]]="WYP",tblDeprExpJune19[[#This Row],[Alloc]]="CA",tblDeprExpJune19[[#This Row],[Alloc]]="WA"),"SITUS",tblDeprExpJune19[[#This Row],[Alloc]]) -> SITUS | I109: =INDEX(tblDeprExpLookup[FUNC],MATCH(tblDeprExpJune19[[#This Row],[Concat]],tblDeprExpLookup[Concat],0)) -> DPW | J109: =IF(tblDeprExpJune19[[#This Row],[Total ($000)]]=0,"NO",IF(ISNA(tblDeprExpJune19[[#This Row],[FUNC]]),"YES",IF(_xlfn.ISFORMULA(tblDeprExpJune19[[#This Row],[FUNC]]),"NO","YES"))) -> NO
A110: =CONCATENATE(tblDeprExpJune19[[#This Row],[Primary Account]],tblDeprExpJune19[[#This Row],[Primary Name]],tblDeprExpJune19[[#This Row],[Secondary Acct]],tblDeprExpJune19[[#This Row],[Secondary Name]],tblDeprExpJune19[[#This Row],[Alloc4Func]]) -> 4030000DEPN EXPENSE-ELECT3670000UNDERGROUND CONDUCTORS & DEVICESSITUS | B110: 4030000 | C110: DEPN EXPENSE-ELECT | D110: 3670000 | E110: UNDERGROUND CONDUCTORS & DEVICES | F110: OR | G110: 3968.1589 | H110: =IF(OR(tblDeprExpJune19[[#This Row],[Alloc]]="IDU",tblDeprExpJune19[[#This Row],[Alloc]]="OR",tblDeprExpJune19[[#This Row],[Alloc]]="UT",tblDeprExpJune19[[#This Row],[Alloc]]="WYU",tblDeprExpJune19[[#This Row],[Alloc]]="WYP",tblDeprExpJune19[[#This Row],[Alloc]]="CA",tblDeprExpJune19[[#This Row],[Alloc]]="WA"),"SITUS",tblDeprExpJune19[[#This Row],[Alloc]]) -> SITUS | I110: =INDEX(tblDeprExpLookup[FUNC],MATCH(tblDeprExpJune19[[#This Row],[Concat]],tblDeprExpLookup[Concat],0)) -> DPW | J110: =IF(tblDeprExpJune19[[#This Row],[Total ($000)]]=0,"NO",IF(ISNA(tblDeprExpJune19[[#This Row],[FUNC]]),"YES",IF(_xlfn.ISFORMULA(tblDeprExpJune19[[#This Row],[FUNC]]),"NO","YES"))) -> NO
A111: =CONCATENATE(tblDeprExpJune19[[#This Row],[Primary Account]],tblDeprExpJune19[[#This Row],[Primary Name]],tblDeprExpJune19[[#This Row],[Secondary Acct]],tblDeprExpJune19[[#This Row],[Secondary Name]],tblDeprExpJune19[[#This Row],[Alloc4Func]]) -> 4030000DEPN EXPENSE-ELECT3670000UNDERGROUND CONDUCTORS & DEVICESSITUS | B111: 4030000 | C111: DEPN EXPENSE-ELECT | D111: 3670000 | E111: UNDERGROUND CONDUCTORS & DEVICES | F111: UT | G111: 14029.26033 | H111: =IF(OR(tblDeprExpJune19[[#This Row],[Alloc]]="IDU",tblDeprExpJune19[[#This Row],[Alloc]]="OR",tblDeprExpJune19[[#This Row],[Alloc]]="UT",tblDeprExpJune19[[#This Row],[Alloc]]="WYU",tblDeprExpJune19[[#This Row],[Alloc]]="WYP",tblDeprExpJune19[[#This Row],[Alloc]]="CA",tblDeprExpJune19[[#This Row],[Alloc]]="WA"),"SITUS",tblDeprExpJune19[[#This Row],[Alloc]]) -> SITUS | I111: =INDEX(tblDeprExpLookup[FUNC],MATCH(tblDeprExpJune19[[#This Row],[Concat]],tblDeprExpLookup[Concat],0)) -> DPW | J111: =IF(tblDeprExpJune19[[#This Row],[Total ($000)]]=0,"NO",IF(ISNA(tblDeprExpJune19[[#This Row],[FUNC]]),"YES",IF(_xlfn.ISFORMULA(tblDeprExpJune19[[#This Row],[FUNC]]),"NO","YES"))) -> NO
A112: =CONCATENATE(tblDeprExpJune19[[#This Row],[Primary Account]],tblDeprExpJune19[[#This Row],[Primary Name]],tblDeprExpJune19[[#This Row],[Secondary Acct]],tblDeprExpJune19[[#This Row],[Secondary Name]],tblDeprExpJune19[[#This Row],[Alloc4Func]]) -> 4030000DEPN EXPENSE-ELECT3670000UNDERGROUND CONDUCTORS & DEVICESSITUS | B112: 4030000 | C112: DEPN EXPENSE-ELECT | D112: 3670000 | E112: UNDERGROUND CONDUCTORS & DEVICES | F112: WA | G112: 739.82179 | H112: =IF(OR(tblDeprExpJune19[[#This Row],[Alloc]]="IDU",tblDeprExpJune19[[#This Row],[Alloc]]="OR",tblDeprExpJune19[[#This Row],[Alloc]]="UT",tblDeprExpJune19[[#This Row],[Alloc]]="WYU",tblDeprExpJune19[[#This Row],[Alloc]]="WYP",tblDeprExpJune19[[#This Row],[Alloc]]="CA",tblDeprExpJune19[[#This Row],[Alloc]]="WA"),"SITUS",tblDeprExpJune19[[#This Row],[Alloc]]) -> SITUS | I112: =INDEX(tblDeprExpLookup[FUNC],MATCH(tblDeprExpJune19[[#This Row],[Concat]],tblDeprExpLookup[Concat],0)) -> DPW | J112: =IF(tblDeprExpJune19[[#This Row],[Total ($000)]]=0,"NO",IF(ISNA(tblDeprExpJune19[[#This Row],[FUNC]]),"YES",IF(_xlfn.ISFORMULA(tblDeprExpJune19[[#This Row],[FUNC]]),"NO","YES"))) -> NO
A113: =CONCATENATE(tblDeprExpJune19[[#This Row],[Primary Account]],tblDeprExpJune19[[#This Row],[Primary Name]],tblDeprExpJune19[[#This Row],[Secondary Acct]],tblDeprExpJune19[[#This Row],[Secondary Name]],tblDeprExpJune19[[#This Row],[Alloc4Func]]) -> 4030000DEPN EXPENSE-ELECT3670000UNDERGROUND CONDUCTORS & DEVICESSITUS | B113: 4030000 | C113: DEPN EXPENSE-ELECT | D113: 3670000 | E113: UNDERGROUND CONDUCTORS & DEVICES | F113: WYP | G113: 1538.18253 | H113: =IF(OR(tblDeprExpJune19[[#This Row],[Alloc]]="IDU",tblDeprExpJune19[[#This Row],[Alloc]]="OR",tblDeprExpJune19[[#This Row],[Alloc]]="UT",tblDeprExpJune19[[#This Row],[Alloc]]="WYU",tblDeprExpJune19[[#This Row],[Alloc]]="WYP",tblDeprExpJune19[[#This Row],[Alloc]]="CA",tblDeprExpJune19[[#This Row],[Alloc]]="WA"),"SITUS",tblDeprExpJune19[[#This Row],[Alloc]]) -> SITUS | I113: =INDEX(tblDeprExpLookup[FUNC],MATCH(tblDeprExpJune19[[#This Row],[Concat]],tblDeprExpLookup[Concat],0)) -> DPW | J113: =IF(tblDeprExpJune19[[#This Row],[Total ($000)]]=0,"NO",IF(ISNA(tblDeprExpJune19[[#This Row],[FUNC]]),"YES",IF(_xlfn.ISFORMULA(tblDeprExpJune19[[#This Row],[FUNC]]),"NO","YES"))) -> NO
A114: =CONCATENATE(tblDeprExpJune19[[#This Row],[Primary Account]],tblDeprExpJune19[[#This Row],[Primary Name]],tblDeprExpJune19[[#This Row],[Secondary Acct]],tblDeprExpJune19[[#This Row],[Secondary Name]],tblDeprExpJune19[[#This Row],[Alloc4Func]]) -> 4030000DEPN EXPENSE-ELECT3670000UNDERGROUND CONDUCTORS & DEVICESSITUS | B114: 4030000 | C114: DEPN EXPENSE-ELECT | D114: 3670000 | E114: UNDERGROUND CONDUCTORS & DEVICES | F114: WYU | G114: 617.82043 | H114: =IF(OR(tblDeprExpJune19[[#This Row],[Alloc]]="IDU",tblDeprExpJune19[[#This Row],[Alloc]]="OR",tblDeprExpJune19[[#This Row],[Alloc]]="UT",tblDeprExpJune19[[#This Row],[Alloc]]="WYU",tblDeprExpJune19[[#This Row],[Alloc]]="WYP",tblDeprExpJune19[[#This Row],[Alloc]]="CA",tblDeprExpJune19[[#This Row],[Alloc]]="WA"),"SITUS",tblDeprExpJune19[[#This Row],[Alloc]]) -> SITUS | I114: =INDEX(tblDeprExpLookup[FUNC],MATCH(tblDeprExpJune19[[#This Row],[Concat]],tblDeprExpLookup[Concat],0)) -> DPW | J114: =IF(tblDeprExpJune19[[#This Row],[Total ($000)]]=0,"NO",IF(ISNA(tblDeprExpJune19[[#This Row],[FUNC]]),"YES",IF(_xlfn.ISFORMULA(tblDeprExpJune19[[#This Row],[FUNC]]),"NO","YES"))) -> NO
A115: =CONCATENATE(tblDeprExpJune19[[#This Row],[Primary Account]],tblDeprExpJune19[[#This Row],[Primary Name]],tblDeprExpJune19[[#This Row],[Secondary Acct]],tblDeprExpJune19[[#This Row],[Secondary Name]],tblDeprExpJune19[[#This Row],[Alloc4Func]]) -> 4030000DEPN EXPENSE-ELECT3680000LINE TRANSFORMERSSITUS | B115: 4030000 | C115: DEPN EXPENSE-ELECT | D115: 3680000 | E115: LINE TRANSFORMERS | F115: CA | G115: 1381.55667 | H115: =IF(OR(tblDeprExpJune19[[#This Row],[Alloc]]="IDU",tblDeprExpJune19[[#This Row],[Alloc]]="OR",tblDeprExpJune19[[#This Row],[Alloc]]="UT",tblDeprExpJune19[[#This Row],[Alloc]]="WYU",tblDeprExpJune19[[#This Row],[Alloc]]="WYP",tblDeprExpJune19[[#This Row],[Alloc]]="CA",tblDeprExpJune19[[#This Row],[Alloc]]="WA"),"SITUS",tblDeprExpJune19[[#This Row],[Alloc]]) -> SITUS | I115: =INDEX(tblDeprExpLookup[FUNC],MATCH(tblDeprExpJune19[[#This Row],[Concat]],tblDeprExpLookup[Concat],0)) -> DPW | J115: =IF(tblDeprExpJune19[[#This Row],[Total ($000)]]=0,"NO",IF(ISNA(tblDeprExpJune19[[#This Row],[FUNC]]),"YES",IF(_xlfn.ISFORMULA(tblDeprExpJune19[[#This Row],[FUNC]]),"NO","YES"))) -> NO
A116: =CONCATENATE(tblDeprExpJune19[[#This Row],[Primary Account]],tblDeprExpJune19[[#This Row],[Primary Name]],tblDeprExpJune19[[#This Row],[Secondary Acct]],tblDeprExpJune19[[#This Row],[Secondary Name]],tblDeprExpJune19[[#This Row],[Alloc4Func]]) -> 4030000DEPN EXPENSE-ELECT3680000LINE TRANSFORMERSSITUS | B116: 4030000 | C116: DEPN EXPENSE-ELECT | D116: 3680000 | E116: LINE TRANSFORMERS | F116: IDU | G116: 1944.81948 | H116: =IF(OR(tblDeprExpJune19[[#This Row],[Alloc]]="IDU",tblDeprExpJune19[[#This Row],[Alloc]]="OR",tblDeprExpJune19[[#This Row],[Alloc]]="UT",tblDeprExpJune19[[#This Row],[Alloc]]="WYU",tblDeprExpJune19[[#This Row],[Alloc]]="WYP",tblDeprExpJune19[[#This Row],[Alloc]]="CA",tblDeprExpJune19[[#This Row],[Alloc]]="WA"),"SITUS",tblDeprExpJune19[[#This Row],[Alloc]]) -> SITUS | I116: =INDEX(tblDeprExpLookup[FUNC],MATCH(tblDeprExpJune19[[#This Row],[Concat]],tblDeprExpLookup[Concat],0)) -> DPW | J116: =IF(tblDeprExpJune19[[#This Row],[Total ($000)]]=0,"NO",IF(ISNA(tblDeprExpJune19[[#This Row],[FUNC]]),"YES",IF(_xlfn.ISFORMULA(tblDeprExpJune19[[#This Row],[FUNC]]),"NO","YES"))) -> NO
A117: =CONCATENATE(tblDeprExpJune19[[#This Row],[Primary Account]],tblDeprExpJune19[[#This Row],[Primary Name]],tblDeprExpJune19[[#This Row],[Secondary Acct]],tblDeprExpJune19[[#This Row],[Secondary Name]],tblDeprExpJune19[[#This Row],[Alloc4Func]]) -> 4030000DEPN EXPENSE-ELECT3680000LINE TRANSFORMERSSITUS | B117: 4030000 | C117: DEPN EXPENSE-ELECT | D117: 3680000 | E117: LINE TRANSFORMERS | F117: OR | G117: 11126.56082 | H117: =IF(OR(tblDeprExpJune19[[#This Row],[Alloc]]="IDU",tblDeprExpJune19[[#This Row],[Alloc]]="OR",tblDeprExpJune19[[#This Row],[Alloc]]="UT",tblDeprExpJune19[[#This Row],[Alloc]]="WYU",tblDeprExpJune19[[#This Row],[Alloc]]="WYP",tblDeprExpJune19[[#This Row],[Alloc]]="CA",tblDeprExpJune19[[#This Row],[Alloc]]="WA"),"SITUS",tblDeprExpJune19[[#This Row],[Alloc]]) -> SITUS | I117: =INDEX(tblDeprExpLookup[FUNC],MATCH(tblDeprExpJune19[[#This Row],[Concat]],tblDeprExpLookup[Concat],0)) -> DPW | J117: =IF(tblDeprExpJune19[[#This Row],[Total ($000)]]=0,"NO",IF(ISNA(tblDeprExpJune19[[#This Row],[FUNC]]),"YES",IF(_xlfn.ISFORMULA(tblDeprExpJune19[[#This Row],[FUNC]]),"NO","YES"))) -> NO
A118: =CONCATENATE(tblDeprExpJune19[[#This Row],[Primary Account]],tblDeprExpJune19[[#This Row],[Primary Name]],tblDeprExpJune19[[#This Row],[Secondary Acct]],tblDeprExpJune19[[#This Row],[Secondary Name]],tblDeprExpJune19[[#This Row],[Alloc4Func]]) -> 4030000DEPN EXPENSE-ELECT3680000LINE TRANSFORMERSSITUS | B118: 4030000 | C118: DEPN EXPENSE-ELECT | D118: 3680000 | E118: LINE TRANSFORMERS | F118: UT | G118: 12772.96053 | H118: =IF(OR(tblDeprExpJune19[[#This Row],[Alloc]]="IDU",tblDeprExpJune19[[#This Row],[Alloc]]="OR",tblDeprExpJune19[[#This Row],[Alloc]]="UT",tblDeprExpJune19[[#This Row],[Alloc]]="WYU",tblDeprExpJune19[[#This Row],[Alloc]]="WYP",tblDeprExpJune19[[#This Row],[Alloc]]="CA",tblDeprExpJune19[[#This Row],[Alloc]]="WA"),"SITUS",tblDeprExpJune19[[#This Row],[Alloc]]) -> SITUS | I118: =INDEX(tblDeprExpLookup[FUNC],MATCH(tblDeprExpJune19[[#This Row],[Concat]],tblDeprExpLookup[Concat],0)) -> DPW | J118: =IF(tblDeprExpJune19[[#This Row],[Total ($000)]]=0,"NO",IF(ISNA(tblDeprExpJune19[[#This Row],[FUNC]]),"YES",IF(_xlfn.ISFORMULA(tblDeprExpJune19[[#This Row],[FUNC]]),"NO","YES"))) -> NO
A119: =CONCATENATE(tblDeprExpJune19[[#This Row],[Primary Account]],tblDeprExpJune19[[#This Row],[Primary Name]],tblDeprExpJune19[[#This Row],[Secondary Acct]],tblDeprExpJune19[[#This Row],[Secondary Name]],tblDeprExpJune19[[#This Row],[Alloc4Func]]) -> 4030000DEPN EXPENSE-ELECT3680000LINE TRANSFORMERSSITUS | B119: 4030000 | C119: DEPN EXPENSE-ELECT | D119: 3680000 | E119: LINE TRANSFORMERS | F119: WA | G119: 3027.23149 | H119: =IF(OR(tblDeprExpJune19[[#This Row],[Alloc]]="IDU",tblDeprExpJune19[[#This Row],[Alloc]]="OR",tblDeprExpJune19[[#This Row],[Alloc]]="UT",tblDeprExpJune19[[#This Row],[Alloc]]="WYU",tblDeprExpJune19[[#This Row],[Alloc]]="WYP",tblDeprExpJune19[[#This Row],[Alloc]]="CA",tblDeprExpJune19[[#This Row],[Alloc]]="WA"),"SITUS",tblDeprExpJune19[[#This Row],[Alloc]]) -> SITUS | I119: =INDEX(tblDeprExpLookup[FUNC],MATCH(tblDeprExpJune19[[#This Row],[Concat]],tblDeprExpLookup[Concat],0)) -> DPW | J119: =IF(tblDeprExpJune19[[#This Row],[Total ($000)]]=0,"NO",IF(ISNA(tblDeprExpJune19[[#This Row],[FUNC]]),"YES",IF(_xlfn.ISFORMULA(tblDeprExpJune19[[#This Row],[FUNC]]),"NO","YES"))) -> NO
A120: =CONCATENATE(tblDeprExpJune19[[#This Row],[Primary Account]],tblDeprExpJune19[[#This Row],[Primary Name]],tblDeprExpJune19[[#This Row],[Secondary Acct]],tblDeprExpJune19[[#This Row],[Secondary Name]],tblDeprExpJune19[[#This Row],[Alloc4Func]]) -> 4030000DEPN EXPENSE-ELECT3680000LINE TRANSFORMERSSITUS | B120: 4030000 | C120: DEPN EXPENSE-ELECT | D120: 3680000 | E120: LINE TRANSFORMERS | F120: WYP | G120: 3484.07189 | H120: =IF(OR(tblDeprExpJune19[[#This Row],[Alloc]]="IDU",tblDeprExpJune19[[#This Row],[Alloc]]="OR",tblDeprExpJune19[[#This Row],[Alloc]]="UT",tblDeprExpJune19[[#This Row],[Alloc]]="WYU",tblDeprExpJune19[[#This Row],[Alloc]]="WYP",tblDeprExpJune19[[#This Row],[Alloc]]="CA",tblDeprExpJune19[[#This Row],[Alloc]]="WA"),"SITUS",tblDeprExpJune19[[#This Row],[Alloc]]) -> SITUS | I120: =INDEX(tblDeprExpLookup[FUNC],MATCH(tblDeprExpJune19[[#This Row],[Concat]],tblDeprExpLookup[Concat],0)) -> DPW | J120: =IF(tblDeprExpJune19[[#This Row],[Total ($000)]]=0,"NO",IF(ISNA(tblDeprExpJune19[[#This Row],[FUNC]]),"YES",IF(_xlfn.ISFORMULA(tblDeprExpJune19[[#This Row],[FUNC]]),"NO","YES"))) -> NO
A121: =CONCATENATE(tblDeprExpJune19[[#This Row],[Primary Account]],tblDeprExpJune19[[#This Row],[Primary Name]],tblDeprExpJune19[[#This Row],[Secondary Acct]],tblDeprExpJune19[[#This Row],[Secondary Name]],tblDeprExpJune19[[#This Row],[Alloc4Func]]) -> 4030000DEPN EXPENSE-ELECT3680000LINE TRANSFORMERSSITUS | B121: 4030000 | C121: DEPN EXPENSE-ELECT | D121: 3680000 | E121: LINE TRANSFORMERS | F121: WYU | G121: 493.6136 | H121: =IF(OR(tblDeprExpJune19[[#This Row],[Alloc]]="IDU",tblDeprExpJune19[[#This Row],[Alloc]]="OR",tblDeprExpJune19[[#This Row],[Alloc]]="UT",tblDeprExpJune19[[#This Row],[Alloc]]="WYU",tblDeprExpJune19[[#This Row],[Alloc]]="WYP",tblDeprExpJune19[[#This Row],[Alloc]]="CA",tblDeprExpJune19[[#This Row],[Alloc]]="WA"),"SITUS",tblDeprExpJune19[[#This Row],[Alloc]]) -> SITUS | I121: =INDEX(tblDeprExpLookup[FUNC],MATCH(tblDeprExpJune19[[#This Row],[Concat]],tblDeprExpLookup[Concat],0)) -> DPW | J121: =IF(tblDeprExpJune19[[#This Row],[Total ($000)]]=0,"NO",IF(ISNA(tblDeprExpJune19[[#This Row],[FUNC]]),"YES",IF(_xlfn.ISFORMULA(tblDeprExpJune19[[#This Row],[FUNC]]),"NO","YES"))) -> NO
A122: =CONCATENATE(tblDeprExpJune19[[#This Row],[Primary Account]],tblDeprExpJune19[[#This Row],[Primary Name]],tblDeprExpJune19[[#This Row],[Secondary Acct]],tblDeprExpJune19[[#This Row],[Secondary Name]],tblDeprExpJune19[[#This Row],[Alloc4Func]]) -> 4030000DEPN EXPENSE-ELECT3691000SERVICES - OVERHEADSITUS | B122: 4030000 | C122: DEPN EXPENSE-ELECT | D122: 3691000 | E122: SERVICES - OVERHEAD | F122: CA | G122: 183.90922 | H122: =IF(OR(tblDeprExpJune19[[#This Row],[Alloc]]="IDU",tblDeprExpJune19[[#This Row],[Alloc]]="OR",tblDeprExpJune19[[#This Row],[Alloc]]="UT",tblDeprExpJune19[[#This Row],[Alloc]]="WYU",tblDeprExpJune19[[#This Row],[Alloc]]="WYP",tblDeprExpJune19[[#This Row],[Alloc]]="CA",tblDeprExpJune19[[#This Row],[Alloc]]="WA"),"SITUS",tblDeprExpJune19[[#This Row],[Alloc]]) -> SITUS | I122: =INDEX(tblDeprExpLookup[FUNC],MATCH(tblDeprExpJune19[[#This Row],[Concat]],tblDeprExpLookup[Concat],0)) -> DPW | J122: =IF(tblDeprExpJune19[[#This Row],[Total ($000)]]=0,"NO",IF(ISNA(tblDeprExpJune19[[#This Row],[FUNC]]),"YES",IF(_xlfn.ISFORMULA(tblDeprExpJune19[[#This Row],[FUNC]]),"NO","YES"))) -> NO
A123: =CONCATENATE(tblDeprExpJune19[[#This Row],[Primary Account]],tblDeprExpJune19[[#This Row],[Primary Name]],tblDeprExpJune19[[#This Row],[Secondary Acct]],tblDeprExpJune19[[#This Row],[Secondary Name]],tblDeprExpJune19[[#This Row],[Alloc4Func]]) -> 4030000DEPN EXPENSE-ELECT3691000SERVICES - OVERHEADSITUS | B123: 4030000 | C123: DEPN EXPENSE-ELECT | D123: 3691000 | E123: SERVICES - OVERHEAD | F123: IDU | G123: 198.54556 | H123: =IF(OR(tblDeprExpJune19[[#This Row],[Alloc]]="IDU",tblDeprExpJune19[[#This Row],[Alloc]]="OR",tblDeprExpJune19[[#This Row],[Alloc]]="UT",tblDeprExpJune19[[#This Row],[Alloc]]="WYU",tblDeprExpJune19[[#This Row],[Alloc]]="WYP",tblDeprExpJune19[[#This Row],[Alloc]]="CA",tblDeprExpJune19[[#This Row],[Alloc]]="WA"),"SITUS",tblDeprExpJune19[[#This Row],[Alloc]]) -> SITUS | I123: =INDEX(tblDeprExpLookup[FUNC],MATCH(tblDeprExpJune19[[#This Row],[Concat]],tblDeprExpLookup[Concat],0)) -> DPW | J123: =IF(tblDeprExpJune19[[#This Row],[Total ($000)]]=0,"NO",IF(ISNA(tblDeprExpJune19[[#This Row],[FUNC]]),"YES",IF(_xlfn.ISFORMULA(tblDeprExpJune19[[#This Row],[FUNC]]),"NO","YES"))) -> NO
A124: =CONCATENATE(tblDeprExpJune19[[#This Row],[Primary Account]],tblDeprExpJune19[[#This Row],[Primary Name]],tblDeprExpJune19[[#This Row],[Secondary Acct]],tblDeprExpJune19[[#This Row],[Secondary Name]],tblDeprExpJune19[[#This Row],[Alloc4Func]]) -> 4030000DEPN EXPENSE-ELECT3691000SERVICES - OVERHEADSITUS | B124: 4030000 | C124: DEPN EXPENSE-ELECT | D124: 3691000 | E124: SERVICES - OVERHEAD | F124: OR | G124: 2193.05786 | H124: =IF(OR(tblDeprExpJune19[[#This Row],[Alloc]]="IDU",tblDeprExpJune19[[#This Row],[Alloc]]="OR",tblDeprExpJune19[[#This Row],[Alloc]]="UT",tblDeprExpJune19[[#This Row],[Alloc]]="WYU",tblDeprExpJune19[[#This Row],[Alloc]]="WYP",tblDeprExpJune19[[#This Row],[Alloc]]="CA",tblDeprExpJune19[[#This Row],[Alloc]]="WA"),"SITUS",tblDeprExpJune19[[#This Row],[Alloc]]) -> SITUS | I124: =INDEX(tblDeprExpLookup[FUNC],MATCH(tblDeprExpJune19[[#This Row],[Concat]],tblDeprExpLookup[Concat],0)) -> DPW | J124: =IF(tblDeprExpJune19[[#This Row],[Total ($000)]]=0,"NO",IF(ISNA(tblDeprExpJune19[[#This Row],[FUNC]]),"YES",IF(_xlfn.ISFORMULA(tblDeprExpJune19[[#This Row],[FUNC]]),"NO","YES"))) -> NO
A125: =CONCATENATE(tblDeprExpJune19[[#This Row],[Primary Account]],tblDeprExpJune19[[#This Row],[Primary Name]],tblDeprExpJune19[[#This Row],[Secondary Acct]],tblDeprExpJune19[[#This Row],[Secondary Name]],tblDeprExpJune19[[#This Row],[Alloc4Func]]) -> 4030000DEPN EXPENSE-ELECT3691000SERVICES - OVERHEADSITUS | B125: 4030000 | C125: DEPN EXPENSE-ELECT | D125: 3691000 | E125: SERVICES - OVERHEAD | F125: UT | G125: 2044.13184 | H125: =IF(OR(tblDeprExpJune19[[#This Row],[Alloc]]="IDU",tblDeprExpJune19[[#This Row],[Alloc]]="OR",tblDeprExpJune19[[#This Row],[Alloc]]="UT",tblDeprExpJune19[[#This Row],[Alloc]]="WYU",tblDeprExpJune19[[#This Row],[Alloc]]="WYP",tblDeprExpJune19[[#This Row],[Alloc]]="CA",tblDeprExpJune19[[#This Row],[Alloc]]="WA"),"SITUS",tblDeprExpJune19[[#This Row],[Alloc]]) -> SITUS | I125: =INDEX(tblDeprExpLookup[FUNC],MATCH(tblDeprExpJune19[[#This Row],[Concat]],tblDeprExpLookup[Concat],0)) -> DPW | J125: =IF(tblDeprExpJune19[[#This Row],[Total ($000)]]=0,"NO",IF(ISNA(tblDeprExpJune19[[#This Row],[FUNC]]),"YES",IF(_xlfn.ISFORMULA(tblDeprExpJune19[[#This Row],[FUNC]]),"NO","YES"))) -> NO
A126: =CONCATENATE(tblDeprExpJune19[[#This Row],[Primary Account]],tblDeprExpJune19[[#This Row],[Primary Name]],tblDeprExpJune19[[#This Row],[Secondary Acct]],tblDeprExpJune19[[#This Row],[Secondary Name]],tblDeprExpJune19[[#This Row],[Alloc4Func]]) -> 4030000DEPN EXPENSE-ELECT3691000SERVICES - OVERHEADSITUS | B126: 4030000 | C126: DEPN EXPENSE-ELECT | D126: 3691000 | E126: SERVICES - OVERHEAD | F126: WA | G126: 537.2483 | H126: =IF(OR(tblDeprExpJune19[[#This Row],[Alloc]]="IDU",tblDeprExpJune19[[#This Row],[Alloc]]="OR",tblDeprExpJune19[[#This Row],[Alloc]]="UT",tblDeprExpJune19[[#This Row],[Alloc]]="WYU",tblDeprExpJune19[[#This Row],[Alloc]]="WYP",tblDeprExpJune19[[#This Row],[Alloc]]="CA",tblDeprExpJune19[[#This Row],[Alloc]]="WA"),"SITUS",tblDeprExpJune19[[#This Row],[Alloc]]) -> SITUS | I126: =INDEX(tblDeprExpLookup[FUNC],MATCH(tblDeprExpJune19[[#This Row],[Concat]],tblDeprExpLookup[Concat],0)) -> DPW | J126: =IF(tblDeprExpJune19[[#This Row],[Total ($000)]]=0,"NO",IF(ISNA(tblDeprExpJune19[[#This Row],[FUNC]]),"YES",IF(_xlfn.ISFORMULA(tblDeprExpJune19[[#This Row],[FUNC]]),"NO","YES"))) -> NO
A127: =CONCATENATE(tblDeprExpJune19[[#This Row],[Primary Account]],tblDeprExpJune19[[#This Row],[Primary Name]],tblDeprExpJune19[[#This Row],[Secondary Acct]],tblDeprExpJune19[[#This Row],[Secondary Name]],tblDeprExpJune19[[#This Row],[Alloc4Func]]) -> 4030000DEPN EXPENSE-ELECT3691000SERVICES - OVERHEADSITUS | B127: 4030000 | C127: DEPN EXPENSE-ELECT | D127: 3691000 | E127: SERVICES - OVERHEAD | F127: WYP | G127: 359.27975 | H127: =IF(OR(tblDeprExpJune19[[#This Row],[Alloc]]="IDU",tblDeprExpJune19[[#This Row],[Alloc]]="OR",tblDeprExpJune19[[#This Row],[Alloc]]="UT",tblDeprExpJune19[[#This Row],[Alloc]]="WYU",tblDeprExpJune19[[#This Row],[Alloc]]="WYP",tblDeprExpJune19[[#This Row],[Alloc]]="CA",tblDeprExpJune19[[#This Row],[Alloc]]="WA"),"SITUS",tblDeprExpJune19[[#This Row],[Alloc]]) -> SITUS | I127: =INDEX(tblDeprExpLookup[FUNC],MATCH(tblDeprExpJune19[[#This Row],[Concat]],tblDeprExpLookup[Concat],0)) -> DPW | J127: =IF(tblDeprExpJune19[[#This Row],[Total ($000)]]=0,"NO",IF(ISNA(tblDeprExpJune19[[#This Row],[FUNC]]),"YES",IF(_xlfn.ISFORMULA(tblDeprExpJune19[[#This Row],[FUNC]]),"NO","YES"))) -> NO
A128: =CONCATENATE(tblDeprExpJune19[[#This Row],[Primary Account]],tblDeprExpJune19[[#This Row],[Primary Name]],tblDeprExpJune19[[#This Row],[Secondary Acct]],tblDeprExpJune19[[#This Row],[Secondary Name]],tblDeprExpJune19[[#This Row],[Alloc4Func]]) -> 4030000DEPN EXPENSE-ELECT3691000SERVICES - OVERHEADSITUS | B128: 4030000 | C128: DEPN EXPENSE-ELECT | D128: 3691000 | E128: SERVICES - OVERHEAD | F128: WYU | G128: 69.20334 | H128: =IF(OR(tblDeprExpJune19[[#This Row],[Alloc]]="IDU",tblDeprExpJune19[[#This Row],[Alloc]]="OR",tblDeprExpJune19[[#This Row],[Alloc]]="UT",tblDeprExpJune19[[#This Row],[Alloc]]="WYU",tblDeprExpJune19[[#This Row],[Alloc]]="WYP",tblDeprExpJune19[[#This Row],[Alloc]]="CA",tblDeprExpJune19[[#This Row],[Alloc]]="WA"),"SITUS",tblDeprExpJune19[[#This Row],[Alloc]]) -> SITUS | I128: =INDEX(tblDeprExpLookup[FUNC],MATCH(tblDeprExpJune19[[#This Row],[Concat]],tblDeprExpLookup[Concat],0)) -> DPW | J128: =IF(tblDeprExpJune19[[#This Row],[Total ($000)]]=0,"NO",IF(ISNA(tblDeprExpJune19[[#This Row],[FUNC]]),"YES",IF(_xlfn.ISFORMULA(tblDeprExpJune19[[#This Row],[FUNC]]),"NO","YES"))) -> NO
A129: =CONCATENATE(tblDeprExpJune19[[#This Row],[Primary Account]],tblDeprExpJune19[[#This Row],[Primary Name]],tblDeprExpJune19[[#This Row],[Secondary Acct]],tblDeprExpJune19[[#This Row],[Secondary Name]],tblDeprExpJune19[[#This Row],[Alloc4Func]]) -> 4030000DEPN EXPENSE-ELECT3692000SERVICES - UNDERGROUNDSITUS | B129: 4030000 | C129: DEPN EXPENSE-ELECT | D129: 3692000 | E129: SERVICES - UNDERGROUND | F129: CA | G129: 300.97952 | H129: =IF(OR(tblDeprExpJune19[[#This Row],[Alloc]]="IDU",tblDeprExpJune19[[#This Row],[Alloc]]="OR",tblDeprExpJune19[[#This Row],[Alloc]]="UT",tblDeprExpJune19[[#This Row],[Alloc]]="WYU",tblDeprExpJune19[[#This Row],[Alloc]]="WYP",tblDeprExpJune19[[#This Row],[Alloc]]="CA",tblDeprExpJune19[[#This Row],[Alloc]]="WA"),"SITUS",tblDeprExpJune19[[#This Row],[Alloc]]) -> SITUS | I129: =INDEX(tblDeprExpLookup[FUNC],MATCH(tblDeprExpJune19[[#This Row],[Concat]],tblDeprExpLookup[Concat],0)) -> DPW | J129: =IF(tblDeprExpJune19[[#This Row],[Total ($000)]]=0,"NO",IF(ISNA(tblDeprExpJune19[[#This Row],[FUNC]]),"YES",IF(_xlfn.ISFORMULA(tblDeprExpJune19[[#This Row],[FUNC]]),"NO","YES"))) -> NO
A130: =CONCATENATE(tblDeprExpJune19[[#This Row],[Primary Account]],tblDeprExpJune19[[#This Row],[Primary Name]],tblDeprExpJune19[[#This Row],[Secondary Acct]],tblDeprExpJune19[[#This Row],[Secondary Name]],tblDeprExpJune19[[#This Row],[Alloc4Func]]) -> 4030000DEPN EXPENSE-ELECT3692000SERVICES - UNDERGROUNDSITUS | B130: 4030000 | C130: DEPN EXPENSE-ELECT | D130: 3692000 | E130: SERVICES - UNDERGROUND | F130: IDU | G130: 767.82661 | H130: =IF(OR(tblDeprExpJune19[[#This Row],[Alloc]]="IDU",tblDeprExpJune19[[#This Row],[Alloc]]="OR",tblDeprExpJune19[[#This Row],[Alloc]]="UT",tblDeprExpJune19[[#This Row],[Alloc]]="WYU",tblDeprExpJune19[[#This Row],[Alloc]]="WYP",tblDeprExpJune19[[#This Row],[Alloc]]="CA",tblDeprExpJune19[[#This Row],[Alloc]]="WA"),"SITUS",tblDeprExpJune19[[#This Row],[Alloc]]) -> SITUS | I130: =INDEX(tblDeprExpLookup[FUNC],MATCH(tblDeprExpJune19[[#This Row],[Concat]],tblDeprExpLookup[Concat],0)) -> DPW | J130: =IF(tblDeprExpJune19[[#This Row],[Total ($000)]]=0,"NO",IF(ISNA(tblDeprExpJune19[[#This Row],[FUNC]]),"YES",IF(_xlfn.ISFORMULA(tblDeprExpJune19[[#This Row],[FUNC]]),"NO","YES"))) -> NO
A131: =CONCATENATE(tblDeprExpJune19[[#This Row],[Primary Account]],tblDeprExpJune19[[#This Row],[Primary Name]],tblDeprExpJune19[[#This Row],[Secondary Acct]],tblDeprExpJune19[[#This Row],[Secondary Name]],tblDeprExpJune19[[#This Row],[Alloc4Func]]) -> 4030000DEPN EXPENSE-ELECT3692000SERVICES - UNDERGROUNDSITUS | B131: 4030000 | C131: DEPN EXPENSE-ELECT | D131: 3692000 | E131: SERVICES - UNDERGROUND | F131: OR | G131: 4582.97323 | H131: =IF(OR(tblDeprExpJune19[[#This Row],[Alloc]]="IDU",tblDeprExpJune19[[#This Row],[Alloc]]="OR",tblDeprExpJune19[[#This Row],[Alloc]]="UT",tblDeprExpJune19[[#This Row],[Alloc]]="WYU",tblDeprExpJune19[[#This Row],[Alloc]]="WYP",tblDeprExpJune19[[#This Row],[Alloc]]="CA",tblDeprExpJune19[[#This Row],[Alloc]]="WA"),"SITUS",tblDeprExpJune19[[#This Row],[Alloc]]) -> SITUS | I131: =INDEX(tblDeprExpLookup[FUNC],MATCH(tblDeprExpJune19[[#This Row],[Concat]],tblDeprExpLookup[Concat],0)) -> DPW | J131: =IF(tblDeprExpJune19[[#This Row],[Total ($000)]]=0,"NO",IF(ISNA(tblDeprExpJune19[[#This Row],[FUNC]]),"YES",IF(_xlfn.ISFORMULA(tblDeprExpJune19[[#This Row],[FUNC]]),"NO","YES"))) -> NO
A132: =CONCATENATE(tblDeprExpJune19[[#This Row],[Primary Account]],tblDeprExpJune19[[#This Row],[Primary Name]],tblDeprExpJune19[[#This Row],[Secondary Acct]],tblDeprExpJune19[[#This Row],[Secondary Name]],tblDeprExpJune19[[#This Row],[Alloc4Func]]) -> 4030000DEPN EXPENSE-ELECT3692000SERVICES - UNDERGROUNDSITUS | B132: 4030000 | C132: DEPN EXPENSE-ELECT | D132: 3692000 | E132: SERVICES - UNDERGROUND | F132: UT | G132: 5321.07584 | H132: =IF(OR(tblDeprExpJune19[[#This Row],[Alloc]]="IDU",tblDeprExpJune19[[#This Row],[Alloc]]="OR",tblDeprExpJune19[[#This Row],[Alloc]]="UT",tblDeprExpJune19[[#This Row],[Alloc]]="WYU",tblDeprExpJune19[[#This Row],[Alloc]]="WYP",tblDeprExpJune19[[#This Row],[Alloc]]="CA",tblDeprExpJune19[[#This Row],[Alloc]]="WA"),"SITUS",tblDeprExpJune19[[#This Row],[Alloc]]) -> SITUS | I132: =INDEX(tblDeprExpLookup[FUNC],MATCH(tblDeprExpJune19[[#This Row],[Concat]],tblDeprExpLookup[Concat],0)) -> DPW | J132: =IF(tblDeprExpJune19[[#This Row],[Total ($000)]]=0,"NO",IF(ISNA(tblDeprExpJune19[[#This Row],[FUNC]]),"YES",IF(_xlfn.ISFORMULA(tblDeprExpJune19[[#This Row],[FUNC]]),"NO","YES"))) -> NO
A133: =CONCATENATE(tblDeprExpJune19[[#This Row],[Primary Account]],tblDeprExpJune19[[#This Row],[Primary Name]],tblDeprExpJune19[[#This Row],[Secondary Acct]],tblDeprExpJune19[[#This Row],[Secondary Name]],tblDeprExpJune19[[#This Row],[Alloc4Func]]) -> 4030000DEPN EXPENSE-ELECT3692000SERVICES - UNDERGROUNDSITUS | B133: 4030000 | C133: DEPN EXPENSE-ELECT | D133: 3692000 | E133: SERVICES - UNDERGROUND | F133: WA | G133: 1105.11862 | H133: =IF(OR(tblDeprExpJune19[[#This Row],[Alloc]]="IDU",tblDeprExpJune19[[#This Row],[Alloc]]="OR",tblDeprExpJune19[[#This Row],[Alloc]]="UT",tblDeprExpJune19[[#This Row],[Alloc]]="WYU",tblDeprExpJune19[[#This Row],[Alloc]]="WYP",tblDeprExpJune19[[#This Row],[Alloc]]="CA",tblDeprExpJune19[[#This Row],[Alloc]]="WA"),"SITUS",tblDeprExpJune19[[#This Row],[Alloc]]) -> SITUS | I133: =INDEX(tblDeprExpLookup[FUNC],MATCH(tblDeprExpJune19[[#This Row],[Concat]],tblDeprExpLookup[Concat],0)) -> DPW | J133: =IF(tblDeprExpJune19[[#This Row],[Total ($000)]]=0,"NO",IF(ISNA(tblDeprExpJune19[[#This Row],[FUNC]]),"YES",IF(_xlfn.ISFORMULA(tblDeprExpJune19[[#This Row],[FUNC]]),"NO","YES"))) -> NO
A134: =CONCATENATE(tblDeprExpJune19[[#This Row],[Primary Account]],tblDeprExpJune19[[#This Row],[Primary Name]],tblDeprExpJune19[[#This Row],[Secondary Acct]],tblDeprExpJune19[[#This Row],[Secondary Name]],tblDeprExpJune19[[#This Row],[Alloc4Func]]) -> 4030000DEPN EXPENSE-ELECT3692000SERVICES - UNDERGROUNDSITUS | B134: 4030000 | C134: DEPN EXPENSE-ELECT | D134: 3692000 | E134: SERVICES - UNDERGROUND | F134: WYP | G134: 935.88532 | H134: =IF(OR(tblDeprExpJune19[[#This Row],[Alloc]]="IDU",tblDeprExpJune19[[#This Row],[Alloc]]="OR",tblDeprExpJune19[[#This Row],[Alloc]]="UT",tblDeprExpJune19[[#This Row],[Alloc]]="WYU",tblDeprExpJune19[[#This Row],[Alloc]]="WYP",tblDeprExpJune19[[#This Row],[Alloc]]="CA",tblDeprExpJune19[[#This Row],[Alloc]]="WA"),"SITUS",tblDeprExpJune19[[#This Row],[Alloc]]) -> SITUS | I134: =INDEX(tblDeprExpLookup[FUNC],MATCH(tblDeprExpJune19[[#This Row],[Concat]],tblDeprExpLookup[Concat],0)) -> DPW | J134: =IF(tblDeprExpJune19[[#This Row],[Total ($000)]]=0,"NO",IF(ISNA(tblDeprExpJune19[[#This Row],[FUNC]]),"YES",IF(_xlfn.ISFORMULA(tblDeprExpJune19[[#This Row],[FUNC]]),"NO","YES"))) -> NO
A135: =CONCATENATE(tblDeprExpJune19[[#This Row],[Primary Account]],tblDeprExpJune19[[#This Row],[Primary Name]],tblDeprExpJune19[[#This Row],[Secondary Acct]],tblDeprExpJune19[[#This Row],[Secondary Name]],tblDeprExpJune19[[#This Row],[Alloc4Func]]) -> 4030000DEPN EXPENSE-ELECT3692000SERVICES - UNDERGROUNDSITUS | B135: 4030000 | C135: DEPN EXPENSE-ELECT | D135: 3692000 | E135: SERVICES - UNDERGROUND | F135: WYU | G135: 320.88664 | H135: =IF(OR(tblDeprExpJune19[[#This Row],[Alloc]]="IDU",tblDeprExpJune19[[#This Row],[Alloc]]="OR",tblDeprExpJune19[[#This Row],[Alloc]]="UT",tblDeprExpJune19[[#This Row],[Alloc]]="WYU",tblDeprExpJune19[[#This Row],[Alloc]]="WYP",tblDeprExpJune19[[#This Row],[Alloc]]="CA",tblDeprExpJune19[[#This Row],[Alloc]]="WA"),"SITUS",tblDeprExpJune19[[#This Row],[Alloc]]) -> SITUS | I135: =INDEX(tblDeprExpLookup[FUNC],MATCH(tblDeprExpJune19[[#This Row],[Concat]],tblDeprExpLookup[Concat],0)) -> DPW | J135: =IF(tblDeprExpJune19[[#This Row],[Total ($000)]]=0,"NO",IF(ISNA(tblDeprExpJune19[[#This Row],[FUNC]]),"YES",IF(_xlfn.ISFORMULA(tblDeprExpJune19[[#This Row],[FUNC]]),"NO","YES"))) -> NO
A136: =CONCATENATE(tblDeprExpJune19[[#This Row],[Primary Account]],tblDeprExpJune19[[#This Row],[Primary Name]],tblDeprExpJune19[[#This Row],[Secondary Acct]],tblDeprExpJune19[[#This Row],[Secondary Name]],tblDeprExpJune19[[#This Row],[Alloc4Func]]) -> 4030000DEPN EXPENSE-ELECT3700000METERSSITUS | B136: 4030000 | C136: DEPN EXPENSE-ELECT | D136: 3700000 | E136: METERS | F136: CA | G136: 317.42978 | H136: =IF(OR(tblDeprExpJune19[[#This Row],[Alloc]]="IDU",tblDeprExpJune19[[#This Row],[Alloc]]="OR",tblDeprExpJune19[[#This Row],[Alloc]]="UT",tblDeprExpJune19[[#This Row],[Alloc]]="WYU",tblDeprExpJune19[[#This Row],[Alloc]]="WYP",tblDeprExpJune19[[#This Row],[Alloc]]="CA",tblDeprExpJune19[[#This Row],[Alloc]]="WA"),"SITUS",tblDeprExpJune19[[#This Row],[Alloc]]) -> SITUS | I136: =INDEX(tblDeprExpLookup[FUNC],MATCH(tblDeprExpJune19[[#This Row],[Concat]],tblDeprExpLookup[Concat],0)) -> DPW | J136: =IF(tblDeprExpJune19[[#This Row],[Total ($000)]]=0,"NO",IF(ISNA(tblDeprExpJune19[[#This Row],[FUNC]]),"YES",IF(_xlfn.ISFORMULA(tblDeprExpJune19[[#This Row],[FUNC]]),"NO","YES"))) -> NO
A137: =CONCATENATE(tblDeprExpJune19[[#This Row],[Primary Account]],tblDeprExpJune19[[#This Row],[Primary Name]],tblDeprExpJune19[[#This Row],[Secondary Acct]],tblDeprExpJune19[[#This Row],[Secondary Name]],tblDeprExpJune19[[#This Row],[Alloc4Func]]) -> 4030000DEPN EXPENSE-ELECT3700000METERSSITUS | B137: 4030000 | C137: DEPN EXPENSE-ELECT | D137: 3700000 | E137: METERS | F137: IDU | G137: 635.85487 | H137: =IF(OR(tblDeprExpJune19[[#This Row],[Alloc]]="IDU",tblDeprExpJune19[[#This Row],[Alloc]]="OR",tblDeprExpJune19[[#This Row],[Alloc]]="UT",tblDeprExpJune19[[#This Row],[Alloc]]="WYU",tblDeprExpJune19[[#This Row],[Alloc]]="WYP",tblDeprExpJune19[[#This Row],[Alloc]]="CA",tblDeprExpJune19[[#This Row],[Alloc]]="WA"),"SITUS",tblDeprExpJune19[[#This Row],[Alloc]]) -> SITUS | I137: =INDEX(tblDeprExpLookup[FUNC],MATCH(tblDeprExpJune19[[#This Row],[Concat]],tblDeprExpLookup[Concat],0)) -> DPW | J137: =IF(tblDeprExpJune19[[#This Row],[Total ($000)]]=0,"NO",IF(ISNA(tblDeprExpJune19[[#This Row],[FUNC]]),"YES",IF(_xlfn.ISFORMULA(tblDeprExpJune19[[#This Row],[FUNC]]),"NO","YES"))) -> NO
A138: =CONCATENATE(tblDeprExpJune19[[#This Row],[Primary Account]],tblDeprExpJune19[[#This Row],[Primary Name]],tblDeprExpJune19[[#This Row],[Secondary Acct]],tblDeprExpJune19[[#This Row],[Secondary Name]],tblDeprExpJune19[[#This Row],[Alloc4Func]]) -> 4030000DEPN EXPENSE-ELECT3700000METERSSITUS | B138: 4030000 | C138: DEPN EXPENSE-ELECT | D138: 3700000 | E138: METERS | F138: OR | G138: 3046.87912 | H138: =IF(OR(tblDeprExpJune19[[#This Row],[Alloc]]="IDU",tblDeprExpJune19[[#This Row],[Alloc]]="OR",tblDeprExpJune19[[#This Row],[Alloc]]="UT",tblDeprExpJune19[[#This Row],[Alloc]]="WYU",tblDeprExpJune19[[#This Row],[Alloc]]="WYP",tblDeprExpJune19[[#This Row],[Alloc]]="CA",tblDeprExpJune19[[#This Row],[Alloc]]="WA"),"SITUS",tblDeprExpJune19[[#This Row],[Alloc]]) -> SITUS | I138: =INDEX(tblDeprExpLookup[FUNC],MATCH(tblDeprExpJune19[[#This Row],[Concat]],tblDeprExpLookup[Concat],0)) -> DPW | J138: =IF(tblDeprExpJune19[[#This Row],[Total ($000)]]=0,"NO",IF(ISNA(tblDeprExpJune19[[#This Row],[FUNC]]),"YES",IF(_xlfn.ISFORMULA(tblDeprExpJune19[[#This Row],[FUNC]]),"NO","YES"))) -> NO
A139: =CONCATENATE(tblDeprExpJune19[[#This Row],[Primary Account]],tblDeprExpJune19[[#This Row],[Primary Name]],tblDeprExpJune19[[#This Row],[Secondary Acct]],tblDeprExpJune19[[#This Row],[Secondary Name]],tblDeprExpJune19[[#This Row],[Alloc4Func]]) -> 4030000DEPN EXPENSE-ELECT3700000METERSSITUS | B139: 4030000 | C139: DEPN EXPENSE-ELECT | D139: 3700000 | E139: METERS | F139: UT | G139: 3526.91467 | H139: =IF(OR(tblDeprExpJune19[[#This Row],[Alloc]]="IDU",tblDeprExpJune19[[#This Row],[Alloc]]="OR",tblDeprExpJune19[[#This Row],[Alloc]]="UT",tblDeprExpJune19[[#This Row],[Alloc]]="WYU",tblDeprExpJune19[[#This Row],[Alloc]]="WYP",tblDeprExpJune19[[#This Row],[Alloc]]="CA",tblDeprExpJune19[[#This Row],[Alloc]]="WA"),"SITUS",tblDeprExpJune19[[#This Row],[Alloc]]) -> SITUS | I139: =INDEX(tblDeprExpLookup[FUNC],MATCH(tblDeprExpJune19[[#This Row],[Concat]],tblDeprExpLookup[Concat],0)) -> DPW | J139: =IF(tblDeprExpJune19[[#This Row],[Total ($000)]]=0,"NO",IF(ISNA(tblDeprExpJune19[[#This Row],[FUNC]]),"YES",IF(_xlfn.ISFORMULA(tblDeprExpJune19[[#This Row],[FUNC]]),"NO","YES"))) -> NO
A140: =CONCATENATE(tblDeprExpJune19[[#This Row],[Primary Account]],tblDeprExpJune19[[#This Row],[Primary Name]],tblDeprExpJune19[[#This Row],[Secondary Acct]],tblDeprExpJune19[[#This Row],[Secondary Name]],tblDeprExpJune19[[#This Row],[Alloc4Func]]) -> 4030000DEPN EXPENSE-ELECT3700000METERSSITUS | B140: 4030000 | C140: DEPN EXPENSE-ELECT | D140: 3700000 | E140: METERS | F140: WA | G140: 515.51768 | H140: =IF(OR(tblDeprExpJune19[[#This Row],[Alloc]]="IDU",tblDeprExpJune19[[#This Row],[Alloc]]="OR",tblDeprExpJune19[[#This Row],[Alloc]]="UT",tblDeprExpJune19[[#This Row],[Alloc]]="WYU",tblDeprExpJune19[[#This Row],[Alloc]]="WYP",tblDeprExpJune19[[#This Row],[Alloc]]="CA",tblDeprExpJune19[[#This Row],[Alloc]]="WA"),"SITUS",tblDeprExpJune19[[#This Row],[Alloc]]) -> SITUS | I140: =INDEX(tblDeprExpLookup[FUNC],MATCH(tblDeprExpJune19[[#This Row],[Concat]],tblDeprExpLookup[Concat],0)) -> DPW | J140: =IF(tblDeprExpJune19[[#This Row],[Total ($000)]]=0,"NO",IF(ISNA(tblDeprExpJune19[[#This Row],[FUNC]]),"YES",IF(_xlfn.ISFORMULA(tblDeprExpJune19[[#This Row],[FUNC]]),"NO","YES"))) -> NO
A141: =CONCATENATE(tblDeprExpJune19[[#This Row],[Primary Account]],tblDeprExpJune19[[#This Row],[Primary Name]],tblDeprExpJune19[[#This Row],[Secondary Acct]],tblDeprExpJune19[[#This Row],[Secondary Name]],tblDeprExpJune19[[#This Row],[Alloc4Func]]) -> 4030000DEPN EXPENSE-ELECT3700000METERSSITUS | B141: 4030000 | C141: DEPN EXPENSE-ELECT | D141: 3700000 | E141: METERS | F141: WYP | G141: 541.67397 | H141: =IF(OR(tblDeprExpJune19[[#This Row],[Alloc]]="IDU",tblDeprExpJune19[[#This Row],[Alloc]]="OR",tblDeprExpJune19[[#This Row],[Alloc]]="UT",tblDeprExpJune19[[#This Row],[Alloc]]="WYU",tblDeprExpJune19[[#This Row],[Alloc]]="WYP",tblDeprExpJune19[[#This Row],[Alloc]]="CA",tblDeprExpJune19[[#This Row],[Alloc]]="WA"),"SITUS",tblDeprExpJune19[[#This Row],[Alloc]]) -> SITUS | I141: =INDEX(tblDeprExpLookup[FUNC],MATCH(tblDeprExpJune19[[#This Row],[Concat]],tblDeprExpLookup[Concat],0)) -> DPW | J141: =IF(tblDeprExpJune19[[#This Row],[Total ($000)]]=0,"NO",IF(ISNA(tblDeprExpJune19[[#This Row],[FUNC]]),"YES",IF(_xlfn.ISFORMULA(tblDeprExpJune19[[#This Row],[FUNC]]),"NO","YES"))) -> NO
A142: =CONCATENATE(tblDeprExpJune19[[#This Row],[Primary Account]],tblDeprExpJune19[[#This Row],[Primary Name]],tblDeprExpJune19[[#This Row],[Secondary Acct]],tblDeprExpJune19[[#This Row],[Secondary Name]],tblDeprExpJune19[[#This Row],[Alloc4Func]]) -> 4030000DEPN EXPENSE-ELECT3700000METERSSITUS | B142: 4030000 | C142: DEPN EXPENSE-ELECT | D142: 3700000 | E142: METERS | F142: WYU | G142: 97.39208 | H142: =IF(OR(tblDeprExpJune19[[#This Row],[Alloc]]="IDU",tblDeprExpJune19[[#This Row],[Alloc]]="OR",tblDeprExpJune19[[#This Row],[Alloc]]="UT",tblDeprExpJune19[[#This Row],[Alloc]]="WYU",tblDeprExpJune19[[#This Row],[Alloc]]="WYP",tblDeprExpJune19[[#This Row],[Alloc]]="CA",tblDeprExpJune19[[#This Row],[Alloc]]="WA"),"SITUS",tblDeprExpJune19[[#This Row],[Alloc]]) -> SITUS | I142: =INDEX(tblDeprExpLookup[FUNC],MATCH(tblDeprExpJune19[[#This Row],[Concat]],tblDeprExpLookup[Concat],0)) -> DPW | J142: =IF(tblDeprExpJune19[[#This Row],[Total ($000)]]=0,"NO",IF(ISNA(tblDeprExpJune19[[#This Row],[FUNC]]),"YES",IF(_xlfn.ISFORMULA(tblDeprExpJune19[[#This Row],[FUNC]]),"NO","YES"))) -> NO
A143: =CONCATENATE(tblDeprExpJune19[[#This Row],[Primary Account]],tblDeprExpJune19[[#This Row],[Primary Name]],tblDeprExpJune19[[#This Row],[Secondary Acct]],tblDeprExpJune19[[#This Row],[Secondary Name]],tblDeprExpJune19[[#This Row],[Alloc4Func]]) -> 4030000DEPN EXPENSE-ELECT3710000INSTALL ON CUSTOMERS PREMISESSITUS | B143: 4030000 | C143: DEPN EXPENSE-ELECT | D143: 3710000 | E143: INSTALL ON CUSTOMERS PREMISES | F143: CA | G143: 13.37825 | H143: =IF(OR(tblDeprExpJune19[[#This Row],[Alloc]]="IDU",tblDeprExpJune19[[#This Row],[Alloc]]="OR",tblDeprExpJune19[[#This Row],[Alloc]]="UT",tblDeprExpJune19[[#This Row],[Alloc]]="WYU",tblDeprExpJune19[[#This Row],[Alloc]]="WYP",tblDeprExpJune19[[#This Row],[Alloc]]="CA",tblDeprExpJune19[[#This Row],[Alloc]]="WA"),"SITUS",tblDeprExpJune19[[#This Row],[Alloc]]) -> SITUS | I143: =INDEX(tblDeprExpLookup[FUNC],MATCH(tblDeprExpJune19[[#This Row],[Concat]],tblDeprExpLookup[Concat],0)) -> DPW | J143: =IF(tblDeprExpJune19[[#This Row],[Total ($000)]]=0,"NO",IF(ISNA(tblDeprExpJune19[[#This Row],[FUNC]]),"YES",IF(_xlfn.ISFORMULA(tblDeprExpJune19[[#This Row],[FUNC]]),"NO","YES"))) -> NO
A144: =CONCATENATE(tblDeprExpJune19[[#This Row],[Primary Account]],tblDeprExpJune19[[#This Row],[Primary Name]],tblDeprExpJune19[[#This Row],[Secondary Acct]],tblDeprExpJune19[[#This Row],[Secondary Name]],tblDeprExpJune19[[#This Row],[Alloc4Func]]) -> 4030000DEPN EXPENSE-ELECT3710000INSTALL ON CUSTOMERS PREMISESSITUS | B144: 4030000 | C144: DEPN EXPENSE-ELECT | D144: 3710000 | E144: INSTALL ON CUSTOMERS PREMISES | F144: IDU | G144: 9.78509 | H144: =IF(OR(tblDeprExpJune19[[#This Row],[Alloc]]="IDU",tblDeprExpJune19[[#This Row],[Alloc]]="OR",tblDeprExpJune19[[#This Row],[Alloc]]="UT",tblDeprExpJune19[[#This Row],[Alloc]]="WYU",tblDeprExpJune19[[#This Row],[Alloc]]="WYP",tblDeprExpJune19[[#This Row],[Alloc]]="CA",tblDeprExpJune19[[#This Row],[Alloc]]="WA"),"SITUS",tblDeprExpJune19[[#This Row],[Alloc]]) -> SITUS | I144: =INDEX(tblDeprExpLookup[FUNC],MATCH(tblDeprExpJune19[[#This Row],[Concat]],tblDeprExpLookup[Concat],0)) -> DPW | J144: =IF(tblDeprExpJune19[[#This Row],[Total ($000)]]=0,"NO",IF(ISNA(tblDeprExpJune19[[#This Row],[FUNC]]),"YES",IF(_xlfn.ISFORMULA(tblDeprExpJune19[[#This Row],[FUNC]]),"NO","YES"))) -> NO
A145: =CONCATENATE(tblDeprExpJune19[[#This Row],[Primary Account]],tblDeprExpJune19[[#This Row],[Primary Name]],tblDeprExpJune19[[#This Row],[Secondary Acct]],tblDeprExpJune19[[#This Row],[Secondary Name]],tblDeprExpJune19[[#This Row],[Alloc4Func]]) -> 4030000DEPN EXPENSE-ELECT3710000INSTALL ON CUSTOMERS PREMISESSITUS | B145: 4030000 | C145: DEPN EXPENSE-ELECT | D145: 3710000 | E145: INSTALL ON CUSTOMERS PREMISES | F145: OR | G145: 126.3303 | H145: =IF(OR(tblDeprExpJune19[[#This Row],[Alloc]]="IDU",tblDeprExpJune19[[#This Row],[Alloc]]="OR",tblDeprExpJune19[[#This Row],[Alloc]]="UT",tblDeprExpJune19[[#This Row],[Alloc]]="WYU",tblDeprExpJune19[[#This Row],[Alloc]]="WYP",tblDeprExpJune19[[#This Row],[Alloc]]="CA",tblDeprExpJune19[[#This Row],[Alloc]]="WA"),"SITUS",tblDeprExpJune19[[#This Row],[Alloc]]) -> SITUS | I145: =INDEX(tblDeprExpLookup[FUNC],MATCH(tblDeprExpJune19[[#This Row],[Concat]],tblDeprExpLookup[Concat],0)) -> DPW | J145: =IF(tblDeprExpJune19[[#This Row],[Total ($000)]]=0,"NO",IF(ISNA(tblDeprExpJune19[[#This Row],[FUNC]]),"YES",IF(_xlfn.ISFORMULA(tblDeprExpJune19[[#This Row],[FUNC]]),"NO","YES"))) -> NO
A146: =CONCATENATE(tblDeprExpJune19[[#This Row],[Primary Account]],tblDeprExpJune19[[#This Row],[Primary Name]],tblDeprExpJune19[[#This Row],[Secondary Acct]],tblDeprExpJune19[[#This Row],[Secondary Name]],tblDeprExpJune19[[#This Row],[Alloc4Func]]) -> 4030000DEPN EXPENSE-ELECT3710000INSTALL ON CUSTOMERS PREMISESSITUS | B146: 4030000 | C146: DEPN EXPENSE-ELECT | D146: 3710000 | E146: INSTALL ON CUSTOMERS PREMISES | F146: UT | G146: 270.23675 | H146: =IF(OR(tblDeprExpJune19[[#This Row],[Alloc]]="IDU",tblDeprExpJune19[[#This Row],[Alloc]]="OR",tblDeprExpJune19[[#This Row],[Alloc]]="UT",tblDeprExpJune19[[#This Row],[Alloc]]="WYU",tblDeprExpJune19[[#This Row],[Alloc]]="WYP",tblDeprExpJune19[[#This Row],[Alloc]]="CA",tblDeprExpJune19[[#This Row],[Alloc]]="WA"),"SITUS",tblDeprExpJune19[[#This Row],[Alloc]]) -> SITUS | I146: =INDEX(tblDeprExpLookup[FUNC],MATCH(tblDeprExpJune19[[#This Row],[Concat]],tblDeprExpLookup[Concat],0)) -> DPW | J146: =IF(tblDeprExpJune19[[#This Row],[Total ($000)]]=0,"NO",IF(ISNA(tblDeprExpJune19[[#This Row],[FUNC]]),"YES",IF(_xlfn.ISFORMULA(tblDeprExpJune19[[#This Row],[FUNC]]),"NO","YES"))) -> NO
A147: =CONCATENATE(tblDeprExpJune19[[#This Row],[Primary Account]],tblDeprExpJune19[[#This Row],[Primary Name]],tblDeprExpJune19[[#This Row],[Secondary Acct]],tblDeprExpJune19[[#This Row],[Secondary Name]],tblDeprExpJune19[[#This Row],[Alloc4Func]]) -> 4030000DEPN EXPENSE-ELECT3710000INSTALL ON CUSTOMERS PREMISESSITUS | B147: 4030000 | C147: DEPN EXPENSE-ELECT | D147: 3710000 | E147: INSTALL ON CUSTOMERS PREMISES | F147: WA | G147: 17.74851 | H147: =IF(OR(tblDeprExpJune19[[#This Row],[Alloc]]="IDU",tblDeprExpJune19[[#This Row],[Alloc]]="OR",tblDeprExpJune19[[#This Row],[Alloc]]="UT",tblDeprExpJune19[[#This Row],[Alloc]]="WYU",tblDeprExpJune19[[#This Row],[Alloc]]="WYP",tblDeprExpJune19[[#This Row],[Alloc]]="CA",tblDeprExpJune19[[#This Row],[Alloc]]="WA"),"SITUS",tblDeprExpJune19[[#This Row],[Alloc]]) -> SITUS | I147: =INDEX(tblDeprExpLookup[FUNC],MATCH(tblDeprExpJune19[[#This Row],[Concat]],tblDeprExpLookup[Concat],0)) -> DPW | J147: =IF(tblDeprExpJune19[[#This Row],[Total ($000)]]=0,"NO",IF(ISNA(tblDeprExpJune19[[#This Row],[FUNC]]),"YES",IF(_xlfn.ISFORMULA(tblDeprExpJune19[[#This Row],[FUNC]]),"NO","YES"))) -> NO
A148: =CONCATENATE(tblDeprExpJune19[[#This Row],[Primary Account]],tblDeprExpJune19[[#This Row],[Primary Name]],tblDeprExpJune19[[#This Row],[Secondary Acct]],tblDeprExpJune19[[#This Row],[Secondary Name]],tblDeprExpJune19[[#This Row],[Alloc4Func]]) -> 4030000DEPN EXPENSE-ELECT3710000INSTALL ON CUSTOMERS PREMISESSITUS | B148: 4030000 | C148: DEPN EXPENSE-ELECT | D148: 3710000 | E148: INSTALL ON CUSTOMERS PREMISES | F148: WYP | G148: 49.77064 | H148: =IF(OR(tblDeprExpJune19[[#This Row],[Alloc]]="IDU",tblDeprExpJune19[[#This Row],[Alloc]]="OR",tblDeprExpJune19[[#This Row],[Alloc]]="UT",tblDeprExpJune19[[#This Row],[Alloc]]="WYU",tblDeprExpJune19[[#This Row],[Alloc]]="WYP",tblDeprExpJune19[[#This Row],[Alloc]]="CA",tblDeprExpJune19[[#This Row],[Alloc]]="WA"),"SITUS",tblDeprExpJune19[[#This Row],[Alloc]]) -> SITUS | I148: =INDEX(tblDeprExpLookup[FUNC],MATCH(tblDeprExpJune19[[#This Row],[Concat]],tblDeprExpLookup[Concat],0)) -> DPW | J148: =IF(tblDeprExpJune19[[#This Row],[Total ($000)]]=0,"NO",IF(ISNA(tblDeprExpJune19[[#This Row],[FUNC]]),"YES",IF(_xlfn.ISFORMULA(tblDeprExpJune19[[#This Row],[FUNC]]),"NO","YES"))) -> NO
A149: =CONCATENATE(tblDeprExpJune19[[#This Row],[Primary Account]],tblDeprExpJune19[[#This Row],[Primary Name]],tblDeprExpJune19[[#This Row],[Secondary Acct]],tblDeprExpJune19[[#This Row],[Secondary Name]],tblDeprExpJune19[[#This Row],[Alloc4Func]]) -> 4030000DEPN EXPENSE-ELECT3710000INSTALL ON CUSTOMERS PREMISESSITUS | B149: 4030000 | C149: DEPN EXPENSE-ELECT | D149: 3710000 | E149: INSTALL ON CUSTOMERS PREMISES | F149: WYU | G149: 9.45106 | H149: =IF(OR(tblDeprExpJune19[[#This Row],[Alloc]]="IDU",tblDeprExpJune19[[#This Row],[Alloc]]="OR",tblDeprExpJune19[[#This Row],[Alloc]]="UT",tblDeprExpJune19[[#This Row],[Alloc]]="WYU",tblDeprExpJune19[[#This Row],[Alloc]]="WYP",tblDeprExpJune19[[#This Row],[Alloc]]="CA",tblDeprExpJune19[[#This Row],[Alloc]]="WA"),"SITUS",tblDeprExpJune19[[#This Row],[Alloc]]) -> SITUS | I149: =INDEX(tblDeprExpLookup[FUNC],MATCH(tblDeprExpJune19[[#This Row],[Concat]],tblDeprExpLookup[Concat],0)) -> DPW | J149: =IF(tblDeprExpJune19[[#This Row],[Total ($000)]]=0,"NO",IF(ISNA(tblDeprExpJune19[[#This Row],[FUNC]]),"YES",IF(_xlfn.ISFORMULA(tblDeprExpJune19[[#This Row],[FUNC]]),"NO","YES"))) -> NO
A150: =CONCATENATE(tblDeprExpJune19[[#This Row],[Primary Account]],tblDeprExpJune19[[#This Row],[Primary Name]],tblDeprExpJune19[[#This Row],[Secondary Acct]],tblDeprExpJune19[[#This Row],[Secondary Name]],tblDeprExpJune19[[#This Row],[Alloc4Func]]) -> 4030000DEPN EXPENSE-ELECT3730000STREET LIGHTING & SIGNAL SYSTEMSSITUS | B150: 4030000 | C150: DEPN EXPENSE-ELECT | D150: 3730000 | E150: STREET LIGHTING & SIGNAL SYSTEMS | F150: CA | G150: 23.48035 | H150: =IF(OR(tblDeprExpJune19[[#This Row],[Alloc]]="IDU",tblDeprExpJune19[[#This Row],[Alloc]]="OR",tblDeprExpJune19[[#This Row],[Alloc]]="UT",tblDeprExpJune19[[#This Row],[Alloc]]="WYU",tblDeprExpJune19[[#This Row],[Alloc]]="WYP",tblDeprExpJune19[[#This Row],[Alloc]]="CA",tblDeprExpJune19[[#This Row],[Alloc]]="WA"),"SITUS",tblDeprExpJune19[[#This Row],[Alloc]]) -> SITUS | I150: =INDEX(tblDeprExpLookup[FUNC],MATCH(tblDeprExpJune19[[#This Row],[Concat]],tblDeprExpLookup[Concat],0)) -> DPW | J150: =IF(tblDeprExpJune19[[#This Row],[Total ($000)]]=0,"NO",IF(ISNA(tblDeprExpJune19[[#This Row],[FUNC]]),"YES",IF(_xlfn.ISFORMULA(tblDeprExpJune19[[#This Row],[FUNC]]),"NO","YES"))) -> NO
A151: =CONCATENATE(tblDeprExpJune19[[#This Row],[Primary Account]],tblDeprExpJune19[[#This Row],[Primary Name]],tblDeprExpJune19[[#This Row],[Secondary Acct]],tblDeprExpJune19[[#This Row],[Secondary Name]],tblDeprExpJune19[[#This Row],[Alloc4Func]]) -> 4030000DEPN EXPENSE-ELECT3730000STREET LIGHTING & SIGNAL SYSTEMSSITUS | B151: 4030000 | C151: DEPN EXPENSE-ELECT | D151: 3730000 | E151: STREET LIGHTING & SIGNAL SYSTEMS | F151: IDU | G151: 35.37486 | H151: =IF(OR(tblDeprExpJune19[[#This Row],[Alloc]]="IDU",tblDeprExpJune19[[#This Row],[Alloc]]="OR",tblDeprExpJune19[[#This Row],[Alloc]]="UT",tblDeprExpJune19[[#This Row],[Alloc]]="WYU",tblDeprExpJune19[[#This Row],[Alloc]]="WYP",tblDeprExpJune19[[#This Row],[Alloc]]="CA",tblDeprExpJune19[[#This Row],[Alloc]]="WA"),"SITUS",tblDeprExpJune19[[#This Row],[Alloc]]) -> SITUS | I151: =INDEX(tblDeprExpLookup[FUNC],MATCH(tblDeprExpJune19[[#This Row],[Concat]],tblDeprExpLookup[Concat],0)) -> DPW | J151: =IF(tblDeprExpJune19[[#This Row],[Total ($000)]]=0,"NO",IF(ISNA(tblDeprExpJune19[[#This Row],[FUNC]]),"YES",IF(_xlfn.ISFORMULA(tblDeprExpJune19[[#This Row],[FUNC]]),"NO","YES"))) -> NO
A152: =CONCATENATE(tblDeprExpJune19[[#This Row],[Primary Account]],tblDeprExpJune19[[#This Row],[Primary Name]],tblDeprExpJune19[[#This Row],[Secondary Acct]],tblDeprExpJune19[[#This Row],[Secondary Name]],tblDeprExpJune19[[#This Row],[Alloc4Func]]) -> 4030000DEPN EXPENSE-ELECT3730000STREET LIGHTING & SIGNAL SYSTEMSSITUS | B152: 4030000 | C152: DEPN EXPENSE-ELECT | D152: 3730000 | E152: STREET LIGHTING & SIGNAL SYSTEMS | F152: OR | G152: 698.54164 | H152: =IF(OR(tblDeprExpJune19[[#This Row],[Alloc]]="IDU",tblDeprExpJune19[[#This Row],[Alloc]]="OR",tblDeprExpJune19[[#This Row],[Alloc]]="UT",tblDeprExpJune19[[#This Row],[Alloc]]="WYU",tblDeprExpJune19[[#This Row],[Alloc]]="WYP",tblDeprExpJune19[[#This Row],[Alloc]]="CA",tblDeprExpJune19[[#This Row],[Alloc]]="WA"),"SITUS",tblDeprExpJune19[[#This Row],[Alloc]]) -> SITUS | I152: =INDEX(tblDeprExpLookup[FUNC],MATCH(tblDeprExpJune19[[#This Row],[Concat]],tblDeprExpLookup[Concat],0)) -> DPW | J152: =IF(tblDeprExpJune19[[#This Row],[Total ($000)]]=0,"NO",IF(ISNA(tblDeprExpJune19[[#This Row],[FUNC]]),"YES",IF(_xlfn.ISFORMULA(tblDeprExpJune19[[#This Row],[FUNC]]),"NO","YES"))) -> NO
A153: =CONCATENATE(tblDeprExpJune19[[#This Row],[Primary Account]],tblDeprExpJune19[[#This Row],[Primary Name]],tblDeprExpJune19[[#This Row],[Secondary Acct]],tblDeprExpJune19[[#This Row],[Secondary Name]],tblDeprExpJune19[[#This Row],[Alloc4Func]]) -> 4030000DEPN EXPENSE-ELECT3730000STREET LIGHTING & SIGNAL SYSTEMSSITUS | B153: 4030000 | C153: DEPN EXPENSE-ELECT | D153: 3730000 | E153: STREET LIGHTING & SIGNAL SYSTEMS | F153: UT | G153: 1041.35671 | H153: =IF(OR(tblDeprExpJune19[[#This Row],[Alloc]]="IDU",tblDeprExpJune19[[#This Row],[Alloc]]="OR",tblDeprExpJune19[[#This Row],[Alloc]]="UT",tblDeprExpJune19[[#This Row],[Alloc]]="WYU",tblDeprExpJune19[[#This Row],[Alloc]]="WYP",tblDeprExpJune19[[#This Row],[Alloc]]="CA",tblDeprExpJune19[[#This Row],[Alloc]]="WA"),"SITUS",tblDeprExpJune19[[#This Row],[Alloc]]) -> SITUS | I153: =INDEX(tblDeprExpLookup[FUNC],MATCH(tblDeprExpJune19[[#This Row],[Concat]],tblDeprExpLookup[Concat],0)) -> DPW | J153: =IF(tblDeprExpJune19[[#This Row],[Total ($000)]]=0,"NO",IF(ISNA(tblDeprExpJune19[[#This Row],[FUNC]]),"YES",IF(_xlfn.ISFORMULA(tblDeprExpJune19[[#This Row],[FUNC]]),"NO","YES"))) -> NO
A154: =CONCATENATE(tblDeprExpJune19[[#This Row],[Primary Account]],tblDeprExpJune19[[#This Row],[Primary Name]],tblDeprExpJune19[[#This Row],[Secondary Acct]],tblDeprExpJune19[[#This Row],[Secondary Name]],tblDeprExpJune19[[#This Row],[Alloc4Func]]) -> 4030000DEPN EXPENSE-ELECT3730000STREET LIGHTING & SIGNAL SYSTEMSSITUS | B154: 4030000 | C154: DEPN EXPENSE-ELECT | D154: 3730000 | E154: STREET LIGHTING & SIGNAL SYSTEMS | F154: WA | G154: 125.49685 | H154: =IF(OR(tblDeprExpJune19[[#This Row],[Alloc]]="IDU",tblDeprExpJune19[[#This Row],[Alloc]]="OR",tblDeprExpJune19[[#This Row],[Alloc]]="UT",tblDeprExpJune19[[#This Row],[Alloc]]="WYU",tblDeprExpJune19[[#This Row],[Alloc]]="WYP",tblDeprExpJune19[[#This Row],[Alloc]]="CA",tblDeprExpJune19[[#This Row],[Alloc]]="WA"),"SITUS",tblDeprExpJune19[[#This Row],[Alloc]]) -> SITUS | I154: =INDEX(tblDeprExpLookup[FUNC],MATCH(tblDeprExpJune19[[#This Row],[Concat]],tblDeprExpLookup[Concat],0)) -> DPW | J154: =IF(tblDeprExpJune19[[#This Row],[Total ($000)]]=0,"NO",IF(ISNA(tblDeprExpJune19[[#This Row],[FUNC]]),"YES",IF(_xlfn.ISFORMULA(tblDeprExpJune19[[#This Row],[FUNC]]),"NO","YES"))) -> NO
A155: =CONCATENATE(tblDeprExpJune19[[#This Row],[Primary Account]],tblDeprExpJune19[[#This Row],[Primary Name]],tblDeprExpJune19[[#This Row],[Secondary Acct]],tblDeprExpJune19[[#This Row],[Secondary Name]],tblDeprExpJune19[[#This Row],[Alloc4Func]]) -> 4030000DEPN EXPENSE-ELECT3730000STREET LIGHTING & SIGNAL SYSTEMSSITUS | B155: 4030000 | C155: DEPN EXPENSE-ELECT | D155: 3730000 | E155: STREET LIGHTING & SIGNAL SYSTEMS | F155: WYP | G155: 245.56667 | H155: =IF(OR(tblDeprExpJune19[[#This Row],[Alloc]]="IDU",tblDeprExpJune19[[#This Row],[Alloc]]="OR",tblDeprExpJune19[[#This Row],[Alloc]]="UT",tblDeprExpJune19[[#This Row],[Alloc]]="WYU",tblDeprExpJune19[[#This Row],[Alloc]]="WYP",tblDeprExpJune19[[#This Row],[Alloc]]="CA",tblDeprExpJune19[[#This Row],[Alloc]]="WA"),"SITUS",tblDeprExpJune19[[#This Row],[Alloc]]) -> SITUS | I155: =INDEX(tblDeprExpLookup[FUNC],MATCH(tblDeprExpJune19[[#This Row],[Concat]],tblDeprExpLookup[Concat],0)) -> DPW | J155: =IF(tblDeprExpJune19[[#This Row],[Total ($000)]]=0,"NO",IF(ISNA(tblDeprExpJune19[[#This Row],[FUNC]]),"YES",IF(_xlfn.ISFORMULA(tblDeprExpJune19[[#This Row],[FUNC]]),"NO","YES"))) -> NO
A156: =CONCATENATE(tblDeprExpJune19[[#This Row],[Primary Account]],tblDeprExpJune19[[#This Row],[Primary Name]],tblDeprExpJune19[[#This Row],[Secondary Acct]],tblDeprExpJune19[[#This Row],[Secondary Name]],tblDeprExpJune19[[#This Row],[Alloc4Func]]) -> 4030000DEPN EXPENSE-ELECT3730000STREET LIGHTING & SIGNAL SYSTEMSSITUS | B156: 4030000 | C156: DEPN EXPENSE-ELECT | D156: 3730000 | E156: STREET LIGHTING & SIGNAL SYSTEMS | F156: WYU | G156: 65.56814 | H156: =IF(OR(tblDeprExpJune19[[#This Row],[Alloc]]="IDU",tblDeprExpJune19[[#This Row],[Alloc]]="OR",tblDeprExpJune19[[#This Row],[Alloc]]="UT",tblDeprExpJune19[[#This Row],[Alloc]]="WYU",tblDeprExpJune19[[#This Row],[Alloc]]="WYP",tblDeprExpJune19[[#This Row],[Alloc]]="CA",tblDeprExpJune19[[#This Row],[Alloc]]="WA"),"SITUS",tblDeprExpJune19[[#This Row],[Alloc]]) -> SITUS | I156: =INDEX(tblDeprExpLookup[FUNC],MATCH(tblDeprExpJune19[[#This Row],[Concat]],tblDeprExpLookup[Concat],0)) -> DPW | J156: =IF(tblDeprExpJune19[[#This Row],[Total ($000)]]=0,"NO",IF(ISNA(tblDeprExpJune19[[#This Row],[FUNC]]),"YES",IF(_xlfn.ISFORMULA(tblDeprExpJune19[[#This Row],[FUNC]]),"NO","YES"))) -> NO
A157: =CONCATENATE(tblDeprExpJune19[[#This Row],[Primary Account]],tblDeprExpJune19[[#This Row],[Primary Name]],tblDeprExpJune19[[#This Row],[Secondary Acct]],tblDeprExpJune19[[#This Row],[Secondary Name]],tblDeprExpJune19[[#This Row],[Alloc4Func]]) -> 4030000DEPN EXPENSE-ELECT3892000LAND RIGHTSSITUS | B157: 4030000 | C157: DEPN EXPENSE-ELECT | D157: 3892000 | E157: LAND RIGHTS | F157: IDU | G157: 0.05694 | H157: =IF(OR(tblDeprExpJune19[[#This Row],[Alloc]]="IDU",tblDeprExpJune19[[#This Row],[Alloc]]="OR",tblDeprExpJune19[[#This Row],[Alloc]]="UT",tblDeprExpJune19[[#This Row],[Alloc]]="WYU",tblDeprExpJune19[[#This Row],[Alloc]]="WYP",tblDeprExpJune19[[#This Row],[Alloc]]="CA",tblDeprExpJune19[[#This Row],[Alloc]]="WA"),"SITUS",tblDeprExpJune19[[#This Row],[Alloc]]) -> SITUS | I157: =INDEX(tblDeprExpLookup[FUNC],MATCH(tblDeprExpJune19[[#This Row],[Concat]],tblDeprExpLookup[Concat],0)) -> G-SITUS | J157: =IF(tblDeprExpJune19[[#This Row],[Total ($000)]]=0,"NO",IF(ISNA(tblDeprExpJune19[[#This Row],[FUNC]]),"YES",IF(_xlfn.ISFORMULA(tblDeprExpJune19[[#This Row],[FUNC]]),"NO","YES"))) -> NO
A158: =CONCATENATE(tblDeprExpJune19[[#This Row],[Primary Account]],tblDeprExpJune19[[#This Row],[Primary Name]],tblDeprExpJune19[[#This Row],[Secondary Acct]],tblDeprExpJune19[[#This Row],[Secondary Name]],tblDeprExpJune19[[#This Row],[Alloc4Func]]) -> 4030000DEPN EXPENSE-ELECT3892000LAND RIGHTSSG | B158: 4030000 | C158: DEPN EXPENSE-ELECT | D158: 3892000 | E158: LAND RIGHTS | F158: SG | G158: 0.02492 | H158: =IF(OR(tblDeprExpJune19[[#This Row],[Alloc]]="IDU",tblDeprExpJune19[[#This Row],[Alloc]]="OR",tblDeprExpJune19[[#This Row],[Alloc]]="UT",tblDeprExpJune19[[#This Row],[Alloc]]="WYU",tblDeprExpJune19[[#This Row],[Alloc]]="WYP",tblDeprExpJune19[[#This Row],[Alloc]]="CA",tblDeprExpJune19[[#This Row],[Alloc]]="WA"),"SITUS",tblDeprExpJune19[[#This Row],[Alloc]]) -> SG | I158: =INDEX(tblDeprExpLookup[FUNC],MATCH(tblDeprExpJune19[[#This Row],[Concat]],tblDeprExpLookup[Concat],0)) -> G-DGP | J158: =IF(tblDeprExpJune19[[#This Row],[Total ($000)]]=0,"NO",IF(ISNA(tblDeprExpJune19[[#This Row],[FUNC]]),"YES",IF(_xlfn.ISFORMULA(tblDeprExpJune19[[#This Row],[FUNC]]),"NO","YES"))) -> NO
A159: =CONCATENATE(tblDeprExpJune19[[#This Row],[Primary Account]],tblDeprExpJune19[[#This Row],[Primary Name]],tblDeprExpJune19[[#This Row],[Secondary Acct]],tblDeprExpJune19[[#This Row],[Secondary Name]],tblDeprExpJune19[[#This Row],[Alloc4Func]]) -> 4030000DEPN EXPENSE-ELECT3892000LAND RIGHTSSITUS | B159: 4030000 | C159: DEPN EXPENSE-ELECT | D159: 3892000 | E159: LAND RIGHTS | F159: UT | G159: 1.70655 | H159: =IF(OR(tblDeprExpJune19[[#This Row],[Alloc]]="IDU",tblDeprExpJune19[[#This Row],[Alloc]]="OR",tblDeprExpJune19[[#This Row],[Alloc]]="UT",tblDeprExpJune19[[#This Row],[Alloc]]="WYU",tblDeprExpJune19[[#This Row],[Alloc]]="WYP",tblDeprExpJune19[[#This Row],[Alloc]]="CA",tblDeprExpJune19[[#This Row],[Alloc]]="WA"),"SITUS",tblDeprExpJune19[[#This Row],[Alloc]]) -> SITUS | I159: =INDEX(tblDeprExpLookup[FUNC],MATCH(tblDeprExpJune19[[#This Row],[Concat]],tblDeprExpLookup[Concat],0)) -> G-SITUS | J159: =IF(tblDeprExpJune19[[#This Row],[Total ($000)]]=0,"NO",IF(ISNA(tblDeprExpJune19[[#This Row],[FUNC]]),"YES",IF(_xlfn.ISFORMULA(tblDeprExpJune19[[#This Row],[FUNC]]),"NO","YES"))) -> NO
A160: =CONCATENATE(tblDeprExpJune19[[#This Row],[Primary Account]],tblDeprExpJune19[[#This Row],[Primary Name]],tblDeprExpJune19[[#This Row],[Secondary Acct]],tblDeprExpJune19[[#This Row],[Secondary Name]],tblDeprExpJune19[[#This Row],[Alloc4Func]]) -> 4030000DEPN EXPENSE-ELECT3892000LAND RIGHTSSITUS | B160: 4030000 | C160: DEPN EXPENSE-ELECT | D160: 3892000 | E160: LAND RIGHTS | F160: WYP | G160: 1.0377 | H160: =IF(OR(tblDeprExpJune19[[#This Row],[Alloc]]="IDU",tblDeprExpJune19[[#This Row],[Alloc]]="OR",tblDeprExpJune19[[#This Row],[Alloc]]="UT",tblDeprExpJune19[[#This Row],[Alloc]]="WYU",tblDeprExpJune19[[#This Row],[Alloc]]="WYP",tblDeprExpJune19[[#This Row],[Alloc]]="CA",tblDeprExpJune19[[#This Row],[Alloc]]="WA"),"SITUS",tblDeprExpJune19[[#This Row],[Alloc]]) -> SITUS | I160: =INDEX(tblDeprExpLookup[FUNC],MATCH(tblDeprExpJune19[[#This Row],[Concat]],tblDeprExpLookup[Concat],0)) -> G-SITUS | J160: =IF(tblDeprExpJune19[[#This Row],[Total ($000)]]=0,"NO",IF(ISNA(tblDeprExpJune19[[#This Row],[FUNC]]),"YES",IF(_xlfn.ISFORMULA(tblDeprExpJune19[[#This Row],[FUNC]]),"NO","YES"))) -> NO
A161: =CONCATENATE(tblDeprExpJune19[[#This Row],[Primary Account]],tblDeprExpJune19[[#This Row],[Primary Name]],tblDeprExpJune19[[#This Row],[Secondary Acct]],tblDeprExpJune19[[#This Row],[Secondary Name]],tblDeprExpJune19[[#This Row],[Alloc4Func]]) -> 4030000DEPN EXPENSE-ELECT3892000LAND RIGHTSSITUS | B161: 4030000 | C161: DEPN EXPENSE-ELECT | D161: 3892000 | E161: LAND RIGHTS | F161: WYU | G161: 0.4338 | H161: =IF(OR(tblDeprExpJune19[[#This Row],[Alloc]]="IDU",tblDeprExpJune19[[#This Row],[Alloc]]="OR",tblDeprExpJune19[[#This Row],[Alloc]]="UT",tblDeprExpJune19[[#This Row],[Alloc]]="WYU",tblDeprExpJune19[[#This Row],[Alloc]]="WYP",tblDeprExpJune19[[#This Row],[Alloc]]="CA",tblDeprExpJune19[[#This Row],[Alloc]]="WA"),"SITUS",tblDeprExpJune19[[#This Row],[Alloc]]) -> SITUS | I161: =INDEX(tblDeprExpLookup[FUNC],MATCH(tblDeprExpJune19[[#This Row],[Concat]],tblDeprExpLookup[Concat],0)) -> G-SITUS | J161: =IF(tblDeprExpJune19[[#This Row],[Total ($000)]]=0,"NO",IF(ISNA(tblDeprExpJune19[[#This Row],[FUNC]]),"YES",IF(_xlfn.ISFORMULA(tblDeprExpJune19[[#This Row],[FUNC]]),"NO","YES"))) -> NO
A162: =CONCATENATE(tblDeprExpJune19[[#This Row],[Primary Account]],tblDeprExpJune19[[#This Row],[Primary Name]],tblDeprExpJune19[[#This Row],[Secondary Acct]],tblDeprExpJune19[[#This Row],[Secondary Name]],tblDeprExpJune19[[#This Row],[Alloc4Func]]) -> 4030000DEPN EXPENSE-ELECT3900000STRUCTURES AND IMPROVEMENTSSITUS | B162: 4030000 | C162: DEPN EXPENSE-ELECT | D162: 3900000 | E162: STRUCTURES AND IMPROVEMENTS | F162: CA | G162: 55.72433 | H162: =IF(OR(tblDeprExpJune19[[#This Row],[Alloc]]="IDU",tblDeprExpJune19[[#This Row],[Alloc]]="OR",tblDeprExpJune19[[#This Row],[Alloc]]="UT",tblDeprExpJune19[[#This Row],[Alloc]]="WYU",tblDeprExpJune19[[#This Row],[Alloc]]="WYP",tblDeprExpJune19[[#This Row],[Alloc]]="CA",tblDeprExpJune19[[#This Row],[Alloc]]="WA"),"SITUS",tblDeprExpJune19[[#This Row],[Alloc]]) -> SITUS | I162: =INDEX(tblDeprExpLookup[FUNC],MATCH(tblDeprExpJune19[[#This Row],[Concat]],tblDeprExpLookup[Concat],0)) -> G-SITUS | J162: =IF(tblDeprExpJune19[[#This Row],[Total ($000)]]=0,"NO",IF(ISNA(tblDeprExpJune19[[#This Row],[FUNC]]),"YES",IF(_xlfn.ISFORMULA(tblDeprExpJune19[[#This Row],[FUNC]]),"NO","YES"))) -> NO
A163: =CONCATENATE(tblDeprExpJune19[[#This Row],[Primary Account]],tblDeprExpJune19[[#This Row],[Primary Name]],tblDeprExpJune19[[#This Row],[Secondary Acct]],tblDeprExpJune19[[#This Row],[Secondary Name]],tblDeprExpJune19[[#This Row],[Alloc4Func]]) -> 4030000DEPN EXPENSE-ELECT3900000STRUCTURES AND IMPROVEMENTSCN | B163: 4030000 | C163: DEPN EXPENSE-ELECT | D163: 3900000 | E163: STRUCTURES AND IMPROVEMENTS | F163: CN | G163: 125.23521 | H163: =IF(OR(tblDeprExpJune19[[#This Row],[Alloc]]="IDU",tblDeprExpJune19[[#This Row],[Alloc]]="OR",tblDeprExpJune19[[#This Row],[Alloc]]="UT",tblDeprExpJune19[[#This Row],[Alloc]]="WYU",tblDeprExpJune19[[#This Row],[Alloc]]="WYP",tblDeprExpJune19[[#This Row],[Alloc]]="CA",tblDeprExpJune19[[#This Row],[Alloc]]="WA"),"SITUS",tblDeprExpJune19[[#This Row],[Alloc]]) -> CN | I163: =INDEX(tblDeprExpLookup[FUNC],MATCH(tblDeprExpJune19[[#This Row],[Concat]],tblDeprExpLookup[Concat],0)) -> CUST | J163: =IF(tblDeprExpJune19[[#This Row],[Total ($000)]]=0,"NO",IF(ISNA(tblDeprExpJune19[[#This Row],[FUNC]]),"YES",IF(_xlfn.ISFORMULA(tblDeprExpJune19[[#This Row],[FUNC]]),"NO","YES"))) -> NO
A164: =CONCATENATE(tblDeprExpJune19[[#This Row],[Primary Account]],tblDeprExpJune19[[#This Row],[Primary Name]],tblDeprExpJune19[[#This Row],[Secondary Acct]],tblDeprExpJune19[[#This Row],[Secondary Name]],tblDeprExpJune19[[#This Row],[Alloc4Func]]) -> 4030000DEPN EXPENSE-ELECT3900000STRUCTURES AND IMPROVEMENTSSITUS | B164: 4030000 | C164: DEPN EXPENSE-ELECT | D164: 3900000 | E164: STRUCTURES AND IMPROVEMENTS | F164: IDU | G164: 184.93603 | H164: =IF(OR(tblDeprExpJune19[[#This Row],[Alloc]]="IDU",tblDeprExpJune19[[#This Row],[Alloc]]="OR",tblDeprExpJune19[[#This Row],[Alloc]]="UT",tblDeprExpJune19[[#This Row],[Alloc]]="WYU",tblDeprExpJune19[[#This Row],[Alloc]]="WYP",tblDeprExpJune19[[#This Row],[Alloc]]="CA",tblDeprExpJune19[[#This Row],[Alloc]]="WA"),"SITUS",tblDeprExpJune19[[#This Row],[Alloc]]) -> SITUS | I164: =INDEX(tblDeprExpLookup[FUNC],MATCH(tblDeprExpJune19[[#This Row],[Concat]],tblDeprExpLookup[Concat],0)) -> G-SITUS | J164: =IF(tblDeprExpJune19[[#This Row],[Total ($000)]]=0,"NO",IF(ISNA(tblDeprExpJune19[[#This Row],[FUNC]]),"YES",IF(_xlfn.ISFORMULA(tblDeprExpJune19[[#This Row],[FUNC]]),"NO","YES"))) -> NO
A165: =CONCATENATE(tblDeprExpJune19[[#This Row],[Primary Account]],tblDeprExpJune19[[#This Row],[Primary Name]],tblDeprExpJune19[[#This Row],[Secondary Acct]],tblDeprExpJune19[[#This Row],[Secondary Name]],tblDeprExpJune19[[#This Row],[Alloc4Func]]) -> 4030000DEPN EXPENSE-ELECT3900000STRUCTURES AND IMPROVEMENTSSITUS | B165: 4030000 | C165: DEPN EXPENSE-ELECT | D165: 3900000 | E165: STRUCTURES AND IMPROVEMENTS | F165: OR | G165: 626.08207 | H165: =IF(OR(tblDeprExpJune19[[#This Row],[Alloc]]="IDU",tblDeprExpJune19[[#This Row],[Alloc]]="OR",tblDeprExpJune19[[#This Row],[Alloc]]="UT",tblDeprExpJune19[[#This Row],[Alloc]]="WYU",tblDeprExpJune19[[#This Row],[Alloc]]="WYP",tblDeprExpJune19[[#This Row],[Alloc]]="CA",tblDeprExpJune19[[#This Row],[Alloc]]="WA"),"SITUS",tblDeprExpJune19[[#This Row],[Alloc]]) -> SITUS | I165: =INDEX(tblDeprExpLookup[FUNC],MATCH(tblDeprExpJune19[[#This Row],[Concat]],tblDeprExpLookup[Concat],0)) -> G-SITUS | J165: =IF(tblDeprExpJune19[[#This Row],[Total ($000)]]=0,"NO",IF(ISNA(tblDeprExpJune19[[#This Row],[FUNC]]),"YES",IF(_xlfn.ISFORMULA(tblDeprExpJune19[[#This Row],[FUNC]]),"NO","YES"))) -> NO
A166: =CONCATENATE(tblDeprExpJune19[[#This Row],[Primary Account]],tblDeprExpJune19[[#This Row],[Primary Name]],tblDeprExpJune19[[#This Row],[Secondary Acct]],tblDeprExpJune19[[#This Row],[Secondary Name]],tblDeprExpJune19[[#This Row],[Alloc4Func]]) -> 4030000DEPN EXPENSE-ELECT3900000STRUCTURES AND IMPROVEMENTSSE | B166: 4030000 | C166: DEPN EXPENSE-ELECT | D166: 3900000 | E166: STRUCTURES AND IMPROVEMENTS | F166: SE | G166: 17.80073 | H166: =IF(OR(tblDeprExpJune19[[#This Row],[Alloc]]="IDU",tblDeprExpJune19[[#This Row],[Alloc]]="OR",tblDeprExpJune19[[#This Row],[Alloc]]="UT",tblDeprExpJune19[[#This Row],[Alloc]]="WYU",tblDeprExpJune19[[#This Row],[Alloc]]="WYP",tblDeprExpJune19[[#This Row],[Alloc]]="CA",tblDeprExpJune19[[#This Row],[Alloc]]="WA"),"SITUS",tblDeprExpJune19[[#This Row],[Alloc]]) -> SE | I166: =INDEX(tblDeprExpLookup[FUNC],MATCH(tblDeprExpJune19[[#This Row],[Concat]],tblDeprExpLookup[Concat],0)) -> P | J166: =IF(tblDeprExpJune19[[#This Row],[Total ($000)]]=0,"NO",IF(ISNA(tblDeprExpJune19[[#This Row],[FUNC]]),"YES",IF(_xlfn.ISFORMULA(tblDeprExpJune19[[#This Row],[FUNC]]),"NO","YES"))) -> NO
A167: =CONCATENATE(tblDeprExpJune19[[#This Row],[Primary Account]],tblDeprExpJune19[[#This Row],[Primary Name]],tblDeprExpJune19[[#This Row],[Secondary Acct]],tblDeprExpJune19[[#This Row],[Secondary Name]],tblDeprExpJune19[[#This Row],[Alloc4Func]]) -> 4030000DEPN EXPENSE-ELECT3900000STRUCTURES AND IMPROVEMENTSSG | B167: 4030000 | C167: DEPN EXPENSE-ELECT | D167: 3900000 | E167: STRUCTURES AND IMPROVEMENTS | F167: SG | G167: 131.001 | H167: =IF(OR(tblDeprExpJune19[[#This Row],[Alloc]]="IDU",tblDeprExpJune19[[#This Row],[Alloc]]="OR",tblDeprExpJune19[[#This Row],[Alloc]]="UT",tblDeprExpJune19[[#This Row],[Alloc]]="WYU",tblDeprExpJune19[[#This Row],[Alloc]]="WYP",tblDeprExpJune19[[#This Row],[Alloc]]="CA",tblDeprExpJune19[[#This Row],[Alloc]]="WA"),"SITUS",tblDeprExpJune19[[#This Row],[Alloc]]) -> SG | I167: =INDEX(tblDeprExpLookup[FUNC],MATCH(tblDeprExpJune19[[#This Row],[Concat]],tblDeprExpLookup[Concat],0)) -> G-DGU | J167: =IF(tblDeprExpJune19[[#This Row],[Total ($000)]]=0,"NO",IF(ISNA(tblDeprExpJune19[[#This Row],[FUNC]]),"YES",IF(_xlfn.ISFORMULA(tblDeprExpJune19[[#This Row],[FUNC]]),"NO","YES"))) -> NO
A168: =CONCATENATE(tblDeprExpJune19[[#This Row],[Primary Account]],tblDeprExpJune19[[#This Row],[Primary Name]],tblDeprExpJune19[[#This Row],[Secondary Acct]],tblDeprExpJune19[[#This Row],[Secondary Name]],tblDeprExpJune19[[#This Row],[Alloc4Func]]) -> 4030000DEPN EXPENSE-ELECT3900000STRUCTURES AND IMPROVEMENTSSO | B168: 4030000 | C168: DEPN EXPENSE-ELECT | D168: 3900000 | E168: STRUCTURES AND IMPROVEMENTS | F168: SO | G168: 1578.52029 | H168: =IF(OR(tblDeprExpJune19[[#This Row],[Alloc]]="IDU",tblDeprExpJune19[[#This Row],[Alloc]]="OR",tblDeprExpJune19[[#This Row],[Alloc]]="UT",tblDeprExpJune19[[#This Row],[Alloc]]="WYU",tblDeprExpJune19[[#This Row],[Alloc]]="WYP",tblDeprExpJune19[[#This Row],[Alloc]]="CA",tblDeprExpJune19[[#This Row],[Alloc]]="WA"),"SITUS",tblDeprExpJune19[[#This Row],[Alloc]]) -> SO | I168: =INDEX(tblDeprExpLookup[FUNC],MATCH(tblDeprExpJune19[[#This Row],[Concat]],tblDeprExpLookup[Concat],0)) -> PTD | J168: =IF(tblDeprExpJune19[[#This Row],[Total ($000)]]=0,"NO",IF(ISNA(tblDeprExpJune19[[#This Row],[FUNC]]),"YES",IF(_xlfn.ISFORMULA(tblDeprExpJune19[[#This Row],[FUNC]]),"NO","YES"))) -> NO
A169: =CONCATENATE(tblDeprExpJune19[[#This Row],[Primary Account]],tblDeprExpJune19[[#This Row],[Primary Name]],tblDeprExpJune19[[#This Row],[Secondary Acct]],tblDeprExpJune19[[#This Row],[Secondary Name]],tblDeprExpJune19[[#This Row],[Alloc4Func]]) -> 4030000DEPN EXPENSE-ELECT3900000STRUCTURES AND IMPROVEMENTSSITUS | B169: 4030000 | C169: DEPN EXPENSE-ELECT | D169: 3900000 | E169: STRUCTURES AND IMPROVEMENTS | F169: UT | G169: 677.8306 | H169: =IF(OR(tblDeprExpJune19[[#This Row],[Alloc]]="IDU",tblDeprExpJune19[[#This Row],[Alloc]]="OR",tblDeprExpJune19[[#This Row],[Alloc]]="UT",tblDeprExpJune19[[#This Row],[Alloc]]="WYU",tblDeprExpJune19[[#This Row],[Alloc]]="WYP",tblDeprExpJune19[[#This Row],[Alloc]]="CA",tblDeprExpJune19[[#This Row],[Alloc]]="WA"),"SITUS",tblDeprExpJune19[[#This Row],[Alloc]]) -> SITUS | I169: =INDEX(tblDeprExpLookup[FUNC],MATCH(tblDeprExpJune19[[#This Row],[Concat]],tblDeprExpLookup[Concat],0)) -> G-SITUS | J169: =IF(tblDeprExpJune19[[#This Row],[Total ($000)]]=0,"NO",IF(ISNA(tblDeprExpJune19[[#This Row],[FUNC]]),"YES",IF(_xlfn.ISFORMULA(tblDeprExpJune19[[#This Row],[FUNC]]),"NO","YES"))) -> NO
A170: =CONCATENATE(tblDeprExpJune19[[#This Row],[Primary Account]],tblDeprExpJune19[[#This Row],[Primary Name]],tblDeprExpJune19[[#This Row],[Secondary Acct]],tblDeprExpJune19[[#This Row],[Secondary Name]],tblDeprExpJune19[[#This Row],[Alloc4Func]]) -> 4030000DEPN EXPENSE-ELECT3900000STRUCTURES AND IMPROVEMENTSSITUS | B170: 4030000 | C170: DEPN EXPENSE-ELECT | D170: 3900000 | E170: STRUCTURES AND IMPROVEMENTS | F170: WA | G170: 289.81248 | H170: =IF(OR(tblDeprExpJune19[[#This Row],[Alloc]]="IDU",tblDeprExpJune19[[#This Row],[Alloc]]="OR",tblDeprExpJune19[[#This Row],[Alloc]]="UT",tblDeprExpJune19[[#This Row],[Alloc]]="WYU",tblDeprExpJune19[[#This Row],[Alloc]]="WYP",tblDeprExpJune19[[#This Row],[Alloc]]="CA",tblDeprExpJune19[[#This Row],[Alloc]]="WA"),"SITUS",tblDeprExpJune19[[#This Row],[Alloc]]) -> SITUS | I170: =INDEX(tblDeprExpLookup[FUNC],MATCH(tblDeprExpJune19[[#This Row],[Concat]],tblDeprExpLookup[Concat],0)) -> G-SITUS | J170: =IF(tblDeprExpJune19[[#This Row],[Total ($000)]]=0,"NO",IF(ISNA(tblDeprExpJune19[[#This Row],[FUNC]]),"YES",IF(_xlfn.ISFORMULA(tblDeprExpJune19[[#This Row],[FUNC]]),"NO","YES"))) -> NO
A171: =CONCATENATE(tblDeprExpJune19[[#This Row],[Primary Account]],tblDeprExpJune19[[#This Row],[Primary Name]],tblDeprExpJune19[[#This Row],[Secondary Acct]],tblDeprExpJune19[[#This Row],[Secondary Name]],tblDeprExpJune19[[#This Row],[Alloc4Func]]) -> 4030000DEPN EXPENSE-ELECT3900000STRUCTURES AND IMPROVEMENTSSITUS | B171: 4030000 | C171: DEPN EXPENSE-ELECT | D171: 3900000 | E171: STRUCTURES AND IMPROVEMENTS | F171: WYP | G171: 177.96928 | H171: =IF(OR(tblDeprExpJune19[[#This Row],[Alloc]]="IDU",tblDeprExpJune19[[#This Row],[Alloc]]="OR",tblDeprExpJune19[[#This Row],[Alloc]]="UT",tblDeprExpJune19[[#This Row],[Alloc]]="WYU",tblDeprExpJune19[[#This Row],[Alloc]]="WYP",tblDeprExpJune19[[#This Row],[Alloc]]="CA",tblDeprExpJune19[[#This Row],[Alloc]]="WA"),"SITUS",tblDeprExpJune19[[#This Row],[Alloc]]) -> SITUS | I171: =INDEX(tblDeprExpLookup[FUNC],MATCH(tblDeprExpJune19[[#This Row],[Concat]],tblDeprExpLookup[Concat],0)) -> G-SITUS | J171: =IF(tblDeprExpJune19[[#This Row],[Total ($000)]]=0,"NO",IF(ISNA(tblDeprExpJune19[[#This Row],[FUNC]]),"YES",IF(_xlfn.ISFORMULA(tblDeprExpJune19[[#This Row],[FUNC]]),"NO","YES"))) -> NO
A172: =CONCATENATE(tblDeprExpJune19[[#This Row],[Primary Account]],tblDeprExpJune19[[#This Row],[Primary Name]],tblDeprExpJune19[[#This Row],[Secondary Acct]],tblDeprExpJune19[[#This Row],[Secondary Name]],tblDeprExpJune19[[#This Row],[Alloc4Func]]) -> 4030000DEPN EXPENSE-ELECT3900000STRUCTURES AND IMPROVEMENTSSITUS | B172: 4030000 | C172: DEPN EXPENSE-ELECT | D172: 3900000 | E172: STRUCTURES AND IMPROVEMENTS | F172: WYU | G172: 90.03972 | H172: =IF(OR(tblDeprExpJune19[[#This Row],[Alloc]]="IDU",tblDeprExpJune19[[#This Row],[Alloc]]="OR",tblDeprExpJune19[[#This Row],[Alloc]]="UT",tblDeprExpJune19[[#This Row],[Alloc]]="WYU",tblDeprExpJune19[[#This Row],[Alloc]]="WYP",tblDeprExpJune19[[#This Row],[Alloc]]="CA",tblDeprExpJune19[[#This Row],[Alloc]]="WA"),"SITUS",tblDeprExpJune19[[#This Row],[Alloc]]) -> SITUS | I172: =INDEX(tblDeprExpLookup[FUNC],MATCH(tblDeprExpJune19[[#This Row],[Concat]],tblDeprExpLookup[Concat],0)) -> G-SITUS | J172: =IF(tblDeprExpJune19[[#This Row],[Total ($000)]]=0,"NO",IF(ISNA(tblDeprExpJune19[[#This Row],[FUNC]]),"YES",IF(_xlfn.ISFORMULA(tblDeprExpJune19[[#This Row],[FUNC]]),"NO","YES"))) -> NO
A173: =CONCATENATE(tblDeprExpJune19[[#This Row],[Primary Account]],tblDeprExpJune19[[#This Row],[Primary Name]],tblDeprExpJune19[[#This Row],[Secondary Acct]],tblDeprExpJune19[[#This Row],[Secondary Name]],tblDeprExpJune19[[#This Row],[Alloc4Func]]) -> 4030000DEPN EXPENSE-ELECT3910000OFFICE FURNITURESITUS | B173: 4030000 | C173: DEPN EXPENSE-ELECT | D173: 3910000 | E173: OFFICE FURNITURE | F173: CA | G173: 5.47804 | H173: =IF(OR(tblDeprExpJune19[[#This Row],[Alloc]]="IDU",tblDeprExpJune19[[#This Row],[Alloc]]="OR",tblDeprExpJune19[[#This Row],[Alloc]]="UT",tblDeprExpJune19[[#This Row],[Alloc]]="WYU",tblDeprExpJune19[[#This Row],[Alloc]]="WYP",tblDeprExpJune19[[#This Row],[Alloc]]="CA",tblDeprExpJune19[[#This Row],[Alloc]]="WA"),"SITUS",tblDeprExpJune19[[#This Row],[Alloc]]) -> SITUS | I173: =INDEX(tblDeprExpLookup[FUNC],MATCH(tblDeprExpJune19[[#This Row],[Concat]],tblDeprExpLookup[Concat],0)) -> G-SITUS | J173: =IF(tblDeprExpJune19[[#This Row],[Total ($000)]]=0,"NO",IF(ISNA(tblDeprExpJune19[[#This Row],[FUNC]]),"YES",IF(_xlfn.ISFORMULA(tblDeprExpJune19[[#This Row],[FUNC]]),"NO","YES"))) -> NO
A174: =CONCATENATE(tblDeprExpJune19[[#This Row],[Primary Account]],tblDeprExpJune19[[#This Row],[Primary Name]],tblDeprExpJune19[[#This Row],[Secondary Acct]],tblDeprExpJune19[[#This Row],[Secondary Name]],tblDeprExpJune19[[#This Row],[Alloc4Func]]) -> 4030000DEPN EXPENSE-ELECT3910000OFFICE FURNITURECN | B174: 4030000 | C174: DEPN EXPENSE-ELECT | D174: 3910000 | E174: OFFICE FURNITURE | F174: CN | G174: 53.29663 | H174: =IF(OR(tblDeprExpJune19[[#This Row],[Alloc]]="IDU",tblDeprExpJune19[[#This Row],[Alloc]]="OR",tblDeprExpJune19[[#This Row],[Alloc]]="UT",tblDeprExpJune19[[#This Row],[Alloc]]="WYU",tblDeprExpJune19[[#This Row],[Alloc]]="WYP",tblDeprExpJune19[[#This Row],[Alloc]]="CA",tblDeprExpJune19[[#This Row],[Alloc]]="WA"),"SITUS",tblDeprExpJune19[[#This Row],[Alloc]]) -> CN | I174: =INDEX(tblDeprExpLookup[FUNC],MATCH(tblDeprExpJune19[[#This Row],[Concat]],tblDeprExpLookup[Concat],0)) -> CUST | J174: =IF(tblDeprExpJune19[[#This Row],[Total ($000)]]=0,"NO",IF(ISNA(tblDeprExpJune19[[#This Row],[FUNC]]),"YES",IF(_xlfn.ISFORMULA(tblDeprExpJune19[[#This Row],[FUNC]]),"NO","YES"))) -> NO
A175: =CONCATENATE(tblDeprExpJune19[[#This Row],[Primary Account]],tblDeprExpJune19[[#This Row],[Primary Name]],tblDeprExpJune19[[#This Row],[Secondary Acct]],tblDeprExpJune19[[#This Row],[Secondary Name]],tblDeprExpJune19[[#This Row],[Alloc4Func]]) -> 4030000DEPN EXPENSE-ELECT3910000OFFICE FURNITURESITUS | B175: 4030000 | C175: DEPN EXPENSE-ELECT | D175: 3910000 | E175: OFFICE FURNITURE | F175: IDU | G175: 3.61089 | H175: =IF(OR(tblDeprExpJune19[[#This Row],[Alloc]]="IDU",tblDeprExpJune19[[#This Row],[Alloc]]="OR",tblDeprExpJune19[[#This Row],[Alloc]]="UT",tblDeprExpJune19[[#This Row],[Alloc]]="WYU",tblDeprExpJune19[[#This Row],[Alloc]]="WYP",tblDeprExpJune19[[#This Row],[Alloc]]="CA",tblDeprExpJune19[[#This Row],[Alloc]]="WA"),"SITUS",tblDeprExpJune19[[#This Row],[Alloc]]) -> SITUS | I175: =INDEX(tblDeprExpLookup[FUNC],MATCH(tblDeprExpJune19[[#This Row],[Concat]],tblDeprExpLookup[Concat],0)) -> G-SITUS | J175: =IF(tblDeprExpJune19[[#This Row],[Total ($000)]]=0,"NO",IF(ISNA(tblDeprExpJune19[[#This Row],[FUNC]]),"YES",IF(_xlfn.ISFORMULA(tblDeprExpJune19[[#This Row],[FUNC]]),"NO","YES"))) -> NO
